Workbook

Sheet Інструкція (hidden)
A1: ІНСТРУКЦІЯ
B4: 1. ГОЛОВНА
B5: Даний аркуш є обов'язковим для заповнення. На даному аркуші відображаються всі ключові параметри інвестиційного проекту, що дозволяють отримати уявлення про його суть, етапи та ефективності.
B39: 2. ФІНАНСУВАННЯ (CFI)
B40: Даний аркуш є обов'язковим для заповнення. Показує елементний склад витрат, пов'язаних з реалізацією проекту: - Операційні витрати на реалізацію проекту; - Інвестиції по проекту; - Отримання кредиту; - Заплановані витрати на капітальні ремонти протягом терміну експлуатації; На аркуші «Фінансування (CFI)» також відображається інформація про розподіл витрат по роках. Дана інформація в автоматичному режимі використовуються на аркушах «Амортизація» та «Грошові потоки».
B77: 3. ПЛАН ФІНАНСУВАННЯ
B78: Даний аркуш є обов'язковим для заповнення. аркуш складається з двой таблиць: План фінансування та план освоєння. Мета даного аркуша показати графік реалізації інвестиційного проекту і взаємозв'язок з графіком фінансування / освоєння. Дана інформація повинна відповідати графіку впровадження проекта виконаному в MS Project. Дані по графіку проекту автоматично переносяться на аркуш "Головна".
B146: 4.ГРОШОВІ ПОТОКИ
B147: Даний аркуш є обов'язковим для заповнення. Необхідний для розрахунку дисконтування грошових потоків. Мета форми - показати розрахунок основних економічних показників проекту. ПРИМІТКА: додавання рядків в цей аркуш не допускається (будуть неправильно працювати формули розрахунку ставок дисконтування)!
B205: 5.РОЗРАХУНОК КРЕДИТУ (CFF)
B206: Аркуш використовується для розрахунку кредитних виплат у разі,я кщо джелом фінансування проекту є кредитні кошти. Розрахунки автоматично переносяться на аркуш "Грошові потоки" в розділ "Фінансовий грошовий потік".
B236: 6. РОЗРАХУНОК ОПЕРАЦІЙНОГО ГРОШОВОГО ПОТОКУ (CFO)
B237: Два аркуши використовуються для довільних розрахунків автора. На аркуші "Для розрахунків (CFO)" є макропрогноз показників, які можливо використовувати для розрахунків. На аркуші CFO перелічені можливі грошові потоки по проектам. Обидва аркуші розраховані на додавання рядків.
B270: 7.АМОРТИЗАЦІЯ
B271: Мета форми - показати розрахунок амортизаційних відрахувань при введенні в експлуатацію об'єкта інвестицій, бухгалтерську залишкову вартість об'єкта. В інвестиційній формі передбачено використання прямолінійного методу розрахунку амортизації: Згідно Наказу НЕК «Укренерго» №54 від 31.01.2019р. "Про затвердження Облікової політики за міжнародними стандартами фінансової звітності", підприємство застосовує прямолінійний метод амортизації. Значення амортизації вносяться в аркуш «Грошові потоки» автоматично, посиланнями на відповідні осередки аркуша додатка.
B291: 8. Факторний аналіз
B292: Аркуш призначений для визначення складу NPV, а також для визначення кількісної зміни показників економічної ефективності в результаті зміни кожного чи двох одночасно факторів.
B387: 9. РИЗИКИ ПРОЕКТУ
B388: Мета форми - описати основні специфічні ризики проекту, їх вірогідність і заходи, які будуть вжиті для мінімізації ризиків невдачі проекту. В даній формі оцінюються тільки специфічні для даного проекту ризики і пропонуються специфічні для проекту заходи щодо їх мінімізації. Якщо мінімізація загальних ризиків забезпечується наявними на підприємстві звичайними бізнес-процедурами, описувати ці ризики і заходи щодо їх мінімізації в формі не потрібно. Заходи щодо мінімізації ризику розробляються в обов'язковому порядку в разі, якщо ризик оцінюється як «середній» або «високий». Загальна оцінка ризиків розраховується автоматично.
B421: 10.АНАЛІЗ ЧУТЛИВОСТІ
B422: Мета форми - оцінити чутливість економічних показників проекту до зміни основних параметрів, щодо базового варіанту. Додавання і видалення рядків в цій формі не допускається.
B460: 11. ТАРИФ
B461: Мета даного аркушу - демонстрація впливу реалізації проєкту на тариф на передачу електроенергії та на тариф на диспечеризацію.

Sheet Головна_Summary
A1: UKR | K1: ENG | T1: ФІНАНССОВІ ВИТРАТИ / FINANCIAL EXPENSES | AG1: FINANCIAL EXPENSES
A2: Energy storage system 10МВт | K2: Energy storage system 10 MW
Z4: =E7 -> 2024 | AB4: Весь період / All period | AD4: Валюта / Currency | AM4: =O7 -> 2024 | AO4: All period | AQ4: Currency
B5: Оцінка ефективності з урахуванням: | C5: Погашення тіла кредиту | K5: Efficiency evaluation taking into account: | M5: Repayment of principal | U5: Бюджет проекту / Project budjet | Z5: ='Фінансування_Financing (CFI)'!AD8 -> 6000 | AB5: ='Фінансування_Financing (CFI)'!BH8 -> 9000 | AD5: тис.US$/ ths.US$ | AH5: Project budjet | AM5: 3961 | AO5: 58132 | AQ5: тис.EUR/ ths.EUR
B6: Терміни реалізації | C6: Місяць | E6: Початок витрат за проєктом | G6: Введення в експлуатацію | K6: Implementation period | M6: Month | O6: Start of project costs | Q6: Commissioning
C7: 6 | E7: 2024 | G7: 2025 | M7: =C7 -> 6 | O7: =E7 -> 2024 | Q7: =G7 -> 2025 | U7: Бюджет освоєння / Project budget - capitalization | Z7: ='Фінансування_Financing (CFI)'!AD22 -> 5500 | AB7: ='Фінансування_Financing (CFI)'!BH22 -> 9000 | AD7: =AD5 -> тис.US$/ ths.US$ | AH7: Development budget | AM7: 3961 | AO7: 58132 | AQ7: =AQ5 -> тис.EUR/ ths.EUR
B9: Вид робіт за проєктом | C9: Нове будівництво | K9: Type of works | M9: New construction
B11: Застосовуваний тариф | C11: Повний тариф | I11: =IF(Головна_Summary!H13="Власні кошти",1,0) -> 0 | K11: Tariff applied | M11: =IF(C11="Інфраструктурний тариф","Infrastructure tariff","Full tariff") -> Full tariff | S11: =IF(Головна_Summary!R13="Власні кошти",1,0) -> 0 | U11: Витрати за кредитом /Costs on the loan | Z11: ='Грошові потоки _ Cash flows'!I36 -> 150 | AB11: ='Грошові потоки _ Cash flows'!AM36 -> 1725 | AD11: =AD5 -> тис.US$/ ths.US$ | AH11: Operating costs for implementation | AM11: ='Фінансування_Financing (CFI)'!AP20 -> 5500 | AO11: ='Фінансування_Financing (CFI)'!BH22 -> 9000 | AQ11: =AQ5 -> тис.EUR/ ths.EUR
B13: Поточний стан | C13: Передпроектні роботи | G13: Фінансування | H13: Кредитні кошти | K13: Current status | M13: Pre-Project work | Q13: Financing | R13: Loan + Own funds | U13: Капітальні ремонти / Capital repairs | Z13: ='Фінансування_Financing (CFI)'!AD35 -> 0 | AB13: ='Фінансування_Financing (CFI)'!BH35 -> 0 | AD13: =AD5 -> тис.US$/ ths.US$ | AH13: Overhaul | AM13: ='Фінансування_Financing (CFI)'!BA35 -> 0 | AO13: ='Фінансування_Financing (CFI)'!BH35 -> 0 | AQ13: =AQ5 -> тис.EUR/ ths.EUR
B15: Обгрунтування необхідності | C15: Реалізація проєкту передбачена загальносистемними заходами з підвищення маневрової спроможності ОЕС України. Цими заходами передбачено впровадження до 0,74 ГВт потужностей СНЕ на базі Energy Storages в період з 2023 року до 2032 року. Це забезпечить можливість швидкої компенсації небалансів у межах до ±740 МВт, знижує потребу в підтриманні відповідних резервів на станціях традиційної енергетики, збільшується можливість використання ВДЕ для покриття графіку електричних навантажень. | K15: Necessity of the project | M15: Implementation of the project is envisaged by system-wide measures to increase the maneuverability of of the IPS of Ukraine. These measures envisage the introduction of up to 0.74 GW of frequency control and maintenance systems capacity based on Energy Storages in the period from 2023 to 2032. It will enable to quickly settle imbalances up to ± 740 MW, reduces the need to maintain appropriate reserves at traditional power stations, increases the possibility of using RES to meet the schedule of power loads. | U15: Sunk costs | AD15: =AD5 -> тис.US$/ ths.US$ | AH15: Sunk costs | AQ15: =AQ5 -> тис.EUR/ ths.EUR
T17: ЕКОНОМІЧНИЙ ЕФЕКТ / ECONOMIC EFFECT | AG17: ECONOMIC EFFECT
U18: Чиста приведена вартість/Net Present Value (NPV) | Z18: ='Грошові потоки _ Cash flows'!K7 -> 10374214.43 | AA18: =AD5 -> тис.US$/ ths.US$ | AH18: Net Present Value | AM18: ='Грошові потоки _ Cash flows'!AI7 -> 0 | AO18: =AQ5 -> тис.EUR/ ths.EUR
U20: NPV без залишкової вартості / Net Present Value without residual value | Z20: ='Грошові потоки _ Cash flows'!K9 -> 6661.638286 | AA20: =AA18 -> тис.US$/ ths.US$
U22: Внутрішня норма доходу/Internal rate of return (IRR) | Z22: ='Грошові потоки _ Cash flows'!K13 -> 0.2224022019 | AA22: % | AH22: Internal rate of return | AM22: =IF(H13="Кредитні кошти","Не розраховується",'Грошові потоки _ Cash flows'!K13) -> Не розраховується | AN22: %
U24: Окупність інвестицій/Return on investments (ROI) | Z24: ='Грошові потоки _ Cash flows'!K11 -> 0.4097964412 | AA24: % | AH24: Return on investments | AM24: ='Грошові потоки _ Cash flows'!K11 -> 0.4097964412 | AN24: %
U26: Індекс прибутковості/Profitability index (PI) | Z26: ='Грошові потоки _ Cash flows'!N7 -> 2579.136179 | AH26: Profitability index | AM26: ='Грошові потоки _ Cash flows'!N7 -> 2579.136179
U28: Дисконтований термін окупності/Discounted payback period (DPP) | Z28: ='Грошові потоки _ Cash flows'!N9 -> 9.944397189 | AA28: міс./months | AB28: =IFERROR(Z28/12,"Не окуповується/ Doesn't pay off") -> 0.8286997657 | AC28: років/years | AH28: Discounted payback period | AM28: ='Грошові потоки _ Cash flows'!N9 -> 9.944397189 | AN28: Month.
C30: ЕС | G30: Підстанція | M30: ES | Q30: Substation
B32: Територія проведення | K32: Location | T32: ПЛАН ФІНАНСУВАННЯ / FINANCING PLAN | V32: Етап проєкту / Project phase | Z32: Початок / Start | AB32: Кінець / End | AG32: FUNDING PLAN | AI32: Project phase | AM32: Start | AO32: End
V34: ='План фінансування_Funding plan'!B9 -> ESS 10 MW | Z34: ='План фінансування_Funding plan'!E10 -> 2024-01-01 | AB34: ='План фінансування_Funding plan'!G10 -> 2025-06-01 | AI34: Phase 1
AI36: Phase 2
AI38: Phase 3
AI40: Phase 4
G42: Факотри отримання техніко-економічного ефекту | Q42: Factors of obtaining technical and economic effect | AI42: Phase 5
B44: Об'єкт | C44: Системи накопичення електроенергії | G44: Економічний ефект грунтується на тому, що з встановленими акумулюючими батареями буде можливість отримувати дохід за надання послуг з вторинного регулювання на ринку допоміжних послуг. У разі активації резерву, додатково до «плати за готовність» здійснюється плата за послуги розвантаження чи завантаження системи на балансуючому ринку | K44: Object | M44: Energy storage systems | Q44: Economic effect is based on the fact, that after installation of energy storage systems there will be the possibility to get income for providing of secondary control on the market of ancillary services | AI44: Phase 6
AI46: Phase 7
AI48: Phase 8
T51: Оцінка ризиків / Risk assessment | V51: ='Ризики проекту_Project risks'!D4 -> Простий/Simple | AG51: Risk assessment | AI51: ='Ризики проекту_Project risks'!#REF! -> 
T52: Вплив проєкту на кінцеву ціну е/е для споживачів
B53: Опис/склад робіт | C53: Складання та підписання кредитної угоди Аналіз та розрахунки, визначення підстанції для розміщення BESS Складання та підписання проектного контракту Розробка техніко-економічного обґрунтування відповідно до ДБН Розробка тендерної документації Консультантом Підготовка та проведення торгів для вибору генерального підрядника. Складання та підписання договору Виконання контракту (проектні роботи, виготовлення та поставка обладнання, монтаж, випробування та введення в експлуатацію) | K53: Description / composition of works | M53: Drawing up and signing of the Loan Agreement Analysis and calculations, determining substation for placing of BESS Drawing up and signing of Project Contract Development of feasibility study according to the state building code Development of bidding documentation by the Consultant Preparing and bidding for the selection of general contractor. Drawing up and signing the contract Implementation of the contract (design works, production and supply of equipment, installation, equipment tests and commissioning) | T53: The impact of the project on the final price of electricity for consumers | AG53: The impact of the project on the final price of electricity for consumers
V54: ='Тариф ОСП_Tariff'!G6 -> 2022 | W54: =V54+1 -> 2023 | X54: =W54+1 -> 2024 | Z54: =X54+1 -> 2025 | AB54: =Z54+1 -> 2026 | AD54: =AB54+1 -> 2027 | AI54: 2020 | AJ54: 2021 | AK54: 2022 | AM54: 2023 | AO54: 2024 | AQ54: 2025
T55: Тариф ОСП / TSO tariff | V55: =1-('Тариф ОСП_Tariff'!H38+'Тариф ОСП_Tariff'!G38)/('Тариф ОСП_Tariff'!H39+'Тариф ОСП_Tariff'!G39) -> 0 | W55: =1-('Тариф ОСП_Tariff'!K38+'Тариф ОСП_Tariff'!J38)/('Тариф ОСП_Tariff'!K39+'Тариф ОСП_Tariff'!J39) -> 0 | X55: =1-('Тариф ОСП_Tariff'!N38+'Тариф ОСП_Tariff'!M38)/('Тариф ОСП_Tariff'!N39+'Тариф ОСП_Tariff'!M39) -> 0.0001580008183 | Z55: =1-('Тариф ОСП_Tariff'!Q38+'Тариф ОСП_Tariff'!P38)/('Тариф ОСП_Tariff'!Q39+'Тариф ОСП_Tariff'!P39) -> 0.002060156115 | AB55: =1-('Тариф ОСП_Tariff'!T38+'Тариф ОСП_Tariff'!S38)/('Тариф ОСП_Tariff'!T39+'Тариф ОСП_Tariff'!S39) -> 0.002464069319 | AD55: =1-('Тариф ОСП_Tariff'!W38+'Тариф ОСП_Tariff'!V38)/('Тариф ОСП_Tariff'!W39+'Тариф ОСП_Tariff'!V39) -> 0.002156131162 | AG55: TSO Consumers | AI55: =Споживачі_CONSUMER!AK43 -> 0 | AJ55: =Споживачі_CONSUMER!AL43 -> 0 | AK55: =Споживачі_CONSUMER!AM43 -> 0 | AM55: =Споживачі_CONSUMER!AN43 -> 0 | AO55: =Споживачі_CONSUMER!AO43 -> 0 | AQ55: =Споживачі_CONSUMER!AP43 -> 0
AG56: 1st class MSO Consumers | AI56: =Споживачі_CONSUMER!AK44 -> 0 | AJ56: =Споживачі_CONSUMER!AL44 -> 0 | AK56: =Споживачі_CONSUMER!AM44 -> 0 | AM56: =Споживачі_CONSUMER!AN44 -> 0 | AO56: =Споживачі_CONSUMER!AO44 -> 0 | AQ56: =Споживачі_CONSUMER!AP44 -> 0
AG57: 2nd class MSO Consumers | AI57: =Споживачі_CONSUMER!AK45 -> 0 | AJ57: =Споживачі_CONSUMER!AL45 -> 0 | AK57: =Споживачі_CONSUMER!AM45 -> 0 | AM57: =Споживачі_CONSUMER!AN45 -> 0 | AO57: =Споживачі_CONSUMER!AO45 -> 0 | AQ57: =Споживачі_CONSUMER!AP45 -> 0
P62: ='План фінансування_Funding plan'!E9 -> 2024-01-01 | R62: ='План фінансування_Funding plan'!G9 -> 2025-06-01
P63: ='План фінансування_Funding plan'!E12 -> 00:00:00 | R63: ='План фінансування_Funding plan'!G12 -> 00:00:00
P64: ='План фінансування_Funding plan'!E17 -> 00:00:00 | R64: ='План фінансування_Funding plan'!G17 -> 00:00:00
P65: ='План фінансування_Funding plan'!E22 -> 00:00:00 | R65: ='План фінансування_Funding plan'!G22 -> 00:00:00
P66: ='План фінансування_Funding plan'!E27 -> 00:00:00 | R66: ='План фінансування_Funding plan'!G27 -> 00:00:00
P67: ='План фінансування_Funding plan'!E32 -> 00:00:00 | R67: ='План фінансування_Funding plan'!G32 -> 00:00:00
P68: ='План фінансування_Funding plan'!E37 -> 00:00:00 | R68: ='План фінансування_Funding plan'!G37 -> 00:00:00
P69: ='План фінансування_Funding plan'!E42 -> 00:00:00 | R69: ='План фінансування_Funding plan'!G42 -> 00:00:00

Sheet План фінансування_Funding plan
U1: ='Грошові потоки _ Cash flows'!$G$7 -> 2024 | AH1: =U1+1 -> 2025 | AU1: =AH1+1 -> 2026 | BH1: =AU1+1 -> 2027
B2: ПЛАН ФІНАНСУВАННЯ / FUNDING PLAN | C2: =CONCATENATE(Головна_Summary!A2," / ",Головна_Summary!K2) -> Energy storage system 10МВт / Energy storage system 10 MW
C3: =CONCATENATE(Головна_Summary!G13,"/",Головна_Summary!Q13) -> Фінансування/Financing | D3: =CONCATENATE(Головна_Summary!H13,"/",Головна_Summary!R13) -> Кредитні кошти/Loan + Own funds | F3: Кредитні кошти/Loans | H3: =Головна_Summary!AD5 -> тис.US$/ ths.US$ | U3: =H3 -> тис.US$/ ths.US$ | AH3: =H3 -> тис.US$/ ths.US$ | AU3: =H3 -> тис.US$/ ths.US$ | BH3: =H3 -> тис.US$/ ths.US$
B4: Етап / Phase | C4: Відповідальний / Responsible | D4: Джерело фінансування/Source of financing | E4: Початок / Start | F4: Тривалість / Duration | G4: Кінець / End | H4: Сума за весь період / Whole period amount | I4: =DATE(Головна_Summary!$E$7,1,1) -> 2024-01-01 | J4: =DATE(Головна_Summary!$E$7,2,1) -> 2024-02-01 | K4: =DATE(Головна_Summary!$E$7,3,1) -> 2024-03-01 | L4: =DATE(Головна_Summary!$E$7,4,1) -> 2024-04-01 | M4: =DATE(Головна_Summary!$E$7,5,1) -> 2024-05-01 | N4: =DATE(Головна_Summary!$E$7,6,1) -> 2024-06-01 | O4: =DATE(Головна_Summary!$E$7,7,1) -> 2024-07-01 | P4: =DATE(Головна_Summary!$E$7,8,1) -> 2024-08-01 | Q4: =DATE(Головна_Summary!$E$7,9,1) -> 2024-09-01 | R4: =DATE(Головна_Summary!$E$7,10,1) -> 2024-10-01 | S4: =DATE(Головна_Summary!$E$7,11,1) -> 2024-11-01 | T4: =DATE(Головна_Summary!$E$7,12,1) -> 2024-12-01 | U4: =CONCATENATE("Всього за ", "/ overall during ", 'Грошові потоки _ Cash flows'!$G$7, " рік") -> Всього за / overall during 2024 рік | V4: =DATE(Головна_Summary!$E$7+1,1,1) -> 2025-01-01 | W4: =DATE(Головна_Summary!$E$7+1,2,1) -> 2025-02-01 | X4: =DATE(Головна_Summary!$E$7+1,3,1) -> 2025-03-01 | Y4: =DATE(Головна_Summary!$E$7+1,4,1) -> 2025-04-01 | Z4: =DATE(Головна_Summary!$E$7+1,5,1) -> 2025-05-01 | AA4: =DATE(Головна_Summary!$E$7+1,6,1) -> 2025-06-01 | AB4: =DATE(Головна_Summary!$E$7+1,7,1) -> 2025-07-01 | AC4: =DATE(Головна_Summary!$E$7+1,8,1) -> 2025-08-01 | AD4: =DATE(Головна_Summary!$E$7+1,9,1) -> 2025-09-01 | AE4: =DATE(Головна_Summary!$E$7+1,10,1) -> 2025-10-01 | AF4: =DATE(Головна_Summary!$E$7+1,11,1) -> 2025-11-01 | AG4: =DATE(Головна_Summary!$E$7+1,12,1) -> 2025-12-01 | AH4: =CONCATENATE("Всього за ", "/ overall during", 'Грошові потоки _ Cash flows'!$G$7+1, " рік") -> Всього за / overall during2025 рік | AI4: =DATE(Головна_Summary!E7+2,1,1) -> 2026-01-01 | AJ4: =DATE(Головна_Summary!$E$7+2,2,1) -> 2026-02-01 | AK4: =DATE(Головна_Summary!$E$7+2,3,1) -> 2026-03-01 | AL4: =DATE(Головна_Summary!$E$7+2,4,1) -> 2026-04-01 | AM4: =DATE(Головна_Summary!$E$7+2,5,1) -> 2026-05-01 | AN4: =DATE(Головна_Summary!$E$7+2,6,1) -> 2026-06-01 | AO4: =DATE(Головна_Summary!$E$7+2,7,1) -> 2026-07-01 | AP4: =DATE(Головна_Summary!$E$7+2,8,1) -> 2026-08-01 | AQ4: =DATE(Головна_Summary!$E$7+2,9,1) -> 2026-09-01 | AR4: =DATE(Головна_Summary!$E$7+2,10,1) -> 2026-10-01 | AS4: =DATE(Головна_Summary!$E$7+2,11,1) -> 2026-11-01 | AT4: =DATE(Головна_Summary!$E$7+2,12,1) -> 2026-12-01 | AU4: =CONCATENATE("Всього за ", "/ overall during", 'Грошові потоки _ Cash flows'!$G$7+2, " рік") -> Всього за / overall during2026 рік | AV4: =DATE(Головна_Summary!$E$7+3,1,1) -> 2027-01-01 | AW4: =DATE(Головна_Summary!$E$7+3,2,1) -> 2027-02-01 | AX4: =DATE(Головна_Summary!$E$7+3,3,1) -> 2027-03-01 | AY4: =DATE(Головна_Summary!$E$7+3,4,1) -> 2027-04-01 | AZ4: =DATE(Головна_Summary!$E$7+3,5,1) -> 2027-05-01 | BA4: =DATE(Головна_Summary!$E$7+3,6,1) -> 2027-06-01 | BB4: =DATE(Головна_Summary!$E$7+3,7,1) -> 2027-07-01 | BC4: =DATE(Головна_Summary!$E$7+3,8,1) -> 2027-08-01 | BD4: =DATE(Головна_Summary!$E$7+3,9,1) -> 2027-09-01 | BE4: =DATE(Головна_Summary!$E$7+3,10,1) -> 2027-10-01 | BF4: =DATE(Головна_Summary!$E$7+3,11,1) -> 2027-11-01 | BG4: =DATE(Головна_Summary!$E$7+3,12,1) -> 2027-12-01 | BH4: =CONCATENATE("Всього за ", "/ overall during", 'Грошові потоки _ Cash flows'!$G$7+3, " рік") -> Всього за / overall during2027 рік
B5: Фінансування проєкту всього/ Finansing total | D5: Всього/Total | E5: =MIN(E9,E12,E17,E22,E27,E32,E37,E42) -> 00:00:00 | F5: =NETWORKDAYS(E5,G5,0) -> 32720 | G5: =MAX(G9,G12,G17,G22,G27,G32,G37,G42) -> 2025-06-01 | H5: =H6+H7 -> 9000 | I5: =I6+I7 -> 500 | J5: =J6+J7 -> 500 | K5: 500 | L5: 500 | M5: 500 | N5: 500 | O5: 500 | P5: 500 | Q5: 500 | R5: 500 | S5: 500 | T5: 500 | U5: 6000 | V5: =V6+V7 -> 500 | W5: =W6+W7 -> 500 | X5: =X6+X7 -> 500 | Y5: =Y6+Y7 -> 500 | Z5: =Z6+Z7 -> 500 | AA5: =AA6+AA7 -> 500 | AB5: =AB6+AB7 -> 0 | AC5: =AC6+AC7 -> 0 | AD5: =AD6+AD7 -> 0 | AE5: =AE6+AE7 -> 0 | AF5: =AF6+AF7 -> 0 | AG5: 0 | AH5: =AH6+AH7 -> 3000 | AI5: =AI6+AI7 -> 0 | AJ5: =AJ6+AJ7 -> 0 | AK5: =AK6+AK7 -> 0 | AL5: =AL6+AL7 -> 0 | AM5: =AM6+AM7 -> 0 | AN5: =AN6+AN7 -> 0 | AO5: =AO6+AO7 -> 0 | AP5: =AP6+AP7 -> 0 | AQ5: =AQ6+AQ7 -> 0 | AR5: =AR6+AR7 -> 0 | AS5: 0 | AT5: =AT6+AT7 -> 0 | AU5: =AU6+AU7 -> 0 | AV5: =AV6+AV7 -> 0 | AW5: =AW6+AW7 -> 0 | AX5: =AX6+AX7 -> 0 | AY5: =AY6+AY7 -> 0 | AZ5: =AZ6+AZ7 -> 0 | BA5: =BA6+BA7 -> 0 | BB5: =BB6+BB7 -> 0 | BC5: =BC6+BC7 -> 0 | BD5: =BD6+BD7 -> 0 | BE5: 0 | BF5: =BF6+BF7 -> 0 | BG5: =BG6+BG7 -> 0 | BH5: =BH6+BH7 -> 0
D6: Кредитні кошти/Loans | E6: 2024-01-01 | F6: =NETWORKDAYS(E6,G6,0) -> 370 | G6: 2025-06-01 | H6: =U6+AH6+AU6+BH6 -> 9000 | I6: =SUMIF($D$9:$D$46,$D$6,I9:I46) -> 500 | J6: 500 | K6: 500 | L6: 500 | M6: 500 | N6: 500 | O6: 500 | P6: 500 | Q6: 500 | R6: 500 | S6: 500 | T6: 500 | U6: 6000 | V6: 500 | W6: 500 | X6: 500 | Y6: 500 | Z6: 500 | AA6: 500 | AB6: 0 | AC6: 0 | AD6: 0 | AE6: 0 | AF6: 0 | AG6: 0 | AH6: 3000 | AI6: 0 | AJ6: 0 | AK6: 0 | AL6: 0 | AM6: 0 | AN6: 0 | AO6: =SUMIF($D$9:$D$46,$D$6,AO9:AO46) -> 0 | AP6: 0 | AQ6: 0 | AR6: 0 | AS6: 0 | AT6: 0 | AU6: 0 | AV6: 0 | AW6: 0 | AX6: 0 | AY6: 0 | AZ6: 0 | BA6: 0 | BB6: 0 | BC6: 0 | BD6: 0 | BE6: 0 | BF6: 0 | BG6: 0 | BH6: 0
D7: Власні кошти/ Own fonds | F7: =NETWORKDAYS(E7,G7,0) -> 0 | H7: =U7+AH7+AU7+BH7 -> 0 | I7: =SUMIF($D$9:$D$46,$D$7,I9:I46) -> 0 | J7: 0 | K7: 0 | L7: 0 | M7: 0 | N7: 0 | O7: 0 | P7: 0 | Q7: 0 | R7: 0 | S7: 0 | T7: 0 | U7: 0 | V7: 0 | W7: 0 | X7: 0 | Y7: 0 | Z7: 0 | AA7: 0 | AB7: 0 | AC7: 0 | AD7: 0 | AE7: 0 | AF7: 0 | AG7: 0 | AH7: 0 | AI7: 0 | AJ7: 0 | AK7: 0 | AL7: 0 | AM7: 0 | AN7: 0 | AO7: =SUMIF($D$9:$D$46,$D$7,AO9:AO46) -> 0 | AP7: 0 | AQ7: 0 | AR7: 0 | AS7: 0 | AT7: 0 | AU7: 0 | AV7: 0 | AW7: 0 | AX7: 0 | AY7: 0 | AZ7: 0 | BA7: 0 | BB7: 0 | BC7: 0 | BD7: 0 | BE7: 0 | BF7: 0 | BG7: 0 | BH7: 0
B8: Проверка | I8: =I9+I13+I17+I22+I27+I32+I37+I42 -> 500 | J8: 500 | K8: 500 | L8: 500 | M8: 500 | N8: 500 | O8: 500 | P8: 500 | Q8: 500 | R8: 500 | S8: 500 | T8: 500 | U8: 6000 | V8: 500 | W8: 500 | X8: 500 | Y8: 500 | Z8: 500 | AA8: 500 | AB8: 0 | AC8: 0 | AD8: 0 | AE8: 0 | AF8: 0 | AG8: 0 | AH8: 3000 | AI8: 0 | AJ8: 0 | AK8: 0 | AL8: 0 | AM8: 0 | AN8: 0 | AO8: =AO9+AO13+AO17+AO22+AO27+AO32+AO37+AO42 -> 0 | AP8: 0 | AQ8: 0 | AR8: 0 | AS8: 0 | AT8: 0 | AU8: 0 | AV8: 0 | AW8: 0 | AX8: 0 | AY8: 0 | AZ8: 0 | BA8: 0 | BB8: 0 | BC8: 0 | BD8: 0 | BE8: 0 | BF8: 0 | BG8: 0 | BH8: 0
B9: ESS 10 MW | E9: =MIN(E10:E11) -> 2024-01-01 | F9: =NETWORKDAYS(E9,G9,0) -> 370 | G9: =MAX(G10:G11) -> 2025-06-01 | H9: =U9+AH9+AU9+BH9 -> 9000 | I9: =SUM(I10:I11) -> 500 | J9: 500 | K9: 500 | L9: 500 | M9: 500 | N9: 500 | O9: 500 | P9: 500 | Q9: 500 | R9: 500 | S9: 500 | T9: 500 | U9: =SUM(I9:T9) -> 6000 | V9: =SUM(V10:V11) -> 500 | W9: 500 | X9: 500 | Y9: 500 | Z9: 500 | AA9: 500 | AB9: 0 | AC9: 0 | AD9: 0 | AE9: 0 | AF9: 0 | AG9: 0 | AH9: =SUM(V9:AG9) -> 3000 | AI9: =SUM(AI10:AI11) -> 0 | AJ9: 0 | AK9: 0 | AL9: 0 | AM9: 0 | AN9: 0 | AO9: 0 | AP9: 0 | AQ9: 0 | AR9: 0 | AS9: 0 | AT9: 0 | AU9: =SUM(AI9:AT9) -> 0 | AV9: =SUM(AV10:AV11) -> 0 | AW9: 0 | AX9: 0 | AY9: 0 | AZ9: 0 | BA9: 0 | BB9: 0 | BC9: 0 | BD9: 0 | BE9: 0 | BF9: 0 | BG9: 0 | BH9: =SUM(AV9:BG9) -> 0
B10: Виконання робіт за проєктом/Execution of project works | D10: Кредитні кошти/Loans | E10: 2024-01-01 | F10: =NETWORKDAYS(E10,G10,0) -> 370 | G10: 2025-06-01 | H10: ='Фінансування_Financing (CFI)'!J8 -> 9000 | I10: =H10/18 -> 500 | J10: =$I$10 -> 500 | K10: =$I$10 -> 500 | L10: 500 | M10: 500 | N10: 500 | O10: 500 | P10: 500 | Q10: 500 | R10: 500 | S10: 500 | T10: 500 | U10: =SUM(I10:T10) -> 6000 | V10: =$I$10 -> 500 | W10: 500 | X10: 500 | Y10: 500 | Z10: 500 | AA10: 500 | AH10: 3000 | AU10: 0 | BH10: 0
B11: Плата за приєднання/Joining fee | D11: Кредитні кошти/Loans | E11: 2025-01-01 | F11: 22 | G11: 2025-01-30 | H11: =U11+AH11+AU11+BH11 -> 0 | V11: ='Фінансування_Financing (CFI)'!J9 -> 0 | AH11: 0 | AU11: 0 | BH11: 0
B12: Операція 5/ Operation 5 | F12: =NETWORKDAYS(E12,G12,0) -> 0 | H12: =U12+AH12+AU12+BH12 -> 0 | I12: =SUM(I13:I15) -> 0 | J12: =SUM(J13:J15) -> 0 | K12: =SUM(K13:K15) -> 0 | L12: 0 | M12: 0 | N12: =SUM(N13:N15) -> 0 | O12: 0 | P12: 0 | Q12: 0 | R12: 0 | S12: 0 | T12: 0 | U12: 0 | V12: =SUM(V13:V15) -> 0 | W12: =SUM(W13:W15) -> 0 | X12: 0 | Y12: 0 | Z12: 0 | AA12: 0 | AB12: 0 | AC12: 0 | AD12: 0 | AE12: 0 | AF12: 0 | AG12: =SUM(AG13:AG15) -> 0 | AH12: 0 | AI12: =SUM(AI13:AI15) -> 0 | AJ12: =SUM(AJ13:AJ15) -> 0 | AK12: 0 | AL12: 0 | AM12: 0 | AN12: 0 | AO12: 0 | AP12: 0 | AQ12: 0 | AR12: 0 | AS12: 0 | AT12: 0 | AU12: 0 | AV12: =SUM(AV13:AV15) -> 0 | AW12: =SUM(AW13:AW15) -> 0 | AX12: 0 | AY12: 0 | AZ12: 0 | BA12: 0 | BB12: 0 | BC12: 0 | BD12: 0 | BE12: 0 | BF12: 0 | BG12: 0 | BH12: 0
B13: Етап 2 / Phase 7 | F13: =NETWORKDAYS(E13,G13,0) -> 0 | N13: =H13/25 -> 0 | O13: =$N$13 -> 0 | P13: =$N$13 -> 0 | Q13: 0 | R13: 0 | S13: 0 | T13: 0 | U13: 0 | V13: 0 | W13: 0 | X13: 0 | Y13: 0 | Z13: 0 | AA13: 0 | AB13: 0 | AC13: 0 | AD13: 0 | AE13: 0 | AF13: 0 | AG13: 0 | AH13: 0 | AI13: 0 | AJ13: 0 | AK13: 0 | AL13: 0 | AM13: 0 | AN13: 0 | AU13: 0 | BH13: 0
B14: Операція 1/ Operation 1 | F14: 0 | H14: 0 | U14: 0 | AH14: 0 | AU14: 0 | BH14: 0
B15: Операція 2/ Operation 2 | F15: 0 | H15: 0 | U15: 0 | AH15: 0 | AU15: 0 | BH15: 0
B16: Операція 3/ Operation 3
B17: Етап 3 / Phase 3 | E17: =MIN(E18:E21) -> 00:00:00 | F17: =NETWORKDAYS(E17,G17,0) -> 0 | G17: =MAX(G18:G21) -> 00:00:00 | H17: 0 | I17: =SUM(I18:I20) -> 0 | J17: =SUM(J18:J20) -> 0 | K17: 0 | L17: 0 | M17: 0 | N17: 0 | O17: 0 | P17: 0 | Q17: 0 | R17: 0 | S17: 0 | T17: 0 | U17: 0 | V17: =SUM(V18:V20) -> 0 | W17: =SUM(W18:W20) -> 0 | X17: 0 | Y17: 0 | Z17: 0 | AA17: 0 | AB17: 0 | AC17: 0 | AD17: 0 | AE17: 0 | AF17: 0 | AG17: 0 | AH17: =SUM(V17:AG17) -> 0 | AI17: =SUM(AI18:AI20) -> 0 | AJ17: =SUM(AJ18:AJ20) -> 0 | AK17: 0 | AL17: 0 | AM17: 0 | AN17: 0 | AO17: 0 | AP17: 0 | AQ17: 0 | AR17: 0 | AS17: 0 | AT17: 0 | AU17: =SUM(AI17:AT17) -> 0 | AV17: =SUM(AV18:AV20) -> 0 | AW17: =SUM(AW18:AW20) -> 0 | AX17: 0 | AY17: 0 | AZ17: 0 | BA17: 0 | BB17: 0 | BC17: 0 | BD17: 0 | BE17: 0 | BF17: 0 | BG17: 0 | BH17: =SUM(AV17:BG17) -> 0
B18: Операція 1/ Operation 1 | F18: =NETWORKDAYS(E18,G18,0) -> 0 | H18: 0 | U18: 0 | AH18: =SUM(V18:AG18) -> 0 | AU18: =SUM(AI18:AT18) -> 0 | BH18: =SUM(AV18:BG18) -> 0
B19: Операція 2/ Operation 2 | F19: 0 | H19: 0 | U19: 0 | AH19: =SUM(V19:AG19) -> 0 | AU19: =SUM(AI19:AT19) -> 0 | BH19: =SUM(AV19:BG19) -> 0
B20: Операція 3/ Operation 3 | F20: 0 | H20: 0 | U20: 0 | AH20: =SUM(V20:AG20) -> 0 | AU20: =SUM(AI20:AT20) -> 0 | BH20: =SUM(AV20:BG20) -> 0
B21: Операція 4/ Operation 4
B22: Етап 4 / Phase 4 | E22: =MIN(E23:E26) -> 00:00:00 | F22: =NETWORKDAYS(E22,G22,0) -> 0 | G22: =MAX(G23:G26) -> 00:00:00 | H22: 0 | I22: =SUM(I23:I25) -> 0 | J22: =SUM(J23:J25) -> 0 | K22: 0 | L22: 0 | M22: 0 | N22: 0 | O22: 0 | P22: 0 | Q22: 0 | R22: 0 | S22: 0 | T22: 0 | U22: 0 | V22: =SUM(V23:V25) -> 0 | W22: =SUM(W23:W25) -> 0 | X22: 0 | Y22: 0 | Z22: 0 | AA22: 0 | AB22: 0 | AC22: 0 | AD22: 0 | AE22: 0 | AF22: 0 | AG22: 0 | AH22: =SUM(V22:AG22) -> 0 | AI22: =SUM(AI23:AI25) -> 0 | AJ22: =SUM(AJ23:AJ25) -> 0 | AK22: 0 | AL22: 0 | AM22: 0 | AN22: 0 | AO22: 0 | AP22: 0 | AQ22: 0 | AR22: 0 | AS22: 0 | AT22: 0 | AU22: =SUM(AI22:AT22) -> 0 | AV22: =SUM(AV23:AV25) -> 0 | AW22: =SUM(AW23:AW25) -> 0 | AX22: 0 | AY22: 0 | AZ22: 0 | BA22: 0 | BB22: 0 | BC22: 0 | BD22: 0 | BE22: 0 | BF22: 0 | BG22: 0 | BH22: =SUM(AV22:BG22) -> 0
B23: Операція 1/ Operation 1 | F23: =NETWORKDAYS(E23,G23,0) -> 0 | H23: 0 | U23: 0 | AH23: =SUM(V23:AG23) -> 0 | AU23: =SUM(AI23:AT23) -> 0 | BH23: =SUM(AV23:BG23) -> 0
B24: Операція 2/ Operation 2 | F24: 0 | H24: 0 | U24: 0 | AH24: =SUM(V24:AG24) -> 0 | AU24: =SUM(AI24:AT24) -> 0 | BH24: =SUM(AV24:BG24) -> 0
B25: Операція 3/ Operation 3 | F25: 0 | H25: 0 | U25: 0 | AH25: =SUM(V25:AG25) -> 0 | AU25: =SUM(AI25:AT25) -> 0 | BH25: =SUM(AV25:BG25) -> 0
B26: Операція 4/ Operation 4
B27: Етап 5 / Phase 5 | E27: =MIN(E28:E31) -> 00:00:00 | F27: =NETWORKDAYS(E27,G27,0) -> 0 | G27: =MAX(G28:G31) -> 00:00:00 | H27: 0 | I27: =SUM(I28:I30) -> 0 | J27: =SUM(J28:J30) -> 0 | K27: 0 | L27: 0 | M27: 0 | N27: 0 | O27: 0 | P27: 0 | Q27: 0 | R27: 0 | S27: 0 | T27: 0 | U27: 0 | V27: =SUM(V28:V30) -> 0 | W27: =SUM(W28:W30) -> 0 | X27: 0 | Y27: 0 | Z27: 0 | AA27: 0 | AB27: 0 | AC27: 0 | AD27: 0 | AE27: 0 | AF27: 0 | AG27: 0 | AH27: =SUM(V27:AG27) -> 0 | AI27: =SUM(AI28:AI30) -> 0 | AJ27: =SUM(AJ28:AJ30) -> 0 | AK27: 0 | AL27: 0 | AM27: 0 | AN27: 0 | AO27: 0 | AP27: 0 | AQ27: 0 | AR27: 0 | AS27: 0 | AT27: 0 | AU27: =SUM(AI27:AT27) -> 0 | AV27: =SUM(AV28:AV30) -> 0 | AW27: =SUM(AW28:AW30) -> 0 | AX27: 0 | AY27: 0 | AZ27: 0 | BA27: 0 | BB27: 0 | BC27: 0 | BD27: 0 | BE27: 0 | BF27: 0 | BG27: 0 | BH27: =SUM(AV27:BG27) -> 0
B28: Операція 1/ Operation 1 | F28: =NETWORKDAYS(E28,G28,0) -> 0 | H28: 0 | U28: 0 | AH28: =SUM(V28:AG28) -> 0 | AU28: =SUM(AI28:AT28) -> 0 | BH28: =SUM(AV28:BG28) -> 0
B29: Операція 2/ Operation 2 | F29: 0 | H29: 0 | U29: 0 | AH29: =SUM(V29:AG29) -> 0 | AU29: =SUM(AI29:AT29) -> 0 | BH29: =SUM(AV29:BG29) -> 0
B30: Операція 3/ Operation 3 | F30: 0 | H30: 0 | U30: 0 | AH30: =SUM(V30:AG30) -> 0 | AU30: =SUM(AI30:AT30) -> 0 | BH30: =SUM(AV30:BG30) -> 0
B31: Операція 4/ Operation 4
B32: Етап 6 / Phase 6 | E32: =MIN(E33:E36) -> 00:00:00 | F32: =NETWORKDAYS(E32,G32,0) -> 0 | G32: =MAX(G33:G36) -> 00:00:00 | H32: 0 | I32: =SUM(I33:I35) -> 0 | J32: =SUM(J33:J35) -> 0 | K32: 0 | L32: 0 | M32: 0 | N32: 0 | O32: 0 | P32: 0 | Q32: 0 | R32: 0 | S32: 0 | T32: 0 | U32: 0 | V32: =SUM(V33:V35) -> 0 | W32: =SUM(W33:W35) -> 0 | X32: 0 | Y32: 0 | Z32: 0 | AA32: 0 | AB32: 0 | AC32: 0 | AD32: 0 | AE32: 0 | AF32: 0 | AG32: =SUM(AG33:AG35) -> 0 | AH32: =SUM(V32:AG32) -> 0 | AI32: =SUM(AI33:AI35) -> 0 | AJ32: =SUM(AJ33:AJ35) -> 0 | AK32: 0 | AL32: 0 | AM32: 0 | AN32: 0 | AO32: 0 | AP32: 0 | AQ32: 0 | AR32: 0 | AS32: 0 | AT32: 0 | AU32: =SUM(AI32:AT32) -> 0 | AV32: =SUM(AV33:AV35) -> 0 | AW32: =SUM(AW33:AW35) -> 0 | AX32: 0 | AY32: 0 | AZ32: 0 | BA32: 0 | BB32: 0 | BC32: 0 | BD32: 0 | BE32: 0 | BF32: 0 | BG32: 0 | BH32: =SUM(AV32:BG32) -> 0
B33: Операція 1/ Operation 1 | F33: =NETWORKDAYS(E33,G33,0) -> 0 | H33: 0 | U33: =SUM(I33:T33) -> 0 | AH33: =SUM(V33:AG33) -> 0 | AU33: =SUM(AI33:AT33) -> 0 | BH33: =SUM(AV33:BG33) -> 0
B34: Операція 2/ Operation 2 | F34: 0 | H34: 0 | U34: 0 | AH34: =SUM(V34:AG34) -> 0 | AU34: =SUM(AI34:AT34) -> 0 | BH34: =SUM(AV34:BG34) -> 0
B35: Операція 3/ Operation 3 | F35: 0 | H35: 0 | U35: 0 | AH35: =SUM(V35:AG35) -> 0 | AU35: =SUM(AI35:AT35) -> 0 | BH35: =SUM(AV35:BG35) -> 0
B36: Операція 4/ Operation 4
B37: Етап 7 / Phase 7 | E37: =MIN(E38:E41) -> 00:00:00 | F37: =NETWORKDAYS(E37,G37,0) -> 0 | G37: =MAX(G38:G41) -> 00:00:00 | H37: 0 | I37: =SUM(I38:I40) -> 0 | J37: =SUM(J38:J40) -> 0 | K37: 0 | L37: 0 | M37: 0 | N37: 0 | O37: 0 | P37: 0 | Q37: 0 | R37: 0 | S37: 0 | T37: 0 | U37: 0 | V37: =SUM(V38:V40) -> 0 | W37: =SUM(W38:W40) -> 0 | X37: 0 | Y37: 0 | Z37: 0 | AA37: 0 | AB37: 0 | AC37: 0 | AD37: 0 | AE37: 0 | AF37: 0 | AG37: =SUM(AG38:AG40) -> 0 | AH37: =SUM(V37:AF37) -> 0 | AI37: =SUM(AI38:AI40) -> 0 | AJ37: =SUM(AJ38:AJ40) -> 0 | AK37: 0 | AL37: 0 | AM37: 0 | AN37: 0 | AO37: 0 | AP37: 0 | AQ37: 0 | AR37: 0 | AS37: 0 | AT37: 0 | AU37: =SUM(AI37:AT37) -> 0 | AV37: =SUM(AV38:AV40) -> 0 | AW37: =SUM(AW38:AW40) -> 0 | AX37: 0 | AY37: 0 | AZ37: 0 | BA37: 0 | BB37: 0 | BC37: 0 | BD37: 0 | BE37: 0 | BF37: 0 | BG37: 0 | BH37: =SUM(AV37:BG37) -> 0
B38: Операція 1/ Operation 1 | F38: =NETWORKDAYS(E38,G38,0) -> 0 | H38: 0 | U38: 0 | AH38: =SUM(V38:AG38) -> 0 | AU38: =SUM(AI38:AT38) -> 0 | BH38: =SUM(AV38:BG38) -> 0
B39: Операція 2/ Operation 2 | F39: 0 | H39: 0 | U39: 0 | AH39: =SUM(V39:AG39) -> 0 | AU39: =SUM(AI39:AT39) -> 0 | BH39: =SUM(AV39:BG39) -> 0
B40: Операція 3/ Operation 3 | F40: 0 | H40: 0 | U40: 0 | AH40: =SUM(V40:AG40) -> 0 | AU40: =SUM(AI40:AT40) -> 0 | BH40: =SUM(AV40:BG40) -> 0
B41: Операція 4/ Operation 4
B42: Етап 8 / Phase 8 | E42: =MIN(E43:E46) -> 00:00:00 | F42: =NETWORKDAYS(E42,G42,0) -> 0 | G42: =MAX(G43:G46) -> 00:00:00 | H42: =U42+AH42+AU42+BH42 -> 0 | I42: =SUM(I43:I46) -> 0 | J42: =SUM(J43:J46) -> 0 | K42: 0 | L42: 0 | M42: 0 | N42: 0 | O42: 0 | P42: 0 | Q42: 0 | R42: 0 | S42: 0 | T42: 0 | U42: 0 | V42: 0 | W42: 0 | X42: 0 | Y42: 0 | Z42: 0 | AA42: 0 | AB42: 0 | AC42: 0 | AD42: 0 | AE42: 0 | AF42: 0 | AG42: 0 | AH42: 0 | AI42: 0 | AJ42: 0 | AK42: 0 | AL42: 0 | AM42: 0 | AN42: 0 | AO42: 0 | AP42: 0 | AQ42: 0 | AR42: 0 | AS42: 0 | AT42: 0 | AU42: 0 | AV42: 0 | AW42: 0 | AX42: 0 | AY42: 0 | AZ42: 0 | BA42: 0 | BB42: 0 | BC42: 0 | BD42: 0 | BE42: 0 | BF42: 0 | BG42: 0 | BH42: 0
B43: Операція 1/ Operation 1 | F43: =NETWORKDAYS(E43,G43,0) -> 0 | H43: 0 | U43: 0 | AH43: =SUM(V43:AG43) -> 0 | AU43: =SUM(AI43:AT43) -> 0 | BH43: =SUM(AV43:BG43) -> 0
B44: Операція 2/ Operation 2 | F44: 0 | H44: 0 | U44: 0 | AH44: =SUM(V44:AG44) -> 0 | AU44: =SUM(AI44:AT44) -> 0 | BH44: =SUM(AV44:BG44) -> 0
B45: Операція 3/ Operation 3 | F45: 0 | H45: =U45+AH45+AU45+BH45 -> 0 | U45: =SUM(I45:T45) -> 0 | AH45: =SUM(V45:AG45) -> 0 | AU45: =SUM(AI45:AT45) -> 0 | BH45: =SUM(AV45:BG45) -> 0
B46: Операція 4/ Operation 4 | F46: 0 | H46: =U46+AH46+AU46+BH46 -> 0 | U46: =SUM(I46:T46) -> 0
N47: =CONCATENATE("I півріччя/ half a year",U1) -> I півріччя/ half a year2024 | T47: =CONCATENATE("II півріччя/ half a year",U1) -> II півріччя/ half a year2024 | AA47: =CONCATENATE("I півріччя/ half a year",AH1) -> I півріччя/ half a year2025 | AG47: =CONCATENATE("II півріччя/ half a year",AH1) -> II півріччя/ half a year2025 | AN47: =CONCATENATE("I півріччя/ half a year",AU1) -> I півріччя/ half a year2026 | AT47: =CONCATENATE("II півріччя/ half a year",AU1) -> II півріччя/ half a year2026 | BA47: =CONCATENATE("I півріччя/ half a year",BH1) -> I півріччя/ half a year2027 | BG47: =CONCATENATE("II півріччя/ half a year",BH1) -> II півріччя/ half a year2027
N48: =SUM(I6:N6) -> 3000 | T48: =SUM(O6:T6) -> 3000 | AA48: =SUM(V6:AA6) -> 3000 | AG48: =SUM(AB6:AG6) -> 0 | AN48: =SUM(AI6:AN6) -> 0 | AT48: =SUM(AO6:AT6) -> 0 | BA48: =SUM(AV6:BA6) -> 0 | BG48: =SUM(BB6:BG6) -> 0
B49: ПЛАН ОСВОЄННЯ / DEVELOPMENT PLAN
H50: =H3 -> тис.US$/ ths.US$ | I50: =I52=I55 -> TRUE | U50: =H3 -> тис.US$/ ths.US$ | AH50: =H3 -> тис.US$/ ths.US$ | AU50: =H3 -> тис.US$/ ths.US$ | BH50: =H3 -> тис.US$/ ths.US$
B51: =B4 -> Етап / Phase | C51: Відповідальний / Responsible | D51: Джерело фінансування/Source of financing | E51: Початок / Start | F51: Тривалість / Duration | G51: Кінець / End | H51: =H4 -> Сума за весь період / Whole period amount | I51: =DATE(Головна_Summary!$E$7,1,1) -> 2024-01-01 | J51: =DATE(Головна_Summary!$E$7,2,1) -> 2024-02-01 | K51: =DATE(Головна_Summary!$E$7,3,1) -> 2024-03-01 | L51: =DATE(Головна_Summary!$E$7,4,1) -> 2024-04-01 | M51: =DATE(Головна_Summary!$E$7,5,1) -> 2024-05-01 | N51: =DATE(Головна_Summary!$E$7,6,1) -> 2024-06-01 | O51: =DATE(Головна_Summary!$E$7,7,1) -> 2024-07-01 | P51: =DATE(Головна_Summary!$E$7,8,1) -> 2024-08-01 | Q51: =DATE(Головна_Summary!$E$7,9,1) -> 2024-09-01 | R51: =DATE(Головна_Summary!$E$7,10,1) -> 2024-10-01 | S51: =DATE(Головна_Summary!$E$7,11,1) -> 2024-11-01 | T51: =DATE(Головна_Summary!$E$7,12,1) -> 2024-12-01 | U51: =U4 -> Всього за / overall during 2024 рік | V51: =DATE(Головна_Summary!$E$7+1,1,1) -> 2025-01-01 | W51: =DATE(Головна_Summary!$E$7+1,2,1) -> 2025-02-01 | X51: =DATE(Головна_Summary!$E$7+1,3,1) -> 2025-03-01 | Y51: =DATE(Головна_Summary!$E$7+1,4,1) -> 2025-04-01 | Z51: =DATE(Головна_Summary!$E$7+1,5,1) -> 2025-05-01 | AA51: =DATE(Головна_Summary!$E$7+1,6,1) -> 2025-06-01 | AB51: =DATE(Головна_Summary!$E$7+1,7,1) -> 2025-07-01 | AC51: =DATE(Головна_Summary!$E$7+1,8,1) -> 2025-08-01 | AD51: =DATE(Головна_Summary!$E$7+1,9,1) -> 2025-09-01 | AE51: =DATE(Головна_Summary!$E$7+1,10,1) -> 2025-10-01 | AF51: =DATE(Головна_Summary!$E$7+1,11,1) -> 2025-11-01 | AG51: =DATE(Головна_Summary!$E$7+1,12,1) -> 2025-12-01 | AH51: =AH4 -> Всього за / overall during2025 рік | AI51: =DATE(Головна_Summary!E59+2,1,1) -> 1902-01-01 | AJ51: =DATE(Головна_Summary!$E$7+2,2,1) -> 2026-02-01 | AK51: =DATE(Головна_Summary!$E$7+2,3,1) -> 2026-03-01 | AL51: =DATE(Головна_Summary!$E$7+2,4,1) -> 2026-04-01 | AM51: =DATE(Головна_Summary!$E$7+2,5,1) -> 2026-05-01 | AN51: =DATE(Головна_Summary!$E$7+2,6,1) -> 2026-06-01 | AO51: =DATE(Головна_Summary!$E$7+2,7,1) -> 2026-07-01 | AP51: =DATE(Головна_Summary!$E$7+2,8,1) -> 2026-08-01 | AQ51: =DATE(Головна_Summary!$E$7+2,9,1) -> 2026-09-01 | AR51: =DATE(Головна_Summary!$E$7+2,10,1) -> 2026-10-01 | AS51: =DATE(Головна_Summary!$E$7+2,11,1) -> 2026-11-01 | AT51: =DATE(Головна_Summary!$E$7+2,12,1) -> 2026-12-01 | AU51: =AU4 -> Всього за / overall during2026 рік | AV51: =DATE(Головна_Summary!$E$7+3,1,1) -> 2027-01-01 | AW51: =DATE(Головна_Summary!$E$7+3,2,1) -> 2027-02-01 | AX51: =DATE(Головна_Summary!$E$7+3,3,1) -> 2027-03-01 | AY51: =DATE(Головна_Summary!$E$7+3,4,1) -> 2027-04-01 | AZ51: =DATE(Головна_Summary!$E$7+3,5,1) -> 2027-05-01 | BA51: =DATE(Головна_Summary!$E$7+3,6,1) -> 2027-06-01 | BB51: =DATE(Головна_Summary!$E$7+3,7,1) -> 2027-07-01 | BC51: =DATE(Головна_Summary!$E$7+3,8,1) -> 2027-08-01 | BD51: =DATE(Головна_Summary!$E$7+3,9,1) -> 2027-09-01 | BE51: =DATE(Головна_Summary!$E$7+3,10,1) -> 2027-10-01 | BF51: =DATE(Головна_Summary!$E$7+3,11,1) -> 2027-11-01 | BG51: =DATE(Головна_Summary!$E$7+3,12,1) -> 2027-12-01 | BH51: =BH4 -> Всього за / overall during2027 рік
B52: Освоєння проєкту всього/ Development total | D52: Всього/Total | E52: =MIN(E56,E60,E64,E69,E74,E79,E84,E89) -> 00:00:00 | F52: =NETWORKDAYS(E52,G52,0) -> 32742 | G52: =MAX(G56,G60,G64,G69,G74,G79,G84,G89) -> 2025-07-01 | H52: =H53+H54 -> 9000 | I52: =I53+I54 -> 0 | J52: =J53+J54 -> 500 | K52: =K53+K54 -> 500 | L52: =L53+L54 -> 500 | M52: =M53+M54 -> 500 | N52: =N53+N54 -> 500 | O52: =O53+O54 -> 500 | P52: =P53+P54 -> 500 | Q52: =Q53+Q54 -> 500 | R52: =R53+R54 -> 500 | S52: =S53+S54 -> 500 | T52: =T53+T54 -> 500 | U52: =U53+U54 -> 5500 | V52: =V53+V54 -> 500 | W52: =W53+W54 -> 500 | X52: =X53+X54 -> 500 | Y52: =Y53+Y54 -> 500 | Z52: =Z53+Z54 -> 500 | AA52: =AA53+AA54 -> 500 | AB52: =AB53+AB54 -> 500 | AC52: =AC53+AC54 -> 0 | AD52: =AD53+AD54 -> 0 | AE52: =AE53+AE54 -> 0 | AF52: =AF53+AF54 -> 0 | AG52: =AG53+AG54 -> 0 | AH52: =AH53+AH54 -> 3500 | AI52: =AI53+AI54 -> 0 | AJ52: =AJ53+AJ54 -> 0 | AK52: =AK53+AK54 -> 0 | AL52: =AL53+AL54 -> 0 | AM52: =AM53+AM54 -> 0 | AN52: =AN53+AN54 -> 0 | AO52: =AO53+AO54 -> 0 | AP52: =AP53+AP54 -> 0 | AQ52: =AQ53+AQ54 -> 0 | AR52: =AR53+AR54 -> 0 | AS52: =AS53+AS54 -> 0 | AT52: =AT53+AT54 -> 0 | AU52: =AU53+AU54 -> 0 | AV52: =AV53+AV54 -> 0 | AW52: =AW53+AW54 -> 0 | AX52: =AX53+AX54 -> 0 | AY52: =AY53+AY54 -> 0 | AZ52: =AZ53+AZ54 -> 0 | BA52: =BA53+BA54 -> 0 | BB52: =BB53+BB54 -> 0 | BC52: =BC53+BC54 -> 0 | BD52: =BD53+BD54 -> 0 | BE52: =BE53+BE54 -> 0 | BF52: =BF53+BF54 -> 0 | BG52: =BG53+BG54 -> 0 | BH52: =BH53+BH54 -> 0
D53: Кредитні кошти/Loans | E53: 2024-02-01 | F53: =NETWORKDAYS(E53,G53,0) -> 369 | G53: 2025-07-01 | H53: =U53+AH53+AU53+BH53 -> 9000 | I53: =SUMIF($D$56:$D$93,$D$6,I56:I93) -> 0 | J53: 500 | K53: 500 | L53: 500 | M53: 500 | N53: 500 | O53: 500 | P53: 500 | Q53: 500 | R53: 500 | S53: 500 | T53: 500 | U53: 5500 | V53: 500 | W53: 500 | X53: 500 | Y53: 500 | Z53: 500 | AA53: 500 | AB53: 500 | AC53: 0 | AD53: 0 | AE53: 0 | AF53: 0 | AG53: 0 | AH53: 3500 | AI53: 0 | AJ53: 0 | AK53: 0 | AL53: 0 | AM53: 0 | AN53: 0 | AO53: =SUMIF($D$56:$D$93,$D$6,AO56:AO93) -> 0 | AP53: 0 | AQ53: 0 | AR53: 0 | AS53: 0 | AT53: 0 | AU53: 0 | AV53: 0 | AW53: 0 | AX53: 0 | AY53: 0 | AZ53: 0 | BA53: 0 | BB53: 0 | BC53: 0 | BD53: 0 | BE53: 0 | BF53: 0 | BG53: 0 | BH53: 0
D54: Власні кошти/ Own fonds | F54: =NETWORKDAYS(E54,G54,0) -> 0 | H54: =U54+AH54+AU54+BH54 -> 0 | I54: =SUMIF($D$56:$D$93,$D$54,I56:I93) -> 0 | J54: 0 | K54: 0 | L54: 0 | M54: 0 | N54: 0 | O54: 0 | P54: 0 | Q54: 0 | R54: 0 | S54: 0 | T54: 0 | U54: 0 | V54: 0 | W54: 0 | X54: 0 | Y54: 0 | Z54: 0 | AA54: 0 | AB54: 0 | AC54: 0 | AD54: 0 | AE54: 0 | AF54: 0 | AG54: 0 | AH54: 0 | AI54: 0 | AJ54: 0 | AK54: 0 | AL54: 0 | AM54: 0 | AN54: 0 | AO54: =SUMIF($D$56:$D$93,$D$54,AO56:AO93) -> 0 | AP54: 0 | AQ54: 0 | AR54: 0 | AS54: 0 | AT54: 0 | AU54: 0 | AV54: 0 | AW54: 0 | AX54: 0 | AY54: 0 | AZ54: 0 | BA54: 0 | BB54: 0 | BC54: 0 | BD54: 0 | BE54: 0 | BF54: 0 | BG54: 0 | BH54: 0
I55: =I56+I60+I64+I69+I74+I79+I84+I89 -> 0 | J55: 500 | K55: 500 | L55: 500 | M55: 500 | N55: 500 | O55: 500 | P55: 500 | Q55: 500 | R55: 500 | S55: 500 | T55: 500 | U55: 5500 | V55: 500 | W55: 500 | X55: 500 | Y55: 500 | Z55: 500 | AA55: 500 | AB55: 500 | AC55: 0 | AD55: 0 | AE55: 0 | AF55: 0 | AG55: 0 | AH55: 3500 | AI55: 0 | AJ55: 0 | AK55: 0 | AL55: 0 | AM55: 0 | AN55: 0 | AO55: =AO56+AO60+AO64+AO69+AO74+AO79+AO84+AO89 -> 0 | AP55: 0 | AQ55: 0 | AR55: 0 | AS55: 0 | AT55: 0 | AU55: 0 | AV55: 0 | AW55: 0 | AX55: 0 | AY55: 0 | AZ55: 0 | BA55: 0 | BB55: 0 | BC55: 0 | BD55: 0 | BE55: 0 | BF55: 0 | BG55: 0 | BH55: 0
B56: =B9 -> ESS 10 MW | E56: =MIN(E57:E58) -> 2024-02-01 | F56: =NETWORKDAYS(E56,G56,0) -> 369 | G56: =MAX(G57:G58) -> 2025-07-01 | H56: =U56+AH56+AU56+BH56 -> 9000 | I56: =SUM(I57:I58) -> 0 | J56: 500 | K56: 500 | L56: 500 | M56: 500 | N56: 500 | O56: 500 | P56: 500 | Q56: 500 | R56: 500 | S56: 500 | T56: 500 | U56: =SUM(I56:T56) -> 5500 | V56: =SUM(V57:V58) -> 500 | W56: 500 | X56: 500 | Y56: 500 | Z56: 500 | AA56: 500 | AB56: 500 | AC56: 0 | AD56: 0 | AE56: 0 | AF56: 0 | AG56: 0 | AH56: =SUM(V56:AG56) -> 3500 | AI56: =SUM(AI57:AI58) -> 0 | AJ56: 0 | AK56: 0 | AL56: 0 | AM56: 0 | AN56: 0 | AO56: 0 | AP56: 0 | AQ56: 0 | AR56: 0 | AS56: 0 | AT56: 0 | AU56: =SUM(AI56:AT56) -> 0 | AV56: =SUM(AV57:AV58) -> 0 | AW56: 0 | AX56: 0 | AY56: 0 | AZ56: 0 | BA56: 0 | BB56: 0 | BC56: 0 | BD56: 0 | BE56: 0 | BF56: 0 | BG56: 0 | BH56: =SUM(AV56:BG56) -> 0
B57: Виконання робіт за проєктом/Execution of project works | D57: =D10 -> Кредитні кошти/Loans | E57: 2024-02-01 | F57: =NETWORKDAYS(E57,G57,0) -> 369 | G57: 2025-07-01 | H57: =H10 -> 9000 | J57: =I10 -> 500 | K57: 500 | L57: 500 | M57: 500 | N57: 500 | O57: 500 | P57: 500 | Q57: 500 | R57: 500 | S57: 500 | T57: 500 | U57: =SUM(I57:T57) -> 5500 | V57: =T10 -> 500 | W57: =V10 -> 500 | X57: 500 | Y57: 500 | Z57: 500 | AA57: 500 | AB57: 500 | AG57: =AE9+AF9+AG9 -> 0 | AH57: 3500 | AJ57: =AK9 -> 0 | AK57: 0 | AL57: 0 | AM57: 0 | AN57: 0 | AO57: 0 | AP57: 0 | AQ57: 0 | AR57: 0 | AS57: 0 | AT57: =AV9+AW9 -> 0 | AU57: 0 | AV57: =AX9+AD9 -> 0 | AY57: =AY10 -> 0 | BC57: =BC10 -> 0 | BG57: =BG10 -> 0 | BH57: 0
B58: Плата за приєднання/Joining fee | D58: =D11 -> Кредитні кошти/Loans | E58: 2025-02-01 | F58: 14 | G58: 2025-02-20 | H58: =U58+AH58+AU58+BH58 -> 0 | J58: =I11 -> 0 | K58: 0 | L58: 0 | M58: 0 | N58: 0 | O58: 0 | P58: 0 | Q58: 0 | R58: 0 | S58: 0 | T58: 0 | U58: =SUM(I58:T58) -> 0 | V58: =T11 -> 0 | W58: 0 | X58: 0 | Y58: 0 | Z58: 0 | AA58: 0 | AB58: 0 | AH58: 0 | AU58: 0 | BH58: 0
B59: Операція 5/ Operation 5 | D59: =D12 -> 0 | F59: =NETWORKDAYS(E59,G59,0) -> 0 | H59: =U59+AH59+AU59+BH59 -> 0 | I59: =SUM(I60:I62) -> 0 | J59: =SUM(J60:J62) -> 0 | K59: =SUM(K60:K62) -> 0 | L59: 0 | M59: 0 | N59: 0 | O59: 0 | P59: 0 | Q59: 0 | R59: 0 | S59: 0 | T59: 0 | U59: =SUM(I59:T59) -> 0 | V59: =SUM(V60:V62) -> 0 | W59: =SUM(W60:W62) -> 0 | X59: 0 | Y59: 0 | Z59: 0 | AA59: 0 | AB59: 0 | AC59: 0 | AD59: 0 | AE59: 0 | AF59: 0 | AG59: =SUM(AG60:AG62) -> 0 | AH59: 0 | AI59: =SUM(AI60:AI62) -> 0 | AJ59: =SUM(AJ60:AJ62) -> 0 | AK59: 0 | AL59: 0 | AM59: 0 | AN59: 0 | AO59: 0 | AP59: 0 | AQ59: 0 | AR59: 0 | AS59: 0 | AT59: 0 | AU59: 0 | AV59: =SUM(AV60:AV62) -> 0 | AW59: =SUM(AW60:AW62) -> 0 | AX59: 0 | AY59: 0 | AZ59: 0 | BA59: 0 | BB59: 0 | BC59: 0 | BD59: 0 | BE59: 0 | BF59: 0 | BG59: 0 | BH59: 0
B60: Етап 2 / Phase 7 | E60: =MIN(E61:E63) -> 00:00:00 | F60: =NETWORKDAYS(E60,G60,0) -> 0 | G60: =MAX(G61:G63) -> 00:00:00 | H60: =H13 -> 0 | O60: =N13 -> 0 | P60: 0 | Q60: 0 | R60: 0 | S60: 0 | T60: 0 | U60: 0 | V60: =T13 -> 0 | W60: =V13 -> 0 | X60: 0 | Y60: 0 | Z60: 0 | AA60: 0 | AB60: 0 | AC60: 0 | AD60: 0 | AE60: 0 | AF60: 0 | AG60: 0 | AH60: 0 | AI60: =AG13 -> 0 | AJ60: =AI13 -> 0 | AK60: 0 | AL60: 0 | AM60: 0 | AN60: 0 | AO60: 0 | AU60: 0 | BH60: 0
B61: Операція 1/ Operation 1 | D61: =D14 -> 0 | F61: 0 | H61: 0 | U61: 0 | AH61: 0 | AU61: 0 | BH61: 0
B62: Операція 2/ Operation 2 | D62: =D15 -> 0 | F62: 0 | H62: 0 | U62: 0 | AH62: 0 | AU62: 0 | BH62: 0
B63: Операція 3/ Operation 3 | D63: =D16 -> 0
B64: Етап 3 / Phase 3 | E64: =MIN(E65:E68) -> 00:00:00 | F64: =NETWORKDAYS(E64,G64,0) -> 0 | G64: =MAX(G65:G68) -> 00:00:00 | H64: =U64+AH64+AU64+BH64 -> 0 | I64: =SUM(I65:I67) -> 0 | J64: =SUM(J65:J67) -> 0 | K64: 0 | L64: 0 | M64: 0 | N64: 0 | O64: 0 | P64: 0 | Q64: 0 | R64: 0 | S64: 0 | T64: 0 | U64: =SUM(I64:T64) -> 0 | V64: =SUM(V65:V67) -> 0 | W64: =SUM(W65:W67) -> 0 | X64: 0 | Y64: 0 | Z64: 0 | AA64: 0 | AB64: 0 | AC64: 0 | AD64: 0 | AE64: 0 | AF64: 0 | AG64: 0 | AH64: =SUM(V64:AG64) -> 0 | AI64: =SUM(AI65:AI67) -> 0 | AJ64: =SUM(AJ65:AJ67) -> 0 | AK64: 0 | AL64: 0 | AM64: 0 | AN64: 0 | AO64: 0 | AP64: 0 | AQ64: 0 | AR64: 0 | AS64: 0 | AT64: 0 | AU64: =SUM(AI64:AT64) -> 0 | AV64: =SUM(AV65:AV67) -> 0 | AW64: =SUM(AW65:AW67) -> 0 | AX64: 0 | AY64: 0 | AZ64: 0 | BA64: 0 | BB64: 0 | BC64: 0 | BD64: 0 | BE64: 0 | BF64: 0 | BG64: 0 | BH64: =SUM(AV64:BG64) -> 0
B65: Операція 1/ Operation 1 | D65: =D18 -> 0 | F65: =NETWORKDAYS(E65,G65,0) -> 0 | H65: 0 | U65: 0 | AH65: =SUM(V65:AG65) -> 0 | AU65: =SUM(AI65:AT65) -> 0 | BH65: =SUM(AV65:BG65) -> 0
B66: Операція 2/ Operation 2 | D66: =D19 -> 0 | F66: 0 | H66: 0 | U66: 0 | AH66: =SUM(V66:AG66) -> 0 | AU66: =SUM(AI66:AT66) -> 0 | BH66: =SUM(AV66:BG66) -> 0
B67: Операція 3/ Operation 3 | D67: =D20 -> 0 | F67: 0 | H67: 0 | U67: 0 | AH67: =SUM(V67:AG67) -> 0 | AU67: =SUM(AI67:AT67) -> 0 | BH67: =SUM(AV67:BG67) -> 0
B68: Операція 4/ Operation 4 | D68: =D21 -> 0
B69: Етап 4 / Phase 4 | E69: =MIN(E70:E73) -> 00:00:00 | F69: =NETWORKDAYS(E69,G69,0) -> 0 | G69: =MAX(G70:G73) -> 00:00:00 | H69: =U69+AH69+AU69+BH69 -> 0 | I69: =SUM(I70:I72) -> 0 | J69: =SUM(J70:J72) -> 0 | K69: 0 | L69: 0 | M69: 0 | N69: 0 | O69: 0 | P69: 0 | Q69: 0 | R69: 0 | S69: 0 | T69: 0 | U69: =SUM(I69:T69) -> 0 | V69: =SUM(V70:V72) -> 0 | W69: =SUM(W70:W72) -> 0 | X69: 0 | Y69: 0 | Z69: 0 | AA69: 0 | AB69: 0 | AC69: 0 | AD69: 0 | AE69: 0 | AF69: 0 | AG69: 0 | AH69: =SUM(V69:AG69) -> 0 | AI69: =SUM(AI70:AI72) -> 0 | AJ69: =SUM(AJ70:AJ72) -> 0 | AK69: 0 | AL69: 0 | AM69: 0 | AN69: 0 | AO69: 0 | AP69: 0 | AQ69: 0 | AR69: 0 | AS69: 0 | AT69: 0 | AU69: =SUM(AI69:AT69) -> 0 | AV69: =SUM(AV70:AV72) -> 0 | AW69: =SUM(AW70:AW72) -> 0 | AX69: 0 | AY69: 0 | AZ69: 0 | BA69: 0 | BB69: 0 | BC69: 0 | BD69: 0 | BE69: 0 | BF69: 0 | BG69: 0 | BH69: =SUM(AV69:BG69) -> 0
B70: Операція 1/ Operation 1 | D70: =D23 -> 0 | F70: =NETWORKDAYS(E70,G70,0) -> 0 | H70: 0 | U70: 0 | AH70: =SUM(V70:AG70) -> 0 | AU70: =SUM(AI70:AT70) -> 0 | BH70: =SUM(AV70:BG70) -> 0
B71: Операція 2/ Operation 2 | D71: =D24 -> 0 | F71: 0 | H71: 0 | U71: 0 | AH71: =SUM(V71:AG71) -> 0 | AU71: =SUM(AI71:AT71) -> 0 | BH71: =SUM(AV71:BG71) -> 0
B72: Операція 3/ Operation 3 | D72: =D25 -> 0 | F72: 0 | H72: 0 | U72: 0 | AH72: =SUM(V72:AG72) -> 0 | AU72: =SUM(AI72:AT72) -> 0 | BH72: =SUM(AV72:BG72) -> 0
B73: Операція 4/ Operation 4 | D73: =D26 -> 0
B74: Етап 5 / Phase 5 | E74: =MIN(E75:E78) -> 00:00:00 | F74: =NETWORKDAYS(E74,G74,0) -> 0 | G74: =MAX(G75:G78) -> 00:00:00 | H74: =U74+AH74+AU74+BH74 -> 0 | I74: =SUM(I75:I77) -> 0 | J74: =SUM(J75:J77) -> 0 | K74: 0 | L74: 0 | M74: 0 | N74: 0 | O74: 0 | P74: 0 | Q74: 0 | R74: 0 | S74: 0 | T74: 0 | U74: =SUM(I74:T74) -> 0 | V74: =SUM(V75:V77) -> 0 | W74: =SUM(W75:W77) -> 0 | X74: 0 | Y74: 0 | Z74: 0 | AA74: 0 | AB74: 0 | AC74: 0 | AD74: 0 | AE74: 0 | AF74: 0 | AG74: 0 | AH74: =SUM(V74:AG74) -> 0 | AI74: =SUM(AI75:AI77) -> 0 | AJ74: =SUM(AJ75:AJ77) -> 0 | AK74: 0 | AL74: 0 | AM74: 0 | AN74: 0 | AO74: 0 | AP74: 0 | AQ74: 0 | AR74: 0 | AS74: 0 | AT74: 0 | AU74: =SUM(AI74:AT74) -> 0 | AV74: =SUM(AV75:AV77) -> 0 | AW74: =SUM(AW75:AW77) -> 0 | AX74: 0 | AY74: 0 | AZ74: 0 | BA74: 0 | BB74: 0 | BC74: 0 | BD74: 0 | BE74: 0 | BF74: 0 | BG74: 0 | BH74: =SUM(AV74:BG74) -> 0
B75: Операція 1/ Operation 1 | D75: =D28 -> 0 | F75: =NETWORKDAYS(E75,G75,0) -> 0 | H75: 0 | U75: 0 | AH75: =SUM(V75:AG75) -> 0 | AU75: =SUM(AI75:AT75) -> 0 | BH75: =SUM(AV75:BG75) -> 0
B76: Операція 2/ Operation 2 | D76: =D29 -> 0 | F76: 0 | H76: 0 | U76: 0 | AH76: =SUM(V76:AG76) -> 0 | AU76: =SUM(AI76:AT76) -> 0 | BH76: =SUM(AV76:BG76) -> 0
B77: Операція 3/ Operation 3 | D77: =D30 -> 0 | F77: 0 | H77: 0 | U77: 0 | AH77: =SUM(V77:AG77) -> 0 | AU77: =SUM(AI77:AT77) -> 0 | BH77: =SUM(AV77:BG77) -> 0
B78: Операція 4/ Operation 4 | D78: =D31 -> 0
B79: Етап 6 / Phase 6 | E79: =MIN(E80:E83) -> 00:00:00 | F79: =NETWORKDAYS(E79,G79,0) -> 0 | G79: =MAX(G80:G83) -> 00:00:00 | H79: =U79+AH79+AU79+BH79 -> 0 | I79: =SUM(I80:I82) -> 0 | J79: =SUM(J80:J82) -> 0 | K79: 0 | L79: 0 | M79: 0 | N79: 0 | O79: 0 | P79: 0 | Q79: 0 | R79: 0 | S79: 0 | T79: 0 | U79: =SUM(I79:T79) -> 0 | V79: =SUM(V80:V82) -> 0 | W79: =SUM(W80:W82) -> 0 | X79: 0 | Y79: 0 | Z79: 0 | AA79: 0 | AB79: 0 | AC79: 0 | AD79: 0 | AE79: 0 | AF79: 0 | AG79: =SUM(AG80:AG82) -> 0 | AH79: =SUM(V79:AG79) -> 0 | AI79: =SUM(AI80:AI82) -> 0 | AJ79: =SUM(AJ80:AJ82) -> 0 | AK79: 0 | AL79: 0 | AM79: 0 | AN79: 0 | AO79: 0 | AP79: 0 | AQ79: 0 | AR79: 0 | AS79: 0 | AT79: 0 | AU79: =SUM(AI79:AT79) -> 0 | AV79: =SUM(AV80:AV82) -> 0 | AW79: =SUM(AW80:AW82) -> 0 | AX79: 0 | AY79: 0 | AZ79: 0 | BA79: 0 | BB79: 0 | BC79: 0 | BD79: 0 | BE79: 0 | BF79: 0 | BG79: 0 | BH79: =SUM(AV79:BG79) -> 0
B80: Операція 1/ Operation 1 | D80: =D33 -> 0 | F80: =NETWORKDAYS(E80,G80,0) -> 0 | H80: 0 | U80: 0 | AH80: =SUM(V80:AG80) -> 0 | AU80: =SUM(AI80:AT80) -> 0 | BH80: =SUM(AV80:BG80) -> 0
B81: Операція 2/ Operation 2 | D81: =D34 -> 0 | F81: 0 | H81: 0 | U81: 0 | AH81: =SUM(V81:AG81) -> 0 | AU81: =SUM(AI81:AT81) -> 0 | BH81: =SUM(AV81:BG81) -> 0
B82: Операція 3/ Operation 3 | D82: =D35 -> 0 | F82: 0 | H82: 0 | U82: 0 | AH82: =SUM(V82:AG82) -> 0 | AU82: =SUM(AI82:AT82) -> 0 | BH82: =SUM(AV82:BG82) -> 0
B83: Операція 4/ Operation 4 | D83: =D36 -> 0
B84: Етап 7 / Phase 7 | E84: =MIN(E85:E88) -> 00:00:00 | F84: =NETWORKDAYS(E84,G84,0) -> 0 | G84: =MAX(G85:G88) -> 00:00:00 | H84: =U84+AH84+AU84+BH84 -> 0 | I84: =SUM(I85:I87) -> 0 | J84: =SUM(J85:J87) -> 0 | K84: 0 | L84: 0 | M84: 0 | N84: 0 | O84: 0 | P84: 0 | Q84: 0 | R84: 0 | S84: 0 | T84: 0 | U84: =SUM(I84:T84) -> 0 | V84: =SUM(V85:V87) -> 0 | W84: =SUM(W85:W87) -> 0 | X84: 0 | Y84: 0 | Z84: 0 | AA84: 0 | AB84: 0 | AC84: 0 | AD84: 0 | AE84: 0 | AF84: 0 | AG84: =SUM(AG85:AG87) -> 0 | AH84: =SUM(V84:AF84) -> 0 | AI84: =SUM(AI85:AI87) -> 0 | AJ84: =SUM(AJ85:AJ87) -> 0 | AK84: 0 | AL84: 0 | AM84: 0 | AN84: 0 | AO84: 0 | AP84: 0 | AQ84: 0 | AR84: 0 | AS84: 0 | AT84: 0 | AU84: =SUM(AI84:AT84) -> 0 | AV84: =SUM(AV85:AV87) -> 0 | AW84: =SUM(AW85:AW87) -> 0 | AX84: 0 | AY84: 0 | AZ84: 0 | BA84: 0 | BB84: 0 | BC84: 0 | BD84: 0 | BE84: 0 | BF84: 0 | BG84: 0 | BH84: =SUM(AV84:BG84) -> 0
B85: Операція 1/ Operation 1 | D85: =D38 -> 0 | F85: =NETWORKDAYS(E85,G85,0) -> 0 | H85: 0 | U85: 0 | AH85: =SUM(V85:AG85) -> 0 | AU85: =SUM(AI85:AT85) -> 0 | BH85: =SUM(AV85:BG85) -> 0
B86: Операція 2/ Operation 2 | D86: =D39 -> 0 | F86: 0 | H86: 0 | U86: 0 | AH86: =SUM(V86:AG86) -> 0 | AU86: =SUM(AI86:AT86) -> 0 | BH86: =SUM(AV86:BG86) -> 0
B87: Операція 3/ Operation 3 | D87: =D40 -> 0 | F87: 0 | H87: 0 | U87: 0 | AH87: =SUM(V87:AG87) -> 0 | AU87: =SUM(AI87:AT87) -> 0 | BH87: =SUM(AV87:BG87) -> 0
B88: Операція 4/ Operation 4 | D88: =D41 -> 0
B89: Етап 8 / Phase 8 | E89: =MIN(E90:E93) -> 00:00:00 | F89: =NETWORKDAYS(E89,G89,0) -> 0 | G89: =MAX(G90:G93) -> 00:00:00 | H89: =U89+AH89+AU89+BH89 -> 0 | I89: =SUM(I90:I92) -> 0 | J89: =SUM(J90:J92) -> 0 | K89: 0 | L89: 0 | M89: 0 | N89: 0 | O89: 0 | P89: 0 | Q89: 0 | R89: 0 | S89: 0 | T89: 0 | U89: =SUM(I89:T89) -> 0 | V89: =SUM(V90:V92) -> 0 | W89: =SUM(W90:W92) -> 0 | X89: 0 | Y89: 0 | Z89: 0 | AA89: 0 | AB89: 0 | AC89: 0 | AD89: 0 | AE89: 0 | AF89: 0 | AG89: 0 | AH89: =SUM(V89:AG89) -> 0 | AI89: =SUM(AI90:AI92) -> 0 | AJ89: =SUM(AJ90:AJ92) -> 0 | AK89: 0 | AL89: 0 | AM89: 0 | AN89: 0 | AO89: 0 | AP89: 0 | AQ89: 0 | AR89: 0 | AS89: 0 | AT89: 0 | AU89: =SUM(AI89:AT89) -> 0 | AV89: =SUM(AV90:AV92) -> 0 | AW89: =SUM(AW90:AW92) -> 0 | AX89: 0 | AY89: 0 | AZ89: 0 | BA89: 0 | BB89: 0 | BC89: 0 | BD89: 0 | BE89: 0 | BF89: 0 | BG89: 0 | BH89: =SUM(AV89:BG89) -> 0
B90: Операція 1/ Operation 1 | D90: =D43 -> 0 | F90: =NETWORKDAYS(E90,G90,0) -> 0 | H90: 0 | U90: 0 | AH90: =SUM(V90:AG90) -> 0 | AU90: =SUM(AI90:AT90) -> 0 | BH90: =SUM(AV90:BG90) -> 0
B91: Операція 2/ Operation 2 | D91: =D44 -> 0 | F91: 0 | H91: 0 | U91: 0 | AH91: =SUM(V91:AG91) -> 0 | AU91: =SUM(AI91:AT91) -> 0 | BH91: =SUM(AV91:BG91) -> 0
B92: Операція 3/ Operation 3 | D92: =D45 -> 0 | F92: 0 | H92: 0 | U92: 0 | AH92: =SUM(V92:AG92) -> 0 | AU92: =SUM(AI92:AT92) -> 0 | BH92: =SUM(AV92:BG92) -> 0
B93: Операція 4/ Operation 4 | D93: =D46 -> 0
D94: =D47 -> 0

Sheet Фінансування_Financing (CFI)
B1: UKR | N1: ENG | Z1: ГРАФІК ФІНАНСУВАННЯ/ FINANCING SCHEDULE
A2: ФІНАНСОВІ ВИТРАТИ ПО ПРОЕКТУ | F2: =Головна_Summary!A2 -> Energy storage system 10МВт | M2: FINANCIAL COSTS OF THE PROJECT | R2: =Головна_Summary!K2 -> Energy storage system 10 MW | AB2: Інвестиційні витрати / Investment costs | AD2: =Головна_Summary!AD5 -> тис.US$/ ths.US$
AD4: Січень / Jan | AE4: Лютий / Feb | AF4: Березень / Mar | AG4: Квітень / Apr | AH4: Травень / May | AI4: Червень / Jun | AJ4: Липень / Jul | AK4: Серпень / Aug | AL4: Вересень / Sep | AM4: Жовтень / Oct | AN4: Листопад / Nov | AO4: Грудень / Dec | AP4: Разом / Total
B5: Інвестиційні витрати по проекту | N5: Investment costs of the project | AC5: ='Грошові потоки _ Cash flows'!G7 -> 2024 | AD5: ='План фінансування_Funding plan'!I5 -> 500 | AE5: ='План фінансування_Funding plan'!J5 -> 500 | AF5: ='План фінансування_Funding plan'!K5 -> 500 | AG5: ='План фінансування_Funding plan'!L5 -> 500 | AH5: ='План фінансування_Funding plan'!M5 -> 500 | AI5: ='План фінансування_Funding plan'!N5 -> 500 | AJ5: ='План фінансування_Funding plan'!O5 -> 500 | AK5: ='План фінансування_Funding plan'!P5 -> 500 | AL5: ='План фінансування_Funding plan'!Q5 -> 500 | AM5: ='План фінансування_Funding plan'!R5 -> 500 | AN5: ='План фінансування_Funding plan'!S5 -> 500 | AO5: ='План фінансування_Funding plan'!T5 -> 500 | AP5: =SUM(AD5:AO5) -> 6000
B7: Найменування об'єкту | F7: Кількість | H7: Одн.виміру | J7: Сума | N7: Object name | R7: Amount | T7: Unit | V7: Sum | AD7: =AC5 -> 2024 | AE7: =AD7+1 -> 2025 | AF7: =AE7+1 -> 2026 | AG7: =AF7+1 -> 2027 | AH7: =AG7+1 -> 2028 | AI7: =AH7+1 -> 2029 | AJ7: 2030 | AK7: 2031 | AL7: 2032 | AM7: 2033 | AN7: 2034 | AO7: 2035 | AP7: =AO7+1 -> 2036 | AQ7: =AP7+1 -> 2037 | AR7: =AQ7+1 -> 2038 | AS7: =AR7+1 -> 2039 | AT7: =AS7+1 -> 2040 | AU7: 2041 | AV7: =AU7+1 -> 2042 | AW7: =AV7+1 -> 2043 | AX7: =AW7+1 -> 2044 | AY7: =AX7+1 -> 2045 | AZ7: =AY7+1 -> 2046 | BA7: =AZ7+1 -> 2047 | BB7: =BA7+1 -> 2048 | BC7: =BB7+1 -> 2049 | BD7: =BC7+1 -> 2050 | BE7: =BD7+1 -> 2051 | BF7: =BE7+1 -> 2052 | BG7: =BF7+1 -> 2053 | BH7: =AP4 -> Разом / Total
B8: 1 | C8: ESS 10 MW | H8: тис. дол | J8: =Припущення_Assumptions!G8*Припущення_Assumptions!G11 -> 9000 | L8: 1 | N8: 1 | O8: =C8 -> ESS 10 MW | T8: ths. USA | V8: =J8 -> 9000 | X8: 1 | AD8: ='План фінансування_Funding plan'!U5 -> 6000 | AE8: ='План фінансування_Funding plan'!AH5 -> 3000 | AF8: ='План фінансування_Funding plan'!AU6 -> 0 | AG8: ='План фінансування_Funding plan'!BH6 -> 0 | BH8: =SUM(AD8:BG8) -> 9000
B9: 2 | L9: 0 | N9: 2 | X9: 0
L10: 1 | X10: 1 | AD10: =AC5 -> 2024 | AE10: =AD10+1 -> 2025 | AF10: =AE10+1 -> 2026 | AG10: =AF10+1 -> 2027 | AH10: =AG10+1 -> 2028 | AI10: =AH10+1 -> 2029 | AJ10: 2030 | AK10: 2031 | AL10: 2032 | AM10: 2033 | AN10: 2034 | AO10: 2035 | AP10: =AO10+1 -> 2036 | AQ10: =AP10+1 -> 2037 | AR10: =AQ10+1 -> 2038 | AS10: =AR10+1 -> 2039 | AT10: =AS10+1 -> 2040 | AU10: 2041 | AV10: =AU10+1 -> 2042 | AW10: =AV10+1 -> 2043 | AX10: =AW10+1 -> 2044 | AY10: =AX10+1 -> 2045 | AZ10: =AY10+1 -> 2046 | BA10: =AZ10+1 -> 2047 | BB10: =BA10+1 -> 2048 | BC10: =BB10+1 -> 2049 | BD10: =BC10+1 -> 2050 | BE10: =BD10+1 -> 2051 | BF10: =BE10+1 -> 2052 | BG10: =BF10+1 -> 2053 | BH10: =BH7 -> Разом / Total
L11: 0 | X11: 0 | AB11: Капітальні ремонти / Overhauls | AL11: =AL35 -> 0 | AR11: =AR35 -> 0 | BH11: =SUM(AD11:BG11) -> 0
L12: 0 | X12: 0
L13: 1 | X13: 1 | AD13: =AC5 -> 2024 | AE13: =AD13+1 -> 2025 | AF13: =AE13+1 -> 2026 | AG13: =AF13+1 -> 2027 | AH13: =AG13+1 -> 2028 | AI13: =AH13+1 -> 2029 | AJ13: 2030 | AK13: 2031 | AL13: 2032 | AM13: 2033 | AN13: 2034 | AO13: 2035 | AP13: =AO13+1 -> 2036 | AQ13: =AP13+1 -> 2037 | AR13: =AQ13+1 -> 2038 | AS13: =AR13+1 -> 2039 | AT13: =AS13+1 -> 2040 | AU13: 2041 | AV13: =AU13+1 -> 2042 | AW13: =AV13+1 -> 2043 | AX13: =AW13+1 -> 2044 | AY13: =AX13+1 -> 2045 | AZ13: =AY13+1 -> 2046 | BA13: =AZ13+1 -> 2047 | BB13: =BA13+1 -> 2048 | BC13: =BB13+1 -> 2049 | BD13: =BC13+1 -> 2050 | BE13: =BD13+1 -> 2051 | BF13: =BE13+1 -> 2052 | BG13: =BF13+1 -> 2053 | BH13: =BH10 -> Разом / Total
L14: 0 | X14: 0 | AB14: Операційні витрати / Operating costs | BH14: =SUM(AD14:BG14) -> 0
I15: Всього | J15: =J8+J9 -> 9000 | L15: =COUNTIF(L8:L14,1) -> 3 | U15: Total | V15: =V8+V9+V10+V13 -> 9000 | X15: =COUNTIF(X8:X14,1) -> 3
Z16: ГРАФІК ОСВОЕННЯ/ CAPITALIZATION SCHEDULE
B17: Капітальні ремонти під час експлуатації | N17: Overhauls during comissioning | AB17: Інвестиційні витрати / Investment costs | AD17: =AD2 -> тис.US$/ ths.US$
B18: Найменування об'єкту | F18: Кількість | H18: Одн.виміру | J18: Сума | N18: =N7 -> Object name | R18: =R7 -> Amount | T18: =T7 -> Unit | V18: =V7 -> Sum
B19: 1 | N19: 1 | R19: =F19 -> 0 | T19: =H19 -> 0 | V19: =J19 -> 0 | AD19: =AD4 -> Січень / Jan | AE19: Лютий / Feb | AF19: Березень / Mar | AG19: Квітень / Apr | AH19: Травень / May | AI19: Червень / Jun | AJ19: Липень / Jul | AK19: Серпень / Aug | AL19: Вересень / Sep | AM19: Жовтень / Oct | AN19: Листопад / Nov | AO19: Грудень / Dec | AP19: Разом / Total
B20: 2 | N20: 2 | R20: =F20 -> 0 | T20: =H20 -> 0 | V20: =J20 -> 0 | AC20: =AC5 -> 2024 | AD20: ='План фінансування_Funding plan'!I52 -> 0 | AE20: ='План фінансування_Funding plan'!J52 -> 500 | AF20: ='План фінансування_Funding plan'!K52 -> 500 | AG20: ='План фінансування_Funding plan'!L52 -> 500 | AH20: ='План фінансування_Funding plan'!M52 -> 500 | AI20: ='План фінансування_Funding plan'!N52 -> 500 | AJ20: ='План фінансування_Funding plan'!O52 -> 500 | AK20: ='План фінансування_Funding plan'!P52 -> 500 | AL20: ='План фінансування_Funding plan'!Q52 -> 500 | AM20: ='План фінансування_Funding plan'!R52 -> 500 | AN20: ='План фінансування_Funding plan'!S52 -> 500 | AO20: ='План фінансування_Funding plan'!T52 -> 500 | AP20: =SUM(AD20:AO20) -> 5500
B21: 3 | N21: 3 | R21: 0 | T21: 0 | V21: 0 | AD21: =AC20 -> 2024 | AE21: =AD21+1 -> 2025 | AF21: =AE21+1 -> 2026 | AG21: =AF21+1 -> 2027 | AH21: =AG21+1 -> 2028 | AI21: =AH21+1 -> 2029 | AJ21: 2030 | AK21: 2031 | AL21: 2032 | AM21: 2033 | AN21: 2034 | AO21: 2035 | AP21: =AO21+1 -> 2036 | AQ21: =AP21+1 -> 2037 | AR21: =AQ21+1 -> 2038 | AS21: =AR21+1 -> 2039 | AT21: =AS21+1 -> 2040 | AU21: 2041 | AV21: =AU21+1 -> 2042 | AW21: =AV21+1 -> 2043 | AX21: =AW21+1 -> 2044 | AY21: =AX21+1 -> 2045 | AZ21: =AY21+1 -> 2046 | BA21: =AZ21+1 -> 2047 | BB21: =BA21+1 -> 2048 | BC21: =BB21+1 -> 2049 | BD21: =BC21+1 -> 2050 | BE21: =BD21+1 -> 2051 | BF21: =BE21+1 -> 2052 | BG21: =BF21+1 -> 2053 | BH21: =BH13 -> Разом / Total
B22: 4 | N22: 4 | R22: 0 | T22: 0 | V22: 0 | AD22: =AP20 -> 5500 | AE22: ='План фінансування_Funding plan'!AH52 -> 3500 | AF22: ='План фінансування_Funding plan'!AU52 -> 0 | AG22: ='План фінансування_Funding plan'!BH52 -> 0 | BH22: =SUM(AD22:BG22) -> 9000
B23: 5 | N23: 5 | R23: 0 | T23: 0 | V23: 0
B24: 6 | N24: 6 | R24: 0 | T24: 0 | V24: 0 | AD24: =AC20 -> 2024 | AE24: =AD24+1 -> 2025 | AF24: =AE24+1 -> 2026 | AG24: =AF24+1 -> 2027 | AH24: =AG24+1 -> 2028 | AI24: =AH24+1 -> 2029 | AJ24: 2030 | AK24: 2031 | AL24: 2032 | AM24: 2033 | AN24: 2034 | AO24: 2035 | AP24: =AO24+1 -> 2036 | AQ24: =AP24+1 -> 2037 | AR24: =AQ24+1 -> 2038 | AS24: =AR24+1 -> 2039 | AT24: =AS24+1 -> 2040 | AU24: 2041 | AV24: =AU24+1 -> 2042 | AW24: =AV24+1 -> 2043 | AX24: =AW24+1 -> 2044 | AY24: =AX24+1 -> 2045 | AZ24: =AY24+1 -> 2046 | BA24: =AZ24+1 -> 2047 | BB24: =BA24+1 -> 2048 | BC24: =BB24+1 -> 2049 | BD24: =BC24+1 -> 2050 | BE24: =BD24+1 -> 2051 | BF24: =BE24+1 -> 2052 | BG24: =BF24+1 -> 2053 | BH24: =BH13 -> Разом / Total
B25: 7 | N25: 7 | R25: 0 | T25: 0 | V25: 0 | AB25: Капітальні ремонти / Overhauls | BH25: =SUM(AD25:BG25) -> 0
I26: Всього | J26: =SUM(J19:K25) -> 0 | U26: =U15 -> Total | V26: =SUM(V19:W25) -> 0
B27: Операційні витрати на проект | N27: Operating costs of the project | Z27: ВВЕДЕННЯ В ЕКСПЛУАТАЦІЮ/ COMMISSIONING
B29: Найменування об'єкту | F29: Кількість | H29: Одн.виміру | J29: Сума | N29: =N18 -> Object name | R29: =R18 -> Amount | T29: =T18 -> Unit | V29: =V18 -> Sum
B30: 1 | N30: 1 | R30: =F30 -> 0 | T30: =H30 -> 0 | V30: =J30 -> 0 | AD30: =AD17 -> тис.US$/ ths.US$
B31: 2 | N31: 2 | R31: =F31 -> 0 | T31: 0 | V31: =J31 -> 0 | AD31: =AC20 -> 2024 | AE31: =AD31+1 -> 2025 | AF31: =AE31+1 -> 2026 | AG31: =AF31+1 -> 2027 | AH31: =AG31+1 -> 2028 | AI31: =AH31+1 -> 2029 | AJ31: 2030 | AK31: 2031 | AL31: 2032 | AM31: 2033 | AN31: 2034 | AO31: 2035 | AP31: =AO31+1 -> 2036 | AQ31: =AP31+1 -> 2037 | AR31: =AQ31+1 -> 2038 | AS31: =AR31+1 -> 2039 | AT31: =AS31+1 -> 2040 | AU31: 2041 | AV31: =AU31+1 -> 2042 | AW31: =AV31+1 -> 2043 | AX31: =AW31+1 -> 2044 | AY31: =AX31+1 -> 2045 | AZ31: =AY31+1 -> 2046 | BA31: =AZ31+1 -> 2047 | BB31: =BA31+1 -> 2048 | BC31: =BB31+1 -> 2049 | BD31: =BC31+1 -> 2050 | BE31: =BD31+1 -> 2051 | BF31: =BE31+1 -> 2052 | BG31: =BF31+1 -> 2053 | BH31: =BH24 -> Разом / Total
B32: 3 | N32: 3 | R32: 0 | T32: 0 | V32: 0 | AB32: Введення об'екта / Commissioning | AE32: =Головна_Summary!AB7 -> 9000 | AF32: =R9 -> 0 | BH32: =SUM(AD32:BG32) -> 9000
B33: 4 | N33: 4 | R33: 0 | T33: 0 | V33: 0
B34: 5 | N34: 5 | R34: 0 | T34: 0 | V34: 0 | AD34: =AD24 -> 2024 | AE34: =AD34+1 -> 2025 | AF34: =AE34+1 -> 2026 | AG34: =AF34+1 -> 2027 | AH34: =AG34+1 -> 2028 | AI34: =AH34+1 -> 2029 | AJ34: 2030 | AK34: 2031 | AL34: 2032 | AM34: 2033 | AN34: 2034 | AO34: 2035 | AP34: =AO34+1 -> 2036 | AQ34: =AP34+1 -> 2037 | AR34: =AQ34+1 -> 2038 | AS34: =AR34+1 -> 2039 | AT34: =AS34+1 -> 2040 | AU34: 2041 | AV34: =AU34+1 -> 2042 | AW34: =AV34+1 -> 2043 | AX34: =AW34+1 -> 2044 | AY34: =AX34+1 -> 2045 | AZ34: =AY34+1 -> 2046 | BA34: =AZ34+1 -> 2047 | BB34: =BA34+1 -> 2048 | BC34: =BB34+1 -> 2049 | BD34: =BC34+1 -> 2050 | BE34: =BD34+1 -> 2051 | BF34: =BE34+1 -> 2052 | BG34: =BF34+1 -> 2053 | BH34: =BH31 -> Разом / Total
B35: 6 | N35: 6 | R35: 0 | T35: 0 | V35: 0 | AB35: Капітальні ремонти / Overhauls | BH35: =SUM(AD35:BG35) -> 0
B36: 7 | N36: 7 | R36: 0 | T36: 0 | V36: 0
I37: Всього | J37: =J15 -> 9000 | U37: =U26 -> Total | V37: =SUM(V8:W14) -> 9000

Sheet Припущення_Assumptions
B1: UKR | J1: ENG
A2: ПРИПУЩЕННЯ | C2: =Головна_Summary!A2 -> Energy storage system 10МВт | J2: Assumptions | L2: =Головна_Summary!K2 -> Energy storage system 10 MW
B4: Показник | E4: Джерело | F4: Одн.вим. | G4: Значення | J4: Indicator | M4: Source | N4: Unit | O4: Value
C6: Курс грн/долл на 2024 | F6: грн/долл | G6: =38.47*'[94]Аналіз чутливості_Sensitivity'!F14 -> 38.47 | K6: Exchange rate UAH/US$, 2023 | N6: UAH/US$ | O6: =G6 -> 38.47
C7: Курс грн/євро на 2024 | F7: грн/євро | G7: 41.66 | K7: Exchange rate UAH/EUR, 2023 | N7: UAH/EUR | O7: 41.66
C8: Вартість батареї | F8: дол./кВт | G8: 900 | K8: The cost of the battery | N8: US$/kv | O8: 900
C9: Умовно-постійні витрати | F9: тис.дол | G9: 16.78
C10: Змінні витрати | F10: тис.дол | G10: =((G11*G42*G57*G51)+(G11*G42*G58*G53))/G6/1000 -> 879.2565636
C11: Потужність системи батарей | F11: МВт | G11: =10 -> 10 | K11: Energy Storage system total capacity | N11: MW | O11: 10
C12: Ємність батареї | F12: МВт*год | G12: 6 | K12: Battery size | N12: MWh | O12: =G12 -> 6
C13: Ємність системи батарей | F13: МВт*год | G13: =G11*G12 -> 60 | K13: Energy Storage system size | N13: MWh | O13: =O11*O12 -> 60
C14: Глибина розряду | F14: % | G14: 1 | K14: Depth of discharge | N14: % | O14: 1
B15: ЗИМА | J15: WINTER
C16: Тривалість надання послуги аРВЧ (готовність+активація), із них: | F16: год./добу | G16: =COUNT('Добовий графік_Daily schedule'!B5:Y5) -> 10 | K16: The duration of anciliary services (FRR): | N16: hours/day | O16: =G16 -> 10
C17: завантаження | F17: год./добу | G17: =COUNT('Добовий графік_Daily schedule'!B6:Y6) -> 10 | K17: award | N17: hours/day | O17: =G17 -> 10
C18: розвантаження | F18: год./добу | G18: =COUNT('Добовий графік_Daily schedule'!B7:Y7) -> 0 | K18: downward | N18: hours/day | O18: =G18 -> 0
C19: Тривалість надання послуги РПЧ | F19: год./добу | G19: =COUNT('Добовий графік_Daily schedule'!B4:Y4) -> 4 | K19: The duration of anciliary services (FCR) | N19: hours/day | O19: =G19 -> 4
C20: Тривалість зарядки | F20: год./добу | G20: =COUNT('Добовий графік_Daily schedule'!B8:Y8) -> 10 | K20: The duration of recharging | N20: hours/day | O20: =G20 -> 10
B21: ЛІТО | J21: SUMMER
C22: Тривалість надання послуги аРВЧ (готовність+активація), із них: | F22: год./добу | G22: =COUNT('Добовий графік_Daily schedule'!B13:Y13) -> 5 | K22: The duration of anciliary services (FRR): | N22: hours/day | O22: =G22 -> 5
C23: завантаження | F23: год./добу | G23: =COUNT('Добовий графік_Daily schedule'!B14:Y14) -> 5 | K23: award | N23: hours/day | O23: =G23 -> 5
C24: розвантаження | F24: год./добу | G24: =COUNT('Добовий графік_Daily schedule'!B15:Y15) -> 0 | K24: downward | N24: hours/day | O24: =G24 -> 0
C25: Тривалість надання послуги РПЧ | F25: год./добу | G25: =COUNT('Добовий графік_Daily schedule'!B12:Y12) -> 14 | K25: The duration of anciliary services (FCR) | N25: hours/day | O25: =G25 -> 14
C26: Тривалість зарядки | F26: год./добу | G26: =COUNT('Добовий графік_Daily schedule'!B16:Y16) -> 5 | K26: The duration of recharging | N26: hours/day | O26: =G26 -> 5
C27: Життєвий цикл | F27: циклів | G27: 7300 | K27: Life cycle | N27: cycles | O27: =G27 -> 7300
C28: Термін експлуатації | F28: років | G28: =ROUNDDOWN(G27/(365*((G16+G22)/2)/G12),0) -> 16 | K28: Lifetime | N28: years | O28: 16
C29: Доступний діапазон (Available range for ESS) | F29: % | G29: 0.7 | K29: Round trip efficiency (RTE) | N29: % | O29: 0.85
C30: Витрати на власні потреби | F30: % | G30: 0.15 | K30: Losses of the battery | N30: % | O30: 0.15
B31: обрати | C31: Дизайн модуля | F31: Current module design | K31: Module design | N31: =F31 -> Current module design
C32: Рівень саморозряду | F32: %/рік | G32: =IF(F31="Current module design",1.825%,0.9%)*'Аналіз чутливості_Sensitivity'!F12 -> 0.01825 | K32: The level of self-discharge | N32: %/year | O32: =G32 -> 0.01825
C33: Тариф Укренерго на диспетчеризацію, 2024 | F33: грн/МВт*год | G33: 104.57 | K33: Ukrenergo dispatching tariff, 2023 | N33: UAH/MWh | O33: 104.57
C34: Гранична ціна на ДП 2024 (аРВЧрозвантаження) | F34: грн/МВт | G34: =366.43 -> 366.43 | K34: Price cap for anciliary services (downward), 2023 | N34: UAH/MW | O34: 366.43
C35: Гранична ціна на ДП 2024 (аРВЧзавантаження) | F35: грн/МВт | G35: =973.39 -> 973.39 | K35: Price cap for anciliary services (award),2023 | N35: UAH/MW | O35: =G35 -> 973.39
C36: Гранична ціна на ДП 2023 загальна | F36: грн/МВт | G36: =(G34+G35)*'Аналіз чутливості_Sensitivity'!F6 -> 1339.82 | K36: Price cap for anciliary services, total | N36: UAH/MWh | O36: =G36 -> 1339.82
C37: Днів у році | F37: днів | G37: 365 | K37: Number of days in the year | N37: days | O37: 365
C38: Частка зимового періоду в році | F38: % | G38: 0.5 | K38: The share of winter period in the year | N38: % | O38: =G38 -> 0.5
C39: Частка літнього періоду в році | F39: % | G39: 0.5 | K39: The share of summer period in the year | N39: % | O39: =G39 -> 0.5
C40: Годин у добі | F40: год. | G40: 24 | K40: Hours in the day | N40: hours | O40: 24
C41: Кількість місяців у році | F41: міс. | G41: 12 | K41: The number of months in the year | N41: months | O41: =G41 -> 12
C42: Тривалість роботи загальна | F42: год/рік | G42: =G43+G44+G45 -> 8760 | K42: The total time of work | N42: hours/year | O42: =G42 -> 8760
C43: Тривалість готовності до надання послуг аРВЧ | F43: год/рік | G43: =(G16*G37*G38+G22*G37*G39)*'Аналіз чутливості_Sensitivity'!F13 -> 2737.5 | H43: =G43/G42 -> 0.3125 | K43: The time of readiness for anciliary services (aFRR) | N43: hours/year | O43: 2737.5
C44: Тривалість зарядки | F44: год/рік | G44: =(G20*G37*G38+G26*G37*G39) -> 2737.5 | H44: =G44/G42 -> 0.3125 | K44: The time for recharging | N44: hours/year | O44: 2737.5
C45: Тривалість готовності до надання послуг РПЧ | F45: год/рік | G45: =(G19*G37*G38+G25*G37*G39) -> 3285 | H45: =G45/G42 -> 0.375 | K45: The time of readiness for FCR | N45: hours/year | O45: =G45 -> 3285
C46: Гранична ціна РПЧ, 2024 | F46: дол/МВт | G46: =1339.82/G6*'Аналіз чутливості_Sensitivity'!F8 -> 34.82765792 | K46: Price cap for anciliary services (FCR) | N46: UAH/MW | O46: =G46 -> 34.82765792
C47: Коефіцієнт потужності | G47: 0.9 | K47: Charge loss after providing FCR | N47: % | O47: =G47 -> 0.9
C48: Кількість дозарядок на рік | G48: 12 | K48: Number of recharges per year | O48: =G48 -> 12
C49: Індекс цін виробників 2023-2029 | G49: 1 | K49: Producer price index 2023-2029 | O49: 1
C50: Вартість активації на завантаження літо | F50: грн/МВт*год | G50: =G54*G59*'Аналіз чутливості_Sensitivity'!F11 -> 5250 | K50: The activation price for award, summer | N50: UAH/MWh | O50: 5250
C51: Вартість активації на розвантаження літо | F51: грн/МВт*год | G51: =G54*G61 -> 750 | K51: The activation price for downward, summer | N51: UAH/MWh | O51: 750
C52: Вартість активації на завантаження зима | F52: грн/МВт*год | G52: =G54*G60*'Аналіз чутливості_Sensitivity'!F10 -> 6000 | K52: The activation price for award, winter | N52: UAH/MWh | O52: =G52 -> 6000
C53: Вартість активації на розвантаження зима | F53: грн/МВт*год | G53: =G54*G62*'Аналіз чутливості_Sensitivity'!F7 -> 1500 | K53: The activation price for downward, winter | N53: UAH/MWh | O53: 1500
C54: Ціна електроенергії на РДН (максимальний показник за 2024 рік) | F54: грн/МВт*год | G54: 7500 | K54: DAM price, 2022 | N54: UAH/MWh | O54: 7500
C55: Коефіцієнт потужності літо РПЧ | G55: =182*(G25+G23)/8760 -> 0.3947488584 | H55: не викор. у розрах.
C56: Коефіцієнт потужності зима РПЧ | G56: =(G19+G16)*184/G42 -> 0.2940639269
C57: Коефіцієнт потужності літо аРВЧ | G57: =G23*182/G42 -> 0.1038812785
C58: Коефіцієнт потужності зима аРВЧ | G58: =G17*180/G42 -> 0.2054794521
C59: Коефіцієнт ціни на активацію завантаження літо | G59: 0.7 | K59: Activation for award price factor, summer | O59: 0.7
C60: Коефіцієнт ціни на активацію завантаження зима | G60: 0.8 | K60: Activation for award price factor, winter | O60: 0.8
C61: Коефіцієнт ціни на активацію розвантаження літо | G61: 0.1 | K61: Activation for downward price factor, summer | O61: 0.1
C62: Коефіцієнт ціни на активацію розвантаження зима | G62: 0.2 | K62: Activation for downward price factor, winter | O62: 0.2
B66: ПІДКАЗКА
B68: Можливі факотри отримання техніко-економічного ефекту
C70: 1. | D70: Додатні грошові потоки
D71: Приросні операційні доходи/Додатковий прибуток, отриманий від:
C72: + | D72: збільшення корисного відпуску електроенергії
C73: + | D73: зменшення втрат в мережі навантаження
C74: + | D74: плати за приєднання
C75: + | D75: сдачі старого обладнання на металолом
C76: + | D76: реалізації старого обладнання
C77: + | D77: зменшення кількості ремонтів та техобслуговування
C78: + | D78: зменшення кількості працюючих на підстанції
C79: + | D79: попередження санкцій за недотримання природоохоронного законодавства
C80: + | D80: енергозберігання
C81: + | D81: збільшення тарифного доходу
C83: 2. | D83: Від'ємні грошові потоки
C84: 2.1. | D84: Операційні витрати/втрати на реалізацію проєкту
C85: - | D85: проведення науково-дослідних робіт
C86: - | D86: закупка, доставка, митне оформлення
C87: - | D87: будівельно-монтажні роботи
C88: - | D88: зупинка роботи, яка була викликана необхідністю монтажну додаткового обладнання
C89: - | D89: сертифікація обладнання оформлення необхідних дозволів
C90: - | D90: навчання персоналу
C92: 2.2. | D92: Пиросні операційні витрати
C93: - | D93: скророчення виробітку іншого обладнання при роботі встановленого
C94: - | D94: основні матеріали та енергоресурси, необхідні для роботи обладнання
C95: - | D95: додатковий персонал
C96: - | D96: утилізація відходів
C97: - | D97: підтримка роботи та оновлення програмного забезпечення
C98: - | D98: ТО

Sheet Добовий графік_Daily schedule
A1: ЗИМА
A2: Вид роботи/Type of work | B2: Години доби/Hours of the day
B3: 1 | C3: 2 | D3: 3 | E3: 4 | F3: 5 | G3: 6 | H3: 7 | I3: 8 | J3: 9 | K3: 10 | L3: 11 | M3: 12 | N3: 13 | O3: 14 | P3: 15 | Q3: 16 | R3: 17 | S3: 18 | T3: 19 | U3: 20 | V3: 21 | W3: 22 | X3: 23 | Y3: 24
A4: РПЧ (послуга)/FCR (service) | F4: 5 | G4: 5 | R4: 5 | X4: 5
A5: аРВЧ (послуга+активація)/FRR (service+activation): | H5: 10 | I5: 10 | J5: 10 | K5: 10 | L5: 10 | S5: 10 | T5: 10 | U5: 10 | V5: 10 | W5: 10
A6: завантаження/award | H6: 10 | I6: 10 | J6: 10 | K6: 10 | L6: 10 | S6: 10 | T6: 10 | U6: 10 | V6: 10 | W6: 10
A7: розвантаження/downward
A8: Зарядка/Charging | B8: 10 | C8: 10 | D8: 10 | E8: 10 | M8: 10 | N8: 10 | O8: 10 | P8: 10 | Q8: 10 | Y8: 10
A9: ЛІТО
A10: Вид роботи/Type of work | B10: Години доби/Hours of the day
B11: 1 | C11: 2 | D11: 3 | E11: 4 | F11: 5 | G11: 6 | H11: 7 | I11: 8 | J11: 9 | K11: 10 | L11: 11 | M11: 12 | N11: 13 | O11: 14 | P11: 15 | Q11: 16 | R11: 17 | S11: 18 | T11: 19 | U11: 20 | V11: 21 | W11: 22 | X11: 23 | Y11: 24
A12: РПЧ (послуга)/FCR (service) | B12: 5 | E12: 5 | F12: 5 | G12: 5 | H12: 5 | K12: 5 | L12: 5 | M12: 5 | N12: 5 | R12: 5 | S12: 5 | W12: 5 | X12: 5 | Y12: 5
A13: аРВЧ (послуга+активація)/FRR (service+activation): | I13: 10 | J13: 10 | T13: 10 | U13: 10 | V13: 10
A14: завантаження/award | I14: 10 | J14: 10 | T14: 10 | U14: 10 | V14: 10
A15: розвантаження/downward
A16: Зарядка/Charging | C16: 10 | D16: 10 | O16: 10 | P16: 10 | Q16: 10
A18: ДОХІДНІСТЬ/EARNINGS
A19: Ціна РПЧ/Price FCR | B19: =Припущення_Assumptions!G46 -> 34.82765792 | C19: =B19 -> 34.82765792 | D19: =C19 -> 34.82765792 | E19: 34.82765792 | F19: 34.82765792 | G19: 34.82765792 | H19: 34.82765792 | I19: 34.82765792 | J19: 34.82765792 | K19: 34.82765792 | L19: 34.82765792 | M19: 34.82765792 | N19: 34.82765792 | O19: 34.82765792 | P19: 34.82765792 | Q19: 34.82765792 | R19: 34.82765792 | S19: 34.82765792 | T19: 34.82765792 | U19: 34.82765792 | V19: 34.82765792 | W19: 34.82765792 | X19: 34.82765792 | Y19: 34.82765792
A20: Ціна аРВЧз/Price FRR award | B20: =Припущення_Assumptions!G35 -> 973.39 | C20: 973.39 | D20: =C20 -> 973.39 | E20: 973.39 | F20: 973.39 | G20: 973.39 | H20: 973.39 | I20: 973.39 | J20: 973.39 | K20: 973.39 | L20: 973.39 | M20: 973.39 | N20: 973.39 | O20: 973.39 | P20: 973.39 | Q20: 973.39 | R20: 973.39 | S20: 973.39 | T20: 973.39 | U20: 973.39 | V20: 973.39 | W20: 973.39 | X20: 973.39 | Y20: 973.39
A21: Ціна аРВЧр/Price FRR downward | B21: =Припущення_Assumptions!G34 -> 366.43 | C21: 366.43 | D21: =C21 -> 366.43 | E21: 366.43 | F21: 366.43 | G21: 366.43 | H21: 366.43 | I21: 366.43 | J21: 366.43 | K21: 366.43 | L21: 366.43 | M21: 366.43 | N21: 366.43 | O21: 366.43 | P21: 366.43 | Q21: 366.43 | R21: 366.43 | S21: 366.43 | T21: 366.43 | U21: 366.43 | V21: 366.43 | W21: 366.43 | X21: 366.43 | Y21: 366.43
A22: Ціна аРВЧз активація на БР літо/Price FRR award activation on BM, summer | B22: =Припущення_Assumptions!G50 -> 5250 | C22: 5250 | D22: =C22 -> 5250 | E22: 5250 | F22: 5250 | G22: 5250 | H22: 5250 | I22: 5250 | J22: 5250 | K22: 5250 | L22: 5250 | M22: 5250 | N22: 5250 | O22: 5250 | P22: 5250 | Q22: 5250 | R22: 5250 | S22: 5250 | T22: 5250 | U22: 5250 | V22: 5250 | W22: 5250 | X22: 5250 | Y22: 5250
A23: Ціна аРВЧр активація на БР літо/Price FRR downward activation on BM, summer | B23: =Припущення_Assumptions!G51 -> 750 | C23: 750 | D23: 750 | E23: 750 | F23: 750 | G23: 750 | H23: 750 | I23: 750 | J23: 750 | K23: 750 | L23: 750 | M23: 750 | N23: 750 | O23: 750 | P23: 750 | Q23: 750 | R23: 750 | S23: 750 | T23: 750 | U23: 750 | V23: 750 | W23: 750 | X23: 750 | Y23: 750
A24: Ціна аРВЧз активація на БР зима/Price FRR award activation on BM, winter | B24: =Припущення_Assumptions!G52 -> 6000 | C24: 6000 | D24: =C24 -> 6000 | E24: 6000 | F24: 6000 | G24: 6000 | H24: 6000 | I24: 6000 | J24: 6000 | K24: 6000 | L24: 6000 | M24: 6000 | N24: 6000 | O24: 6000 | P24: 6000 | Q24: 6000 | R24: 6000 | S24: 6000 | T24: 6000 | U24: 6000 | V24: 6000 | W24: 6000 | X24: 6000 | Y24: 6000
A25: Ціна аРВЧр активація на БР зима/Price FRR downward activation on BM, winter | B25: =Припущення_Assumptions!G53 -> 1500 | C25: 1500 | D25: =C25 -> 1500 | E25: 1500 | F25: 1500 | G25: 1500 | H25: 1500 | I25: 1500 | J25: 1500 | K25: 1500 | L25: 1500 | M25: 1500 | N25: 1500 | O25: 1500 | P25: 1500 | Q25: 1500 | R25: 1500 | S25: 1500 | T25: 1500 | U25: 1500 | V25: 1500 | W25: 1500 | X25: 1500 | Y25: 1500
A26: Ціна БР на заряд літо/BM price for charging, summer | B26: =B25 -> 1500 | C26: =C25 -> 1500 | D26: 1500 | E26: 1500 | F26: 1500 | G26: 1500 | H26: 1500 | I26: 1500 | J26: 1500 | K26: 1500 | L26: 1500 | M26: 1500 | N26: 1500 | O26: 1500 | P26: 1500 | Q26: 1500 | R26: 1500 | S26: 1500 | T26: 1500 | U26: 1500 | V26: 1500 | W26: 1500 | X26: 1500 | Y26: 1500
A27: Ціна БР на заряд зима/BM price for charging, winter | B27: =B23 -> 750 | C27: =C23 -> 750 | D27: 750 | E27: 750 | F27: 750 | G27: 750 | H27: 750 | I27: 750 | J27: 750 | K27: 750 | L27: 750 | M27: 750 | N27: 750 | O27: 750 | P27: 750 | Q27: 750 | R27: 750 | S27: 750 | T27: 750 | U27: 750 | V27: 750 | W27: 750 | X27: 750 | Y27: 750
A29: Добовий дохід, тис. грн. Daily income, ths.UAH | B29: =((B4*B19+B6*B20+B6*B24+B7*B21+B7*B25-B8*B27)+(B12*B19+B14*B20+B14*B22+B15*B21+B15*B23-B16*B26))/1000 -> -7.32586171 | C29: =((C4*C19+C6*C20+C6*C24+C7*C21+C7*C25-C8*C27)+(C12*C19+C14*C20+C14*C22+C15*C21+C15*C23-C16*C26))/1000 -> -22.5 | D29: =((D4*D19+D6*D20+D6*D24+D7*D21+D7*D25-D8*D27)+(D12*D19+D14*D20+D14*D22+D15*D21+D15*D23-D16*D26))/1000 -> -22.5 | E29: -7.32586171 | F29: =((F4*F19+F6*F20+F6*F24+F7*F21+F7*F25-F8*F27)+(F12*F19+F14*F20+F14*F22+F15*F21+F15*F23-F16*F26))/1000 -> 0.3482765792 | G29: 0.3482765792 | H29: 69.90803829 | I29: 131.9678 | J29: 131.9678 | K29: 69.90803829 | L29: 69.90803829 | M29: -7.32586171 | N29: -7.32586171 | O29: -22.5 | P29: -22.5 | Q29: -22.5 | R29: 0.3482765792 | S29: 69.90803829 | T29: 131.9678 | U29: 131.9678 | V29: 131.9678 | W29: 69.90803829 | X29: 0.3482765792 | Y29: -7.32586171
A30: Добовий дохід, тис. долл. Daily income, ths.US$ | B30: =B29/Припущення_Assumptions!$G$6 -> -0.1904305098 | C30: =C29/Припущення_Assumptions!$G$6 -> -0.5848713283 | D30: =D29/Припущення_Assumptions!$G$6 -> -0.5848713283 | E30: =E29/Припущення_Assumptions!$G$6 -> -0.1904305098 | F30: =F29/Припущення_Assumptions!$G$6 -> 0.009053199354 | G30: =G29/Припущення_Assumptions!$G$6 -> 0.009053199354 | H30: =H29/Припущення_Assumptions!$G$6 -> 1.81720921 | I30: =I29/Припущення_Assumptions!$G$6 -> 3.43040811 | J30: =J29/Припущення_Assumptions!$G$6 -> 3.43040811 | K30: =K29/Припущення_Assumptions!$G$6 -> 1.81720921 | L30: =L29/Припущення_Assumptions!$G$6 -> 1.81720921 | M30: =M29/Припущення_Assumptions!$G$6 -> -0.1904305098 | N30: =N29/Припущення_Assumptions!$G$6 -> -0.1904305098 | O30: =O29/Припущення_Assumptions!$G$6 -> -0.5848713283 | P30: =P29/Припущення_Assumptions!$G$6 -> -0.5848713283 | Q30: =Q29/Припущення_Assumptions!$G$6 -> -0.5848713283 | R30: =R29/Припущення_Assumptions!$G$6 -> 0.009053199354 | S30: =S29/Припущення_Assumptions!$G$6 -> 1.81720921 | T30: =T29/Припущення_Assumptions!$G$6 -> 3.43040811 | U30: =U29/Припущення_Assumptions!$G$6 -> 3.43040811 | V30: =V29/Припущення_Assumptions!$G$6 -> 3.43040811 | W30: =W29/Припущення_Assumptions!$G$6 -> 1.81720921 | X30: =X29/Припущення_Assumptions!$G$6 -> 0.009053199354 | Y30: =Y29/Припущення_Assumptions!$G$6 -> -0.1904305098
A32: Рівень деградації/Degradation rate | B32: 0.0183
A33: Річний дохід, млн. грн. Annual income, mln.UAH | B33: =SUM(B29:Y29)*(1-B32)*8760/1000 -> 7409.864321
A34: Річний дохід, млн. долл. Annual income, mln.US$ | B34: =B33/Припущення_Assumptions!$G$6 -> 192.6140972

Sheet Грошові потоки _ Cash flows
A3: РОЗРАХУНОК ГРОШОВИХ ПОТОКІВ І ЕКОНОМІЧНОГО ЕФЕКТУ / CALCULATION OF CASH FLOWS AND ECONOMIC EFFECT
N4: =IF(Головна_Summary!H13="Власні кошти",1,0) -> 0
C5: ВХІДНІ ДАННІ / DATA | I5: ПОКАЗНИКИ ЕКОНОМІЧНОЇ ЕФЕКТИВНОСТІ ПРОЕКТУ / INDICATORS OF ECONOMIC EFFICIENCY OF THE PROJECT | P5: ДОДАТКОВА ІНФОРМАЦІЯ ПРО ПРОЕКТ / EXTRA PROJECT INFO
E6: місяць / month | G6: рік / year
C7: Початок витрат за проектом / Start of project expenses | E7: =Головна_Summary!C7 -> 6 | G7: =Головна_Summary!E7 -> 2024 | J7: NPV із залишковою вартістю / with residual value | K7: =AM48+S11 -> 10374214.43 | L7: =Головна_Summary!AD5 -> тис.US$/ ths.US$ | M7: PI | N7: =IF(SUMPRODUCT(I38:AL38,I47:AL47)=0,"-",K7/SUMPRODUCT(I38:AL38,I47:AL47)+1) -> 2579.136179 | P7: Початкова вартість / Initial cost | S7: =Амортизація_Depreciation!AJ5+Амортизація_Depreciation!AJ27 -> 9000 | T7: =Головна_Summary!AD5 -> тис.US$/ ths.US$
C9: Розрахунок грошових потоків на / Cash flow calculation | E9: 15 | G9: років/ years | J9: NPV без залишкової вартості / without residual value | K9: =AM48 -> 6661.638286 | L9: =Головна_Summary!AD5 -> тис.US$/ ths.US$ | M9: DPP | N9: =IF(K7>0,IF(SUM(J51:AL51)=0,"<12",SUM(I51:AL51)),"Не окуповується/ Doesn't pay off") -> 9.944397189 | O9: міс. | P9: Залишкова вартість / Residual value | S9: =IF(E17="Ліквідаційна",IF(S13>S15,S13-(S13-S15)*HLOOKUP(G7+E9,I22:AL53,30),'Грошові потоки _ Cash flows'!S13+('Грошові потоки _ Cash flows'!S15-'Грошові потоки _ Cash flows'!S13)*HLOOKUP(G7+E9,I22:AL53,30)),IF(E17="Подовжена",S17,0)) -> 562.5 | T9: =Головна_Summary!AD5 -> тис.US$/ ths.US$
C11: Ставка дисконтування / Discount rate | E11: 0.155 | G11: % | J11: ROI | K11: =IFERROR(IF(Головна_Summary!H13="Кредитні кошти",(SUMPRODUCT(I33:AL33,I47:AL47)-SUMPRODUCT(I55:AL55,I47:AL47))/SUMPRODUCT(I55:AL55,I47:AL47),IF(Головна_Summary!H13="Власні кошти",(SUMPRODUCT(I33:AL33,I47:AL47)-SUMPRODUCT(I39:AL39,I47:AL47))/SUMPRODUCT(I39:AL39,I47:AL47),(SUMPRODUCT(I33:AL33,I47:AL47)-SUMPRODUCT(I54:AL54,I47:AL47))/SUMPRODUCT(I54:AL54,I47:AL47))),"Н/Д") -> 0.4097964412 | L11: % | M11: PP | N11: =IF(K7>0,IF(SUM(J52:AL52)=0,"<12",SUM(I52:AL52)),"Не окуповується/ Doesn't pay off") -> 9.549261635 | O11: міс. | P11: Дисконтована залишкова вартість / Discounted residual value | S11: =S9*HLOOKUP(E13+E9-1,I22:AL49,24,0)/(1+E11) -> 10367552.79 | T11: =Головна_Summary!AD5 -> тис.US$/ ths.US$
C13: Рік введення в експлуатацію / Year of commissioning | E13: 2024 | G13: рік | K13: 0.2224022019 | L13: % | M13: BCR | N13: =IFERROR(IF(Головна_Summary!H13="Кредитні кошти",(SUMPRODUCT(I25:AL25,I47:AL47)/SUMPRODUCT(I55:AL55,I47:AL47)),IF(Головна_Summary!H13="Власні кошти",(SUMPRODUCT(I25:AL25,I47:AL47)/SUMPRODUCT(I39:AL39,I47:AL47)),(SUMPRODUCT(I25:AL25,I47:AL47)/SUMPRODUCT(I54:AL54,I47:AL47)))),"Н/Д") -> 1.861364608 | P13: Ринкова залишкова /Market residual value | S13: =IF(E15<E9,0,S7*(E15-E9)/E15) -> 562.5 | T13: =Головна_Summary!AD5 -> тис.US$/ ths.US$
C15: Макс.термін експлуатації об'єкта / max. service life | E15: =Припущення_Assumptions!G28 -> 16 | G15: років/ years | P15: Бухгалтерська залишкова / Accounting residual value | S15: =IF(E9<=E15,HLOOKUP(E13+E9-1,Амортизація_Depreciation!F4:AI137,53,FALSE),HLOOKUP(E13+E15-1,Амортизація_Depreciation!F4:AI137,53,FALSE)) -> 1125 | T15: =Головна_Summary!AD5 -> тис.US$/ ths.US$ | U15: =IFERROR(HLOOKUP(P6,'Грошові потоки _ Cash flows'!$A$22:$AL$26,5,FALSE)*Припущення_Assumptions!#REF!*'Тариф ОСП_Tariff'!$W$2,0) -> 0
C17: Залишкова вартість / Residual value | E17: Ліквідаційна | G17: =IF(E17="Ліквідаційна","Liquidation",IF(E17="Подовжена","Elongated","Missing")) -> Liquidation | J17: CAPEX у розрахунку на 1 цикл/CAPEX per 1 cycle | N17: =AM39/Припущення_Assumptions!G27 -> 0.8219178082 | O17: тис.US$/ ths.US$ | P17: Подовжена вартість в пост-прогнозний період / Extended cost in the post-forecast period | S17: =HLOOKUP(E13+E9-1,I22:AL44,21,FALSE)*(1+E19)/(E11-E19) -> 0 | T17: =Головна_Summary!AD5 -> тис.US$/ ths.US$
J18: OPEX у розрахунку на 1 цикл/OPEX per 1 cycle | N18: =AM26/Припущення_Assumptions!G27 -> 0.03218082192 | O18: тис.US$/ ths.US$
C19: Прогноз середньорічної зміни ВГП в період після розрахункових / Forecasted cash flow change | E19: 0 | G19: % | J19: Дохід у розрахунку на 1 цикл/ Income per 1 cycle | N19: =AM25/Припущення_Assumptions!G27 -> 3.279264305 | O19: тис.US$/ ths.US$
A22: =Головна_Summary!A2 -> Energy storage system 10МВт | I22: =G7 -> 2024 | J22: =IF(I22=0,0,IF(($E$13+$E$9-1)>=I22+1,I22+1,0)) -> 2025 | K22: =IF(J22=0,0,IF(($E$13+$E$9-1)>=J22+1,J22+1,0)) -> 2026 | L22: 2027 | M22: 2028 | N22: 2029 | O22: 2030 | P22: 2031 | Q22: 2032 | R22: 2033 | S22: 2034 | T22: 2035 | U22: 2036 | V22: 2037 | W22: 2038 | X22: 0 | Y22: =IF(X22=0,0,IF(($E$13+$E$9-1)>=X22+1,X22+1,0)) -> 0 | Z22: =IF(Y22=0,0,IF(($E$13+$E$9-1)>=Y22+1,Y22+1,0)) -> 0 | AA22: =IF(Z22=0,0,IF(($E$13+$E$9-1)>=Z22+1,Z22+1,0)) -> 0 | AB22: =IF(AA22=0,0,IF(($E$13+$E$9-1)>=AA22+1,AA22+1,0)) -> 0 | AC22: =IF(AB22=0,0,IF(($E$13+$E$9-1)>=AB22+1,AB22+1,0)) -> 0 | AD22: =IF(AC22=0,0,IF(($E$13+$E$9-1)>=AC22+1,AC22+1,0)) -> 0 | AE22: =IF(AD22=0,0,IF(($E$13+$E$9-1)>=AD22+1,AD22+1,0)) -> 0 | AF22: =IF(AE22=0,0,IF(($E$13+$E$9-1)>=AE22+1,AE22+1,0)) -> 0 | AG22: =IF(AF22=0,0,IF(($E$13+$E$9-1)>=AF22+1,AF22+1,0)) -> 0 | AH22: =IF(AG22=0,0,IF(($E$13+$E$9-1)>=AG22+1,AG22+1,0)) -> 0 | AI22: =IF(AH22=0,0,IF(($E$13+$E$9-1)>=AH22+1,AH22+1,0)) -> 0 | AJ22: =IF(AI22=0,0,IF(($E$13+$E$9-1)>=AI22+1,AI22+1,0)) -> 0 | AK22: =IF(AJ22=0,0,IF(($E$13+$E$9-1)>=AJ22+1,AJ22+1,0)) -> 0 | AL22: 0 | AM22: Разом / Total
I23: =IF(I22>=$G$7,COUNT($I$22:I22),0) -> 1 | J23: =IF(J22>=$G$7,COUNT($I$22:J22),0) -> 2 | K23: =IF(K22>=$G$7,COUNT($I$22:K22),0) -> 3 | L23: =IF(L22>=$G$7,COUNT($I$22:L22),0) -> 4 | M23: =IF(M22>=$G$7,COUNT($I$22:M22),0) -> 5 | N23: =IF(N22>=$G$7,COUNT($I$22:N22),0) -> 6 | O23: =IF(O22>=$G$7,COUNT($I$22:O22),0) -> 7 | P23: =IF(P22>=$G$7,COUNT($I$22:P22),0) -> 8 | Q23: =IF(Q22>=$G$7,COUNT($I$22:Q22),0) -> 9 | R23: =IF(R22>=$G$7,COUNT($I$22:R22),0) -> 10 | S23: =IF(S22>=$G$7,COUNT($I$22:S22),0) -> 11 | T23: =IF(T22>=$G$7,COUNT($I$22:T22),0) -> 12 | U23: =IF(U22>=$G$7,COUNT($I$22:U22),0) -> 13 | V23: =IF(V22>=$G$7,COUNT($I$22:V22),0) -> 14 | W23: =IF(W22>=$G$7,COUNT($I$22:W22),0) -> 15 | X23: =IF(X22>=$G$7,COUNT($I$22:X22),0) -> 0 | Y23: =IF(Y22>=$G$7,COUNT($I$22:Y22),0) -> 0 | Z23: =IF(Z22>=$G$7,COUNT($I$22:Z22),0) -> 0 | AA23: =IF(AA22>=$G$7,COUNT($I$22:AA22),0) -> 0 | AB23: =IF(AB22>=$G$7,COUNT($I$22:AB22),0) -> 0 | AC23: =IF(AC22>=$G$7,COUNT($I$22:AC22),0) -> 0 | AD23: =IF(AD22>=$G$7,COUNT($I$22:AD22),0) -> 0 | AE23: =IF(AE22>=$G$7,COUNT($I$22:AE22),0) -> 0 | AF23: =IF(AF22>=$G$7,COUNT($I$22:AF22),0) -> 0 | AG23: =IF(AG22>=$G$7,COUNT($I$22:AG22),0) -> 0 | AH23: =IF(AH22>=$G$7,COUNT($I$22:AH22),0) -> 0 | AI23: =IF(AI22>=$G$7,COUNT($I$22:AI22),0) -> 0 | AJ23: =IF(AJ22>=$G$7,COUNT($I$22:AJ22),0) -> 0 | AK23: =IF(AK22>=$G$7,COUNT($I$22:AK22),0) -> 0 | AL23: =IF(AL22>=$G$7,COUNT($I$22:AL22),0) -> 0
A24: 1. | B24: Операційні грошові потоки (CFO)
A25: 1.1. | B25: + | C25: Операційні доходи / Operating income | I25: =IF(AND(I22>=$E$13,I22<=($E$13+$E$15)-1),HLOOKUP(I22,CFO!$B$4:$AL$6,2,FALSE),0) -> 0 | J25: =IF(AND(J22>=$E$13,J22<=($E$13+$E$15)-1),HLOOKUP(J22,CFO!$B$4:$AL$6,2,FALSE),0) -> 1922.068785 | K25: =IF(AND(K22>=$E$13,K22<=($E$13+$E$15)-1),HLOOKUP(K22,CFO!$B$4:$AL$6,2,FALSE),0) -> 1886.99103 | L25: =IF(AND(L22>=$E$13,L22<=($E$13+$E$15)-1),HLOOKUP(L22,CFO!$B$4:$AL$6,2,FALSE),0) -> 1852.553443 | M25: =IF(AND(M22>=$E$13,M22<=($E$13+$E$15)-1),HLOOKUP(M22,CFO!$B$4:$AL$6,2,FALSE),0) -> 1818.744343 | N25: =IF(AND(N22>=$E$13,N22<=($E$13+$E$15)-1),HLOOKUP(N22,CFO!$B$4:$AL$6,2,FALSE),0) -> 1785.552259 | O25: =IF(AND(O22>=$E$13,O22<=($E$13+$E$15)-1),HLOOKUP(O22,CFO!$B$4:$AL$6,2,FALSE),0) -> 1752.96593 | P25: =IF(AND(P22>=$E$13,P22<=($E$13+$E$15)-1),HLOOKUP(P22,CFO!$B$4:$AL$6,2,FALSE),0) -> 1720.974302 | Q25: =IF(AND(Q22>=$E$13,Q22<=($E$13+$E$15)-1),HLOOKUP(Q22,CFO!$B$4:$AL$6,2,FALSE),0) -> 1689.566521 | R25: =IF(AND(R22>=$E$13,R22<=($E$13+$E$15)-1),HLOOKUP(R22,CFO!$B$4:$AL$6,2,FALSE),0) -> 1658.731932 | S25: =IF(AND(S22>=$E$13,S22<=($E$13+$E$15)-1),HLOOKUP(S22,CFO!$B$4:$AL$6,2,FALSE),0) -> 1628.460074 | T25: =IF(AND(T22>=$E$13,T22<=($E$13+$E$15)-1),HLOOKUP(T22,CFO!$B$4:$AL$6,2,FALSE),0) -> 1598.740678 | U25: =IF(AND(U22>=$E$13,U22<=($E$13+$E$15)-1),HLOOKUP(U22,CFO!$B$4:$AL$6,2,FALSE),0) -> 1569.56366 | V25: =IF(AND(V22>=$E$13,V22<=($E$13+$E$15)-1),HLOOKUP(V22,CFO!$B$4:$AL$6,2,FALSE),0) -> 1540.919124 | W25: =IF(AND(W22>=$E$13,W22<=($E$13+$E$15)-1),HLOOKUP(W22,CFO!$B$4:$AL$6,2,FALSE),0) -> 1512.79735 | X25: =IF(AND(X22>=$E$13,X22<=($E$13+$E$15)-1),HLOOKUP(X22,CFO!$B$4:$AL$6,2,FALSE),0) -> 0 | Y25: =IF(AND(Y22>=$E$13,Y22<=($E$13+$E$15)-1),HLOOKUP(Y22,CFO!$B$4:$AL$6,2,FALSE),0) -> 0 | Z25: =IF(AND(Z22>=$E$13,Z22<=($E$13+$E$15)-1),HLOOKUP(Z22,CFO!$B$4:$AL$6,2,FALSE),0) -> 0 | AA25: =IF(AND(AA22>=$E$13,AA22<=($E$13+$E$15)-1),HLOOKUP(AA22,CFO!$B$4:$AL$6,2,FALSE),0) -> 0 | AB25: =IF(AND(AB22>=$E$13,AB22<=($E$13+$E$15)-1),HLOOKUP(AB22,CFO!$B$4:$AL$6,2,FALSE),0) -> 0 | AC25: =IF(AND(AC22>=$E$13,AC22<=($E$13+$E$15)-1),HLOOKUP(AC22,CFO!$B$4:$AL$6,2,FALSE),0) -> 0 | AD25: =IF(AND(AD22>=$E$13,AD22<=($E$13+$E$15)-1),HLOOKUP(AD22,CFO!$B$4:$AL$6,2,FALSE),0) -> 0 | AE25: =IF(AND(AE22>=$E$13,AE22<=($E$13+$E$15)-1),HLOOKUP(AE22,CFO!$B$4:$AL$6,2,FALSE),0) -> 0 | AF25: =IF(AND(AF22>=$E$13,AF22<=($E$13+$E$15)-1),HLOOKUP(AF22,CFO!$B$4:$AL$6,2,FALSE),0) -> 0 | AG25: =IF(AND(AG22>=$E$13,AG22<=($E$13+$E$15)-1),HLOOKUP(AG22,CFO!$B$4:$AL$6,2,FALSE),0) -> 0 | AH25: =IF(AND(AH22>=$E$13,AH22<=($E$13+$E$15)-1),HLOOKUP(AH22,CFO!$B$4:$AL$6,2,FALSE),0) -> 0 | AI25: =IF(AND(AI22>=$E$13,AI22<=($E$13+$E$15)-1),HLOOKUP(AI22,CFO!$B$4:$AL$6,2,FALSE),0) -> 0 | AJ25: =IF(AND(AJ22>=$E$13,AJ22<=($E$13+$E$15)-1),HLOOKUP(AJ22,CFO!$B$4:$AL$6,2,FALSE),0) -> 0 | AK25: =IF(AND(AK22>=$E$13,AK22<=($E$13+$E$15)-1),HLOOKUP(AK22,CFO!$B$4:$AL$6,2,FALSE),0) -> 0 | AL25: =IF(AND(AL22>=$E$13,AL22<=($E$13+$E$15)-1),HLOOKUP(AL22,CFO!$B$4:$AL$6,2,FALSE),0) -> 0 | AM25: =SUM(I25:AL25) -> 23938.62943
A26: 1.2. | B26: - | C26: Операційні витрати / Operating expenses | I26: =IF(AND(I22>=$E$13,I22<=($E$13+$E$15)-1),HLOOKUP(I22,CFO!B4:AL6,3,FALSE),0) -> 0 | J26: =IF(AND(J22>=$E$13,J22<=($E$13+$E$15)-1),HLOOKUP(J22,CFO!C4:AM6,3,FALSE),0) -> 16.78 | K26: =IF(AND(K22>=$E$13,K22<=($E$13+$E$15)-1),HLOOKUP(K22,CFO!D4:AN6,3,FALSE),0) -> 16.78 | L26: =IF(AND(L22>=$E$13,L22<=($E$13+$E$15)-1),HLOOKUP(L22,CFO!E4:AO6,3,FALSE),0) -> 16.78 | M26: =IF(AND(M22>=$E$13,M22<=($E$13+$E$15)-1),HLOOKUP(M22,CFO!F4:AP6,3,FALSE),0) -> 16.78 | N26: =IF(AND(N22>=$E$13,N22<=($E$13+$E$15)-1),HLOOKUP(N22,CFO!G4:AQ6,3,FALSE),0) -> 16.78 | O26: =IF(AND(O22>=$E$13,O22<=($E$13+$E$15)-1),HLOOKUP(O22,CFO!H4:AR6,3,FALSE),0) -> 16.78 | P26: =IF(AND(P22>=$E$13,P22<=($E$13+$E$15)-1),HLOOKUP(P22,CFO!I4:AS6,3,FALSE),0) -> 16.78 | Q26: =IF(AND(Q22>=$E$13,Q22<=($E$13+$E$15)-1),HLOOKUP(Q22,CFO!J4:AT6,3,FALSE),0) -> 16.78 | R26: =IF(AND(R22>=$E$13,R22<=($E$13+$E$15)-1),HLOOKUP(R22,CFO!K4:AU6,3,FALSE),0) -> 16.78 | S26: =IF(AND(S22>=$E$13,S22<=($E$13+$E$15)-1),HLOOKUP(S22,CFO!L4:AV6,3,FALSE),0) -> 16.78 | T26: =IF(AND(T22>=$E$13,T22<=($E$13+$E$15)-1),HLOOKUP(T22,CFO!M4:AW6,3,FALSE),0) -> 16.78 | U26: =IF(AND(U22>=$E$13,U22<=($E$13+$E$15)-1),HLOOKUP(U22,CFO!N4:AX6,3,FALSE),0) -> 16.78 | V26: =IF(AND(V22>=$E$13,V22<=($E$13+$E$15)-1),HLOOKUP(V22,CFO!O4:AY6,3,FALSE),0) -> 16.78 | W26: =IF(AND(W22>=$E$13,W22<=($E$13+$E$15)-1),HLOOKUP(W22,CFO!P4:AZ6,3,FALSE),0) -> 16.78 | X26: =IF(AND(X22>=$E$13,X22<=($E$13+$E$15)-1),HLOOKUP(X22,CFO!Q4:BA6,3,FALSE),0) -> 0 | Y26: =IF(AND(Y22>=$E$13,Y22<=($E$13+$E$15)-1),HLOOKUP(Y22,CFO!R4:BB6,3,FALSE),0) -> 0 | Z26: =IF(AND(Z22>=$E$13,Z22<=($E$13+$E$15)-1),HLOOKUP(Z22,CFO!S4:BC6,3,FALSE),0) -> 0 | AA26: =IF(AND(AA22>=$E$13,AA22<=($E$13+$E$15)-1),HLOOKUP(AA22,CFO!T4:BD6,3,FALSE),0) -> 0 | AB26: =IF(AND(AB22>=$E$13,AB22<=($E$13+$E$15)-1),HLOOKUP(AB22,CFO!U4:BE6,3,FALSE),0) -> 0 | AC26: =IF(AND(AC22>=$E$13,AC22<=($E$13+$E$15)-1),HLOOKUP(AC22,CFO!V4:BF6,3,FALSE),0) -> 0 | AD26: =IF(AND(AD22>=$E$13,AD22<=($E$13+$E$15)-1),HLOOKUP(AD22,CFO!W4:BG6,3,FALSE),0) -> 0 | AE26: =IF(AND(AE22>=$E$13,AE22<=($E$13+$E$15)-1),HLOOKUP(AE22,CFO!X4:BH6,3,FALSE),0) -> 0 | AF26: =IF(AND(AF22>=$E$13,AF22<=($E$13+$E$15)-1),HLOOKUP(AF22,CFO!Y4:BI6,3,FALSE),0) -> 0 | AG26: =IF(AND(AG22>=$E$13,AG22<=($E$13+$E$15)-1),HLOOKUP(AG22,CFO!Z4:BJ6,3,FALSE),0) -> 0 | AH26: =IF(AND(AH22>=$E$13,AH22<=($E$13+$E$15)-1),HLOOKUP(AH22,CFO!AA4:BK6,3,FALSE),0) -> 0 | AI26: =IF(AND(AI22>=$E$13,AI22<=($E$13+$E$15)-1),HLOOKUP(AI22,CFO!AB4:BL6,3,FALSE),0) -> 0 | AJ26: =IF(AND(AJ22>=$E$13,AJ22<=($E$13+$E$15)-1),HLOOKUP(AJ22,CFO!AC4:BM6,3,FALSE),0) -> 0 | AK26: =IF(AND(AK22>=$E$13,AK22<=($E$13+$E$15)-1),HLOOKUP(AK22,CFO!AD4:BN6,3,FALSE),0) -> 0 | AL26: =IF(AND(AL22>=$E$13,AL22<=($E$13+$E$15)-1),HLOOKUP(AL22,CFO!AE4:BO6,3,FALSE),0) -> 0 | AM26: =SUM(I26:AL26) -> 234.92
C28: Операційний прибуток / Operating profit | I28: =I25-I26 -> 0 | J28: =J25-J26 -> 1905.288785 | K28: =K25-K26 -> 1870.21103 | L28: =L25-L26 -> 1835.773443 | M28: 1801.964343 | N28: 1768.772259 | O28: 1736.18593 | P28: 1704.194302 | Q28: 1672.786521 | R28: 1641.951932 | S28: 1611.680074 | T28: 1581.960678 | U28: 1552.78366 | V28: 1524.139124 | W28: 1496.01735 | X28: =X25-X26 -> 0 | Y28: =Y25-Y26 -> 0 | Z28: =Z25-Z26 -> 0 | AA28: 0 | AB28: 0 | AC28: 0 | AD28: 0 | AE28: 0 | AF28: 0 | AG28: 0 | AH28: 0 | AI28: 0 | AJ28: 0 | AK28: 0 | AL28: 0 | AM28: =SUM(I28:AL28) -> 23703.70943
C30: Амортизація / Depretiation | I30: =IF(I22=0,0,Амортизація_Depreciation!F115) -> 0 | J30: =IF(J22=0,0,Амортизація_Depreciation!G115) -> 562.5 | K30: =IF(K22=0,0,Амортизація_Depreciation!H115) -> 562.5 | L30: =IF(L22=0,0,Амортизація_Depreciation!I115) -> 562.5 | M30: =IF(M22=0,0,Амортизація_Depreciation!J115) -> 562.5 | N30: =IF(N22=0,0,Амортизація_Depreciation!K115) -> 562.5 | O30: =IF(O22=0,0,Амортизація_Depreciation!L115) -> 562.5 | P30: =IF(P22=0,0,Амортизація_Depreciation!M115) -> 562.5 | Q30: =IF(Q22=0,0,Амортизація_Depreciation!N115) -> 562.5 | R30: =IF(R22=0,0,Амортизація_Depreciation!O115) -> 562.5 | S30: =IF(S22=0,0,Амортизація_Depreciation!P115) -> 562.5 | T30: =IF(T22=0,0,Амортизація_Depreciation!Q115) -> 562.5 | U30: =IF(U22=0,0,Амортизація_Depreciation!R115) -> 562.5 | V30: =IF(V22=0,0,Амортизація_Depreciation!S115) -> 562.5 | W30: =IF(W22=0,0,Амортизація_Depreciation!T115) -> 562.5 | X30: =IF(X22=0,0,Амортизація_Depreciation!U115) -> 0 | Y30: =IF(Y22=0,0,Амортизація_Depreciation!V115) -> 0 | Z30: =IF(Z22=0,0,Амортизація_Depreciation!W115) -> 0 | AA30: =IF(AA22=0,0,Амортизація_Depreciation!X115) -> 0 | AB30: =IF(AB22=0,0,Амортизація_Depreciation!Y115) -> 0 | AC30: =IF(AC22=0,0,Амортизація_Depreciation!Z115) -> 0 | AD30: =IF(AD22=0,0,Амортизація_Depreciation!AA115) -> 0 | AE30: =IF(AE22=0,0,Амортизація_Depreciation!AB115) -> 0 | AF30: =IF(AF22=0,0,Амортизація_Depreciation!AC115) -> 0 | AG30: =IF(AG22=0,0,Амортизація_Depreciation!AD115) -> 0 | AH30: =IF(AH22=0,0,Амортизація_Depreciation!AE115) -> 0 | AI30: =IF(AI22=0,0,Амортизація_Depreciation!AF115) -> 0 | AJ30: =IF(AJ22=0,0,Амортизація_Depreciation!AG115) -> 0 | AK30: =IF(AK22=0,0,Амортизація_Depreciation!AH115) -> 0 | AL30: =IF(AL22=0,0,Амортизація_Depreciation!AI115) -> 0 | AM30: =SUM(I30:AL30) -> 7875
B32: - | C32: Податок на прибуток від реалізації проекту з поправкою на амортизацію / Income tax on project implementation adjusted for depreciation | I32: =IF(I28<=0,0,(I28-I36-I30)*IF(I22=0,0,I53)) -> 0 | J32: =IF(J28<=0,0,(J28-J36-J30)*IF(J22=0,0,J53)) -> 136.7019813 | K32: 152.5129853 | L32: 171.8142198 | M32: 191.2285818 | N32: 210.7540066 | O32: 211.2634674 | P32: 205.5049743 | Q32: 199.8515738 | R32: 194.3013477 | S32: 188.8524133 | T32: 183.502922 | U32: 178.2510589 | V32: 173.0950422 | W32: 168.0331229 | X32: 0 | Y32: 0 | Z32: 0 | AA32: 0 | AB32: 0 | AC32: 0 | AD32: 0 | AE32: 0 | AF32: 0 | AG32: 0 | AH32: 0 | AI32: 0 | AJ32: 0 | AK32: 0 | AL32: 0 | AM32: =SUM(I32:AL32) -> 2565.667697
C33: Приросний прибуток після сплати податків / Income after taxes | I33: =I25-I26-I36-I32 -> -150 | J33: =J25-J26-J36-J32 -> 1185.25347 | K33: =K25-K26-K36-K32 -> 1257.281378 | L33: 1345.209224 | M33: 1433.652428 | N33: 1522.601586 | O33: 1524.922463 | P33: 1498.689328 | Q33: 1472.934947 | R33: 1447.650584 | S33: =S25-S26-S36-S32 -> 1422.827661 | T33: 1398.457756 | U33: 1374.532602 | V33: 1351.044081 | W33: 1327.984227 | X33: 0 | Y33: 0 | Z33: 0 | AA33: 0 | AB33: 0 | AC33: 0 | AD33: 0 | AE33: 0 | AF33: 0 | AG33: 0 | AH33: 0 | AI33: 0 | AJ33: 0 | AK33: 0 | AL33: 0 | AM33: =SUM(I33:AL33) -> 19413.04173
A35: 3. | B35: Фінансовий грошовий потік (CFF)
A36: 3.1. | B36: - | C36: Відсотки за кредит / Interests | I36: =IFERROR(IF(CFF!E25=0,0,IF(I22=0,0,HLOOKUP(I22,CFF!$B$25:$CH$34,10,FALSE))),0) -> 150 | J36: =IFERROR(IF(CFF!G25=0,0,IF(J22=0,0,HLOOKUP(J22,CFF!$B$25:$CH$34,10,FALSE))),0) -> 583.3333333 | K36: =IFERROR(IF(CFF!I25=0,0,IF(K22=0,0,HLOOKUP(K22,CFF!$B$25:$CH$34,10,FALSE))),0) -> 460.4166667 | L36: =IF(CFF!K25=0,0,IF(L22=0,0,HLOOKUP(L22,CFF!$B$25:$CH$34,10,FALSE))) -> 318.75 | M36: =IF(CFF!M25=0,0,IF(M22=0,0,HLOOKUP(M22,CFF!$B$25:$CH$34,10,FALSE))) -> 177.0833333 | N36: =IF(CFF!O25=0,0,IF(N22=0,0,HLOOKUP(N22,CFF!$B$25:$CH$34,10,FALSE))) -> 35.41666667 | O36: =IF(CFF!Q25=0,0,IF(O22=0,0,HLOOKUP(O22,CFF!$B$25:$CH$34,10,FALSE))) -> 0 | P36: =IF(CFF!S25=0,0,IF(P22=0,0,HLOOKUP(P22,CFF!$B$25:$CH$34,10,FALSE))) -> 0 | Q36: =IF(CFF!U25=0,0,IF(Q22=0,0,HLOOKUP(Q22,CFF!$B$25:$CH$34,10,FALSE))) -> 0 | R36: =IF(CFF!W25=0,0,IF(R22=0,0,HLOOKUP(R22,CFF!$B$25:$CH$34,10,FALSE))) -> 0 | S36: =IF(CFF!Y25=0,0,IF(S22=0,0,HLOOKUP(S22,CFF!$B$25:$CH$34,10,FALSE))) -> 0 | T36: =IF(CFF!AA25=0,0,IF(T22=0,0,HLOOKUP(T22,CFF!$B$25:$CH$34,10,FALSE))) -> 0 | U36: =IFERROR(IF(CFF!AC25=0,0,IF(U22=0,0,HLOOKUP(U22,CFF!$B$25:$CH$34,10,FALSE))),0) -> 0 | V36: =IFERROR(IF(CFF!AE25=0,0,IF(V22=0,0,HLOOKUP(V22,CFF!$B$25:$CH$34,10,FALSE))),0) -> 0 | W36: =IFERROR(IF(CFF!AG25=0,0,IF(W22=0,0,HLOOKUP(W22,CFF!$B$25:$CH$34,10,FALSE))),0) -> 0 | X36: =IFERROR(IF(CFF!AI25=0,0,IF(X22=0,0,HLOOKUP(X22,CFF!$B$25:$CH$34,10,FALSE))),0) -> 0 | Y36: =IFERROR(IF(CFF!AI25=0,0,IF(Y22=0,0,HLOOKUP(Y22,CFF!$B$25:$CH$34,10,FALSE))),0) -> 0 | Z36: =IFERROR(IF(CFF!AM25=0,0,IF(Z22=0,0,HLOOKUP(Z22,CFF!$B$25:$CH$34,10,FALSE))),0) -> 0 | AA36: =IFERROR(IF(CFF!AO25=0,0,IF(AA22=0,0,HLOOKUP(AA22,CFF!$B$25:$CH$34,10,FALSE))),0) -> 0 | AB36: =IFERROR(IF(CFF!AQ25=0,0,IF(AB22=0,0,HLOOKUP(AB22,CFF!$B$25:$CH$34,10,FALSE))),0) -> 0 | AC36: =IF(CFF!AS25=0,0,IF(AC22=0,0,HLOOKUP(AC22,CFF!$B$25:$CH$34,10,FALSE))) -> 0 | AD36: =IF(CFF!AU25=0,0,IF(AD22=0,0,HLOOKUP(AD22,CFF!$B$25:$CH$34,10,FALSE))) -> 0 | AE36: =IF(CFF!AW25=0,0,IF(AE22=0,0,HLOOKUP(AE22,CFF!$B$25:$CH$34,10,FALSE))) -> 0 | AF36: =IF(CFF!AY25=0,0,IF(AF22=0,0,HLOOKUP(AF22,CFF!$B$25:$CH$34,10,FALSE))) -> 0 | AG36: =IF(CFF!BA25=0,0,IF(AG22=0,0,HLOOKUP(AG22,CFF!$B$25:$CH$34,10,FALSE))) -> 0 | AH36: =IF(CFF!BC25=0,0,IF(AH22=0,0,HLOOKUP(AH22,CFF!$B$25:$CH$34,10,FALSE))) -> 0 | AI36: =IF(CFF!BE25=0,0,IF(AI22=0,0,HLOOKUP(AI22,CFF!$B$25:$CH$34,10,FALSE))) -> 0 | AJ36: =IF(CFF!BG25=0,0,IF(AJ22=0,0,HLOOKUP(AJ22,CFF!$B$25:$CH$34,10,FALSE))) -> 0 | AK36: =IF(CFF!BI25=0,0,IF(AK22=0,0,HLOOKUP(AK22,CFF!$B$25:$CH$34,10,FALSE))) -> 0 | AL36: =IF(CFF!BK25=0,0,IF(AL22=0,0,HLOOKUP(AL22,CFF!$B$25:$CH$34,10,FALSE))) -> 0 | AM36: =SUM(I36:AL36) -> 1725
A38: 4. | B38: Інвестиційний грошовий потік (CFI) | I38: =I39+I42 -> 0 | J38: =J39+J42 -> 1041.666667 | K38: 1416.666667 | L38: 1416.666667 | M38: 1416.666667 | N38: 708.3333333 | O38: 0 | P38: 0 | Q38: 0 | R38: 0 | S38: 0 | T38: 0 | U38: 0 | V38: 0 | W38: 0 | X38: 0 | Y38: 0 | Z38: 0 | AA38: 0 | AB38: 0 | AC38: 0 | AD38: 0 | AE38: 0 | AF38: 0 | AG38: 0 | AH38: 0 | AI38: 0 | AJ38: 0 | AK38: 0 | AL38: 0
A39: 4.1. | B39: - | C39: Бюджет проекту / Project budjet | I39: =(I40+I41)*'Аналіз чутливості_Sensitivity'!F9 -> 0 | J39: =(J40+J41)*'Аналіз чутливості_Sensitivity'!F9 -> 1041.666667 | K39: =(K40+K41)*'Аналіз чутливості_Sensitivity'!F9 -> 1416.666667 | L39: =(L40+L41)*'Аналіз чутливості_Sensitivity'!F9 -> 1416.666667 | M39: =(M40+M41)*'Аналіз чутливості_Sensitivity'!F9 -> 1416.666667 | N39: =(N40+N41)*'Аналіз чутливості_Sensitivity'!F9 -> 708.3333333 | O39: =(O40+O41)*'Аналіз чутливості_Sensitivity'!F9 -> 0 | P39: =(P40+P41)*'Аналіз чутливості_Sensitivity'!F9 -> 0 | Q39: =(Q40+Q41)*'Аналіз чутливості_Sensitivity'!F9 -> 0 | R39: =(R40+R41)*'Аналіз чутливості_Sensitivity'!F9 -> 0 | S39: =(S40+S41)*'Аналіз чутливості_Sensitivity'!F9 -> 0 | T39: =(T40+T41)*'Аналіз чутливості_Sensitivity'!F9 -> 0 | U39: =(U40+U41)*'Аналіз чутливості_Sensitivity'!F9 -> 0 | V39: =(V40+V41)*'Аналіз чутливості_Sensitivity'!F9 -> 0 | W39: =(W40+W41)*'Аналіз чутливості_Sensitivity'!F9 -> 0 | X39: =(X40+X41)*'Аналіз чутливості_Sensitivity'!F9 -> 0 | Y39: =Y40+Y41 -> 0 | Z39: 0 | AA39: 0 | AB39: 0 | AC39: 0 | AD39: 0 | AE39: 0 | AF39: 0 | AG39: 0 | AH39: 0 | AI39: 0 | AJ39: 0 | AK39: 0 | AL39: 0 | AM39: =SUM(I39:AL39) -> 6000
A40: 4.1.1. | C40: Кредитні кошти/Loans | I40: =IFERROR(IF(Головна_Summary!$C$5="Погашення тіла кредиту",HLOOKUP(I22,CFF!$E$25:$CH$45,11,FALSE),HLOOKUP(I22,CFF!$E$25:$CH$45,12,FALSE)),0) -> 0 | J40: =IFERROR(IF(Головна_Summary!$C$5="Погашення тіла кредиту",HLOOKUP(J22,CFF!$E$25:$CH$45,11,FALSE),HLOOKUP(J22,CFF!$E$25:$CH$45,12,FALSE)),0) -> 1041.666667 | K40: =IFERROR(IF(Головна_Summary!$C$5="Погашення тіла кредиту",HLOOKUP(K22,CFF!$E$25:$CH$45,11,FALSE),HLOOKUP(K22,CFF!$E$25:$CH$45,12,FALSE)),0) -> 1416.666667 | L40: =IFERROR(IF(Головна_Summary!$C$5="Погашення тіла кредиту",HLOOKUP(L22,CFF!$E$25:$CH$45,11,FALSE),HLOOKUP(L22,CFF!$E$25:$CH$45,12,FALSE)),0) -> 1416.666667 | M40: =IFERROR(IF(Головна_Summary!$C$5="Погашення тіла кредиту",HLOOKUP(M22,CFF!$E$25:$CH$45,11,FALSE),HLOOKUP(M22,CFF!$E$25:$CH$45,12,FALSE)),0) -> 1416.666667 | N40: =IFERROR(IF(Головна_Summary!$C$5="Погашення тіла кредиту",HLOOKUP(N22,CFF!$E$25:$CH$45,11,FALSE),HLOOKUP(N22,CFF!$E$25:$CH$45,12,FALSE)),0) -> 708.3333333 | O40: =IFERROR(IF(Головна_Summary!$C$5="Погашення тіла кредиту",HLOOKUP(O22,CFF!$E$25:$CH$45,11,FALSE),HLOOKUP(O22,CFF!$E$25:$CH$45,12,FALSE)),0) -> 0 | P40: =IFERROR(IF(Головна_Summary!$C$5="Погашення тіла кредиту",HLOOKUP(P22,CFF!$E$25:$CH$45,11,FALSE),HLOOKUP(P22,CFF!$E$25:$CH$45,12,FALSE)),0) -> 0 | Q40: =IFERROR(IF(Головна_Summary!$C$5="Погашення тіла кредиту",HLOOKUP(Q22,CFF!$E$25:$CH$45,11,FALSE),HLOOKUP(Q22,CFF!$E$25:$CH$45,12,FALSE)),0) -> 0 | R40: =IFERROR(IF(Головна_Summary!$C$5="Погашення тіла кредиту",HLOOKUP(R22,CFF!$E$25:$CH$45,11,FALSE),HLOOKUP(R22,CFF!$E$25:$CH$45,12,FALSE)),0) -> 0 | S40: =IFERROR(IF(Головна_Summary!$C$5="Погашення тіла кредиту",HLOOKUP(S22,CFF!$E$25:$CH$45,11,FALSE),HLOOKUP(S22,CFF!$E$25:$CH$45,12,FALSE)),0) -> 0 | T40: =IFERROR(IF(Головна_Summary!$C$5="Погашення тіла кредиту",HLOOKUP(T22,CFF!$E$25:$CH$45,11,FALSE),HLOOKUP(T22,CFF!$E$25:$CH$45,12,FALSE)),0) -> 0 | U40: =IFERROR(IF(Головна_Summary!$C$5="Погашення тіла кредиту",HLOOKUP(U22,CFF!$E$25:$CH$45,11,FALSE),HLOOKUP(U22,CFF!$E$25:$CH$45,12,FALSE)),0) -> 0 | V40: =IFERROR(IF(Головна_Summary!$C$5="Погашення тіла кредиту",HLOOKUP(V22,CFF!$E$25:$CH$45,11,FALSE),HLOOKUP(V22,CFF!$E$25:$CH$45,12,FALSE)),0) -> 0 | W40: =IFERROR(IF(Головна_Summary!$C$5="Погашення тіла кредиту",HLOOKUP(W22,CFF!$E$25:$CH$45,11,FALSE),HLOOKUP(W22,CFF!$E$25:$CH$45,12,FALSE)),0) -> 0 | X40: =IFERROR(IF(Головна_Summary!$C$5="Погашення тіла кредиту",HLOOKUP(X22,CFF!$E$25:$CH$45,11,FALSE),HLOOKUP(X22,CFF!$E$25:$CH$45,12,FALSE)),0) -> 0 | Y40: =IFERROR(IF(Головна_Summary!$C$5="Погашення тіла кредиту",HLOOKUP(Y22,CFF!$E$25:$CH$45,11,FALSE),HLOOKUP(Y22,CFF!$E$25:$CH$45,12,FALSE)),0) -> 0 | Z40: =IFERROR(IF(Головна_Summary!$C$5="Погашення тіла кредиту",HLOOKUP(Z22,CFF!$E$25:$CH$45,11,FALSE),HLOOKUP(Z22,CFF!$E$25:$CH$45,12,FALSE)),0) -> 0 | AA40: =IFERROR(IF(Головна_Summary!$C$5="Погашення тіла кредиту",HLOOKUP(AA22,CFF!$E$25:$CH$45,11,FALSE),HLOOKUP(AA22,CFF!$E$25:$CH$45,12,FALSE)),0) -> 0 | AB40: =IFERROR(IF(Головна_Summary!$C$5="Погашення тіла кредиту",HLOOKUP(AB22,CFF!$E$25:$CH$45,11,FALSE),HLOOKUP(AB22,CFF!$E$25:$CH$45,12,FALSE)),0) -> 0 | AC40: =IFERROR(IF(Головна_Summary!$C$5="Погашення тіла кредиту",HLOOKUP(AC22,CFF!$E$25:$CH$45,11,FALSE),HLOOKUP(AC22,CFF!$E$25:$CH$45,12,FALSE)),0) -> 0 | AD40: =IFERROR(IF(Головна_Summary!$C$5="Погашення тіла кредиту",HLOOKUP(AD22,CFF!$E$25:$CH$45,11,FALSE),HLOOKUP(AD22,CFF!$E$25:$CH$45,12,FALSE)),0) -> 0 | AE40: =IFERROR(IF(Головна_Summary!$C$5="Погашення тіла кредиту",HLOOKUP(AE22,CFF!$E$25:$CH$45,11,FALSE),HLOOKUP(AE22,CFF!$E$25:$CH$45,12,FALSE)),0) -> 0 | AF40: =IFERROR(IF(Головна_Summary!$C$5="Погашення тіла кредиту",HLOOKUP(AF22,CFF!$E$25:$CH$45,11,FALSE),HLOOKUP(AF22,CFF!$E$25:$CH$45,12,FALSE)),0) -> 0 | AG40: =IFERROR(IF(Головна_Summary!$C$5="Погашення тіла кредиту",HLOOKUP(AG22,CFF!$E$25:$CH$45,11,FALSE),HLOOKUP(AG22,CFF!$E$25:$CH$45,12,FALSE)),0) -> 0 | AH40: =IFERROR(IF(Головна_Summary!$C$5="Погашення тіла кредиту",HLOOKUP(AH22,CFF!$E$25:$CH$45,11,FALSE),HLOOKUP(AH22,CFF!$E$25:$CH$45,12,FALSE)),0) -> 0 | AI40: =IFERROR(IF(Головна_Summary!$C$5="Погашення тіла кредиту",HLOOKUP(AI22,CFF!$E$25:$CH$45,11,FALSE),HLOOKUP(AI22,CFF!$E$25:$CH$45,12,FALSE)),0) -> 0 | AJ40: =IFERROR(IF(Головна_Summary!$C$5="Погашення тіла кредиту",HLOOKUP(AJ22,CFF!$E$25:$CH$45,11,FALSE),HLOOKUP(AJ22,CFF!$E$25:$CH$45,12,FALSE)),0) -> 0 | AK40: =IFERROR(IF(Головна_Summary!$C$5="Погашення тіла кредиту",HLOOKUP(AK22,CFF!$E$25:$CH$45,11,FALSE),HLOOKUP(AK22,CFF!$E$25:$CH$45,12,FALSE)),0) -> 0 | AL40: =IFERROR(IF(Головна_Summary!$C$5="Погашення тіла кредиту",HLOOKUP(AL22,CFF!$E$25:$CH$45,11,FALSE),HLOOKUP(AL22,CFF!$E$25:$CH$45,12,FALSE)),0) -> 0
A41: 4.1.2. | C41: Власні кошти/ Own fonds | I41: =IFERROR(HLOOKUP(I22,'План фінансування_Funding plan'!$C$1:$BH$7,7,FALSE),0) -> 0 | J41: =IFERROR(HLOOKUP(J22,'План фінансування_Funding plan'!$C$1:$BH$7,7,FALSE),0) -> 0 | K41: =IFERROR(HLOOKUP(K22,'План фінансування_Funding plan'!$C$1:$BH$7,7,FALSE),0) -> 0 | L41: =IFERROR(HLOOKUP(L22,'План фінансування_Funding plan'!$C$1:$BH$7,7,FALSE),0) -> 0 | M41: =IFERROR(HLOOKUP(M22,'План фінансування_Funding plan'!$C$1:$BH$7,7,FALSE),0) -> 0 | N41: =IFERROR(HLOOKUP(N22,'План фінансування_Funding plan'!$C$1:$BH$7,7,FALSE),0) -> 0 | O41: =IFERROR(HLOOKUP(O22,'План фінансування_Funding plan'!$C$1:$BH$7,7,FALSE),0) -> 0 | P41: =IFERROR(HLOOKUP(P22,'План фінансування_Funding plan'!$C$1:$BH$7,7,FALSE),0) -> 0 | Q41: =IFERROR(HLOOKUP(Q22,'План фінансування_Funding plan'!$C$1:$BH$7,7,FALSE),0) -> 0 | R41: =IFERROR(HLOOKUP(R22,'План фінансування_Funding plan'!$C$1:$BH$7,7,FALSE),0) -> 0 | S41: =IFERROR(HLOOKUP(S22,'План фінансування_Funding plan'!$C$1:$BH$7,7,FALSE),0) -> 0 | T41: =IFERROR(HLOOKUP(T22,'План фінансування_Funding plan'!$C$1:$BH$7,7,FALSE),0) -> 0 | U41: =IFERROR(HLOOKUP(U22,'План фінансування_Funding plan'!$C$1:$BH$7,7,FALSE),0) -> 0 | V41: =IFERROR(HLOOKUP(V22,'План фінансування_Funding plan'!$C$1:$BH$7,7,FALSE),0) -> 0 | W41: =IFERROR(HLOOKUP(W22,'План фінансування_Funding plan'!$C$1:$BH$7,7,FALSE),0) -> 0 | X41: =IFERROR(HLOOKUP(X22,'План фінансування_Funding plan'!$C$1:$BH$7,7,FALSE),0) -> 0 | Y41: =IFERROR(HLOOKUP(Y22,'План фінансування_Funding plan'!$C$1:$BH$7,7,FALSE),0) -> 0 | Z41: =IFERROR(HLOOKUP(Z22,'План фінансування_Funding plan'!$C$1:$BH$7,7,FALSE),0) -> 0 | AA41: =IFERROR(HLOOKUP(AA22,'План фінансування_Funding plan'!$C$1:$BH$7,7,FALSE),0) -> 0 | AB41: =IFERROR(HLOOKUP(AB22,'План фінансування_Funding plan'!$C$1:$BH$7,7,FALSE),0) -> 0 | AC41: =IFERROR(HLOOKUP(AC22,'План фінансування_Funding plan'!$C$1:$BH$7,7,FALSE),0) -> 0 | AD41: =IFERROR(HLOOKUP(AD22,'План фінансування_Funding plan'!$C$1:$BH$7,7,FALSE),0) -> 0 | AE41: =IFERROR(HLOOKUP(AE22,'План фінансування_Funding plan'!$C$1:$BH$7,7,FALSE),0) -> 0 | AF41: =IFERROR(HLOOKUP(AF22,'План фінансування_Funding plan'!$C$1:$BH$7,7,FALSE),0) -> 0 | AG41: =IFERROR(HLOOKUP(AG22,'План фінансування_Funding plan'!$C$1:$BH$7,7,FALSE),0) -> 0 | AH41: =IFERROR(HLOOKUP(AH22,'План фінансування_Funding plan'!$C$1:$BH$7,7,FALSE),0) -> 0 | AI41: =IFERROR(HLOOKUP(AI22,'План фінансування_Funding plan'!$C$1:$BH$7,7,FALSE),0) -> 0 | AJ41: =IFERROR(HLOOKUP(AJ22,'План фінансування_Funding plan'!$C$1:$BH$7,7,FALSE),0) -> 0 | AK41: =IFERROR(HLOOKUP(AK22,'План фінансування_Funding plan'!$C$1:$BH$7,7,FALSE),0) -> 0 | AL41: =IFERROR(HLOOKUP(AL22,'План фінансування_Funding plan'!$C$1:$BH$7,7,FALSE),0) -> 0
A42: 4.2. | B42: - | C42: Капітальні ремонти / Overhauls | I42: ='Фінансування_Financing (CFI)'!AD11 -> 0 | J42: ='Фінансування_Financing (CFI)'!AE11 -> 0 | K42: ='Фінансування_Financing (CFI)'!AF11 -> 0 | L42: ='Фінансування_Financing (CFI)'!AG11 -> 0 | M42: ='Фінансування_Financing (CFI)'!AH11 -> 0 | N42: ='Фінансування_Financing (CFI)'!AI11 -> 0 | O42: ='Фінансування_Financing (CFI)'!AJ11 -> 0 | P42: ='Фінансування_Financing (CFI)'!AK11 -> 0 | Q42: ='Фінансування_Financing (CFI)'!AL11 -> 0 | R42: ='Фінансування_Financing (CFI)'!AM11 -> 0 | S42: ='Фінансування_Financing (CFI)'!AN11 -> 0 | T42: ='Фінансування_Financing (CFI)'!AO11 -> 0 | U42: ='Фінансування_Financing (CFI)'!AP11 -> 0 | V42: ='Фінансування_Financing (CFI)'!AQ11 -> 0 | W42: ='Фінансування_Financing (CFI)'!AR11 -> 0 | X42: ='Фінансування_Financing (CFI)'!AS11 -> 0 | Y42: ='Фінансування_Financing (CFI)'!AT11 -> 0 | Z42: ='Фінансування_Financing (CFI)'!AU11 -> 0 | AA42: ='Фінансування_Financing (CFI)'!AV11 -> 0 | AB42: ='Фінансування_Financing (CFI)'!AW11 -> 0 | AC42: ='Фінансування_Financing (CFI)'!AX11 -> 0 | AD42: ='Фінансування_Financing (CFI)'!AY11 -> 0 | AE42: ='Фінансування_Financing (CFI)'!AZ11 -> 0 | AF42: ='Фінансування_Financing (CFI)'!BA11 -> 0 | AG42: ='Фінансування_Financing (CFI)'!BB11 -> 0 | AH42: ='Фінансування_Financing (CFI)'!BC11 -> 0 | AI42: ='Фінансування_Financing (CFI)'!BD11 -> 0 | AJ42: ='Фінансування_Financing (CFI)'!BE11 -> 0 | AK42: ='Фінансування_Financing (CFI)'!BF11 -> 0 | AL42: ='Фінансування_Financing (CFI)'!BG11 -> 0 | AM42: =SUM(I42:AL42) -> 0
A44: 5 | B44: Вільний грошовий потік / FCF | I44: =IF(I22=0,0,I33-I39-I42+I30) -> -150 | J44: =IF(J22=0,0,J33-J39-J42+J30) -> 706.0868037 | K44: 403.114711 | L44: 491.0425569 | M44: 579.4857613 | N44: 1376.768252 | O44: 2087.422463 | P44: 2061.189328 | Q44: 2035.434947 | R44: 2010.150584 | S44: 1985.327661 | T44: 1960.957756 | U44: 1937.032602 | V44: 1913.544081 | W44: 1890.484227 | X44: 0 | Y44: 0 | Z44: 0 | AA44: 0 | AB44: 0 | AC44: 0 | AD44: 0 | AE44: 0 | AF44: 0 | AG44: 0 | AH44: 0 | AI44: 0 | AJ44: 0 | AK44: 0 | AL44: 0 | AM44: =SUM(I44:AL44) -> 21288.04173
A45: 5.1. | B45: Вільний грошовий потік накопиченим підсумком / FCF accumulated | I45: =I44 -> -150 | J45: =I45+J44 -> 556.0868037 | K45: 959.2015147 | L45: 1450.244072 | M45: 2029.729833 | N45: 3406.498085 | O45: 5493.920548 | P45: 7555.109875 | Q45: 9590.544822 | R45: 11600.69541 | S45: 13586.02307 | T45: 15546.98082 | U45: 17484.01342 | V45: 19397.55751 | W45: 21288.04173 | X45: 21288.04173 | Y45: 21288.04173 | Z45: 21288.04173 | AA45: 21288.04173 | AB45: 21288.04173 | AC45: 21288.04173 | AD45: 21288.04173 | AE45: 21288.04173 | AF45: 21288.04173 | AG45: 21288.04173 | AH45: 21288.04173 | AI45: 21288.04173 | AJ45: 21288.04173 | AK45: 21288.04173 | AL45: 21288.04173
A47: 7 | C47: Коефіцієнт дисконтування / Discount rate | I47: =1/((1+$E$11)^(1/12))^0 -> 1 | J47: =I47/(1+$E$11) -> 0.8658008658 | K47: =J47/(1+$E$11) -> 0.7496111392 | L47: =K47/(1+$E$11) -> 0.6490139734 | M47: 0.56191686 | N47: =M47/(1+$E$11) -> 0.4865081039 | O47: 0.4212191376 | P47: 0.364691894 | Q47: 0.3157505576 | R47: 0.2733771061 | S47: 0.2366901352 | T47: =S47/(1+$E$11) -> 0.204926524 | U47: 0.1774255619 | V47: 0.1536152051 | W47: 0.1330001776 | X47: 0.1151516689 | Y47: =X47/(1+$E$11) -> 0.09969841463 | Z47: =Y47/(1+$E$11) -> 0.0863189737 | AA47: =Z47/(1+$E$11) -> 0.07473504217 | AB47: =AA47/(1+$E$11) -> 0.06470566421 | AC47: 0.0560222201 | AD47: 0.04850408667 | AE47: 0.04199488023 | AF47: 0.03635920366 | AG47: 0.03147983001 | AH47: 0.02725526408 | AI47: 0.02359763124 | AJ47: 0.02043084956 | AK47: 0.01768904723 | AL47: =AK47/(1+$E$11) -> 0.01531519241
A48: 8 | C48: Дисконтований вільний грошовий поток / DCF | I48: =IF(I47="","",I47*I44) -> -150 | J48: =IF(J47="","",J47*J44) -> 611.330566 | K48: =IF(K47="","",K47*K44) -> 302.1792778 | L48: 318.693481 | M48: 325.6228194 | N48: 669.8089119 | O48: 879.2622895 | P48: 751.6990398 | Q48: 642.6897195 | R48: 549.5291496 | S48: 469.9074724 | T48: 401.8522566 | U48: 343.6790977 | V48: 293.9494665 | W48: 251.4347378 | X48: =IF(X47="","",X47*X44) -> 0 | Y48: =IF(Y47="","",Y47*Y44) -> 0 | Z48: =IF(Z47="","",Z47*Z44) -> 0 | AA48: 0 | AB48: 0 | AC48: 0 | AD48: 0 | AE48: 0 | AF48: 0 | AG48: 0 | AH48: 0 | AI48: 0 | AJ48: 0 | AK48: 0 | AL48: =IF(AL47="","",AL47*AL44) -> 0 | AM48: =SUM(I48:AL48) -> 6661.638286
A49: 9 | C49: DCF накопиченим підсумком / DCF accumulated | I49: =I48 -> -150 | J49: =I49+J48 -> 461.330566 | K49: 763.5098438 | L49: 1082.203325 | M49: 1407.826144 | N49: 2077.635056 | O49: 2956.897346 | P49: 3708.596385 | Q49: 4351.286105 | R49: 4900.815255 | S49: 5370.722727 | T49: 5772.574984 | U49: 6116.254081 | V49: 6410.203548 | W49: 6661.638286 | X49: 6661.638286 | Y49: 6661.638286 | Z49: 6661.638286 | AA49: 6661.638286 | AB49: 6661.638286 | AC49: 6661.638286 | AD49: 6661.638286 | AE49: 6661.638286 | AF49: 6661.638286 | AG49: 6661.638286 | AH49: 6661.638286 | AI49: 6661.638286 | AJ49: 6661.638286 | AK49: 6661.638286 | AL49: 6661.638286
A51: 10 | C51: Розрахунок DPP / DPP Calculation | I51: =13-E7 -> 7 | J51: =IF(J49<0,12,IF(K49<0,12,IF(I49>0,0, -I49/J48*12))) -> 2.944397189 | K51: =IF(K49<0,12,IF(L49<0,12,IF(J49>0,0,-J49/K48*12))) -> 0 | L51: =IF(L49<0,12,IF(M49<0,12,IF(K49>0,0,-K49/L48*12))) -> 0 | M51: =IF(M49<0,12,IF(N49<0,12,IF(L49>0,0,-L49/M48*12))) -> 0 | N51: =IF(N49<0,12,IF(O49<0,12,IF(M49>0,0,-M49/N48*12))) -> 0 | O51: =IF(O49<0,12,IF(P49<0,12,IF(N49>0,0,-N49/O48*12))) -> 0 | P51: 0 | Q51: 0 | R51: 0 | S51: 0 | T51: 0 | U51: 0 | V51: 0 | W51: 0 | X51: =IF(X49<0,12,IF(Y49<0,12,IF(W49>0,0,-W49/X48*12))) -> 0 | Y51: =IF(Y49<0,12,IF(Z49<0,12,IF(X49>0,0,-X49/Y48*12))) -> 0 | Z51: =IF(Z49<0,12,IF(AA49<0,12,IF(Y49>0,0,-Y49/Z48*12))) -> 0 | AA51: =IF(AA49<0,12,IF(AB49<0,12,IF(Z49>0,0,-Z49/AA48*12))) -> 0 | AB51: 0 | AC51: =IF(AC49<0,12,IF(AD49<0,12,IF(AB49>0,0,-AB49/AC48*12))) -> 0 | AD51: 0 | AE51: 0 | AF51: 0 | AG51: =IF(AG49<0,12,IF(AH49<0,12,IF(AF49>0,0,-AF49/AG48*12))) -> 0 | AH51: 0 | AI51: 0 | AJ51: 0 | AK51: =IF(AK49<0,12,IF(AL49<0,12,IF(AJ49>0,0,-AJ49/AK48*12))) -> 0 | AL51: =IF(AL49<0,12,IF(AM49<0,12,IF(AK49>0,0,-AK49/AL48*12))) -> 0
A52: 11 | C52: Розрахунок PP / PP Calculation | I52: =13-E7 -> 7 | J52: =IF(J45<0,12,IF(K45<0,12,IF(I45>0,0,-I45/J44*12))) -> 2.549261635 | K52: =IF(K45<0,12,IF(L45<0,12,IF(J45>0,0,-J45/K44*12))) -> 0 | L52: =IF(L45<0,12,IF(M45<0,12,IF(K45>0,0,-K45/L44*12))) -> 0 | M52: =IF(M45<0,12,IF(N45<0,12,IF(L45>0,0,-L45/M44*12))) -> 0 | N52: =IF(N45<0,12,IF(O45<0,12,IF(M45>0,0,-M45/N44*12))) -> 0 | O52: =IF(O45<0,12,IF(P45<0,12,IF(N45>0,0,-N45/O44*12))) -> 0 | P52: 0 | Q52: 0 | R52: 0 | S52: =IF(S45<0,12,IF(T45<0,12,IF(R45>0,0,-R45/S44*12))) -> 0 | T52: =IF(T45<0,12,IF(U45<0,12,IF(S45>0,0,-S45/T44*12))) -> 0 | U52: 0 | V52: =IF(V45<0,12,IF(W45<0,12,IF(U45>0,0,-U45/V44*12))) -> 0 | W52: =IF(W45<0,12,IF(X45<0,12,IF(V45>0,0,-V45/W44*12))) -> 0 | X52: =IF(X45<0,12,IF(Y45<0,12,IF(W45>0,0,-W45/X44*12))) -> 0 | Y52: =IF(Y45<0,12,IF(Z45<0,12,IF(X45>0,0,-X45/Y44*12))) -> 0 | Z52: 0 | AA52: 0 | AB52: =IF(AB45<0,12,IF(AC45<0,12,IF(AA45>0,0,-AA45/AB44*12))) -> 0 | AC52: 0 | AD52: 0 | AE52: =IF(AE45<0,12,IF(AF45<0,12,IF(AD45>0,0,-AD45/AE44*12))) -> 0 | AF52: 0 | AG52: =IF(AG45<0,12,IF(AH45<0,12,IF(AF45>0,0,-AF45/AG44*12))) -> 0 | AH52: 0 | AI52: 0 | AJ52: 0 | AK52: =IF(AK45<0,12,IF(AL45<0,12,IF(AJ45>0,0,-AJ45/AK44*12))) -> 0 | AL52: =IF(AL45<0,12,IF(AM45<0,12,IF(AK45>0,0,-AK45/AL44*12))) -> 0
A53: 12 | C53: Податок на прибуток / Income tax | I53: =1-0.82 -> 0.18 | J53: =1-0.82 -> 0.18 | K53: 0.18 | L53: 0.18 | M53: 0.18 | N53: 0.18 | O53: 0.18 | P53: 0.18 | Q53: 0.18 | R53: 0.18 | S53: 0.18 | T53: 0.18 | U53: 0.18 | V53: 0.18 | W53: 0.18 | X53: 0.18 | Y53: 0.18 | Z53: 0.18 | AA53: 0.18 | AB53: 0.18 | AC53: 0.18 | AD53: 0.18 | AE53: 0.18 | AF53: 0.18 | AG53: 0.18 | AH53: 0.18 | AI53: 0.18 | AJ53: 0.18 | AK53: 0.18 | AL53: 0.18
I54: =I55+I41 -> 150 | J54: =J55+J41 -> 1625 | K54: 1877.083333 | L54: 1735.416667 | M54: 1593.75 | N54: 743.75 | O54: 0 | P54: 0 | Q54: 0 | R54: 0 | S54: 0 | T54: 0 | U54: 0 | V54: 0 | W54: 0 | X54: 0 | Y54: 0 | Z54: 0 | AA54: 0 | AB54: 0 | AC54: 0 | AD54: 0 | AE54: 0 | AF54: 0 | AG54: 0 | AH54: 0 | AI54: 0 | AJ54: 0 | AK54: 0 | AL54: 0
I55: =IFERROR(I36+I40+HLOOKUP(I22,CFF!$25:$37,13,0),0) -> 150 | J55: =IFERROR(J36+J40+HLOOKUP(J22,CFF!$25:$37,13,0),0) -> 1625 | K55: =IFERROR(K36+K40+HLOOKUP(K22,CFF!$25:$37,13,0),0) -> 1877.083333 | L55: =IFERROR(L36+L40+HLOOKUP(L22,CFF!$25:$37,13,0),0) -> 1735.416667 | M55: =IFERROR(M36+M40+HLOOKUP(M22,CFF!$25:$37,13,0),0) -> 1593.75 | N55: =IFERROR(N36+N40+HLOOKUP(N22,CFF!$25:$37,13,0),0) -> 743.75 | O55: =IFERROR(O36+O40+HLOOKUP(O22,CFF!$25:$37,13,0),0) -> 0 | P55: =IFERROR(P36+P40+HLOOKUP(P22,CFF!$25:$37,13,0),0) -> 0 | Q55: =IFERROR(Q36+Q40+HLOOKUP(Q22,CFF!$25:$37,13,0),0) -> 0 | R55: =IFERROR(R36+R40+HLOOKUP(R22,CFF!$25:$37,13,0),0) -> 0 | S55: =IFERROR(S36+S40+HLOOKUP(S22,CFF!$25:$37,13,0),0) -> 0 | T55: =IFERROR(T36+T40+HLOOKUP(T22,CFF!$25:$37,13,0),0) -> 0 | U55: =IFERROR(U36+U40+HLOOKUP(U22,CFF!$25:$37,13,0),0) -> 0 | V55: =IFERROR(V36+V40+HLOOKUP(V22,CFF!$25:$37,13,0),0) -> 0 | W55: =IFERROR(W36+W40+HLOOKUP(W22,CFF!$25:$37,13,0),0) -> 0 | X55: =IFERROR(X36+X40+HLOOKUP(X22,CFF!$25:$37,13,0),0) -> 0 | Y55: =IFERROR(Y36+Y40+HLOOKUP(Y22,CFF!$25:$37,13,0),0) -> 0 | Z55: =IFERROR(Z36+Z40+HLOOKUP(Z22,CFF!$25:$37,13,0),0) -> 0 | AA55: =IFERROR(AA36+AA40+HLOOKUP(AA22,CFF!$25:$37,13,0),0) -> 0 | AB55: =IFERROR(AB36+AB40+HLOOKUP(AB22,CFF!$25:$37,13,0),0) -> 0 | AC55: =IFERROR(AC36+AC40+HLOOKUP(AC22,CFF!$25:$37,13,0),0) -> 0 | AD55: =IFERROR(AD36+AD40+HLOOKUP(AD22,CFF!$25:$37,13,0),0) -> 0 | AE55: =IFERROR(AE36+AE40+HLOOKUP(AE22,CFF!$25:$37,13,0),0) -> 0 | AF55: =IFERROR(AF36+AF40+HLOOKUP(AF22,CFF!$25:$37,13,0),0) -> 0 | AG55: =IFERROR(AG36+AG40+HLOOKUP(AG22,CFF!$25:$37,13,0),0) -> 0 | AH55: =IFERROR(AH36+AH40+HLOOKUP(AH22,CFF!$25:$37,13,0),0) -> 0 | AI55: =IFERROR(AI36+AI40+HLOOKUP(AI22,CFF!$25:$37,13,0),0) -> 0 | AJ55: =IFERROR(AJ36+AJ40+HLOOKUP(AJ22,CFF!$25:$37,13,0),0) -> 0 | AK55: =IFERROR(AK36+AK40+HLOOKUP(AK22,CFF!$25:$37,13,0),0) -> 0 | AL55: =IFERROR(AL36+AL40+HLOOKUP(AL22,CFF!$25:$37,13,0),0) -> 0

Sheet CFO
B2: РОЗРАХУНОК ОПЕРАЦІЙНОГО ГРОШОВОГО ПОТОКУ /CASH FLOW OPERATION CALCULATION | I2: =CONCATENATE(Головна_Summary!A2," / ",Головна_Summary!K2) -> Energy storage system 10МВт / Energy storage system 10 MW
B4: Показник | E4: Indicator | G4: Одиниці виміру / Unit | H4: ='Грошові потоки _ Cash flows'!$I$22 -> 2024 | I4: =IF(H4=0,0,IF(('Грошові потоки _ Cash flows'!$E$13+'Грошові потоки _ Cash flows'!$E$15-1)>=H4+1,H4+1,0)) -> 2025 | J4: =IF(I4=0,0,IF(('Грошові потоки _ Cash flows'!$E$13+'Грошові потоки _ Cash flows'!$E$15-1)>=I4+1,I4+1,0)) -> 2026 | K4: =IF(J4=0,0,IF(('Грошові потоки _ Cash flows'!$E$13+'Грошові потоки _ Cash flows'!$E$15-1)>=J4+1,J4+1,0)) -> 2027 | L4: =IF(K4=0,0,IF(('Грошові потоки _ Cash flows'!$E$13+'Грошові потоки _ Cash flows'!$E$15-1)>=K4+1,K4+1,0)) -> 2028 | M4: =IF(L4=0,0,IF(('Грошові потоки _ Cash flows'!$E$13+'Грошові потоки _ Cash flows'!$E$15-1)>=L4+1,L4+1,0)) -> 2029 | N4: =IF(M4=0,0,IF(('Грошові потоки _ Cash flows'!$E$13+'Грошові потоки _ Cash flows'!$E$15-1)>=M4+1,M4+1,0)) -> 2030 | O4: =IF(N4=0,0,IF(('Грошові потоки _ Cash flows'!$E$13+'Грошові потоки _ Cash flows'!$E$15-1)>=N4+1,N4+1,0)) -> 2031 | P4: =IF(O4=0,0,IF(('Грошові потоки _ Cash flows'!$E$13+'Грошові потоки _ Cash flows'!$E$15-1)>=O4+1,O4+1,0)) -> 2032 | Q4: =IF(P4=0,0,IF(('Грошові потоки _ Cash flows'!$E$13+'Грошові потоки _ Cash flows'!$E$15-1)>=P4+1,P4+1,0)) -> 2033 | R4: =IF(Q4=0,0,IF(('Грошові потоки _ Cash flows'!$E$13+'Грошові потоки _ Cash flows'!$E$15-1)>=Q4+1,Q4+1,0)) -> 2034 | S4: =IF(R4=0,0,IF(('Грошові потоки _ Cash flows'!$E$13+'Грошові потоки _ Cash flows'!$E$15-1)>=R4+1,R4+1,0)) -> 2035 | T4: =IF(S4=0,0,IF(('Грошові потоки _ Cash flows'!$E$13+'Грошові потоки _ Cash flows'!$E$15-1)>=S4+1,S4+1,0)) -> 2036 | U4: =IF(T4=0,0,IF(('Грошові потоки _ Cash flows'!$E$13+'Грошові потоки _ Cash flows'!$E$15-1)>=T4+1,T4+1,0)) -> 2037 | V4: =IF(U4=0,0,IF(('Грошові потоки _ Cash flows'!$E$13+'Грошові потоки _ Cash flows'!$E$15-1)>=U4+1,U4+1,0)) -> 2038 | W4: =IF(V4=0,0,IF(('Грошові потоки _ Cash flows'!$E$13+'Грошові потоки _ Cash flows'!$E$15-1)>=V4+1,V4+1,0)) -> 2039 | X4: =IF(W4=0,0,IF(('Грошові потоки _ Cash flows'!$E$13+'Грошові потоки _ Cash flows'!$E$15-1)>=W4+1,W4+1,0)) -> 0 | Y4: =IF(X4=0,0,IF(('Грошові потоки _ Cash flows'!$E$13+'Грошові потоки _ Cash flows'!$E$15-1)>=X4+1,X4+1,0)) -> 0 | Z4: =IF(Y4=0,0,IF(('Грошові потоки _ Cash flows'!$E$13+'Грошові потоки _ Cash flows'!$E$15-1)>=Y4+1,Y4+1,0)) -> 0 | AA4: =IF(Z4=0,0,IF(('Грошові потоки _ Cash flows'!$E$13+'Грошові потоки _ Cash flows'!$E$15-1)>=Z4+1,Z4+1,0)) -> 0 | AB4: =IF(AA4=0,0,IF(('Грошові потоки _ Cash flows'!$E$13+'Грошові потоки _ Cash flows'!$E$15-1)>=AA4+1,AA4+1,0)) -> 0 | AC4: =IF(AB4=0,0,IF(('Грошові потоки _ Cash flows'!$E$13+'Грошові потоки _ Cash flows'!$E$15-1)>=AB4+1,AB4+1,0)) -> 0 | AD4: =IF(AC4=0,0,IF(('Грошові потоки _ Cash flows'!$E$13+'Грошові потоки _ Cash flows'!$E$15-1)>=AC4+1,AC4+1,0)) -> 0 | AE4: =IF(AD4=0,0,IF(('Грошові потоки _ Cash flows'!$E$13+'Грошові потоки _ Cash flows'!$E$15-1)>=AD4+1,AD4+1,0)) -> 0 | AF4: =IF(AE4=0,0,IF(('Грошові потоки _ Cash flows'!$E$13+'Грошові потоки _ Cash flows'!$E$15-1)>=AE4+1,AE4+1,0)) -> 0 | AG4: =IF(AF4=0,0,IF(('Грошові потоки _ Cash flows'!$E$13+'Грошові потоки _ Cash flows'!$E$15-1)>=AF4+1,AF4+1,0)) -> 0 | AH4: =IF(AG4=0,0,IF(('Грошові потоки _ Cash flows'!$E$13+'Грошові потоки _ Cash flows'!$E$15-1)>=AG4+1,AG4+1,0)) -> 0 | AI4: =IF(AH4=0,0,IF(('Грошові потоки _ Cash flows'!$E$13+'Грошові потоки _ Cash flows'!$E$15-1)>=AH4+1,AH4+1,0)) -> 0 | AJ4: =IF(AI4=0,0,IF(('Грошові потоки _ Cash flows'!$E$13+'Грошові потоки _ Cash flows'!$E$15-1)>=AI4+1,AI4+1,0)) -> 0 | AK4: =IF(AJ4=0,0,IF(('Грошові потоки _ Cash flows'!$E$13+'Грошові потоки _ Cash flows'!$E$15-1)>=AJ4+1,AJ4+1,0)) -> 0 | AL4: Разом / Total
C5: Приросні операційні доходи | E5: Additional income received | G5: тис.долл./ths.USA | I5: =I53 -> 1922.068785 | J5: =J53 -> 1886.99103 | K5: 1852.553443 | L5: 1818.744343 | M5: 1785.552259 | N5: 1752.96593 | O5: 1720.974302 | P5: 1689.566521 | Q5: 1658.731932 | R5: 1628.460074 | S5: 1598.740678 | T5: 1569.56366 | U5: 1540.919124 | V5: 1512.79735 | W5: 1485.188798 | AL5: =SUM(I5:AK5) -> 25423.81823
C6: Приросні операційні витрати | E6: Operating costs | G6: тис.долл./ths.USA | I6: =I58 -> 16.78 | J6: =J58 -> 16.78 | K6: 16.78 | L6: 16.78 | M6: 16.78 | N6: 16.78 | O6: 16.78 | P6: 16.78 | Q6: 16.78 | R6: 16.78 | S6: 16.78 | T6: 16.78 | U6: 16.78 | V6: 16.78 | W6: 16.78 | AL6: =SUM(I6:AK6) -> 251.7
C7: Ефективність проекту | E7: Project efficiency | G7: тис.долл./ths.USA | I7: =I5-I6 -> 1905.288785 | J7: =J5-J6 -> 1870.21103 | K7: 1835.773443 | L7: 1801.964343 | M7: 1768.772259 | N7: 1736.18593 | O7: 1704.194302 | P7: 1672.786521 | Q7: 1641.951932 | R7: 1611.680074 | S7: 1581.960678 | T7: 1552.78366 | U7: 1524.139124 | V7: 1496.01735 | W7: 1468.408798 | AL7: =AL5-AL6 -> 25172.11823
C8: Додатковий випуск е/е в мережу | E8: Additional electricity output to the grid | G8: ths.USA | I8: 0 | J8: 0 | K8: 0 | L8: 0 | M8: 0 | N8: 0 | O8: 0 | P8: 0 | Q8: 0 | R8: 0 | S8: 0 | T8: 0 | U8: 0 | V8: 0 | W8: 0 | AL8: =SUM(I8:AK8) -> 0
C9: Курс валют UAH/US$ | D9: UAH/US$ | E9: UAH/US$ Exchange rate | G9: грн./долл./UAH/US$ | H9: =Припущення_Assumptions!G6 -> 38.47 | I9: =H9 -> 38.47 | J9: =I9 -> 38.47 | K9: 38.47 | L9: 38.47 | M9: 38.47 | N9: 38.47 | O9: 38.47 | P9: 38.47 | Q9: 38.47 | R9: =Q9 -> 38.47 | S9: =R9 -> 38.47 | T9: 38.47 | U9: 38.47 | V9: 38.47 | W9: 38.47
C10: Курс валют UAH/EUR | D10: UAH/EUR | E10: UAH/EUR Exchange rate | G10: грн./євро/UAH/EUR | H10: =Припущення_Assumptions!G7 -> 41.66 | I10: =H10 -> 41.66 | J10: =I10 -> 41.66 | K10: 41.66 | L10: 41.66 | M10: 41.66 | N10: 41.66 | O10: 41.66 | P10: 41.66 | Q10: 41.66 | R10: =Q10 -> 41.66 | S10: =R10 -> 41.66 | T10: 41.66 | U10: 41.66 | V10: 41.66 | W10: 41.66
C11: Гранична ціна на ДП (розвантаження) | E11: Price cap for anciliary services (downward) | G11: грн./МВт UAH/MW | H11: =Припущення_Assumptions!G34 -> 366.43 | I11: =H11*Припущення_Assumptions!$G$49 -> 366.43 | J11: =I11*Припущення_Assumptions!$G$49 -> 366.43 | K11: =J11*Припущення_Assumptions!$G$49 -> 366.43 | L11: =K11*Припущення_Assumptions!$G$49 -> 366.43 | M11: =L11*Припущення_Assumptions!$G$49 -> 366.43 | N11: =M11*Припущення_Assumptions!$G$49 -> 366.43 | O11: =N11*Припущення_Assumptions!$G$49 -> 366.43 | P11: =O11*Припущення_Assumptions!$G$49 -> 366.43 | Q11: =P11*Припущення_Assumptions!$G$49 -> 366.43 | R11: =Q11*Припущення_Assumptions!$G$49 -> 366.43 | S11: =R11*Припущення_Assumptions!$G$49 -> 366.43 | T11: =S11*Припущення_Assumptions!$G$49 -> 366.43 | U11: =T11*Припущення_Assumptions!$G$49 -> 366.43 | V11: =U11*Припущення_Assumptions!$G$49 -> 366.43 | W11: =V11*Припущення_Assumptions!$G$49 -> 366.43
C12: Гранична ціна на ДП (завантаження) | E12: Price cap for anciliary services (award) | G12: грн./МВт UAH/MW | H12: =Припущення_Assumptions!G35 -> 973.39 | I12: =H12*Припущення_Assumptions!$G$49 -> 973.39 | J12: =I12*Припущення_Assumptions!$G$49 -> 973.39 | K12: =J12*Припущення_Assumptions!$G$49 -> 973.39 | L12: =K12*Припущення_Assumptions!$G$49 -> 973.39 | M12: =L12*Припущення_Assumptions!$G$49 -> 973.39 | N12: =M12*Припущення_Assumptions!$G$49 -> 973.39 | O12: =N12*Припущення_Assumptions!$G$49 -> 973.39 | P12: =O12*Припущення_Assumptions!$G$49 -> 973.39 | Q12: =P12*Припущення_Assumptions!$G$49 -> 973.39 | R12: =Q12*Припущення_Assumptions!$G$49 -> 973.39 | S12: =R12*Припущення_Assumptions!$G$49 -> 973.39 | T12: =S12*Припущення_Assumptions!$G$49 -> 973.39 | U12: =T12*Припущення_Assumptions!$G$49 -> 973.39 | V12: =U12*Припущення_Assumptions!$G$49 -> 973.39 | W12: =V12*Припущення_Assumptions!$G$49 -> 973.39
C13: Гранична ціна на ДП (РПЧ) | E13: Price cap for anciliary services (FCR) | G13: грн./МВт UAH/MW | H13: =Припущення_Assumptions!G46 -> 34.82765792 | I13: =H13*Припущення_Assumptions!$G$49 -> 34.82765792 | J13: =I13*Припущення_Assumptions!$G$49 -> 34.82765792 | K13: =J13*Припущення_Assumptions!$G$49 -> 34.82765792 | L13: =K13*Припущення_Assumptions!$G$49 -> 34.82765792 | M13: =L13*Припущення_Assumptions!$G$49 -> 34.82765792 | N13: =M13*Припущення_Assumptions!$G$49 -> 34.82765792 | O13: =N13*Припущення_Assumptions!$G$49 -> 34.82765792 | P13: =O13*Припущення_Assumptions!$G$49 -> 34.82765792 | Q13: =P13*Припущення_Assumptions!$G$49 -> 34.82765792 | R13: =Q13*Припущення_Assumptions!$G$49 -> 34.82765792 | S13: =R13*Припущення_Assumptions!$G$49 -> 34.82765792 | T13: =S13*Припущення_Assumptions!$G$49 -> 34.82765792 | U13: =T13*Припущення_Assumptions!$G$49 -> 34.82765792 | V13: =U13*Припущення_Assumptions!$G$49 -> 34.82765792 | W13: =V13*Припущення_Assumptions!$G$49 -> 34.82765792
C14: Гранична ціна на ДП загальна | E14: Price cap for anciliary services total | G14: грн./МВт UAH/MW | H14: =Припущення_Assumptions!G36 -> 1339.82 | I14: =H14 -> 1339.82 | J14: =I14 -> 1339.82 | K14: 1339.82 | L14: 1339.82 | M14: =L14 -> 1339.82 | N14: =M14 -> 1339.82 | O14: 1339.82 | P14: =O14 -> 1339.82 | Q14: =P14 -> 1339.82 | R14: 1339.82 | S14: =R14 -> 1339.82 | T14: =S14 -> 1339.82 | U14: 1339.82 | V14: =U14 -> 1339.82 | W14: =V14 -> 1339.82
C15: Частка ціни на розвантаження у загальній | E15: =Припущення_Assumptions!G34/Припущення_Assumptions!G36 -> 0.2734919616
C16: Частка ціни на завантаження у загальній | E16: =1-E15 -> 0.7265080384
B17: Економічний ефект Energy Storage 10МВт (РВЧ: резерв відновлення частоти) | E17: Economic effect of the Energy Storage 10MW (FRR: Frequency Restoration Reserve )
C18: Втрати електроенергії (втрати стораджа), тис.грн. | E18: Losses of electricity (losses of the energy storage), ths.UAH | G18: тис.грн./ths.UAH | H18: 0 | I18: 0 | J18: =((Припущення_Assumptions!$G$13*(Припущення_Assumptions!$G$16/(Припущення_Assumptions!$G$16+Припущення_Assumptions!$G$22))*Припущення_Assumptions!$G$32*Припущення_Assumptions!$G$53)+(Припущення_Assumptions!$G$13*(Припущення_Assumptions!$G$22/(Припущення_Assumptions!$G$16+Припущення_Assumptions!$G$22))*Припущення_Assumptions!$G$32*Припущення_Assumptions!$G$51))/1000 -> 1.36875 | K18: =J18*(1-Припущення_Assumptions!$G$32) -> 1.343770313 | L18: =K18*(1-Припущення_Assumptions!$G$32) -> 1.319246504 | M18: =L18*(1-Припущення_Assumptions!$G$32) -> 1.295170256 | N18: =M18*(1-Припущення_Assumptions!$G$32) -> 1.271533398 | O18: =N18*(1-Припущення_Assumptions!$G$32) -> 1.248327914 | P18: =O18*(1-Припущення_Assumptions!$G$32) -> 1.225545929 | Q18: =P18*(1-Припущення_Assumptions!$G$32) -> 1.203179716 | R18: =Q18*(1-Припущення_Assumptions!$G$32) -> 1.181221686 | S18: =R18*(1-Припущення_Assumptions!$G$32) -> 1.159664391 | T18: =S18*(1-Припущення_Assumptions!$G$32) -> 1.138500516 | U18: =T18*(1-Припущення_Assumptions!$G$32) -> 1.117722881 | V18: =U18*(1-Припущення_Assumptions!$G$32) -> 1.097324439 | W18: =V18*(1-Припущення_Assumptions!$G$32) -> 1.077298268
C19: Втрати електроенергії (втрати стораджа), тис.долл. | E19: Losses of electricity (losses of energy storage), ths.EUR | G19: тис.долл./ths.USA | H19: =H18/H9 -> 0 | I19: =I18/I9 -> 0 | J19: =J18/J9 -> 0.03557967247 | K19: =K18/K9 -> 0.03493034345 | L19: =L18/L9 -> 0.03429286468 | M19: =M18/M9 -> 0.0336670199 | N19: =N18/N9 -> 0.03305259679 | O19: =O18/O9 -> 0.0324493869 | P19: =P18/P9 -> 0.03185718559 | Q19: =Q18/Q9 -> 0.03127579195 | R19: =R18/R9 -> 0.03070500875 | S19: =S18/S9 -> 0.03014464234 | T19: =T18/T9 -> 0.02959450261 | U19: =U18/U9 -> 0.02905440294 | V19: =V18/V9 -> 0.02852416009 | W19: =W18/W9 -> 0.02800359417
C20: Потужність стораджей | E20: Total energy storage capacity | G20: МВт/MW | H20: =Припущення_Assumptions!$G$11 -> 10 | I20: =Припущення_Assumptions!$G$11 -> 10 | J20: =I20 -> 10 | K20: =J20 -> 10 | L20: 10 | M20: 10 | N20: 10 | O20: 10 | P20: 10 | Q20: 10 | R20: 10 | S20: 10 | T20: 10 | U20: 10 | V20: 10 | W20: 10
C21: Робоча потужність на завантаження | E21: Working capacity for award | G21: МВт/MW | H21: =H20*((Припущення_Assumptions!$G$17+Припущення_Assumptions!$G$23)/(Припущення_Assumptions!$G$16+Припущення_Assumptions!$G$22)) -> 10 | I21: =I20*((Припущення_Assumptions!$G$17+Припущення_Assumptions!$G$23)/(Припущення_Assumptions!$G$16+Припущення_Assumptions!$G$22)) -> 10 | J21: =J20*((Припущення_Assumptions!$G$17+Припущення_Assumptions!$G$23)/(Припущення_Assumptions!$G$16+Припущення_Assumptions!$G$22)) -> 10 | K21: =K20*((Припущення_Assumptions!$G$17+Припущення_Assumptions!$G$23)/(Припущення_Assumptions!$G$16+Припущення_Assumptions!$G$22)) -> 10 | L21: =L20*((Припущення_Assumptions!$G$17+Припущення_Assumptions!$G$23)/(Припущення_Assumptions!$G$16+Припущення_Assumptions!$G$22)) -> 10 | M21: =M20*((Припущення_Assumptions!$G$17+Припущення_Assumptions!$G$23)/(Припущення_Assumptions!$G$16+Припущення_Assumptions!$G$22)) -> 10 | N21: =N20*((Припущення_Assumptions!$G$17+Припущення_Assumptions!$G$23)/(Припущення_Assumptions!$G$16+Припущення_Assumptions!$G$22)) -> 10 | O21: =O20*((Припущення_Assumptions!$G$17+Припущення_Assumptions!$G$23)/(Припущення_Assumptions!$G$16+Припущення_Assumptions!$G$22)) -> 10 | P21: =P20*((Припущення_Assumptions!$G$17+Припущення_Assumptions!$G$23)/(Припущення_Assumptions!$G$16+Припущення_Assumptions!$G$22)) -> 10 | Q21: =Q20*((Припущення_Assumptions!$G$17+Припущення_Assumptions!$G$23)/(Припущення_Assumptions!$G$16+Припущення_Assumptions!$G$22)) -> 10 | R21: =R20*((Припущення_Assumptions!$G$17+Припущення_Assumptions!$G$23)/(Припущення_Assumptions!$G$16+Припущення_Assumptions!$G$22)) -> 10 | S21: =S20*((Припущення_Assumptions!$G$17+Припущення_Assumptions!$G$23)/(Припущення_Assumptions!$G$16+Припущення_Assumptions!$G$22)) -> 10 | T21: =T20*((Припущення_Assumptions!$G$17+Припущення_Assumptions!$G$23)/(Припущення_Assumptions!$G$16+Припущення_Assumptions!$G$22)) -> 10 | U21: =U20*((Припущення_Assumptions!$G$17+Припущення_Assumptions!$G$23)/(Припущення_Assumptions!$G$16+Припущення_Assumptions!$G$22)) -> 10 | V21: =V20*((Припущення_Assumptions!$G$17+Припущення_Assumptions!$G$23)/(Припущення_Assumptions!$G$16+Припущення_Assumptions!$G$22)) -> 10 | W21: =W20*((Припущення_Assumptions!$G$17+Припущення_Assumptions!$G$23)/(Припущення_Assumptions!$G$16+Припущення_Assumptions!$G$22)) -> 10
C22: Робоча потужність на розвантаження | E22: Working capacity for downward | G22: МВт/MW | H22: =H20*((Припущення_Assumptions!$G$18+Припущення_Assumptions!$G$24)/(Припущення_Assumptions!$G$16+Припущення_Assumptions!$G$22)) -> 0 | I22: =I20*((Припущення_Assumptions!$G$18+Припущення_Assumptions!$G$24)/(Припущення_Assumptions!$G$16+Припущення_Assumptions!$G$22)) -> 0 | J22: =J20*((Припущення_Assumptions!$G$18+Припущення_Assumptions!$G$24)/(Припущення_Assumptions!$G$16+Припущення_Assumptions!$G$22)) -> 0 | K22: =K20*((Припущення_Assumptions!$G$18+Припущення_Assumptions!$G$24)/(Припущення_Assumptions!$G$16+Припущення_Assumptions!$G$22)) -> 0 | L22: =L20*((Припущення_Assumptions!$G$18+Припущення_Assumptions!$G$24)/(Припущення_Assumptions!$G$16+Припущення_Assumptions!$G$22)) -> 0 | M22: =M20*((Припущення_Assumptions!$G$18+Припущення_Assumptions!$G$24)/(Припущення_Assumptions!$G$16+Припущення_Assumptions!$G$22)) -> 0 | N22: =N20*((Припущення_Assumptions!$G$18+Припущення_Assumptions!$G$24)/(Припущення_Assumptions!$G$16+Припущення_Assumptions!$G$22)) -> 0 | O22: =O20*((Припущення_Assumptions!$G$18+Припущення_Assumptions!$G$24)/(Припущення_Assumptions!$G$16+Припущення_Assumptions!$G$22)) -> 0 | P22: =P20*((Припущення_Assumptions!$G$18+Припущення_Assumptions!$G$24)/(Припущення_Assumptions!$G$16+Припущення_Assumptions!$G$22)) -> 0 | Q22: =Q20*((Припущення_Assumptions!$G$18+Припущення_Assumptions!$G$24)/(Припущення_Assumptions!$G$16+Припущення_Assumptions!$G$22)) -> 0 | R22: =R20*((Припущення_Assumptions!$G$18+Припущення_Assumptions!$G$24)/(Припущення_Assumptions!$G$16+Припущення_Assumptions!$G$22)) -> 0 | S22: =S20*((Припущення_Assumptions!$G$18+Припущення_Assumptions!$G$24)/(Припущення_Assumptions!$G$16+Припущення_Assumptions!$G$22)) -> 0 | T22: =T20*((Припущення_Assumptions!$G$18+Припущення_Assumptions!$G$24)/(Припущення_Assumptions!$G$16+Припущення_Assumptions!$G$22)) -> 0 | U22: =U20*((Припущення_Assumptions!$G$18+Припущення_Assumptions!$G$24)/(Припущення_Assumptions!$G$16+Припущення_Assumptions!$G$22)) -> 0 | V22: =V20*((Припущення_Assumptions!$G$18+Припущення_Assumptions!$G$24)/(Припущення_Assumptions!$G$16+Припущення_Assumptions!$G$22)) -> 0 | W22: =W20*((Припущення_Assumptions!$G$18+Припущення_Assumptions!$G$24)/(Припущення_Assumptions!$G$16+Припущення_Assumptions!$G$22)) -> 0
C23: Загальна ефективність від аРВЧ | E23: The total efficiency of aFRR | G23: тис.долл./ths.USA | H23: =((H22*(H25+H51+H52+H57)*Припущення_Assumptions!$H$44*H14*$E$15)+(H21*(H25+H51+H52+H57)*Припущення_Assumptions!$H$43*H14*$E$16))/H9/1000 -> 1071.310959 | I23: =((I22*(I25+I51+I52+I57)*Припущення_Assumptions!$H$44*I14*$E$15)+(I21*(I25+I51+I52+I57)*Припущення_Assumptions!$H$43*I14*$E$16))/I9/1000 -> 1071.310959 | J23: =((J22*(J25+J51+J52+J57)*Припущення_Assumptions!$H$44*J14*$E$15)+(J21*(J25+J51+J52+J57)*Припущення_Assumptions!$H$43*J14*$E$16))/J9/1000 -> 1051.759534 | K23: =((K22*(K25+K51+K52+K57)*Припущення_Assumptions!$H$44*K14*$E$15)+(K21*(K25+K51+K52+K57)*Припущення_Assumptions!$H$43*K14*$E$16))/K9/1000 -> 1032.564923 | L23: =((L22*(L25+L51+L52+L57)*Припущення_Assumptions!$H$44*L14*$E$15)+(L21*(L25+L51+L52+L57)*Припущення_Assumptions!$H$43*L14*$E$16))/L9/1000 -> 1013.720613 | M23: =((M22*(M25+M51+M52+M57)*Припущення_Assumptions!$H$44*M14*$E$15)+(M21*(M25+M51+M52+M57)*Припущення_Assumptions!$H$43*M14*$E$16))/M9/1000 -> 995.2202117 | N23: =((N22*(N25+N51+N52+N57)*Припущення_Assumptions!$H$44*N14*$E$15)+(N21*(N25+N51+N52+N57)*Припущення_Assumptions!$H$43*N14*$E$16))/N9/1000 -> 977.0574428 | O23: =((O22*(O25+O51+O52+O57)*Припущення_Assumptions!$H$44*O14*$E$15)+(O21*(O25+O51+O52+O57)*Припущення_Assumptions!$H$43*O14*$E$16))/O9/1000 -> 959.2261445 | P23: =((P22*(P25+P51+P52+P57)*Припущення_Assumptions!$H$44*P14*$E$15)+(P21*(P25+P51+P52+P57)*Припущення_Assumptions!$H$43*P14*$E$16))/P9/1000 -> 941.7202673 | Q23: =((Q22*(Q25+Q51+Q52+Q57)*Припущення_Assumptions!$H$44*Q14*$E$15)+(Q21*(Q25+Q51+Q52+Q57)*Припущення_Assumptions!$H$43*Q14*$E$16))/Q9/1000 -> 924.5338725 | R23: =((R22*(R25+R51+R52+R57)*Припущення_Assumptions!$H$44*R14*$E$15)+(R21*(R25+R51+R52+R57)*Припущення_Assumptions!$H$43*R14*$E$16))/R9/1000 -> 907.6611293 | S23: =((S22*(S25+S51+S52+S57)*Припущення_Assumptions!$H$44*S14*$E$15)+(S21*(S25+S51+S52+S57)*Припущення_Assumptions!$H$43*S14*$E$16))/S9/1000 -> 891.0963137 | T23: =((T22*(T25+T51+T52+T57)*Припущення_Assumptions!$H$44*T14*$E$15)+(T21*(T25+T51+T52+T57)*Припущення_Assumptions!$H$43*T14*$E$16))/T9/1000 -> 874.8338059 | U23: =((U22*(U25+U51+U52+U57)*Припущення_Assumptions!$H$44*U14*$E$15)+(U21*(U25+U51+U52+U57)*Припущення_Assumptions!$H$43*U14*$E$16))/U9/1000 -> 858.868089 | V23: =((V22*(V25+V51+V52+V57)*Припущення_Assumptions!$H$44*V14*$E$15)+(V21*(V25+V51+V52+V57)*Припущення_Assumptions!$H$43*V14*$E$16))/V9/1000 -> 843.1937464 | W23: =((W22*(W25+W51+W52+W57)*Припущення_Assumptions!$H$44*W14*$E$15)+(W21*(W25+W51+W52+W57)*Припущення_Assumptions!$H$43*W14*$E$16))/W9/1000 -> 827.8054605
C24: Загальна ефективність від аРВЧ | E24: The total efficiency of aFRR | G24: тис.долл./ths.USA | H24: =H26+H27 -> 692.6579478 | I24: =I26+I27 -> 692.6579478 | J24: 680.0169402 | K24: 667.606631 | L24: 655.42281 | M24: 643.4613437 | N24: 631.7181742 | O24: 620.1893175 | P24: 608.8708625 | Q24: 597.7589693 | R24: 586.8498681 | S24: 576.139858 | T24: 565.6253056 | U24: 555.3026437 | V24: 545.1683705 | W24: 535.2190477
C25: Тривалість готовності до надання послуг аРВЧ | E25: The time of readiness for anciliary services (aFRR) | G25: год./рік | H25: =Припущення_Assumptions!G43 -> 2737.5 | I25: =H25 -> 2737.5 | J25: =I25*(1-Припущення_Assumptions!$G$32) -> 2687.540625 | K25: =J25*(1-Припущення_Assumptions!$G$32) -> 2638.493009 | L25: =K25*(1-Припущення_Assumptions!$G$32) -> 2590.340511 | M25: =L25*(1-Припущення_Assumptions!$G$32) -> 2543.066797 | N25: =M25*(1-Припущення_Assumptions!$G$32) -> 2496.655828 | O25: =N25*(1-Припущення_Assumptions!$G$32) -> 2451.091859 | P25: =O25*(1-Припущення_Assumptions!$G$32) -> 2406.359433 | Q25: =P25*(1-Припущення_Assumptions!$G$32) -> 2362.443373 | R25: =Q25*(1-Припущення_Assumptions!$G$32) -> 2319.328781 | S25: =R25*(1-Припущення_Assumptions!$G$32) -> 2277.001031 | T25: =S25*(1-Припущення_Assumptions!$G$32) -> 2235.445762 | U25: =T25*(1-Припущення_Assumptions!$G$32) -> 2194.648877 | V25: =U25*(1-Припущення_Assumptions!$G$32) -> 2154.596535 | W25: =V25*(1-Припущення_Assumptions!$G$32) -> 2115.275148
C26: аРВЧ (розвантаження) | E26: aFRR: automatic Frequency Restoration Reserve (downward) | G26: тис.долл./ths.USA | H26: =H22*H25*H11/H9/1000 -> 0 | I26: =I22*I25*I11/I9/1000 -> 0 | J26: =J22*J25*J11/J9/1000 -> 0 | K26: =K22*K25*K11/K9/1000 -> 0 | L26: =L22*L25*L11/L9/1000 -> 0 | M26: =M22*M25*M11/M9/1000 -> 0 | N26: =N22*N25*N11/N9/1000 -> 0 | O26: =O22*O25*O11/O9/1000 -> 0 | P26: =P22*P25*P11/P9/1000 -> 0 | Q26: =Q22*Q25*Q11/Q9/1000 -> 0 | R26: =R22*R25*R11/R9/1000 -> 0 | S26: =S22*S25*S11/S9/1000 -> 0 | T26: =T22*T25*T11/T9/1000 -> 0 | U26: =U22*U25*U11/U9/1000 -> 0 | V26: =V22*V25*V11/V9/1000 -> 0 | W26: =W22*W25*W11/W9/1000 -> 0
C27: аРВЧ (завантаження) | E27: aFRR: automatic Frequency Restoration Reserve (award) | G27: тис.долл./ths.USA | H27: =H21*H25*H12/H9/1000 -> 692.6579478 | I27: =I21*I25*I12/I9/1000 -> 692.6579478 | J27: =J21*J25*J12/J9/1000 -> 680.0169402 | K27: =K21*K25*K12/K9/1000 -> 667.606631 | L27: =L21*L25*L12/L9/1000 -> 655.42281 | M27: =M21*M25*M12/M9/1000 -> 643.4613437 | N27: =N21*N25*N12/N9/1000 -> 631.7181742 | O27: =O21*O25*O12/O9/1000 -> 620.1893175 | P27: =P21*P25*P12/P9/1000 -> 608.8708625 | Q27: =Q21*Q25*Q12/Q9/1000 -> 597.7589693 | R27: =R21*R25*R12/R9/1000 -> 586.8498681 | S27: =S21*S25*S12/S9/1000 -> 576.139858 | T27: =T21*T25*T12/T9/1000 -> 565.6253056 | U27: =U21*U25*U12/U9/1000 -> 555.3026437 | V27: =V21*V25*V12/V9/1000 -> 545.1683705 | W27: =W21*W25*W12/W9/1000 -> 535.2190477
B28: Економічний ефект Energy storage 10МВт (активація на Балансуючому Ринку) | E28: Economic effect of the Energy Storage 10MW (activation on the Balancing market)
B29: 1 | C29: Об'єм завантаження на БР, зима | E29: Volumes of activation for award on the Balancing market | G29: МВт*год/MWh | H29: =H30*H21 -> 18250 | I29: =I30*I21 -> 18250 | J29: 17916.9375 | K29: 17589.95339 | L29: =L30*L21 -> 17268.93674 | M29: =M30*M21 -> 16953.77865 | N29: 16644.37219 | O29: =O30*O21 -> 16340.61239 | P29: =P30*P21 -> 16042.39622 | Q29: 15749.62249 | R29: =R30*R21 -> 15462.19188 | S29: =S30*S21 -> 15180.00687 | T29: 14902.97175 | U29: =U30*U21 -> 14630.99251 | V29: =V30*V21 -> 14363.9769 | W29: 14101.83432
C30: Кількість годин на завантаження, зима | E30: Activation hours for award | G30: год./Hours | H30: =Припущення_Assumptions!G17*Припущення_Assumptions!G37*Припущення_Assumptions!G38 -> 1825 | I30: =H30 -> 1825 | J30: =I30*(1-Припущення_Assumptions!$G$32) -> 1791.69375 | K30: =J30*(1-Припущення_Assumptions!$G$32) -> 1758.995339 | L30: =K30*(1-Припущення_Assumptions!$G$32) -> 1726.893674 | M30: =L30*(1-Припущення_Assumptions!$G$32) -> 1695.377865 | N30: =M30*(1-Припущення_Assumptions!$G$32) -> 1664.437219 | O30: =N30*(1-Припущення_Assumptions!$G$32) -> 1634.061239 | P30: =O30*(1-Припущення_Assumptions!$G$32) -> 1604.239622 | Q30: =P30*(1-Припущення_Assumptions!$G$32) -> 1574.962249 | R30: =Q30*(1-Припущення_Assumptions!$G$32) -> 1546.219188 | S30: =R30*(1-Припущення_Assumptions!$G$32) -> 1518.000687 | T30: =S30*(1-Припущення_Assumptions!$G$32) -> 1490.297175 | U30: =T30*(1-Припущення_Assumptions!$G$32) -> 1463.099251 | V30: =U30*(1-Припущення_Assumptions!$G$32) -> 1436.39769 | W30: =V30*(1-Припущення_Assumptions!$G$32) -> 1410.183432
C31: Вартість послуги на завантаження, зима | E31: The cost of award service | G31: тис.долл./ths.USA | H31: =H29*Припущення_Assumptions!$G$52/1000/CFO!H9 -> 2846.373798 | I31: =I29*Припущення_Assumptions!$G$52/1000/CFO!I9 -> 2846.373798 | J31: =J29*Припущення_Assumptions!$G$52/1000/CFO!J9 -> 2794.427476 | K31: =K29*Припущення_Assumptions!$G$52/1000/CFO!K9 -> 2743.429175 | L31: =L29*Припущення_Assumptions!$G$52/1000/CFO!L9 -> 2693.361592 | M31: =M29*Припущення_Assumptions!$G$52/1000/CFO!M9 -> 2644.207743 | N31: =N29*Припущення_Assumptions!$G$52/1000/CFO!N9 -> 2595.950952 | O31: =O29*Припущення_Assumptions!$G$52/1000/CFO!O9 -> 2548.574847 | P31: =P29*Припущення_Assumptions!$G$52/1000/CFO!P9 -> 2502.063356 | Q31: =Q29*Припущення_Assumptions!$G$52/1000/CFO!Q9 -> 2456.4007 | R31: =R29*Припущення_Assumptions!$G$52/1000/CFO!R9 -> 2411.571387 | S31: =S29*Припущення_Assumptions!$G$52/1000/CFO!S9 -> 2367.560209 | T31: =T29*Припущення_Assumptions!$G$52/1000/CFO!T9 -> 2324.352235 | U31: =U29*Припущення_Assumptions!$G$52/1000/CFO!U9 -> 2281.932807 | V31: =V29*Припущення_Assumptions!$G$52/1000/CFO!V9 -> 2240.287533 | W31: =W29*Припущення_Assumptions!$G$52/1000/CFO!W9 -> 2199.402286
C32: Об'єм завантаження на БР, літо | E32: Volumes of activation for award on the Balancing market, summer | G32: МВт*год/MWh | H32: =H33*H21 -> 9125 | I32: =I33*I21 -> 9125 | J32: =J33*J21 -> 8958.46875 | K32: 8794.976695 | L32: =L33*L21 -> 8634.468371 | M32: =M33*M21 -> 8476.889323 | N32: 8322.186093 | O32: =O33*O21 -> 8170.306197 | P32: =P33*P21 -> 8021.198108 | Q32: 7874.811243 | R32: =R33*R21 -> 7731.095938 | S32: =S33*S21 -> 7590.003437 | T32: 7451.485874 | U32: =U33*U21 -> 7315.496257 | V32: =V33*V21 -> 7181.98845 | W32: 7050.917161
C33: Кількість годин на завантаження, літо | E33: Activation hours for award, summer | G33: год./Hours | H33: =Припущення_Assumptions!G23*Припущення_Assumptions!G37*Припущення_Assumptions!G39 -> 912.5 | I33: =H33 -> 912.5 | J33: =I33*(1-Припущення_Assumptions!$G$32) -> 895.846875 | K33: =J33*(1-Припущення_Assumptions!$G$32) -> 879.4976695 | L33: =K33*(1-Припущення_Assumptions!$G$32) -> 863.4468371 | M33: =L33*(1-Припущення_Assumptions!$G$32) -> 847.6889323 | N33: =M33*(1-Припущення_Assumptions!$G$32) -> 832.2186093 | O33: =N33*(1-Припущення_Assumptions!$G$32) -> 817.0306197 | P33: =O33*(1-Припущення_Assumptions!$G$32) -> 802.1198108 | Q33: =P33*(1-Припущення_Assumptions!$G$32) -> 787.4811243 | R33: =Q33*(1-Припущення_Assumptions!$G$32) -> 773.1095938 | S33: =R33*(1-Припущення_Assumptions!$G$32) -> 759.0003437 | T33: =S33*(1-Припущення_Assumptions!$G$32) -> 745.1485874 | U33: =T33*(1-Припущення_Assumptions!$G$32) -> 731.5496257 | V33: =U33*(1-Припущення_Assumptions!$G$32) -> 718.198845 | W33: =V33*(1-Припущення_Assumptions!$G$32) -> 705.0917161
C34: Вартість послуги на завантаження, літо | E34: The cost of award service, summer | G34: тис.долл./ths.USA | H34: =H32*Припущення_Assumptions!$G$50/1000/CFO!H9 -> 1245.288537 | I34: =I32*Припущення_Assumptions!$G$50/1000/CFO!I9 -> 1245.288537 | J34: =J32*Припущення_Assumptions!$G$50/1000/CFO!J9 -> 1222.562021 | K34: =K32*Припущення_Assumptions!$G$50/1000/CFO!K9 -> 1200.250264 | L34: =L32*Припущення_Assumptions!$G$50/1000/CFO!L9 -> 1178.345697 | M34: =M32*Припущення_Assumptions!$G$50/1000/CFO!M9 -> 1156.840888 | N34: =N32*Припущення_Assumptions!$G$50/1000/CFO!N9 -> 1135.728541 | O34: =O32*Припущення_Assumptions!$G$50/1000/CFO!O9 -> 1115.001495 | P34: =P32*Припущення_Assumptions!$G$50/1000/CFO!P9 -> 1094.652718 | Q34: =Q32*Припущення_Assumptions!$G$50/1000/CFO!Q9 -> 1074.675306 | R34: =R32*Припущення_Assumptions!$G$50/1000/CFO!R9 -> 1055.062482 | S34: =S32*Припущення_Assumptions!$G$50/1000/CFO!S9 -> 1035.807591 | T34: =T32*Припущення_Assumptions!$G$50/1000/CFO!T9 -> 1016.904103 | U34: =U32*Припущення_Assumptions!$G$50/1000/CFO!U9 -> 998.345603 | V34: =V32*Припущення_Assumptions!$G$50/1000/CFO!V9 -> 980.1257958 | W34: =W32*Припущення_Assumptions!$G$50/1000/CFO!W9 -> 962.2385
B35: 2 | C35: Об'єм розвантаження на БР, зима | E35: Volumes of activation for downward on the Balancing market, winter | G35: МВт*год/MWh | H35: =H36*H22 -> 0 | I35: =I36*I22 -> 0 | J35: =J36*J22 -> 0 | K35: 0 | L35: 0 | M35: 0 | N35: 0 | O35: 0 | P35: 0 | Q35: 0 | R35: 0 | S35: 0 | T35: 0 | U35: 0 | V35: 0 | W35: 0
C36: Кількість годин на розвантаження, зима | E36: Activation hours for downward, winter | G36: год./Hours | H36: =Припущення_Assumptions!G18*Припущення_Assumptions!G37*Припущення_Assumptions!G38 -> 0 | I36: =H36 -> 0 | J36: =I36*(1-Припущення_Assumptions!$G$32) -> 0 | K36: =J36*(1-Припущення_Assumptions!$G$32) -> 0 | L36: =K36*(1-Припущення_Assumptions!$G$32) -> 0 | M36: =L36*(1-Припущення_Assumptions!$G$32) -> 0 | N36: =M36*(1-Припущення_Assumptions!$G$32) -> 0 | O36: =N36*(1-Припущення_Assumptions!$G$32) -> 0 | P36: =O36*(1-Припущення_Assumptions!$G$32) -> 0 | Q36: =P36*(1-Припущення_Assumptions!$G$32) -> 0 | R36: =Q36*(1-Припущення_Assumptions!$G$32) -> 0 | S36: =R36*(1-Припущення_Assumptions!$G$32) -> 0 | T36: =S36*(1-Припущення_Assumptions!$G$32) -> 0 | U36: =T36*(1-Припущення_Assumptions!$G$32) -> 0 | V36: =U36*(1-Припущення_Assumptions!$G$32) -> 0 | W36: =V36*(1-Припущення_Assumptions!$G$32) -> 0
C37: Вартість послуги на розвантаження, зима | E37: The cost of downward service, winter | G37: тис.долл./ths.USA | H37: =H35*Припущення_Assumptions!$G$53/1000/CFO!H9 -> 0 | I37: =I35*Припущення_Assumptions!$G$53/1000/CFO!I9 -> 0 | J37: =J35*Припущення_Assumptions!$G$53/1000/CFO!J9 -> 0 | K37: =K35*Припущення_Assumptions!$G$53/1000/CFO!K9 -> 0 | L37: =L35*Припущення_Assumptions!$G$53/1000/CFO!L9 -> 0 | M37: =M35*Припущення_Assumptions!$G$53/1000/CFO!M9 -> 0 | N37: =N35*Припущення_Assumptions!$G$53/1000/CFO!N9 -> 0 | O37: =O35*Припущення_Assumptions!$G$53/1000/CFO!O9 -> 0 | P37: =P35*Припущення_Assumptions!$G$53/1000/CFO!P9 -> 0 | Q37: =Q35*Припущення_Assumptions!$G$53/1000/CFO!Q9 -> 0 | R37: =R35*Припущення_Assumptions!$G$53/1000/CFO!R9 -> 0 | S37: =S35*Припущення_Assumptions!$G$53/1000/CFO!S9 -> 0 | T37: =T35*Припущення_Assumptions!$G$53/1000/CFO!T9 -> 0 | U37: =U35*Припущення_Assumptions!$G$53/1000/CFO!U9 -> 0 | V37: =V35*Припущення_Assumptions!$G$53/1000/CFO!V9 -> 0 | W37: =W35*Припущення_Assumptions!$G$53/1000/CFO!W9 -> 0
C38: Об'єм розвантаження на БР, літо | E38: Volumes of activation for downward on the Balancing market, summer | G38: МВт*год/MWh | H38: =H39*H22 -> 0 | I38: =I39*I22 -> 0 | J38: 0 | K38: 0 | L38: 0 | M38: 0 | N38: 0 | O38: 0 | P38: 0 | Q38: 0 | R38: 0 | S38: 0 | T38: 0 | U38: 0 | V38: 0 | W38: 0
C39: Кількість годин на розвантаження, літо | E39: Activation hours for downward, summer | G39: год./Hours | H39: =Припущення_Assumptions!G24*Припущення_Assumptions!G37*Припущення_Assumptions!G39 -> 0 | I39: =H39 -> 0 | J39: =I39*(1-Припущення_Assumptions!$G$32) -> 0 | K39: =J39*(1-Припущення_Assumptions!$G$32) -> 0 | L39: =K39*(1-Припущення_Assumptions!$G$32) -> 0 | M39: =L39*(1-Припущення_Assumptions!$G$32) -> 0 | N39: =M39*(1-Припущення_Assumptions!$G$32) -> 0 | O39: =N39*(1-Припущення_Assumptions!$G$32) -> 0 | P39: =O39*(1-Припущення_Assumptions!$G$32) -> 0 | Q39: =P39*(1-Припущення_Assumptions!$G$32) -> 0 | R39: =Q39*(1-Припущення_Assumptions!$G$32) -> 0 | S39: =R39*(1-Припущення_Assumptions!$G$32) -> 0 | T39: =S39*(1-Припущення_Assumptions!$G$32) -> 0 | U39: =T39*(1-Припущення_Assumptions!$G$32) -> 0 | V39: =U39*(1-Припущення_Assumptions!$G$32) -> 0 | W39: =V39*(1-Припущення_Assumptions!$G$32) -> 0
C40: Вартість послуги на розвантаження, літо | E40: The cost of downward service, summer | G40: тис.долл./ths.USA | H40: =H38*Припущення_Assumptions!$G$51/1000/CFO!H9 -> 0 | I40: =I38*Припущення_Assumptions!$G$51/1000/CFO!I9 -> 0 | J40: =J38*Припущення_Assumptions!$G$51/1000/CFO!J9 -> 0 | K40: =K38*Припущення_Assumptions!$G$51/1000/CFO!K9 -> 0 | L40: =L38*Припущення_Assumptions!$G$51/1000/CFO!L9 -> 0 | M40: =M38*Припущення_Assumptions!$G$51/1000/CFO!M9 -> 0 | N40: =N38*Припущення_Assumptions!$G$51/1000/CFO!N9 -> 0 | O40: =O38*Припущення_Assumptions!$G$51/1000/CFO!O9 -> 0 | P40: =P38*Припущення_Assumptions!$G$51/1000/CFO!P9 -> 0 | Q40: =Q38*Припущення_Assumptions!$G$51/1000/CFO!Q9 -> 0 | R40: =R38*Припущення_Assumptions!$G$51/1000/CFO!R9 -> 0 | S40: =S38*Припущення_Assumptions!$G$51/1000/CFO!S9 -> 0 | T40: =T38*Припущення_Assumptions!$G$51/1000/CFO!T9 -> 0 | U40: =U38*Припущення_Assumptions!$G$51/1000/CFO!U9 -> 0 | V40: =V38*Припущення_Assumptions!$G$51/1000/CFO!V9 -> 0 | W40: =W38*Припущення_Assumptions!$G$51/1000/CFO!W9 -> 0
C41: Згальна ефективність від діяльності на БР | E41: The total efficiency of the work on the Balancing market | G41: тис.долл./ths.USA | H41: =H31+H34+H37+H40 -> 4091.662334 | I41: =I31+I34+I37+I40 -> 4091.662334 | J41: =J31+J34+J37+J40 -> 4016.989497 | K41: 3943.679438 | L41: 3871.707289 | M41: 3801.048631 | N41: 3731.679493 | O41: 3663.576342 | P41: 3596.716074 | Q41: 3531.076006 | R41: 3466.633869 | S41: 3403.367801 | T41: 3341.256338 | U41: 3280.27841 | V41: 3220.413329 | W41: 3161.640786
C42: Величина втрат електроенергії | E42: The amount of electricity losses | G42: МВт*год/MWh | H42: =(H29+H32)*Припущення_Assumptions!$G$30 -> 4106.25 | I42: =(I29+I32)*Припущення_Assumptions!$G$30 -> 4106.25 | J42: =(J29+J32)*Припущення_Assumptions!$G$30 -> 4031.310937 | K42: =(K29+K32)*Припущення_Assumptions!$G$30 -> 3957.739513 | L42: =(L29+L32)*Припущення_Assumptions!$G$30 -> 3885.510767 | M42: =(M29+M32)*Припущення_Assumptions!$G$30 -> 3814.600195 | N42: =(N29+N32)*Припущення_Assumptions!$G$30 -> 3744.983742 | O42: =(O29+O32)*Припущення_Assumptions!$G$30 -> 3676.637788 | P42: =(P29+P32)*Припущення_Assumptions!$G$30 -> 3609.539149 | Q42: =(Q29+Q32)*Припущення_Assumptions!$G$30 -> 3543.665059 | R42: =(R29+R32)*Припущення_Assumptions!$G$30 -> 3478.993172 | S42: =(S29+S32)*Припущення_Assumptions!$G$30 -> 3415.501547 | T42: =(T29+T32)*Припущення_Assumptions!$G$30 -> 3353.168643 | U42: =(U29+U32)*Припущення_Assumptions!$G$30 -> 3291.973316 | V42: =(V29+V32)*Припущення_Assumptions!$G$30 -> 3231.894803 | W42: =(W29+W32)*Припущення_Assumptions!$G$30 -> 3172.912722
C43: Вартість втрат електроенергії (плата за тариф) | E43: The cost of electricity losses (tariff fee) | G43: тис.долл./ths.USA | H43: =(H42*#REF!+H42*#REF!)/H9/1000 ->  | I43: =(I42*#REF!+I42*#REF!)/I9/1000 ->  | J43: =(J42*#REF!+J42*#REF!)/J9/1000 ->  | K43: =(K42*#REF!+K42*#REF!)/K9/1000 ->  | L43: =(L42*#REF!+L42*#REF!)/L9/1000 ->  | M43: =(M42*#REF!+M42*#REF!)/M9/1000 ->  | N43: =(N42*#REF!+N42*#REF!)/N9/1000 ->  | O43: =(O42*#REF!+O42*#REF!)/O9/1000 ->  | P43: =(P42*#REF!+P42*#REF!)/P9/1000 ->  | Q43: =(Q42*#REF!+Q42*#REF!)/Q9/1000 ->  | R43: =(R42*#REF!+R42*#REF!)/R9/1000 ->  | S43: =(S42*#REF!+S42*#REF!)/S9/1000 ->  | T43: =(T42*#REF!+T42*#REF!)/T9/1000 ->  | U43: =(U42*#REF!+U42*#REF!)/U9/1000 ->  | V43: =(V42*#REF!+V42*#REF!)/V9/1000 ->  | W43: =(W42*#REF!+W42*#REF!)/W9/1000 -> 
C44: Витрати на зарядку після активації, зима | E44: Expenses for charging after activation, winter | G44: тис.долл./ths.USA | H44: =(H29*(1+Припущення_Assumptions!$G$30)-H35)*Припущення_Assumptions!$G$53/1000/H9 -> 818.3324669 | I44: =(I29*(1+Припущення_Assumptions!$G$30)-I35)*Припущення_Assumptions!$G$53/1000/I9 -> 818.3324669 | J44: =(J29*(1+Припущення_Assumptions!$G$30)-J35)*Припущення_Assumptions!$G$53/1000/J9 -> 803.3978993 | K44: =(K29*(1+Припущення_Assumptions!$G$30)-K35)*Припущення_Assumptions!$G$53/1000/K9 -> 788.7358877 | L44: =(L29*(1+Припущення_Assumptions!$G$30)-L35)*Припущення_Assumptions!$G$53/1000/L9 -> 774.3414577 | M44: =(M29*(1+Припущення_Assumptions!$G$30)-M35)*Припущення_Assumptions!$G$53/1000/M9 -> 760.2097261 | N44: =(N29*(1+Припущення_Assumptions!$G$30)-N35)*Припущення_Assumptions!$G$53/1000/N9 -> 746.3358986 | O44: =(O29*(1+Припущення_Assumptions!$G$30)-O35)*Припущення_Assumptions!$G$53/1000/O9 -> 732.7152685 | P44: =(P29*(1+Припущення_Assumptions!$G$30)-P35)*Припущення_Assumptions!$G$53/1000/P9 -> 719.3432148 | Q44: =(Q29*(1+Припущення_Assumptions!$G$30)-Q35)*Припущення_Assumptions!$G$53/1000/Q9 -> 706.2152011 | R44: =(R29*(1+Припущення_Assumptions!$G$30)-R35)*Припущення_Assumptions!$G$53/1000/R9 -> 693.3267737 | S44: =(S29*(1+Припущення_Assumptions!$G$30)-S35)*Припущення_Assumptions!$G$53/1000/S9 -> 680.6735601 | T44: =(T29*(1+Припущення_Assumptions!$G$30)-T35)*Припущення_Assumptions!$G$53/1000/T9 -> 668.2512676 | U44: =(U29*(1+Припущення_Assumptions!$G$30)-U35)*Припущення_Assumptions!$G$53/1000/U9 -> 656.055682 | V44: =(V29*(1+Припущення_Assumptions!$G$30)-V35)*Припущення_Assumptions!$G$53/1000/V9 -> 644.0826658 | W44: =(W29*(1+Припущення_Assumptions!$G$30)-W35)*Припущення_Assumptions!$G$53/1000/W9 -> 632.3281572
C45: Витрати на зарядку після активації, літо | E45: Expenses for charging after activation, summer | G45: тис.долл./ths.USA | H45: =(H32*(1+Припущення_Assumptions!$G$30)-H38)*Припущення_Assumptions!$G$51/1000/H9 -> 204.5831167 | I45: =(I32*(1+Припущення_Assumptions!$G$30)-I38)*Припущення_Assumptions!$G$51/1000/I9 -> 204.5831167 | J45: =(J32*(1+Припущення_Assumptions!$G$30)-J38)*Припущення_Assumptions!$G$51/1000/J9 -> 200.8494748 | K45: =(K32*(1+Припущення_Assumptions!$G$30)-K38)*Припущення_Assumptions!$G$51/1000/K9 -> 197.1839719 | L45: =(L32*(1+Припущення_Assumptions!$G$30)-L38)*Припущення_Assumptions!$G$51/1000/L9 -> 193.5853644 | M45: =(M32*(1+Припущення_Assumptions!$G$30)-M38)*Припущення_Assumptions!$G$51/1000/M9 -> 190.0524315 | N45: =(N32*(1+Припущення_Assumptions!$G$30)-N38)*Припущення_Assumptions!$G$51/1000/N9 -> 186.5839747 | O45: =(O32*(1+Припущення_Assumptions!$G$30)-O38)*Припущення_Assumptions!$G$51/1000/O9 -> 183.1788171 | P45: =(P32*(1+Припущення_Assumptions!$G$30)-P38)*Припущення_Assumptions!$G$51/1000/P9 -> 179.8358037 | Q45: =(Q32*(1+Припущення_Assumptions!$G$30)-Q38)*Припущення_Assumptions!$G$51/1000/Q9 -> 176.5538003 | R45: =(R32*(1+Припущення_Assumptions!$G$30)-R38)*Припущення_Assumptions!$G$51/1000/R9 -> 173.3316934 | S45: =(S32*(1+Припущення_Assumptions!$G$30)-S38)*Припущення_Assumptions!$G$51/1000/S9 -> 170.16839 | T45: =(T32*(1+Припущення_Assumptions!$G$30)-T38)*Припущення_Assumptions!$G$51/1000/T9 -> 167.0628169 | U45: =(U32*(1+Припущення_Assumptions!$G$30)-U38)*Припущення_Assumptions!$G$51/1000/U9 -> 164.0139205 | V45: =(V32*(1+Припущення_Assumptions!$G$30)-V38)*Припущення_Assumptions!$G$51/1000/V9 -> 161.0206665 | W45: =(W32*(1+Припущення_Assumptions!$G$30)-W38)*Припущення_Assumptions!$G$51/1000/W9 -> 158.0820393
C46: Витрати на зарядку | E46: Expenses for charging | G46: тис.долл./ths.USA | H46: =H44+H45 -> 1022.915584 | I46: =I44+I45 -> 1022.915584 | J46: 1004.247374 | K46: 985.9198596 | L46: 967.9268222 | M46: 950.2621577 | N46: 932.9198733 | O46: 915.8940856 | P46: 899.1790185 | Q46: 882.7690014 | R46: 866.6584672 | S46: 850.8419501 | T46: 835.3140845 | U46: 820.0696025 | V46: 805.1033323 | W46: 790.4101964
B47: Економічний ефект Energy storage 10МВт (РПЧ - резерв підтримки частоти)
C48: Потужність стораджей | E48: Energy storage capacity | G48: МВт/MW | H48: =H20 -> 10 | I48: 10 | J48: 10 | K48: 10 | L48: 10 | M48: 10 | N48: 10 | O48: 10 | P48: 10 | Q48: 10 | R48: 10 | S48: 10 | T48: 10 | U48: 10 | V48: 10 | W48: 10
C49: Робоча потужність РПЧ на завантаження | E49: Working capacity of FCR for award | G49: МВт/MW | H49: =H48/2 -> 5 | I49: =I48/2 -> 5 | J49: 5 | K49: 5 | L49: 5 | M49: 5 | N49: 5 | O49: 5 | P49: 5 | Q49: 5 | R49: 5 | S49: 5 | T49: 5 | U49: 5 | V49: 5 | W49: 5
C50: Робоча потужність РПЧ на розвантаження | E50: Working capacity of FCR for downward | G50: МВт/MW | H50: =H48/2 -> 5 | I50: =I48/2 -> 5 | J50: 5 | K50: 5 | L50: 5 | M50: 5 | N50: 5 | O50: 5 | P50: 5 | Q50: 5 | R50: 5 | S50: 5 | T50: 5 | U50: 5 | V50: 5 | W50: 5
C51: Тривалість готовності до надання послуг РПЧ | E51: The time of readiness for FCR, winter | G51: год./Hours | H51: =Припущення_Assumptions!$G$42*Припущення_Assumptions!$G$47*Припущення_Assumptions!$G$29 -> 5518.8 | I51: =H51 -> 5518.8 | J51: =I51*(1-Припущення_Assumptions!$G$32) -> 5418.0819 | K51: =J51*(1-Припущення_Assumptions!$G$32) -> 5319.201905 | L51: =K51*(1-Припущення_Assumptions!$G$32) -> 5222.126471 | M51: =L51*(1-Припущення_Assumptions!$G$32) -> 5126.822662 | N51: =M51*(1-Припущення_Assumptions!$G$32) -> 5033.258149 | O51: =N51*(1-Припущення_Assumptions!$G$32) -> 4941.401188 | P51: =O51*(1-Припущення_Assumptions!$G$32) -> 4851.220616 | Q51: =P51*(1-Припущення_Assumptions!$G$32) -> 4762.68584 | R51: =Q51*(1-Припущення_Assumptions!$G$32) -> 4675.766823 | S51: =R51*(1-Припущення_Assumptions!$G$32) -> 4590.434079 | T51: =S51*(1-Припущення_Assumptions!$G$32) -> 4506.658657 | U51: =T51*(1-Припущення_Assumptions!$G$32) -> 4424.412136 | V51: =U51*(1-Припущення_Assumptions!$G$32) -> 4343.666615 | W51: =V51*(1-Припущення_Assumptions!$G$32) -> 4264.394699
C52: Тривалість готовності до надання послуг РПЧ, літо | E52: The time of readiness for FCR, summer | G52: год./Hours | H52: =Припущення_Assumptions!G25*Припущення_Assumptions!G37*Припущення_Assumptions!G39 -> 2555 | I52: =H52 -> 2555 | J52: =I52*(1-Припущення_Assumptions!$G$32) -> 2508.37125 | K52: =J52*(1-Припущення_Assumptions!$G$32) -> 2462.593475 | L52: =K52*(1-Припущення_Assumptions!$G$32) -> 2417.651144 | M52: =L52*(1-Припущення_Assumptions!$G$32) -> 2373.52901 | N52: =M52*(1-Припущення_Assumptions!$G$32) -> 2330.212106 | O52: =N52*(1-Припущення_Assumptions!$G$32) -> 2287.685735 | P52: =O52*(1-Припущення_Assumptions!$G$32) -> 2245.93547 | Q52: =P52*(1-Припущення_Assumptions!$G$32) -> 2204.947148 | R52: =Q52*(1-Припущення_Assumptions!$G$32) -> 2164.706863 | S52: =R52*(1-Припущення_Assumptions!$G$32) -> 2125.200962 | T52: =S52*(1-Припущення_Assumptions!$G$32) -> 2086.416045 | U52: =T52*(1-Припущення_Assumptions!$G$32) -> 2048.338952 | V52: =U52*(1-Припущення_Assumptions!$G$32) -> 2010.956766 | W52: =V52*(1-Припущення_Assumptions!$G$32) -> 1974.256805
C53: Дохід за надання РПЧ | E53: Efficiency of FCR, USD | G53: тис.долл./ths.USA | H53: =H51*Припущення_Assumptions!$G$46*H48/1000 -> 1922.068785 | I53: =I51*Припущення_Assumptions!$G$46*I48/1000 -> 1922.068785 | J53: =J51*Припущення_Assumptions!$G$46*J48/1000 -> 1886.99103 | K53: =K51*Припущення_Assumptions!$G$46*K48/1000 -> 1852.553443 | L53: =L51*Припущення_Assumptions!$G$46*L48/1000 -> 1818.744343 | M53: =M51*Припущення_Assumptions!$G$46*M48/1000 -> 1785.552259 | N53: =N51*Припущення_Assumptions!$G$46*N48/1000 -> 1752.96593 | O53: =O51*Припущення_Assumptions!$G$46*O48/1000 -> 1720.974302 | P53: =P51*Припущення_Assumptions!$G$46*P48/1000 -> 1689.566521 | Q53: =Q51*Припущення_Assumptions!$G$46*Q48/1000 -> 1658.731932 | R53: =R51*Припущення_Assumptions!$G$46*R48/1000 -> 1628.460074 | S53: =S51*Припущення_Assumptions!$G$46*S48/1000 -> 1598.740678 | T53: =T51*Припущення_Assumptions!$G$46*T48/1000 -> 1569.56366 | U53: =U51*Припущення_Assumptions!$G$46*U48/1000 -> 1540.919124 | V53: =V51*Припущення_Assumptions!$G$46*V48/1000 -> 1512.79735 | W53: =W51*Припущення_Assumptions!$G$46*W48/1000 -> 1485.188798
C54: Обсяг е/е, необхідний для роботи на РПЧ | E54: The amount of electricity for providing FCR | G54: МВт*год/MWh | H54: =H48/2*Припущення_Assumptions!$G$12 -> 30 | I54: =I48/2*Припущення_Assumptions!$G$12 -> 30 | J54: =J48/2*Припущення_Assumptions!$G$12*(1-Припущення_Assumptions!$G$32) -> 29.4525 | K54: =K48/2*Припущення_Assumptions!$G$12*(1-Припущення_Assumptions!$G$32)^2 -> 28.91499187 | L54: =L48/2*Припущення_Assumptions!$G$12*(1-Припущення_Assumptions!$G$32)^3 -> 28.38729327 | M54: =M48/2*Припущення_Assumptions!$G$12*(1-Припущення_Assumptions!$G$32)^4 -> 27.86922517 | N54: =N48/2*Припущення_Assumptions!$G$12*(1-Припущення_Assumptions!$G$32)^5 -> 27.36061181 | O54: =O48/2*Припущення_Assumptions!$G$12*(1-Припущення_Assumptions!$G$32)^6 -> 26.86128065 | P54: =P48/2*Припущення_Assumptions!$G$12*(1-Припущення_Assumptions!$G$32)^7 -> 26.37106227 | Q54: =Q48/2*Припущення_Assumptions!$G$12*(1-Припущення_Assumptions!$G$32)^8 -> 25.88979039 | R54: =R48/2*Припущення_Assumptions!$G$12*(1-Припущення_Assumptions!$G$32)^9 -> 25.41730171 | S54: =S48/2*Припущення_Assumptions!$G$12*(1-Припущення_Assumptions!$G$32)^10 -> 24.95343596 | T54: =T48/2*Припущення_Assumptions!$G$12*(1-Припущення_Assumptions!$G$32)^11 -> 24.49803575 | U54: =U48/2*Припущення_Assumptions!$G$12*(1-Припущення_Assumptions!$G$32)^12 -> 24.0509466 | V54: =V48/2*Припущення_Assumptions!$G$12*(1-Припущення_Assumptions!$G$32)^13 -> 23.61201682 | W54: =W48/2*Припущення_Assumptions!$G$12*(1-Припущення_Assumptions!$G$32)^14 -> 23.18109752
C55: Обсяг е/е, необхідний для дозарядки після надання ДП | E55: The amount of electricity for recharging after FCR | G55: МВт*год/MWh | H55: =H54*Припущення_Assumptions!$G$47*Припущення_Assumptions!$G$48 -> 324 | I55: =I54*Припущення_Assumptions!$G$47*Припущення_Assumptions!$G$48 -> 324 | J55: =J54*Припущення_Assumptions!$G$47*Припущення_Assumptions!$G$48 -> 318.087 | K55: =K54*Припущення_Assumptions!$G$47*Припущення_Assumptions!$G$48 -> 312.2819123 | L55: =L54*Припущення_Assumptions!$G$47*Припущення_Assumptions!$G$48 -> 306.5827674 | M55: =M54*Припущення_Assumptions!$G$47*Припущення_Assumptions!$G$48 -> 300.9876318 | N55: =N54*Припущення_Assumptions!$G$47*Припущення_Assumptions!$G$48 -> 295.4946076 | O55: =O54*Припущення_Assumptions!$G$47*Припущення_Assumptions!$G$48 -> 290.101831 | P55: =P54*Припущення_Assumptions!$G$47*Припущення_Assumptions!$G$48 -> 284.8074726 | Q55: =Q54*Припущення_Assumptions!$G$47*Припущення_Assumptions!$G$48 -> 279.6097362 | R55: =R54*Припущення_Assumptions!$G$47*Припущення_Assumptions!$G$48 -> 274.5068585 | S55: =S54*Припущення_Assumptions!$G$47*Припущення_Assumptions!$G$48 -> 269.4971083 | T55: =T54*Припущення_Assumptions!$G$47*Припущення_Assumptions!$G$48 -> 264.5787861 | U55: =U54*Припущення_Assumptions!$G$47*Припущення_Assumptions!$G$48 -> 259.7502233 | V55: =V54*Припущення_Assumptions!$G$47*Припущення_Assumptions!$G$48 -> 255.0097817 | W55: =W54*Припущення_Assumptions!$G$47*Припущення_Assumptions!$G$48 -> 250.3558532
C56: Витрати на зарядку, долл. | E56: The cost og charging, USD | G56: тис.долл./ths.USA | H56: =((H54*(H51/(H51+H52))*(1+Припущення_Assumptions!$G$30)*Припущення_Assumptions!$G$53)+(H54*(H52/(H51+H52))*(1+Припущення_Assumptions!$G$30)*Припущення_Assumptions!$G$51)+(H55*(H51/(H51+H52))*(1+Припущення_Assumptions!$G$30)*Припущення_Assumptions!$G$53)+(H55*(H52/(H51+H52))*(1+Припущення_Assumptions!$G$30)*Припущення_Assumptions!$G$51))/1000/H9 -> 13.36179268 | I56: =((I54*(I51/(I51+I52))*(1+Припущення_Assumptions!$G$30)*Припущення_Assumptions!$G$53)+(I54*(I52/(I51+I52))*(1+Припущення_Assumptions!$G$30)*Припущення_Assumptions!$G$51)+(I55*(I51/(I51+I52))*(1+Припущення_Assumptions!$G$30)*Припущення_Assumptions!$G$53)+(I55*(I52/(I51+I52))*(1+Припущення_Assumptions!$G$30)*Припущення_Assumptions!$G$51))/1000/I9 -> 13.36179268 | J56: =((J54*(J51/(J51+J52))*(1+Припущення_Assumptions!$G$30)*Припущення_Assumptions!$G$53)+(J54*(J52/(J51+J52))*(1+Припущення_Assumptions!$G$30)*Припущення_Assumptions!$G$51)+(J55*(J51/(J51+J52))*(1+Припущення_Assumptions!$G$30)*Припущення_Assumptions!$G$53)+(J55*(J52/(J51+J52))*(1+Припущення_Assumptions!$G$30)*Припущення_Assumptions!$G$51))/1000/J9 -> 13.11793997 | K56: =((K54*(K51/(K51+K52))*(1+Припущення_Assumptions!$G$30)*Припущення_Assumptions!$G$53)+(K54*(K52/(K51+K52))*(1+Припущення_Assumptions!$G$30)*Припущення_Assumptions!$G$51)+(K55*(K51/(K51+K52))*(1+Припущення_Assumptions!$G$30)*Припущення_Assumptions!$G$53)+(K55*(K52/(K51+K52))*(1+Припущення_Assumptions!$G$30)*Припущення_Assumptions!$G$51))/1000/K9 -> 12.87853756 | L56: =((L54*(L51/(L51+L52))*(1+Припущення_Assumptions!$G$30)*Припущення_Assumptions!$G$53)+(L54*(L52/(L51+L52))*(1+Припущення_Assumptions!$G$30)*Припущення_Assumptions!$G$51)+(L55*(L51/(L51+L52))*(1+Припущення_Assumptions!$G$30)*Припущення_Assumptions!$G$53)+(L55*(L52/(L51+L52))*(1+Припущення_Assumptions!$G$30)*Припущення_Assumptions!$G$51))/1000/L9 -> 12.64350425 | M56: =((M54*(M51/(M51+M52))*(1+Припущення_Assumptions!$G$30)*Припущення_Assumptions!$G$53)+(M54*(M52/(M51+M52))*(1+Припущення_Assumptions!$G$30)*Припущення_Assumptions!$G$51)+(M55*(M51/(M51+M52))*(1+Припущення_Assumptions!$G$30)*Припущення_Assumptions!$G$53)+(M55*(M52/(M51+M52))*(1+Припущення_Assumptions!$G$30)*Припущення_Assumptions!$G$51))/1000/M9 -> 12.4127603 | N56: =((N54*(N51/(N51+N52))*(1+Припущення_Assumptions!$G$30)*Припущення_Assumptions!$G$53)+(N54*(N52/(N51+N52))*(1+Припущення_Assumptions!$G$30)*Припущення_Assumptions!$G$51)+(N55*(N51/(N51+N52))*(1+Припущення_Assumptions!$G$30)*Припущення_Assumptions!$G$53)+(N55*(N52/(N51+N52))*(1+Припущення_Assumptions!$G$30)*Припущення_Assumptions!$G$51))/1000/N9 -> 12.18622742 | O56: =((O54*(O51/(O51+O52))*(1+Припущення_Assumptions!$G$30)*Припущення_Assumptions!$G$53)+(O54*(O52/(O51+O52))*(1+Припущення_Assumptions!$G$30)*Припущення_Assumptions!$G$51)+(O55*(O51/(O51+O52))*(1+Припущення_Assumptions!$G$30)*Припущення_Assumptions!$G$53)+(O55*(O52/(O51+O52))*(1+Припущення_Assumptions!$G$30)*Припущення_Assumptions!$G$51))/1000/O9 -> 11.96382877 | P56: =((P54*(P51/(P51+P52))*(1+Припущення_Assumptions!$G$30)*Припущення_Assumptions!$G$53)+(P54*(P52/(P51+P52))*(1+Припущення_Assumptions!$G$30)*Припущення_Assumptions!$G$51)+(P55*(P51/(P51+P52))*(1+Припущення_Assumptions!$G$30)*Припущення_Assumptions!$G$53)+(P55*(P52/(P51+P52))*(1+Припущення_Assumptions!$G$30)*Припущення_Assumptions!$G$51))/1000/P9 -> 11.7454889 | Q56: =((Q54*(Q51/(Q51+Q52))*(1+Припущення_Assumptions!$G$30)*Припущення_Assumptions!$G$53)+(Q54*(Q52/(Q51+Q52))*(1+Припущення_Assumptions!$G$30)*Припущення_Assumptions!$G$51)+(Q55*(Q51/(Q51+Q52))*(1+Припущення_Assumptions!$G$30)*Припущення_Assumptions!$G$53)+(Q55*(Q52/(Q51+Q52))*(1+Припущення_Assumptions!$G$30)*Припущення_Assumptions!$G$51))/1000/Q9 -> 11.53113373 | R56: =((R54*(R51/(R51+R52))*(1+Припущення_Assumptions!$G$30)*Припущення_Assumptions!$G$53)+(R54*(R52/(R51+R52))*(1+Припущення_Assumptions!$G$30)*Припущення_Assumptions!$G$51)+(R55*(R51/(R51+R52))*(1+Припущення_Assumptions!$G$30)*Припущення_Assumptions!$G$53)+(R55*(R52/(R51+R52))*(1+Припущення_Assumptions!$G$30)*Припущення_Assumptions!$G$51))/1000/R9 -> 11.32069054 | S56: =((S54*(S51/(S51+S52))*(1+Припущення_Assumptions!$G$30)*Припущення_Assumptions!$G$53)+(S54*(S52/(S51+S52))*(1+Припущення_Assumptions!$G$30)*Припущення_Assumptions!$G$51)+(S55*(S51/(S51+S52))*(1+Припущення_Assumptions!$G$30)*Припущення_Assumptions!$G$53)+(S55*(S52/(S51+S52))*(1+Припущення_Assumptions!$G$30)*Припущення_Assumptions!$G$51))/1000/S9 -> 11.11408793 | T56: =((T54*(T51/(T51+T52))*(1+Припущення_Assumptions!$G$30)*Припущення_Assumptions!$G$53)+(T54*(T52/(T51+T52))*(1+Припущення_Assumptions!$G$30)*Припущення_Assumptions!$G$51)+(T55*(T51/(T51+T52))*(1+Припущення_Assumptions!$G$30)*Припущення_Assumptions!$G$53)+(T55*(T52/(T51+T52))*(1+Припущення_Assumptions!$G$30)*Припущення_Assumptions!$G$51))/1000/T9 -> 10.91125583 | U56: =((U54*(U51/(U51+U52))*(1+Припущення_Assumptions!$G$30)*Припущення_Assumptions!$G$53)+(U54*(U52/(U51+U52))*(1+Припущення_Assumptions!$G$30)*Припущення_Assumptions!$G$51)+(U55*(U51/(U51+U52))*(1+Припущення_Assumptions!$G$30)*Припущення_Assumptions!$G$53)+(U55*(U52/(U51+U52))*(1+Припущення_Assumptions!$G$30)*Припущення_Assumptions!$G$51))/1000/U9 -> 10.71212541 | V56: =((V54*(V51/(V51+V52))*(1+Припущення_Assumptions!$G$30)*Припущення_Assumptions!$G$53)+(V54*(V52/(V51+V52))*(1+Припущення_Assumptions!$G$30)*Припущення_Assumptions!$G$51)+(V55*(V51/(V51+V52))*(1+Припущення_Assumptions!$G$30)*Припущення_Assumptions!$G$53)+(V55*(V52/(V51+V52))*(1+Припущення_Assumptions!$G$30)*Припущення_Assumptions!$G$51))/1000/V9 -> 10.51662912 | W56: =((W54*(W51/(W51+W52))*(1+Припущення_Assumptions!$G$30)*Припущення_Assumptions!$G$53)+(W54*(W52/(W51+W52))*(1+Припущення_Assumptions!$G$30)*Припущення_Assumptions!$G$51)+(W55*(W51/(W51+W52))*(1+Припущення_Assumptions!$G$30)*Припущення_Assumptions!$G$53)+(W55*(W52/(W51+W52))*(1+Припущення_Assumptions!$G$30)*Припущення_Assumptions!$G$51))/1000/W9 -> 10.32470064
C57: Тривалість зарядки з урахув. Деградації | G57: год./рік | H57: =Припущення_Assumptions!G44 -> 2737.5 | I57: =H57 -> 2737.5 | J57: =I57*(1-Припущення_Assumptions!$G$32) -> 2687.540625 | K57: =J57*(1-Припущення_Assumptions!$G$32) -> 2638.493009 | L57: =K57*(1-Припущення_Assumptions!$G$32) -> 2590.340511 | M57: =L57*(1-Припущення_Assumptions!$G$32) -> 2543.066797 | N57: =M57*(1-Припущення_Assumptions!$G$32) -> 2496.655828 | O57: =N57*(1-Припущення_Assumptions!$G$32) -> 2451.091859 | P57: =O57*(1-Припущення_Assumptions!$G$32) -> 2406.359433 | Q57: =P57*(1-Припущення_Assumptions!$G$32) -> 2362.443373 | R57: =Q57*(1-Припущення_Assumptions!$G$32) -> 2319.328781 | S57: =R57*(1-Припущення_Assumptions!$G$32) -> 2277.001031 | T57: =S57*(1-Припущення_Assumptions!$G$32) -> 2235.445762 | U57: =T57*(1-Припущення_Assumptions!$G$32) -> 2194.648877 | V57: =U57*(1-Припущення_Assumptions!$G$32) -> 2154.596535 | W57: =V57*(1-Припущення_Assumptions!$G$32) -> 2115.275148
C58: Постійні витрати | G58: тис.долл./ths.USA | H58: =Припущення_Assumptions!G9 -> 16.78 | I58: =H58*Припущення_Assumptions!$G$49 -> 16.78 | J58: =I58*Припущення_Assumptions!$G$49 -> 16.78 | K58: =J58*Припущення_Assumptions!$G$49 -> 16.78 | L58: =K58*Припущення_Assumptions!$G$49 -> 16.78 | M58: =L58*Припущення_Assumptions!$G$49 -> 16.78 | N58: =M58*Припущення_Assumptions!$G$49 -> 16.78 | O58: =N58*Припущення_Assumptions!$G$49 -> 16.78 | P58: =O58*Припущення_Assumptions!$G$49 -> 16.78 | Q58: =P58*Припущення_Assumptions!$G$49 -> 16.78 | R58: =Q58*Припущення_Assumptions!$G$49 -> 16.78 | S58: =R58*Припущення_Assumptions!$G$49 -> 16.78 | T58: =S58*Припущення_Assumptions!$G$49 -> 16.78 | U58: =T58*Припущення_Assumptions!$G$49 -> 16.78 | V58: =U58*Припущення_Assumptions!$G$49 -> 16.78 | W58: =V58*Припущення_Assumptions!$G$49 -> 16.78
B65: ПІДКАЗКА/ TIP
B67: Можливі факотри отримання техніко-економічного ефекту | I67: Possible factors of technical and economic effect
C69: 1. | D69: Додатні грошові потоки | J69: 1. | K69: Positive cash flows
D70: Приросні операційні доходи/Додатковий прибуток, отриманий від: | K70: Incremental operating income / Additional income received from:
C71: + | D71: збільшення корисного відпуску електроенергії | J71: + | K71: increase in useful electricity supply
C72: + | D72: зменшення втрат в мережі навантаження | J72: + | K72: reduction of network load losses
C73: + | D73: плати за приєднання | J73: + | K73: connection fees
C74: + | D74: сдачі старого обладнання на металолом | J74: + | K74: delivery of old equipment on scrap metal / Recycle
C75: + | D75: реалізації старого обладнання | J75: + | K75: sale of old equipment
C76: + | D76: зменшення кількості ремонтів та техобслуговування | J76: + | K76: reducing the number of repairs and maintenance
C77: + | D77: зменшення кількості працюючих на підстанції | J77: + | K77: reducing the number of workers at the substation
C78: + | D78: попередження санкцій за недотримання природоохоронного законодавства | J78: + | K78: prevention of sanctions for non-compliance with environmental legislation
C79: + | D79: енергозберігання | J79: + | K79: energy saving
C80: + | D80: збільшення тарифного доходу | J80: + | K80: increase in tariff income
C82: 2. | D82: Від'ємні грошові потоки | J82: 2. | K82: Negative Cash flows
C83: 2.1. | D83: Операційні витрати/втрати на реалізацію проєкту | J83: 2.1. | K83: Operating costs / losses for project implementation
C84: - | D84: проведення науково-дослідних робіт | J84: - | K84: conducting research work
C85: - | D85: закупка, доставка, митне оформлення | J85: - | K85: purchase, delivery, customs clearance
C86: - | D86: будівельно-монтажні роботи | J86: - | K86: construction and installation work
C87: - | D87: зупинка роботи, яка була викликана необхідністю монтажну додаткового обладнання | J87: - | K87: stoppage of work, which was caused by the need to install additional equipment
C88: - | D88: сертифікація обладнання оформлення необхідних дозволів | J88: - | K88: certification of equipment for the issuance of necessary permits
C89: - | D89: навчання персоналу | J89: - | K89: staff training
C91: 2.2. | D91: Пиросні операційні витрати | J91: 2.2. | K91: Increasing operating costs
C92: - | D92: скророчення виробітку іншого обладнання при роботі встановленого | J92: - | K92: reduction of production of other equipment at work of the established
C93: - | D93: основні матеріали та енергоресурси, необхідні для роботи обладнання | J93: - | K93: basic materials and energy resources required for the operation of the equipment
C94: - | D94: додатковий персонал | J94: - | K94: additional staff
C95: - | D95: утилізація відходів | J95: - | K95: waste disposal
C96: - | D96: підтримка роботи та оновлення програмного забезпечення | J96: - | K96: support and software updates
C97: - | D97: ТО | J97: - | K97: Technical inspection

Sheet CFF
B1: УКР | O1: ENG
A2: РОЗРАХУНОК ВИПЛАТИ КРЕДИТУ | F2: =Головна_Summary!A2 -> Energy storage system 10МВт | O2: CALCULATION OF LOAN PAYMENT | T2: =Головна_Summary!K2 -> Energy storage system 10 MW
E3: рік | S3: years
A4: Дата надання кредиту | C4: ІІ півріччя | E4: 2024 | G4: Ставка відсотків для власних коштів | J4: 0 | O4: Date of loan | Q4: =IF(C4=B53,C53,C54) -> II half a year | S4: =E4 -> 2024 | V4: Interest rate for own funds | X4: =J4 -> 0
A6: Доля кредитних коштів | C6: 1 | G6: Ставка дисконтування | J6: 0.155 | O6: The share of Loan amount | Q6: =C6 -> 1 | U6: Discount rate | X6: =J6 -> 0.155
A8: Сума кредиту | C8: =C6*'Фінансування_Financing (CFI)'!J15 -> 9000 | E8: =Головна_Summary!AD5 -> тис.US$/ ths.US$ | H8: Всього | J8: =J16+J14+J12+J10+J18 -> 7725 | K8: =Головна_Summary!AD5 -> тис.US$/ ths.US$ | O8: Loan amount | Q8: =C8 -> 9000 | S8: =E8 -> тис.US$/ ths.US$ | V8: Total | X8: =X16+X14+X12+X10+X18 -> 7725 | Y8: =K8 -> тис.US$/ ths.US$
A10: Сума власних коштів | C10: =IF(Головна_Summary!H13="Кредитні кошти",('Фінансування_Financing (CFI)'!J15:K15)*0,IF(Головна_Summary!H13="Власні кошти",'Фінансування_Financing (CFI)'!J15:K15*1,'Фінансування_Financing (CFI)'!J15:K15*(1-CFF!C6))) -> 0 | D10: 0 | E10: =E8 -> тис.US$/ ths.US$ | G10: Всього відсотків банку | J10: =SUM(E31:CH31) -> 1725 | K10: =Головна_Summary!AD5 -> тис.US$/ ths.US$ | O10: Own funds | Q10: =C10 -> 0 | S10: =S8 -> тис.US$/ ths.US$ | U10: Total bank interest | X10: =SUM(E31:CH31) -> 1725 | Y10: =K10 -> тис.US$/ ths.US$
A12: Термін надання кредиту | C12: 5 | E12: роки | H12: Всього комісія за зобов'язання | J12: =SUM(E32:CH32) -> 0 | K12: =Головна_Summary!AD5 -> тис.US$/ ths.US$ | O12: Loan term | Q12: =C12 -> 5 | S12: years | V12: Total obligations fee | X12: =SUM(S32:CV32) -> 0 | Y12: =K12 -> тис.US$/ ths.US$
A14: Пільговий період | C14: 0 | E14: роки | G14: Всього маржа МФУ | J14: =SUM(E33:CH33) -> 0 | K14: =Головна_Summary!AD5 -> тис.US$/ ths.US$ | O14: Privilege period | Q14: =C14 -> 0 | S14: years | U14: Total state guarantee fee | X14: =SUM(E33:CH33) -> 0 | Y14: =K14 -> тис.US$/ ths.US$
A16: Ставка відсотків | C16: 0.1 | E16: річних | G16: Всього використання коштів | J16: =SUM(E30:CH30) -> 6000 | K16: =Головна_Summary!AD5 -> тис.US$/ ths.US$ | O16: Interest rate | Q16: =C16 -> 0.1 | S16: annual | U16: Total use of funds | X16: =SUM(E30:CH30) -> 6000 | Y16: =K16 -> тис.US$/ ths.US$
A18: Ставка одноразової комісії | C18: 0 | E18: річних | H18: Одноразова комісія | J18: =SUM(E29:CH29) -> 0 | O18: One-time fee rate | Q18: =C18 -> 0 | S18: annual | V18: One-time fee | X18: =SUM(S29:CV29) -> 0
A20: Ставка комісійних відсотків | C20: 0 | E20: річних | H20: Кількість періодів | J20: =(C12-C14)*2 -> 10 | O20: Commission interest rate | Q20: =C20 -> 0 | S20: annual | V20: Period | X20: =(Q12-Q14)*2 -> 10
J21: кредит | K21: власні | L21: загальна | X21: Loan | Y21: Own funds | Z21: Total
A22: Ставка плати за надання державної гарантії | C22: 0 | E22: річних | G22: Ефективна ставка | J22: =IFERROR(MODE(F51:CG51),"-") -> -0.06619888197 | K22: =IFERROR((SUM(E44:CH44)-SUM(E39:CH39))/SUM(E39:CH39),"Н/Д") -> Н/Д | L22: =IFERROR(J22*C6+(1-C6)*K22,"-") -> - | O22: The interest rate for the state guarantee | Q22: =C22 -> 0 | S22: annual | U22: Effective rate | X22: =J22 -> -0.06619888197 | Y22: =K22 -> Н/Д | Z22: =L22 -> -
E23: =CONCATENATE(E26,E25) -> 02024 | F23: =CONCATENATE(F26,E25) -> II півріччя/ half a year2024 | G23: =CONCATENATE(G26,G25) -> I півріччя/ half a year2025 | H23: =CONCATENATE(H26,G25) -> II півріччя/ half a year2025 | I23: =CONCATENATE(I26,I25) -> I півріччя/ half a year2026 | J23: =CONCATENATE(J26,I25) -> II півріччя/ half a year2026 | K23: =CONCATENATE(K26,K25) -> I півріччя/ half a year2027 | L23: =CONCATENATE(L26,K25) -> II півріччя/ half a year2027 | M23: =CONCATENATE(M26,M25) -> I півріччя/ half a year2028 | N23: =CONCATENATE(N26,M25) -> II півріччя/ half a year2028 | O23: =CONCATENATE(O26,O25) -> I півріччя/ half a year2029 | P23: =CONCATENATE(P26,O25) -> II півріччя/ half a year2029 | Q23: =CONCATENATE(Q26,Q25) -> I півріччя/ half a year0 | R23: =CONCATENATE(R26,Q25) -> II півріччя/ half a year0 | S23: =CONCATENATE(S26,S25) -> I півріччя/ half a year0 | T23: =CONCATENATE(T26,S25) -> II півріччя/ half a year0 | U23: =CONCATENATE(U26,U25) -> I півріччя/ half a year0 | V23: =CONCATENATE(V26,U25) -> II півріччя/ half a year0 | W23: =CONCATENATE(W26,W25) -> I півріччя/ half a year0 | X23: =CONCATENATE(X26,W25) -> II півріччя/ half a year0 | Y23: =CONCATENATE(Y26,Y25) -> I півріччя/ half a year0 | Z23: =CONCATENATE(Z26,Y25) -> II півріччя/ half a year0 | AA23: I півріччя/ half a year | AB23: II півріччя/ half a year | AC23: I півріччя/ half a year | AD23: II півріччя/ half a year0 | AE23: I півріччя/ half a year0 | AF23: II півріччя/ half a year0 | AG23: I півріччя/ half a year | AH23: II півріччя/ half a year | AI23: I півріччя/ half a year | AJ23: II півріччя/ half a year0 | AK23: I півріччя/ half a year0 | AL23: II півріччя/ half a year0 | AM23: I півріччя/ half a year | AN23: II півріччя/ half a year | AO23: I півріччя/ half a year | AP23: II півріччя/ half a year0 | AQ23: I півріччя/ half a year0 | AR23: II півріччя/ half a year0 | AS23: I півріччя/ half a year | AT23: II півріччя/ half a year | AU23: I півріччя/ half a year | AV23: II півріччя/ half a year0 | AW23: I півріччя/ half a year0 | AX23: II півріччя/ half a year0 | AY23: I півріччя/ half a year | AZ23: II півріччя/ half a year | BA23: I півріччя/ half a year | BB23: II півріччя/ half a year0 | BC23: I півріччя/ half a year0 | BD23: II півріччя/ half a year0 | BE23: I півріччя/ half a year | BF23: II півріччя/ half a year | BG23: I півріччя/ half a year | BH23: II півріччя/ half a year0 | BI23: I півріччя/ half a year0 | BJ23: II півріччя/ half a year0 | BK23: I півріччя/ half a year | BL23: II півріччя/ half a year | BM23: I півріччя/ half a year | BN23: II півріччя/ half a year0 | BO23: I півріччя/ half a year0 | BP23: II півріччя/ half a year0 | BQ23: I півріччя/ half a year | BR23: II півріччя/ half a year | BS23: I півріччя/ half a year | BT23: II півріччя/ half a year0 | BU23: I півріччя/ half a year0 | BV23: II півріччя/ half a year0 | BW23: I півріччя/ half a year | BX23: II півріччя/ half a year | BY23: I півріччя/ half a year | BZ23: II півріччя/ half a year0 | CA23: I півріччя/ half a year0 | CB23: II півріччя/ half a year0 | CC23: I півріччя/ half a year | CD23: II півріччя/ half a year | CE23: I півріччя/ half a year | CF23: II півріччя/ half a year0 | CG23: I півріччя/ half a year0 | CH23: II півріччя/ half a year0
E24: 0 | F24: =IF(SUM($E$24:E24)=0,IF((COUNTA($E$26:E26)-COUNTIF($E$26:E26,0))<$C$14*2,0,$J$20),IF(COUNTIF($E$24:E24,">0")<$J$20,E24-1,0)) -> 10 | G24: =IF(SUM($E$24:F24)=0,IF((COUNTA($E$26:F26)-COUNTIF($E$26:F26,0))<$C$14*2,0,$J$20),IF(COUNTIF($E$24:F24,">0")<$J$20,F24-1,0)) -> 9 | H24: =IF(SUM($E$24:G24)=0,IF((COUNTA($E$26:G26)-COUNTIF($E$26:G26,0))<$C$14*2,0,$J$20),IF(COUNTIF($E$24:G24,">0")<$J$20,G24-1,0)) -> 8 | I24: =IF(SUM($E$24:H24)=0,IF((COUNTA($E$26:H26)-COUNTIF($E$26:H26,0))<$C$14*2,0,$J$20),IF(COUNTIF($E$24:H24,">0")<$J$20,H24-1,0)) -> 7 | J24: =IF(SUM($E$24:I24)=0,IF((COUNTA($E$26:I26)-COUNTIF($E$26:I26,0))<$C$14*2,0,$J$20),IF(COUNTIF($E$24:I24,">0")<$J$20,I24-1,0)) -> 6 | K24: =IF(SUM($E$24:J24)=0,IF((COUNTA($E$26:J26)-COUNTIF($E$26:J26,0))<$C$14*2,0,$J$20),IF(COUNTIF($E$24:J24,">0")<$J$20,J24-1,0)) -> 5 | L24: =IF(SUM($E$24:K24)=0,IF((COUNTA($E$26:K26)-COUNTIF($E$26:K26,0))<$C$14*2,0,$J$20),IF(COUNTIF($E$24:K24,">0")<$J$20,K24-1,0)) -> 4 | M24: =IF(SUM($E$24:L24)=0,IF((COUNTA($E$26:L26)-COUNTIF($E$26:L26,0))<$C$14*2,0,$J$20),IF(COUNTIF($E$24:L24,">0")<$J$20,L24-1,0)) -> 3 | N24: =IF(SUM($E$24:M24)=0,IF((COUNTA($E$26:M26)-COUNTIF($E$26:M26,0))<$C$14*2,0,$J$20),IF(COUNTIF($E$24:M24,">0")<$J$20,M24-1,0)) -> 2 | O24: =IF(SUM($E$24:N24)=0,IF((COUNTA($E$26:N26)-COUNTIF($E$26:N26,0))<$C$14*2,0,$J$20),IF(COUNTIF($E$24:N24,">0")<$J$20,N24-1,0)) -> 1 | P24: =IF(SUM($E$24:O24)=0,IF((COUNTA($E$26:O26)-COUNTIF($E$26:O26,0))<$C$14*2,0,$J$20),IF(COUNTIF($E$24:O24,">0")<$J$20,O24-1,0)) -> 0 | Q24: =IF(SUM($E$24:P24)=0,IF((COUNTA($E$26:P26)-COUNTIF($E$26:P26,0))<$C$14*2,0,$J$20),IF(COUNTIF($E$24:P24,">0")<$J$20,P24-1,0)) -> 0 | R24: =IF(SUM($E$24:Q24)=0,IF((COUNTA($E$26:Q26)-COUNTIF($E$26:Q26,0))<$C$14*2,0,$J$20),IF(COUNTIF($E$24:Q24,">0")<$J$20,Q24-1,0)) -> 0 | S24: =IF(SUM($E$24:R24)=0,IF((COUNTA($E$26:R26)-COUNTIF($E$26:R26,0))<$C$14*2,0,$J$20),IF(COUNTIF($E$24:R24,">0")<$J$20,R24-1,0)) -> 0 | T24: =IF(SUM($E$24:S24)=0,IF((COUNTA($E$26:S26)-COUNTIF($E$26:S26,0))<$C$14*2,0,$J$20),IF(COUNTIF($E$24:S24,">0")<$J$20,S24-1,0)) -> 0 | U24: =IF(SUM($E$24:T24)=0,IF((COUNTA($E$26:T26)-COUNTIF($E$26:T26,0))<$C$14*2,0,$J$20),IF(COUNTIF($E$24:T24,">0")<$J$20,T24-1,0)) -> 0 | V24: =IF(SUM($E$24:U24)=0,IF((COUNTA($E$26:U26)-COUNTIF($E$26:U26,0))<$C$14*2,0,$J$20),IF(COUNTIF($E$24:U24,">0")<$J$20,U24-1,0)) -> 0 | W24: =IF(SUM($E$24:V24)=0,IF((COUNTA($E$26:V26)-COUNTIF($E$26:V26,0))<$C$14*2,0,$J$20),IF(COUNTIF($E$24:V24,">0")<$J$20,V24-1,0)) -> 0 | X24: =IF(SUM($E$24:W24)=0,IF((COUNTA($E$26:W26)-COUNTIF($E$26:W26,0))<$C$14*2,0,$J$20),IF(COUNTIF($E$24:W24,">0")<$J$20,W24-1,0)) -> 0 | Y24: =IF(SUM($E$24:X24)=0,IF((COUNTA($E$26:X26)-COUNTIF($E$26:X26,0))<$C$14*2,0,$J$20),IF(COUNTIF($E$24:X24,">0")<$J$20,X24-1,0)) -> 0 | Z24: =IF(SUM($E$24:Y24)=0,IF((COUNTA($E$26:Y26)-COUNTIF($E$26:Y26,0))<$C$14*2,0,$J$20),IF(COUNTIF($E$24:Y24,">0")<$J$20,Y24-1,0)) -> 0 | AA24: =IF(SUM($E$24:Z24)=0,IF((COUNTA($E$26:Z26)-COUNTIF($E$26:Z26,0))<$C$14*2,0,$J$20),IF(COUNTIF($E$24:Z24,">0")<$J$20,Z24-1,0)) -> 0 | AB24: =IF(SUM($E$24:AA24)=0,IF((COUNTA($E$26:AA26)-COUNTIF($E$26:AA26,0))<$C$14*2,0,$J$20),IF(COUNTIF($E$24:AA24,">0")<$J$20,AA24-1,0)) -> 0 | AC24: =IF(SUM($E$24:AB24)=0,IF((COUNTA($E$26:AB26)-COUNTIF($E$26:AB26,0))<$C$14*2,0,$J$20),IF(COUNTIF($E$24:AB24,">0")<$J$20,AB24-1,0)) -> 0 | AD24: =IF(SUM($E$24:AC24)=0,IF((COUNTA($E$26:AC26)-COUNTIF($E$26:AC26,0))<$C$14*2,0,$J$20),IF(COUNTIF($E$24:AC24,">0")<$J$20,AC24-1,0)) -> 0 | AE24: =IF(SUM($E$24:AD24)=0,IF((COUNTA($E$26:AD26)-COUNTIF($E$26:AD26,0))<$C$14*2,0,$J$20),IF(COUNTIF($E$24:AD24,">0")<$J$20,AD24-1,0)) -> 0 | AF24: =IF(SUM($E$24:AE24)=0,IF((COUNTA($E$26:AE26)-COUNTIF($E$26:AE26,0))<$C$14*2,0,$J$20),IF(COUNTIF($E$24:AE24,">0")<$J$20,AE24-1,0)) -> 0 | AG24: =IF(SUM($E$24:AF24)=0,IF((COUNTA($E$26:AF26)-COUNTIF($E$26:AF26,0))<$C$14*2,0,$J$20),IF(COUNTIF($E$24:AF24,">0")<$J$20,AF24-1,0)) -> 0 | AH24: =IF(SUM($E$24:AG24)=0,IF((COUNTA($E$26:AG26)-COUNTIF($E$26:AG26,0))<$C$14*2,0,$J$20),IF(COUNTIF($E$24:AG24,">0")<$J$20,AG24-1,0)) -> 0 | AI24: =IF(SUM($E$24:AH24)=0,IF((COUNTA($E$26:AH26)-COUNTIF($E$26:AH26,0))<$C$14*2,0,$J$20),IF(COUNTIF($E$24:AH24,">0")<$J$20,AH24-1,0)) -> 0 | AJ24: =IF(SUM($E$24:AI24)=0,IF((COUNTA($E$26:AI26)-COUNTIF($E$26:AI26,0))<$C$14*2,0,$J$20),IF(COUNTIF($E$24:AI24,">0")<$J$20,AI24-1,0)) -> 0 | AK24: =IF(SUM($E$24:AJ24)=0,IF((COUNTA($E$26:AJ26)-COUNTIF($E$26:AJ26,0))<$C$14*2,0,$J$20),IF(COUNTIF($E$24:AJ24,">0")<$J$20,AJ24-1,0)) -> 0 | AL24: =IF(SUM($E$24:AK24)=0,IF((COUNTA($E$26:AK26)-COUNTIF($E$26:AK26,0))<$C$14*2,0,$J$20),IF(COUNTIF($E$24:AK24,">0")<$J$20,AK24-1,0)) -> 0 | AM24: =IF(SUM($E$24:AL24)=0,IF((COUNTA($E$26:AL26)-COUNTIF($E$26:AL26,0))<$C$14*2,0,$J$20),IF(COUNTIF($E$24:AL24,">0")<$J$20,AL24-1,0)) -> 0 | AN24: =IF(SUM($E$24:AM24)=0,IF((COUNTA($E$26:AM26)-COUNTIF($E$26:AM26,0))<$C$14*2,0,$J$20),IF(COUNTIF($E$24:AM24,">0")<$J$20,AM24-1,0)) -> 0 | AO24: =IF(SUM($E$24:AN24)=0,IF((COUNTA($E$26:AN26)-COUNTIF($E$26:AN26,0))<$C$14*2,0,$J$20),IF(COUNTIF($E$24:AN24,">0")<$J$20,AN24-1,0)) -> 0 | AP24: =IF(SUM($E$24:AO24)=0,IF((COUNTA($E$26:AO26)-COUNTIF($E$26:AO26,0))<$C$14*2,0,$J$20),IF(COUNTIF($E$24:AO24,">0")<$J$20,AO24-1,0)) -> 0 | AQ24: =IF(SUM($E$24:AP24)=0,IF((COUNTA($E$26:AP26)-COUNTIF($E$26:AP26,0))<$C$14*2,0,$J$20),IF(COUNTIF($E$24:AP24,">0")<$J$20,AP24-1,0)) -> 0 | AR24: =IF(SUM($E$24:AQ24)=0,IF((COUNTA($E$26:AQ26)-COUNTIF($E$26:AQ26,0))<$C$14*2,0,$J$20),IF(COUNTIF($E$24:AQ24,">0")<$J$20,AQ24-1,0)) -> 0 | AS24: =IF(SUM($E$24:AR24)=0,IF((COUNTA($E$26:AR26)-COUNTIF($E$26:AR26,0))<$C$14*2,0,$J$20),IF(COUNTIF($E$24:AR24,">0")<$J$20,AR24-1,0)) -> 0 | AT24: =IF(SUM($E$24:AS24)=0,IF((COUNTA($E$26:AS26)-COUNTIF($E$26:AS26,0))<$C$14*2,0,$J$20),IF(COUNTIF($E$24:AS24,">0")<$J$20,AS24-1,0)) -> 0 | AU24: =IF(SUM($E$24:AT24)=0,IF((COUNTA($E$26:AT26)-COUNTIF($E$26:AT26,0))<$C$14*2,0,$J$20),IF(COUNTIF($E$24:AT24,">0")<$J$20,AT24-1,0)) -> 0 | AV24: =IF(SUM($E$24:AU24)=0,IF((COUNTA($E$26:AU26)-COUNTIF($E$26:AU26,0))<$C$14*2,0,$J$20),IF(COUNTIF($E$24:AU24,">0")<$J$20,AU24-1,0)) -> 0 | AW24: =IF(SUM($E$24:AV24)=0,IF((COUNTA($E$26:AV26)-COUNTIF($E$26:AV26,0))<$C$14*2,0,$J$20),IF(COUNTIF($E$24:AV24,">0")<$J$20,AV24-1,0)) -> 0 | AX24: =IF(SUM($E$24:AW24)=0,IF((COUNTA($E$26:AW26)-COUNTIF($E$26:AW26,0))<$C$14*2,0,$J$20),IF(COUNTIF($E$24:AW24,">0")<$J$20,AW24-1,0)) -> 0 | AY24: =IF(SUM($E$24:AX24)=0,IF((COUNTA($E$26:AX26)-COUNTIF($E$26:AX26,0))<$C$14*2,0,$J$20),IF(COUNTIF($E$24:AX24,">0")<$J$20,AX24-1,0)) -> 0 | AZ24: =IF(SUM($E$24:AY24)=0,IF((COUNTA($E$26:AY26)-COUNTIF($E$26:AY26,0))<$C$14*2,0,$J$20),IF(COUNTIF($E$24:AY24,">0")<$J$20,AY24-1,0)) -> 0 | BA24: =IF(SUM($E$24:AZ24)=0,IF((COUNTA($E$26:AZ26)-COUNTIF($E$26:AZ26,0))<$C$14*2,0,$J$20),IF(COUNTIF($E$24:AZ24,">0")<$J$20,AZ24-1,0)) -> 0 | BB24: =IF(SUM($E$24:BA24)=0,IF((COUNTA($E$26:BA26)-COUNTIF($E$26:BA26,0))<$C$14*2,0,$J$20),IF(COUNTIF($E$24:BA24,">0")<$J$20,BA24-1,0)) -> 0 | BC24: =IF(SUM($E$24:BB24)=0,IF((COUNTA($E$26:BB26)-COUNTIF($E$26:BB26,0))<$C$14*2,0,$J$20),IF(COUNTIF($E$24:BB24,">0")<$J$20,BB24-1,0)) -> 0 | BD24: =IF(SUM($E$24:BC24)=0,IF((COUNTA($E$26:BC26)-COUNTIF($E$26:BC26,0))<$C$14*2,0,$J$20),IF(COUNTIF($E$24:BC24,">0")<$J$20,BC24-1,0)) -> 0 | BE24: =IF(SUM($E$24:BD24)=0,IF((COUNTA($E$26:BD26)-COUNTIF($E$26:BD26,0))<$C$14*2,0,$J$20),IF(COUNTIF($E$24:BD24,">0")<$J$20,BD24-1,0)) -> 0 | BF24: =IF(SUM($E$24:BE24)=0,IF((COUNTA($E$26:BE26)-COUNTIF($E$26:BE26,0))<$C$14*2,0,$J$20),IF(COUNTIF($E$24:BE24,">0")<$J$20,BE24-1,0)) -> 0 | BG24: =IF(SUM($E$24:BF24)=0,IF((COUNTA($E$26:BF26)-COUNTIF($E$26:BF26,0))<$C$14*2,0,$J$20),IF(COUNTIF($E$24:BF24,">0")<$J$20,BF24-1,0)) -> 0 | BH24: =IF(SUM($E$24:BG24)=0,IF((COUNTA($E$26:BG26)-COUNTIF($E$26:BG26,0))<$C$14*2,0,$J$20),IF(COUNTIF($E$24:BG24,">0")<$J$20,BG24-1,0)) -> 0 | BI24: =IF(SUM($E$24:BH24)=0,IF((COUNTA($E$26:BH26)-COUNTIF($E$26:BH26,0))<$C$14*2,0,$J$20),IF(COUNTIF($E$24:BH24,">0")<$J$20,BH24-1,0)) -> 0 | BJ24: =IF(SUM($E$24:BI24)=0,IF((COUNTA($E$26:BI26)-COUNTIF($E$26:BI26,0))<$C$14*2,0,$J$20),IF(COUNTIF($E$24:BI24,">0")<$J$20,BI24-1,0)) -> 0 | BK24: =IF(SUM($E$24:BJ24)=0,IF((COUNTA($E$26:BJ26)-COUNTIF($E$26:BJ26,0))<$C$14*2,0,$J$20),IF(COUNTIF($E$24:BJ24,">0")<$J$20,BJ24-1,0)) -> 0 | BL24: =IF(SUM($E$24:BK24)=0,IF((COUNTA($E$26:BK26)-COUNTIF($E$26:BK26,0))<$C$14*2,0,$J$20),IF(COUNTIF($E$24:BK24,">0")<$J$20,BK24-1,0)) -> 0 | BM24: =IF(SUM($E$24:BL24)=0,IF((COUNTA($E$26:BL26)-COUNTIF($E$26:BL26,0))<$C$14*2,0,$J$20),IF(COUNTIF($E$24:BL24,">0")<$J$20,BL24-1,0)) -> 0 | BN24: =IF(SUM($E$24:BM24)=0,IF((COUNTA($E$26:BM26)-COUNTIF($E$26:BM26,0))<$C$14*2,0,$J$20),IF(COUNTIF($E$24:BM24,">0")<$J$20,BM24-1,0)) -> 0 | BO24: =IF(SUM($E$24:BN24)=0,IF((COUNTA($E$26:BN26)-COUNTIF($E$26:BN26,0))<$C$14*2,0,$J$20),IF(COUNTIF($E$24:BN24,">0")<$J$20,BN24-1,0)) -> 0 | BP24: =IF(SUM($E$24:BO24)=0,IF((COUNTA($E$26:BO26)-COUNTIF($E$26:BO26,0))<$C$14*2,0,$J$20),IF(COUNTIF($E$24:BO24,">0")<$J$20,BO24-1,0)) -> 0 | BQ24: =IF(SUM($E$24:BP24)=0,IF((COUNTA($E$26:BP26)-COUNTIF($E$26:BP26,0))<$C$14*2,0,$J$20),IF(COUNTIF($E$24:BP24,">0")<$J$20,BP24-1,0)) -> 0 | BR24: =IF(SUM($E$24:BQ24)=0,IF((COUNTA($E$26:BQ26)-COUNTIF($E$26:BQ26,0))<$C$14*2,0,$J$20),IF(COUNTIF($E$24:BQ24,">0")<$J$20,BQ24-1,0)) -> 0 | BS24: =IF(SUM($E$24:BR24)=0,IF((COUNTA($E$26:BR26)-COUNTIF($E$26:BR26,0))<$C$14*2,0,$J$20),IF(COUNTIF($E$24:BR24,">0")<$J$20,BR24-1,0)) -> 0 | BT24: =IF(SUM($E$24:BS24)=0,IF((COUNTA($E$26:BS26)-COUNTIF($E$26:BS26,0))<$C$14*2,0,$J$20),IF(COUNTIF($E$24:BS24,">0")<$J$20,BS24-1,0)) -> 0 | BU24: =IF(SUM($E$24:BT24)=0,IF((COUNTA($E$26:BT26)-COUNTIF($E$26:BT26,0))<$C$14*2,0,$J$20),IF(COUNTIF($E$24:BT24,">0")<$J$20,BT24-1,0)) -> 0 | BV24: =IF(SUM($E$24:BU24)=0,IF((COUNTA($E$26:BU26)-COUNTIF($E$26:BU26,0))<$C$14*2,0,$J$20),IF(COUNTIF($E$24:BU24,">0")<$J$20,BU24-1,0)) -> 0 | BW24: =IF(SUM($E$24:BV24)=0,IF((COUNTA($E$26:BV26)-COUNTIF($E$26:BV26,0))<$C$14*2,0,$J$20),IF(COUNTIF($E$24:BV24,">0")<$J$20,BV24-1,0)) -> 0 | BX24: =IF(SUM($E$24:BW24)=0,IF((COUNTA($E$26:BW26)-COUNTIF($E$26:BW26,0))<$C$14*2,0,$J$20),IF(COUNTIF($E$24:BW24,">0")<$J$20,BW24-1,0)) -> 0 | BY24: =IF(SUM($E$24:BX24)=0,IF((COUNTA($E$26:BX26)-COUNTIF($E$26:BX26,0))<$C$14*2,0,$J$20),IF(COUNTIF($E$24:BX24,">0")<$J$20,BX24-1,0)) -> 0 | BZ24: =IF(SUM($E$24:BY24)=0,IF((COUNTA($E$26:BY26)-COUNTIF($E$26:BY26,0))<$C$14*2,0,$J$20),IF(COUNTIF($E$24:BY24,">0")<$J$20,BY24-1,0)) -> 0 | CA24: =IF(SUM($E$24:BZ24)=0,IF((COUNTA($E$26:BZ26)-COUNTIF($E$26:BZ26,0))<$C$14*2,0,$J$20),IF(COUNTIF($E$24:BZ24,">0")<$J$20,BZ24-1,0)) -> 0 | CB24: =IF(SUM($E$24:CA24)=0,IF((COUNTA($E$26:CA26)-COUNTIF($E$26:CA26,0))<$C$14*2,0,$J$20),IF(COUNTIF($E$24:CA24,">0")<$J$20,CA24-1,0)) -> 0 | CC24: =IF(SUM($E$24:CB24)=0,IF((COUNTA($E$26:CB26)-COUNTIF($E$26:CB26,0))<$C$14*2,0,$J$20),IF(COUNTIF($E$24:CB24,">0")<$J$20,CB24-1,0)) -> 0 | CD24: =IF(SUM($E$24:CC24)=0,IF((COUNTA($E$26:CC26)-COUNTIF($E$26:CC26,0))<$C$14*2,0,$J$20),IF(COUNTIF($E$24:CC24,">0")<$J$20,CC24-1,0)) -> 0 | CE24: =IF(SUM($E$24:CD24)=0,IF((COUNTA($E$26:CD26)-COUNTIF($E$26:CD26,0))<$C$14*2,0,$J$20),IF(COUNTIF($E$24:CD24,">0")<$J$20,CD24-1,0)) -> 0 | CF24: =IF(SUM($E$24:CE24)=0,IF((COUNTA($E$26:CE26)-COUNTIF($E$26:CE26,0))<$C$14*2,0,$J$20),IF(COUNTIF($E$24:CE24,">0")<$J$20,CE24-1,0)) -> 0 | CG24: =IF(SUM($E$24:CF24)=0,IF((COUNTA($E$26:CF26)-COUNTIF($E$26:CF26,0))<$C$14*2,0,$J$20),IF(COUNTIF($E$24:CF24,">0")<$J$20,CF24-1,0)) -> 0 | CH24: =IF(SUM($E$24:CG24)=0,IF((COUNTA($E$26:CG26)-COUNTIF($E$26:CG26,0))<$C$14*2,0,$J$20),IF(COUNTIF($E$24:CG24,">0")<$J$20,CG24-1,0)) -> 0
E25: =E4 -> 2024 | G25: =IF(E25=0,0,IF(($E$4+$C$12+1)>E25+1,E25+1,0)) -> 2025 | I25: =IF(G25=0,0,IF(($E$4+$C$12+1)>G25+1,G25+1,0)) -> 2026 | K25: =IF(I25=0,0,IF(($E$4+$C$12+1)>I25+1,I25+1,0)) -> 2027 | M25: =IF(K25=0,0,IF(($E$4+$C$12+1)>K25+1,K25+1,0)) -> 2028 | O25: =IF(M25=0,0,IF(($E$4+$C$12+1)>M25+1,M25+1,0)) -> 2029 | Q25: =IF(O25=0,0,IF(($E$4+$C$12+1)>O25+1,O25+1,0)) -> 0 | S25: =IF(Q25=0,0,IF(($E$4+$C$12+1)>Q25+1,Q25+1,0)) -> 0 | U25: =IF(S25=0,0,IF(($E$4+$C$12+1)>S25+1,S25+1,0)) -> 0 | W25: =IF(U25=0,0,IF(($E$4+$C$12+1)>U25+1,U25+1,0)) -> 0 | Y25: =IF(W25=0,0,IF(($E$4+$C$12+1)>W25+1,W25+1,0)) -> 0 | AA25: =IF(Y25=0,0,IF(($E$4+$C$12+1)>Y25+1,Y25+1,0)) -> 0 | AC25: =IF(AA25=0,0,IF(($E$4+$C$12+1)>AA25+1,AA25+1,0)) -> 0 | AE25: =IF(AC25=0,0,IF(($E$4+$C$12+1)>AC25+1,AC25+1,0)) -> 0 | AG25: =IF(AE25=0,0,IF(($E$4+$C$12+1)>AE25+1,AE25+1,0)) -> 0 | AI25: =IF(AG25=0,0,IF(($E$4+$C$12+1)>AG25+1,AG25+1,0)) -> 0 | AK25: =IF(AI25=0,0,IF(($E$4+$C$12+1)>AI25+1,AI25+1,0)) -> 0 | AM25: =IF(AK25=0,0,IF(($E$4+$C$12+1)>AK25+1,AK25+1,0)) -> 0 | AO25: =IF(AM25=0,0,IF(($E$4+$C$12+1)>AM25+1,AM25+1,0)) -> 0 | AQ25: =IF(AO25=0,0,IF(($E$4+$C$12+1)>AO25+1,AO25+1,0)) -> 0 | AS25: =IF(AQ25=0,0,IF(($E$4+$C$12+1)>AQ25+1,AQ25+1,0)) -> 0 | AU25: =IF(AS25=0,0,IF(($E$4+$C$12+1)>AS25+1,AS25+1,0)) -> 0 | AW25: =IF(AU25=0,0,IF(($E$4+$C$12+1)>AU25+1,AU25+1,0)) -> 0 | AY25: =IF(AW25=0,0,IF(($E$4+$C$12+1)>AW25+1,AW25+1,0)) -> 0 | BA25: =IF(AY25=0,0,IF(($E$4+$C$12+1)>AY25+1,AY25+1,0)) -> 0 | BC25: =IF(BA25=0,0,IF(($E$4+$C$12+1)>BA25+1,BA25+1,0)) -> 0 | BE25: =IF(BC25=0,0,IF(($E$4+$C$12+1)>BC25+1,BC25+1,0)) -> 0 | BG25: =IF(BE25=0,0,IF(($E$4+$C$12+1)>BE25+1,BE25+1,0)) -> 0 | BI25: =IF(BG25=0,0,IF(($E$4+$C$12+1)>BG25+1,BG25+1,0)) -> 0 | BK25: =IF(BI25=0,0,IF(($E$4+$C$12+1)>BI25+1,BI25+1,0)) -> 0 | BM25: =IF(BK25=0,0,IF(($E$4+$C$12+1)>BK25+1,BK25+1,0)) -> 0 | BO25: =IF(BM25=0,0,IF(($E$4+$C$12+1)>BM25+1,BM25+1,0)) -> 0 | BQ25: =IF(BO25=0,0,IF(($E$4+$C$12+1)>BO25+1,BO25+1,0)) -> 0 | BS25: =IF(BQ25=0,0,IF(($E$4+$C$12+1)>BQ25+1,BQ25+1,0)) -> 0 | BU25: =IF(BS25=0,0,IF(($E$4+$C$12+1)>BS25+1,BS25+1,0)) -> 0 | BW25: =IF(BU25=0,0,IF(($E$4+$C$12+1)>BU25+1,BU25+1,0)) -> 0 | BY25: =IF(BW25=0,0,IF(($E$4+$C$12+1)>BW25+1,BW25+1,0)) -> 0 | CA25: =IF(BY25=0,0,IF(($E$4+$C$12+1)>BY25+1,BY25+1,0)) -> 0 | CC25: =IF(CA25=0,0,IF(($E$4+$C$12+1)>CA25+1,CA25+1,0)) -> 0 | CE25: =IF(CC25=0,0,IF(($E$4+$C$12+1)>CC25+1,CC25+1,0)) -> 0 | CG25: =IF(CE25=0,0,IF(($E$4+$C$12+1)>CE25+1,CE25+1,0)) -> 0
B26: Кредитні кошти | E26: =IF(C4="I півріччя", "I півріччя/ half a year", "0") -> 0 | F26: =IF(C4="I півріччя", "II півріччя/ half a year", "II півріччя/ half a year") -> II півріччя/ half a year | G26: I півріччя/ half a year | H26: =IF(E4="I півріччя/ half a year", "II півріччя/ half a year", "II півріччя/ half a year") -> II півріччя/ half a year | I26: I півріччя/ half a year | J26: =IF(G4="I півріччя/ half a year", "II півріччя/ half a year", "II півріччя/ half a year") -> II півріччя/ half a year | K26: I півріччя/ half a year | L26: =IF(I8="I півріччя/ half a year", "II півріччя/ half a year", "II півріччя/ half a year") -> II півріччя/ half a year | M26: I півріччя/ half a year | N26: =IF(K8="I півріччя/ half a year", "II півріччя/ half a year", "II півріччя/ half a year") -> II півріччя/ half a year | O26: I півріччя/ half a year | P26: =IF(M4="I півріччя/ half a year", "II півріччя/ half a year", "II півріччя/ half a year") -> II півріччя/ half a year | Q26: I півріччя/ half a year | R26: =IF(O4="I півріччя/ half a year", "II півріччя/ half a year", "II півріччя/ half a year") -> II півріччя/ half a year | S26: I півріччя/ half a year | T26: =IF(Q4="I півріччя/ half a year", "II півріччя/ half a year", "II півріччя/ half a year") -> II півріччя/ half a year | U26: I півріччя/ half a year | V26: =IF(S4="I півріччя/ half a year", "II півріччя/ half a year", "II півріччя/ half a year") -> II півріччя/ half a year | W26: I півріччя/ half a year | X26: =IF(U4="I півріччя/ half a year", "II півріччя/ half a year", "II півріччя/ half a year") -> II півріччя/ half a year | Y26: I півріччя/ half a year | Z26: =IF(W8="I півріччя/ half a year", "II півріччя/ half a year", "II півріччя/ half a year") -> II півріччя/ half a year | AA26: I півріччя/ half a year | AB26: =IF(Y8="I півріччя/ half a year", "II півріччя/ half a year", "II півріччя/ half a year") -> II півріччя/ half a year | AC26: I півріччя/ half a year | AD26: =IF(AA4="I півріччя/ half a year", "II півріччя/ half a year", "II півріччя/ half a year") -> II півріччя/ half a year | AE26: I півріччя/ half a year | AF26: =IF(AC4="I півріччя/ half a year", "II півріччя/ half a year", "II півріччя/ half a year") -> II півріччя/ half a year | AG26: I півріччя/ half a year | AH26: =IF(AE4="I півріччя/ half a year", "II півріччя/ half a year", "II півріччя/ half a year") -> II півріччя/ half a year | AI26: I півріччя/ half a year | AJ26: =IF(AG4="I півріччя/ half a year", "II півріччя/ half a year", "II півріччя/ half a year") -> II півріччя/ half a year | AK26: I півріччя/ half a year | AL26: =IF(AI4="I півріччя/ half a year", "II півріччя/ half a year", "II півріччя/ half a year") -> II півріччя/ half a year | AM26: I півріччя/ half a year | AN26: =IF(AK4="I півріччя/ half a year", "II півріччя/ half a year", "II півріччя/ half a year") -> II півріччя/ half a year | AO26: I півріччя/ half a year | AP26: =IF(AM4="I півріччя/ half a year", "II півріччя/ half a year", "II півріччя/ half a year") -> II півріччя/ half a year | AQ26: I півріччя/ half a year | AR26: =IF(AO4="I півріччя/ half a year", "II півріччя/ half a year", "II півріччя/ half a year") -> II півріччя/ half a year | AS26: I півріччя/ half a year | AT26: =IF(AQ4="I півріччя/ half a year", "II півріччя/ half a year", "II півріччя/ half a year") -> II півріччя/ half a year | AU26: I півріччя/ half a year | AV26: =IF(AS4="I півріччя/ half a year", "II півріччя/ half a year", "II півріччя/ half a year") -> II півріччя/ half a year | AW26: I півріччя/ half a year | AX26: =IF(AU4="I півріччя/ half a year", "II півріччя/ half a year", "II півріччя/ half a year") -> II півріччя/ half a year | AY26: I півріччя/ half a year | AZ26: =IF(AW4="I півріччя/ half a year", "II півріччя/ half a year", "II півріччя/ half a year") -> II півріччя/ half a year | BA26: I півріччя/ half a year | BB26: =IF(AY4="I півріччя/ half a year", "II півріччя/ half a year", "II півріччя/ half a year") -> II півріччя/ half a year | BC26: I півріччя/ half a year | BD26: =IF(BA4="I півріччя/ half a year", "II півріччя/ half a year", "II півріччя/ half a year") -> II півріччя/ half a year | BE26: I півріччя/ half a year | BF26: =IF(BC4="I півріччя/ half a year", "II півріччя/ half a year", "II півріччя/ half a year") -> II півріччя/ half a year | BG26: I півріччя/ half a year | BH26: =IF(BE4="I півріччя/ half a year", "II півріччя/ half a year", "II півріччя/ half a year") -> II півріччя/ half a year | BI26: I півріччя/ half a year | BJ26: =IF(BG4="I півріччя/ half a year", "II півріччя/ half a year", "II півріччя/ half a year") -> II півріччя/ half a year | BK26: I півріччя/ half a year | BL26: =IF(BI4="I півріччя/ half a year", "II півріччя/ half a year", "II півріччя/ half a year") -> II півріччя/ half a year | BM26: I півріччя/ half a year | BN26: =IF(BK4="I півріччя/ half a year", "II півріччя/ half a year", "II півріччя/ half a year") -> II півріччя/ half a year | BO26: I півріччя/ half a year | BP26: =IF(BM4="I півріччя/ half a year", "II півріччя/ half a year", "II півріччя/ half a year") -> II півріччя/ half a year | BQ26: I півріччя/ half a year | BR26: =IF(BO4="I півріччя/ half a year", "II півріччя/ half a year", "II півріччя/ half a year") -> II півріччя/ half a year | BS26: I півріччя/ half a year | BT26: =IF(BQ4="I півріччя/ half a year", "II півріччя/ half a year", "II півріччя/ half a year") -> II півріччя/ half a year | BU26: I півріччя/ half a year | BV26: =IF(BS4="I півріччя/ half a year", "II півріччя/ half a year", "II півріччя/ half a year") -> II півріччя/ half a year | BW26: I півріччя/ half a year | BX26: =IF(BU4="I півріччя/ half a year", "II півріччя/ half a year", "II півріччя/ half a year") -> II півріччя/ half a year | BY26: I півріччя/ half a year | BZ26: =IF(BW4="I півріччя/ half a year", "II півріччя/ half a year", "II півріччя/ half a year") -> II півріччя/ half a year | CA26: I півріччя/ half a year | CB26: =IF(BY4="I півріччя/ half a year", "II півріччя/ half a year", "II півріччя/ half a year") -> II півріччя/ half a year | CC26: I півріччя/ half a year | CD26: =IF(CA4="I півріччя/ half a year", "II півріччя/ half a year", "II півріччя/ half a year") -> II півріччя/ half a year | CE26: I півріччя/ half a year | CF26: =IF(CC4="I півріччя/ half a year", "II півріччя/ half a year", "II півріччя/ half a year") -> II півріччя/ half a year | CG26: I півріччя/ half a year | CH26: =IF(CE4="I півріччя/ half a year", "II півріччя/ half a year", "II півріччя/ half a year") -> II півріччя/ half a year
B27: Погашення / Repayment | E27: 0 | F27: 0 | G27: =IF(G24=0,0,(SUM($E$30:F30)-SUM($E$27:F27))/G24) -> 333.3333333 | H27: =IF(H24=0,0,(SUM($E$30:G30)-SUM($E$27:G27))/H24) -> 708.3333333 | I27: =IF(I24=0,0,(SUM($E$30:H30)-SUM($E$27:H27))/I24) -> 708.3333333 | J27: =IF(J24=0,0,(SUM($E$30:I30)-SUM($E$27:I27))/J24) -> 708.3333333 | K27: =IF(K24=0,0,(SUM($E$30:J30)-SUM($E$27:J27))/K24) -> 708.3333333 | L27: =IF(L24=0,0,(SUM($E$30:K30)-SUM($E$27:K27))/L24) -> 708.3333333 | M27: =IF(M24=0,0,(SUM($E$30:L30)-SUM($E$27:L27))/M24) -> 708.3333333 | N27: =IF(N24=0,0,(SUM($E$30:M30)-SUM($E$27:M27))/N24) -> 708.3333333 | O27: =IF(O24=0,0,(SUM($E$30:N30)-SUM($E$27:N27))/O24) -> 708.3333333 | P27: =IF(P24=0,0,(SUM($E$30:O30)-SUM($E$27:O27))/P24) -> 0 | Q27: =IF(Q24=0,0,(SUM($E$30:P30)-SUM($E$27:P27))/Q24) -> 0 | R27: =IF(R24=0,0,(SUM($E$30:Q30)-SUM($E$27:Q27))/R24) -> 0 | S27: =IF(S24=0,0,(SUM($E$30:R30)-SUM($E$27:R27))/S24) -> 0 | T27: =IF(T24=0,0,(SUM($E$30:S30)-SUM($E$27:S27))/T24) -> 0 | U27: =IF(U24=0,0,(SUM($E$30:T30)-SUM($E$27:T27))/U24) -> 0 | V27: =IF(V24=0,0,(SUM($E$30:U30)-SUM($E$27:U27))/V24) -> 0 | W27: =IF(W24=0,0,(SUM($E$30:V30)-SUM($E$27:V27))/W24) -> 0 | X27: =IF(X24=0,0,(SUM($E$30:W30)-SUM($E$27:W27))/X24) -> 0 | Y27: =IF(Y24=0,0,(SUM($E$30:X30)-SUM($E$27:X27))/Y24) -> 0 | Z27: =IF(Z24=0,0,(SUM($E$30:Y30)-SUM($E$27:Y27))/Z24) -> 0 | AA27: =IF(AA24=0,0,(SUM($E$30:Z30)-SUM($E$27:Z27))/AA24) -> 0 | AB27: =IF(AB24=0,0,(SUM($E$30:AA30)-SUM($E$27:AA27))/AB24) -> 0 | AC27: =IF(AC24=0,0,(SUM($E$30:AB30)-SUM($E$27:AB27))/AC24) -> 0 | AD27: =IF(AD24=0,0,(SUM($E$30:AC30)-SUM($E$27:AC27))/AD24) -> 0 | AE27: =IF(AE24=0,0,(SUM($E$30:AD30)-SUM($E$27:AD27))/AE24) -> 0 | AF27: =IF(AF24=0,0,(SUM($E$30:AE30)-SUM($E$27:AE27))/AF24) -> 0 | AG27: =IF(AG24=0,0,(SUM($E$30:AF30)-SUM($E$27:AF27))/AG24) -> 0 | AH27: =IF(AH24=0,0,(SUM($E$30:AG30)-SUM($E$27:AG27))/AH24) -> 0 | AI27: =IF(AI24=0,0,(SUM($E$30:AH30)-SUM($E$27:AH27))/AI24) -> 0 | AJ27: =IF(AJ24=0,0,(SUM($E$30:AI30)-SUM($E$27:AI27))/AJ24) -> 0 | AK27: =IF(AK24=0,0,(SUM($E$30:AJ30)-SUM($E$27:AJ27))/AK24) -> 0 | AL27: =IF(AL24=0,0,(SUM($E$30:AK30)-SUM($E$27:AK27))/AL24) -> 0 | AM27: =IF(AM24=0,0,(SUM($E$30:AL30)-SUM($E$27:AL27))/AM24) -> 0 | AN27: =IF(AN24=0,0,(SUM($E$30:AM30)-SUM($E$27:AM27))/AN24) -> 0 | AO27: =IF(AO24=0,0,(SUM($E$30:AN30)-SUM($E$27:AN27))/AO24) -> 0 | AP27: =IF(AP24=0,0,(SUM($E$30:AO30)-SUM($E$27:AO27))/AP24) -> 0 | AQ27: =IF(AQ24=0,0,(SUM($E$30:AP30)-SUM($E$27:AP27))/AQ24) -> 0 | AR27: =IF(AR24=0,0,(SUM($E$30:AQ30)-SUM($E$27:AQ27))/AR24) -> 0 | AS27: =IF(AS24=0,0,(SUM($E$30:AR30)-SUM($E$27:AR27))/AS24) -> 0 | AT27: =IF(AT24=0,0,(SUM($E$30:AS30)-SUM($E$27:AS27))/AT24) -> 0 | AU27: =IF(AU24=0,0,(SUM($E$30:AT30)-SUM($E$27:AT27))/AU24) -> 0 | AV27: =IF(AV24=0,0,(SUM($E$30:AU30)-SUM($E$27:AU27))/AV24) -> 0 | AW27: =IF(AW24=0,0,(SUM($E$30:AV30)-SUM($E$27:AV27))/AW24) -> 0 | AX27: =IF(AX24=0,0,(SUM($E$30:AW30)-SUM($E$27:AW27))/AX24) -> 0 | AY27: =IF(AY24=0,0,(SUM($E$30:AX30)-SUM($E$27:AX27))/AY24) -> 0 | AZ27: =IF(AZ24=0,0,(SUM($E$30:AY30)-SUM($E$27:AY27))/AZ24) -> 0 | BA27: =IF(BA24=0,0,(SUM($E$30:AZ30)-SUM($E$27:AZ27))/BA24) -> 0 | BB27: =IF(BB24=0,0,(SUM($E$30:BA30)-SUM($E$27:BA27))/BB24) -> 0 | BC27: =IF(BC24=0,0,(SUM($E$30:BB30)-SUM($E$27:BB27))/BC24) -> 0 | BD27: =IF(BD24=0,0,(SUM($E$30:BC30)-SUM($E$27:BC27))/BD24) -> 0 | BE27: =IF(BE24=0,0,(SUM($E$30:BD30)-SUM($E$27:BD27))/BE24) -> 0 | BF27: =IF(BF24=0,0,(SUM($E$30:BE30)-SUM($E$27:BE27))/BF24) -> 0 | BG27: =IF(BG24=0,0,(SUM($E$30:BF30)-SUM($E$27:BF27))/BG24) -> 0 | BH27: =IF(BH24=0,0,(SUM($E$30:BG30)-SUM($E$27:BG27))/BH24) -> 0 | BI27: =IF(BI24=0,0,(SUM($E$30:BH30)-SUM($E$27:BH27))/BI24) -> 0 | BJ27: =IF(BJ24=0,0,(SUM($E$30:BI30)-SUM($E$27:BI27))/BJ24) -> 0 | BK27: =IF(BK24=0,0,(SUM($E$30:BJ30)-SUM($E$27:BJ27))/BK24) -> 0 | BL27: =IF(BL24=0,0,(SUM($E$30:BK30)-SUM($E$27:BK27))/BL24) -> 0 | BM27: =IF(BM24=0,0,(SUM($E$30:BL30)-SUM($E$27:BL27))/BM24) -> 0 | BN27: =IF(BN24=0,0,(SUM($E$30:BM30)-SUM($E$27:BM27))/BN24) -> 0 | BO27: =IF(BO24=0,0,(SUM($E$30:BN30)-SUM($E$27:BN27))/BO24) -> 0 | BP27: =IF(BP24=0,0,(SUM($E$30:BO30)-SUM($E$27:BO27))/BP24) -> 0 | BQ27: =IF(BQ24=0,0,(SUM($E$30:BP30)-SUM($E$27:BP27))/BQ24) -> 0 | BR27: =IF(BR24=0,0,(SUM($E$30:BQ30)-SUM($E$27:BQ27))/BR24) -> 0 | BS27: =IF(BS24=0,0,(SUM($E$30:BR30)-SUM($E$27:BR27))/BS24) -> 0 | BT27: =IF(BT24=0,0,(SUM($E$30:BS30)-SUM($E$27:BS27))/BT24) -> 0 | BU27: =IF(BU24=0,0,(SUM($E$30:BT30)-SUM($E$27:BT27))/BU24) -> 0 | BV27: =IF(BV24=0,0,(SUM($E$30:BU30)-SUM($E$27:BU27))/BV24) -> 0 | BW27: =IF(BW24=0,0,(SUM($E$30:BV30)-SUM($E$27:BV27))/BW24) -> 0 | BX27: =IF(BX24=0,0,(SUM($E$30:BW30)-SUM($E$27:BW27))/BX24) -> 0 | BY27: =IF(BY24=0,0,(SUM($E$30:BX30)-SUM($E$27:BX27))/BY24) -> 0 | BZ27: =IF(BZ24=0,0,(SUM($E$30:BY30)-SUM($E$27:BY27))/BZ24) -> 0 | CA27: =IF(CA24=0,0,(SUM($E$30:BZ30)-SUM($E$27:BZ27))/CA24) -> 0 | CB27: =IF(CB24=0,0,(SUM($E$30:CA30)-SUM($E$27:CA27))/CB24) -> 0 | CC27: =IF(CC24=0,0,(SUM($E$30:CB30)-SUM($E$27:CB27))/CC24) -> 0 | CD27: =IF(CD24=0,0,(SUM($E$30:CC30)-SUM($E$27:CC27))/CD24) -> 0 | CE27: =IF(CE24=0,0,(SUM($E$30:CD30)-SUM($E$27:CD27))/CE24) -> 0 | CF27: =IF(CF24=0,0,(SUM($E$30:CE30)-SUM($E$27:CE27))/CF24) -> 0 | CG27: =IF(CG24=0,0,(SUM($E$30:CF30)-SUM($E$27:CF27))/CG24) -> 0 | CH27: =IF(CH24=0,0,(SUM($E$30:CG30)-SUM($E$27:CG27))/CH24) -> 0
B28: Основна сума заборгованості / The main amount of debt | E28: =IF(AND(C4="I півріччя",(E4+C12)>E25),C8,0) -> 0 | F28: =IF((E4+C12)>=E25,C8,0) -> 9000 | G28: =IF((E4+C12)>G25,F28-F27,0) -> 9000 | H28: =IF(($E$4+$C$12)>G25,G28-G27,0) -> 8666.666667 | I28: =IF(($E$4+$C$12)>I25,H28-H27,0) -> 7958.333333 | J28: =IF(($E$4+$C$12)>I25,I28-I27,0) -> 7250 | K28: =IF(($E$4+$C$12)>K25,J28-J27,0) -> 6541.666667 | L28: =IF(($E$4+$C$12)>K25,K28-K27,0) -> 5833.333333 | M28: =IF(($E$4+$C$12)>M25,L28-L27,0) -> 5125 | N28: =IF(($E$4+$C$12)>M25,M28-M27,0) -> 4416.666667 | O28: =IF(($E$4+$C$12)>O25,N28-N27,0) -> 0 | P28: =IF(($E$4+$C$12)>O25,O28-O27,0) -> 0 | Q28: =IF(($E$4+$C$12)>Q25,P28-P27,0) -> 0 | R28: =IF(($E$4+$C$12)>Q25,Q28-Q27,0) -> 0 | S28: =IF(($E$4+$C$12)>S25,R28-R27,0) -> 0 | T28: =IF(($E$4+$C$12)>S25,S28-S27,0) -> 0 | U28: =IF(($E$4+$C$12)>U25,T28-T27,0) -> 0 | V28: =IF(($E$4+$C$12)>U25,U28-U27,0) -> 0 | W28: =IF(($E$4+$C$12)>W25,V28-V27,0) -> 0 | X28: =IF(($E$4+$C$12)>W25,W28-W27,0) -> 0 | Y28: =IF(($E$4+$C$12)>=Y25,X28-X27,0) -> 0 | Z28: =IF(($E$4+$C$12)>Y25,Y28-Y27,0) -> 0 | AA28: =IF(($E$4+$C$12)>AA25,Z28-Z27,0) -> 0 | AB28: =IF(($E$4+$C$12)>AA25,AA28-AA27,0) -> 0 | AC28: =IF(($E$4+$C$12)>AC25,AB28-AB27,0) -> 0 | AD28: =IF(($E$4+$C$12)>AC25,AC28-AC27,0) -> 0 | AE28: =IF(($E$4+$C$12)>AE25,AD28-AD27,0) -> 0 | AF28: =IF(($E$4+$C$12)>AE25,AE28-AE27,0) -> 0 | AG28: =IF(($E$4+$C$12)>AG25,AF28-AF27,0) -> 0 | AH28: =IF(($E$4+$C$12)>AG25,AG28-AG27,0) -> 0 | AI28: =IF(($E$4+$C$12)>AI25,AH28-AH27,0) -> 0 | AJ28: =IF(($E$4+$C$12)>AI25,AI28-AI27,0) -> 0 | AK28: =IF(($E$4+$C$12)>AK25,AJ28-AJ27,0) -> 0 | AL28: =IF(($E$4+$C$12)>AK25,AK28-AK27,0) -> 0 | AM28: =IF(($E$4+$C$12)>AM25,AL28-AL27,0) -> 0 | AN28: =IF(($E$4+$C$12)>AM25,AM28-AM27,0) -> 0 | AO28: =IF(($E$4+$C$12)>AO25,AN28-AN27,0) -> 0 | AP28: =IF(($E$4+$C$12)>AO25,AO28-AO27,0) -> 0 | AQ28: =IF(($E$4+$C$12)>AQ25,AP28-AP27,0) -> 0 | AR28: =IF(($E$4+$C$12)>AQ25,AQ28-AQ27,0) -> 0 | AS28: =IF(($E$4+$C$12)>AS25,AR28-AR27,0) -> 0 | AT28: =IF(($E$4+$C$12)>AS25,AS28-AS27,0) -> 0 | AU28: =IF(($E$4+$C$12)>AU25,AT28-AT27,0) -> 0 | AV28: =IF(($E$4+$C$12)>AU25,AU28-AU27,0) -> 0 | AW28: =IF(($E$4+$C$12)>AW25,AV28-AV27,0) -> 0 | AX28: =IF(($E$4+$C$12)>AW25,AW28-AW27,0) -> 0 | AY28: =IF(($E$4+$C$12)>AY25,AX28-AX27,0) -> 0 | AZ28: =IF(($E$4+$C$12)>AY25,AY28-AY27,0) -> 0 | BA28: =IF(($E$4+$C$12)>BA25,AZ28-AZ27,0) -> 0 | BB28: =IF(($E$4+$C$12)>BA25,BA28-BA27,0) -> 0 | BC28: =IF(($E$4+$C$12)>BC25,BB28-BB27,0) -> 0 | BD28: =IF(($E$4+$C$12)>BC25,BC28-BC27,0) -> 0 | BE28: =IF(($E$4+$C$12)>BE25,BD28-BD27,0) -> 0 | BF28: =IF(($E$4+$C$12)>BE25,BE28-BE27,0) -> 0 | BG28: =IF(($E$4+$C$12)>BG25,BF28-BF27,0) -> 0 | BH28: =IF(($E$4+$C$12)>BG25,BG28-BG27,0) -> 0 | BI28: =IF(($E$4+$C$12)>BI25,BH28-BH27,0) -> 0 | BJ28: =IF(($E$4+$C$12)>BI25,BI28-BI27,0) -> 0 | BK28: =IF(($E$4+$C$12)>BK25,BJ28-BJ27,0) -> 0 | BL28: =IF(($E$4+$C$12)>BK25,BK28-BK27,0) -> 0 | BM28: =IF(($E$4+$C$12)>BM25,BL28-BL27,0) -> 0 | BN28: =IF(($E$4+$C$12)>BM25,BM28-BM27,0) -> 0 | BO28: =IF(($E$4+$C$12)>BO25,BN28-BN27,0) -> 0 | BP28: =IF(($E$4+$C$12)>BO25,BO28-BO27,0) -> 0 | BQ28: =IF(($E$4+$C$12)>BQ25,BP28-BP27,0) -> 0 | BR28: =IF(($E$4+$C$12)>BQ25,BQ28-BQ27,0) -> 0 | BS28: =IF(($E$4+$C$12)>BS25,BR28-BR27,0) -> 0 | BT28: =IF(($E$4+$C$12)>BS25,BS28-BS27,0) -> 0 | BU28: =IF(($E$4+$C$12)>BU25,BT28-BT27,0) -> 0 | BV28: =IF(($E$4+$C$12)>BU25,BU28-BU27,0) -> 0 | BW28: =IF(($E$4+$C$12)>BW25,BV28-BV27,0) -> 0 | BX28: =IF(($E$4+$C$12)>BW25,BW28-BW27,0) -> 0 | BY28: =IF(($E$4+$C$12)>BY25,BX28-BX27,0) -> 0 | BZ28: =IF(($E$4+$C$12)>BY25,BY28-BY27,0) -> 0 | CA28: =IF(($E$4+$C$12)>CA25,BZ28-BZ27,0) -> 0 | CB28: =IF(($E$4+$C$12)>CA25,CA28-CA27,0) -> 0 | CC28: =IF(($E$4+$C$12)>CC25,CB28-CB27,0) -> 0 | CD28: =IF(($E$4+$C$12)>CC25,CC28-CC27,0) -> 0 | CE28: =IF(($E$4+$C$12)>CE25,CD28-CD27,0) -> 0 | CF28: =IF(($E$4+$C$12)>CE25,CE28-CE27,0) -> 0 | CG28: =IF(($E$4+$C$12)>CG25,CF28-CF27,0) -> 0 | CH28: =IF(($E$4+$C$12)>CG25,CG28-CG27,0) -> 0
B29: Одноразова комісія / One-time fee | E29: =C18*C8 -> 0 | F29: 0 | G29: 0 | H29: 0 | I29: 0 | J29: 0 | K29: 0 | L29: 0 | M29: 0 | N29: 0 | O29: 0 | P29: 0 | Q29: 0 | R29: 0 | S29: 0 | T29: 0 | U29: 0 | V29: 0 | W29: 0 | X29: 0 | Y29: 0 | Z29: 0 | AA29: 0 | AB29: 0 | AC29: 0 | AD29: 0 | AE29: 0 | AF29: 0 | AG29: 0 | AH29: 0 | AI29: 0 | AJ29: 0 | AK29: 0 | AL29: 0 | AM29: 0 | AN29: 0 | AO29: 0 | AP29: 0 | AQ29: 0 | AR29: 0 | AS29: 0 | AT29: 0 | AU29: 0 | AV29: 0 | AW29: 0 | AX29: 0 | AY29: 0 | AZ29: 0 | BA29: 0 | BB29: 0 | BC29: 0 | BD29: 0 | BE29: 0 | BF29: 0 | BG29: 0 | BH29: 0 | BI29: 0 | BJ29: 0 | BK29: 0 | BL29: 0 | BM29: 0 | BN29: 0 | BO29: 0 | BP29: 0 | BQ29: 0 | BR29: 0 | BS29: 0 | BT29: 0 | BU29: 0 | BV29: 0 | BW29: 0 | BX29: 0 | BY29: 0 | BZ29: 0 | CA29: 0 | CB29: 0 | CC29: 0 | CD29: 0 | CE29: 0 | CF29: 0 | CG29: 0 | CH29: 0
B30: Використання коштів / Use of funds | E30: =IFERROR(HLOOKUP(E23,'План фінансування_Funding plan'!$B$47:$BH$48,2,0),0) -> 0 | F30: =IFERROR(HLOOKUP(F23,'План фінансування_Funding plan'!$B$47:$BH$48,2,0),0) -> 3000 | G30: =IFERROR(HLOOKUP(G23,'План фінансування_Funding plan'!$B$47:$BH$48,2,0),0) -> 3000 | H30: =IFERROR(HLOOKUP(H23,'План фінансування_Funding plan'!$B$47:$BH$48,2,0),0) -> 0 | I30: =IFERROR(HLOOKUP(I23,'План фінансування_Funding plan'!$B$47:$BH$48,2,0),0) -> 0 | J30: =IFERROR(HLOOKUP(J23,'План фінансування_Funding plan'!$B$47:$BH$48,2,0),0) -> 0 | K30: =IFERROR(HLOOKUP(K23,'План фінансування_Funding plan'!$B$47:$BH$48,2,0),0) -> 0 | L30: =IFERROR(HLOOKUP(L23,'План фінансування_Funding plan'!$B$47:$BH$48,2,0),0) -> 0 | M30: =IFERROR(HLOOKUP(M23,'План фінансування_Funding plan'!$B$47:$BH$48,2,0),0) -> 0 | N30: =IFERROR(HLOOKUP(N23,'План фінансування_Funding plan'!$B$47:$BH$48,2,0),0) -> 0 | O30: =IFERROR(HLOOKUP(O23,'План фінансування_Funding plan'!$B$47:$BH$48,2,0),0) -> 0 | P30: =IFERROR(HLOOKUP(P23,'План фінансування_Funding plan'!$B$47:$BH$48,2,0),0) -> 0 | Q30: =IFERROR(HLOOKUP(Q23,'План фінансування_Funding plan'!$B$47:$BH$48,2,0),0) -> 0 | R30: =IFERROR(HLOOKUP(R23,'План фінансування_Funding plan'!$B$47:$BH$48,2,0),0) -> 0 | S30: =IFERROR(HLOOKUP(S23,'План фінансування_Funding plan'!$B$47:$BH$48,2,0),0) -> 0 | T30: =IFERROR(HLOOKUP(T23,'План фінансування_Funding plan'!$B$47:$BH$48,2,0),0) -> 0 | U30: =IFERROR(HLOOKUP(U23,'План фінансування_Funding plan'!$B$47:$BH$48,2,0),0) -> 0 | V30: =IFERROR(HLOOKUP(V23,'План фінансування_Funding plan'!$B$47:$BH$48,2,0),0) -> 0 | W30: =IFERROR(HLOOKUP(W23,'План фінансування_Funding plan'!$B$47:$BH$48,2,0),0) -> 0 | X30: =IFERROR(HLOOKUP(X23,'План фінансування_Funding plan'!$B$47:$BH$48,2,0),0) -> 0 | Y30: =IFERROR(HLOOKUP(Y23,'План фінансування_Funding plan'!$B$47:$BH$48,2,0),0) -> 0 | Z30: =IFERROR(HLOOKUP(Z23,'План фінансування_Funding plan'!$B$47:$BH$48,2,0),0) -> 0 | AA30: =IFERROR(HLOOKUP(AA23,'План фінансування_Funding plan'!$B$47:$BH$48,2,0),0) -> 0 | AB30: =IFERROR(HLOOKUP(AB23,'План фінансування_Funding plan'!$B$47:$BH$48,2,0),0) -> 0 | AC30: =IFERROR(HLOOKUP(AC23,'План фінансування_Funding plan'!$B$47:$BH$48,2,0),0) -> 0 | AD30: =IFERROR(HLOOKUP(AD23,'План фінансування_Funding plan'!$B$47:$BH$48,2,0),0) -> 0 | AE30: =IFERROR(HLOOKUP(AE23,'План фінансування_Funding plan'!$B$47:$BH$48,2,0),0) -> 0 | AF30: =IFERROR(HLOOKUP(AF23,'План фінансування_Funding plan'!$B$47:$BH$48,2,0),0) -> 0 | AG30: =IFERROR(HLOOKUP(AG23,'План фінансування_Funding plan'!$B$47:$BH$48,2,0),0) -> 0 | AH30: =IFERROR(HLOOKUP(AH23,'План фінансування_Funding plan'!$B$47:$BH$48,2,0),0) -> 0 | AI30: =IFERROR(HLOOKUP(AI23,'План фінансування_Funding plan'!$B$47:$BH$48,2,0),0) -> 0 | AJ30: =IFERROR(HLOOKUP(AJ23,'План фінансування_Funding plan'!$B$47:$BH$48,2,0),0) -> 0 | AK30: =IFERROR(HLOOKUP(AK23,'План фінансування_Funding plan'!$B$47:$BH$48,2,0),0) -> 0 | AL30: =IFERROR(HLOOKUP(AL23,'План фінансування_Funding plan'!$B$47:$BH$48,2,0),0) -> 0 | AM30: =IFERROR(HLOOKUP(AM23,'План фінансування_Funding plan'!$B$47:$BH$48,2,0),0) -> 0 | AN30: =IFERROR(HLOOKUP(AN23,'План фінансування_Funding plan'!$B$47:$BH$48,2,0),0) -> 0 | AO30: =IFERROR(HLOOKUP(AO23,'План фінансування_Funding plan'!$B$47:$BH$48,2,0),0) -> 0 | AP30: =IFERROR(HLOOKUP(AP23,'План фінансування_Funding plan'!$B$47:$BH$48,2,0),0) -> 0 | AQ30: =IFERROR(HLOOKUP(AQ23,'План фінансування_Funding plan'!$B$47:$BH$48,2,0),0) -> 0 | AR30: =IFERROR(HLOOKUP(AR23,'План фінансування_Funding plan'!$B$47:$BH$48,2,0),0) -> 0 | AS30: =IFERROR(HLOOKUP(AS23,'План фінансування_Funding plan'!$B$47:$BH$48,2,0),0) -> 0 | AT30: =IFERROR(HLOOKUP(AT23,'План фінансування_Funding plan'!$B$47:$BH$48,2,0),0) -> 0 | AU30: =IFERROR(HLOOKUP(AU23,'План фінансування_Funding plan'!$B$47:$BH$48,2,0),0) -> 0 | AV30: =IFERROR(HLOOKUP(AV23,'План фінансування_Funding plan'!$B$47:$BH$48,2,0),0) -> 0 | AW30: =IFERROR(HLOOKUP(AW23,'План фінансування_Funding plan'!$B$47:$BH$48,2,0),0) -> 0 | AX30: =IFERROR(HLOOKUP(AX23,'План фінансування_Funding plan'!$B$47:$BH$48,2,0),0) -> 0 | AY30: =IFERROR(HLOOKUP(AY23,'План фінансування_Funding plan'!$B$47:$BH$48,2,0),0) -> 0 | AZ30: =IFERROR(HLOOKUP(AZ23,'План фінансування_Funding plan'!$B$47:$BH$48,2,0),0) -> 0 | BA30: =IFERROR(HLOOKUP(BA23,'План фінансування_Funding plan'!$B$47:$BH$48,2,0),0) -> 0 | BB30: =IFERROR(HLOOKUP(BB23,'План фінансування_Funding plan'!$B$47:$BH$48,2,0),0) -> 0 | BC30: =IFERROR(HLOOKUP(BC23,'План фінансування_Funding plan'!$B$47:$BH$48,2,0),0) -> 0 | BD30: =IFERROR(HLOOKUP(BD23,'План фінансування_Funding plan'!$B$47:$BH$48,2,0),0) -> 0 | BE30: =IFERROR(HLOOKUP(BE23,'План фінансування_Funding plan'!$B$47:$BH$48,2,0),0) -> 0 | BF30: =IFERROR(HLOOKUP(BF23,'План фінансування_Funding plan'!$B$47:$BH$48,2,0),0) -> 0 | BG30: =IFERROR(HLOOKUP(BG23,'План фінансування_Funding plan'!$B$47:$BH$48,2,0),0) -> 0 | BH30: =IFERROR(HLOOKUP(BH23,'План фінансування_Funding plan'!$B$47:$BH$48,2,0),0) -> 0 | BI30: =IFERROR(HLOOKUP(BI23,'План фінансування_Funding plan'!$B$47:$BH$48,2,0),0) -> 0 | BJ30: =IFERROR(HLOOKUP(BJ23,'План фінансування_Funding plan'!$B$47:$BH$48,2,0),0) -> 0 | BK30: =IFERROR(HLOOKUP(BK23,'План фінансування_Funding plan'!$B$47:$BH$48,2,0),0) -> 0 | BL30: =IFERROR(HLOOKUP(BL23,'План фінансування_Funding plan'!$B$47:$BH$48,2,0),0) -> 0 | BM30: =IFERROR(HLOOKUP(BM23,'План фінансування_Funding plan'!$B$47:$BH$48,2,0),0) -> 0 | BN30: =IFERROR(HLOOKUP(BN23,'План фінансування_Funding plan'!$B$47:$BH$48,2,0),0) -> 0 | BO30: =IFERROR(HLOOKUP(BO23,'План фінансування_Funding plan'!$B$47:$BH$48,2,0),0) -> 0 | BP30: =IFERROR(HLOOKUP(BP23,'План фінансування_Funding plan'!$B$47:$BH$48,2,0),0) -> 0 | BQ30: =IFERROR(HLOOKUP(BQ23,'План фінансування_Funding plan'!$B$47:$BH$48,2,0),0) -> 0 | BR30: =IFERROR(HLOOKUP(BR23,'План фінансування_Funding plan'!$B$47:$BH$48,2,0),0) -> 0 | BS30: =IFERROR(HLOOKUP(BS23,'План фінансування_Funding plan'!$B$47:$BH$48,2,0),0) -> 0 | BT30: =IFERROR(HLOOKUP(BT23,'План фінансування_Funding plan'!$B$47:$BH$48,2,0),0) -> 0 | BU30: =IFERROR(HLOOKUP(BU23,'План фінансування_Funding plan'!$B$47:$BH$48,2,0),0) -> 0 | BV30: =IFERROR(HLOOKUP(BV23,'План фінансування_Funding plan'!$B$47:$BH$48,2,0),0) -> 0 | BW30: =IFERROR(HLOOKUP(BW23,'План фінансування_Funding plan'!$B$47:$BH$48,2,0),0) -> 0 | BX30: =IFERROR(HLOOKUP(BX23,'План фінансування_Funding plan'!$B$47:$BH$48,2,0),0) -> 0 | BY30: =IFERROR(HLOOKUP(BY23,'План фінансування_Funding plan'!$B$47:$BH$48,2,0),0) -> 0 | BZ30: =IFERROR(HLOOKUP(BZ23,'План фінансування_Funding plan'!$B$47:$BH$48,2,0),0) -> 0 | CA30: =IFERROR(HLOOKUP(CA23,'План фінансування_Funding plan'!$B$47:$BH$48,2,0),0) -> 0 | CB30: =IFERROR(HLOOKUP(CB23,'План фінансування_Funding plan'!$B$47:$BH$48,2,0),0) -> 0 | CC30: =IFERROR(HLOOKUP(CC23,'План фінансування_Funding plan'!$B$47:$BH$48,2,0),0) -> 0 | CD30: =IFERROR(HLOOKUP(CD23,'План фінансування_Funding plan'!$B$47:$BH$48,2,0),0) -> 0 | CE30: =IFERROR(HLOOKUP(CE23,'План фінансування_Funding plan'!$B$47:$BH$48,2,0),0) -> 0 | CF30: =IFERROR(HLOOKUP(CF23,'План фінансування_Funding plan'!$B$47:$BH$48,2,0),0) -> 0 | CG30: =IFERROR(HLOOKUP(CG23,'План фінансування_Funding plan'!$B$47:$BH$48,2,0),0) -> 0 | CH30: =IFERROR(HLOOKUP(CH23,'План фінансування_Funding plan'!$B$47:$BH$48,2,0),0) -> 0
B31: Відсотки банку / Bank interest | E31: =(E30)*C16/2 -> 0 | F31: =IF(COUNTA($E$24:E24)<=($C$12*2),(SUM($E$30:F30)-SUM($E$27:E27))*($C$16/2),0) -> 150 | G31: =IF(COUNTA($E$24:F24)<=($C$12*2),(SUM($E$30:G30)-SUM($E$27:F27))*($C$16/2),0) -> 300 | H31: =IF(COUNTA($E$24:G24)<=($C$12*2),(SUM($E$30:H30)-SUM($E$27:G27))*($C$16/2),0) -> 283.3333333 | I31: =IF(COUNTA($E$24:H24)<=($C$12*2),(SUM($E$30:I30)-SUM($E$27:H27))*($C$16/2),0) -> 247.9166667 | J31: =IF(COUNTA($E$24:I24)<=($C$12*2),(SUM($E$30:J30)-SUM($E$27:I27))*($C$16/2),0) -> 212.5 | K31: =IF(COUNTA($E$24:J24)<=($C$12*2),(SUM($E$30:K30)-SUM($E$27:J27))*($C$16/2),0) -> 177.0833333 | L31: =IF(COUNTA($E$24:K24)<=($C$12*2),(SUM($E$30:L30)-SUM($E$27:K27))*($C$16/2),0) -> 141.6666667 | M31: =IF(COUNTA($E$24:L24)<=($C$12*2),(SUM($E$30:M30)-SUM($E$27:L27))*($C$16/2),0) -> 106.25 | N31: =IF(COUNTA($E$24:M24)<=($C$12*2),(SUM($E$30:N30)-SUM($E$27:M27))*($C$16/2),0) -> 70.83333333 | O31: =IF(COUNTA($E$24:N24)<=($C$12*2),(SUM($E$30:O30)-SUM($E$27:N27))*($C$16/2),0) -> 35.41666667 | P31: =IF(COUNTA($E$24:O24)<=($C$12*2),(SUM($E$30:P30)-SUM($E$27:O27))*($C$16/2),0) -> 0 | Q31: =IF(COUNTA($E$24:P24)<=($C$12*2),(SUM($E$30:Q30)-SUM($E$27:P27))*($C$16/2),0) -> 0 | R31: =IF(COUNTA($E$24:Q24)<=($C$12*2),(SUM($E$30:R30)-SUM($E$27:Q27))*($C$16/2),0) -> 0 | S31: =IF(COUNTA($E$24:R24)<=($C$12*2),(SUM($E$30:S30)-SUM($E$27:R27))*($C$16/2),0) -> 0 | T31: =IF(COUNTA($E$24:S24)<=($C$12*2),(SUM($E$30:T30)-SUM($E$27:S27))*($C$16/2),0) -> 0 | U31: =IF(COUNTA($E$24:T24)<=($C$12*2),(SUM($E$30:U30)-SUM($E$27:T27))*($C$16/2),0) -> 0 | V31: =IF(COUNTA($E$24:U24)<=($C$12*2),(SUM($E$30:V30)-SUM($E$27:U27))*($C$16/2),0) -> 0 | W31: =IF(COUNTA($E$24:V24)<=($C$12*2),(SUM($E$30:W30)-SUM($E$27:V27))*($C$16/2),0) -> 0 | X31: =IF(COUNTA($E$24:W24)<=($C$12*2),(SUM($E$30:X30)-SUM($E$27:W27))*($C$16/2),0) -> 0 | Y31: =IF(COUNTA($E$24:X24)<=($C$12*2),(SUM($E$30:Y30)-SUM($E$27:X27))*($C$16/2),0) -> 0 | Z31: =IF(COUNTA($E$24:Y24)<=($C$12*2),(SUM($E$30:Z30)-SUM($E$27:Y27))*($C$16/2),0) -> 0 | AA31: =IF(COUNTA($E$24:Z24)<=($C$12*2),(SUM($E$30:AA30)-SUM($E$27:Z27))*($C$16/2),0) -> 0 | AB31: =IF(COUNTA($E$24:AA24)<=($C$12*2),(SUM($E$30:AB30)-SUM($E$27:AA27))*($C$16/2),0) -> 0 | AC31: =IF(COUNTA($E$24:AB24)<=($C$12*2),(SUM($E$30:AC30)-SUM($E$27:AB27))*($C$16/2),0) -> 0 | AD31: =IF(COUNTA($E$24:AC24)<=($C$12*2),(SUM($E$30:AD30)-SUM($E$27:AC27))*($C$16/2),0) -> 0 | AE31: =IF(COUNTA($E$24:AD24)<=($C$12*2),(SUM($E$30:AE30)-SUM($E$27:AD27))*($C$16/2),0) -> 0 | AF31: =IF(COUNTA($E$24:AE24)<=($C$12*2),(SUM($E$30:AF30)-SUM($E$27:AE27))*($C$16/2),0) -> 0 | AG31: =IF(COUNTA($E$24:AF24)<=($C$12*2),(SUM($E$30:AG30)-SUM($E$27:AF27))*($C$16/2),0) -> 0 | AH31: =IF(COUNTA($E$24:AG24)<=($C$12*2),(SUM($E$30:AH30)-SUM($E$27:AG27))*($C$16/2),0) -> 0 | AI31: =IF(COUNTA($E$24:AH24)<=($C$12*2),(SUM($E$30:AI30)-SUM($E$27:AH27))*($C$16/2),0) -> 0 | AJ31: =IF(COUNTA($E$24:AI24)<=($C$12*2),(SUM($E$30:AJ30)-SUM($E$27:AI27))*($C$16/2),0) -> 0 | AK31: =IF(COUNTA($E$24:AJ24)<=($C$12*2),(SUM($E$30:AK30)-SUM($E$27:AJ27))*($C$16/2),0) -> 0 | AL31: =IF(COUNTA($E$24:AK24)<=($C$12*2),(SUM($E$30:AL30)-SUM($E$27:AK27))*($C$16/2),0) -> 0 | AM31: =IF(COUNTA($E$24:AL24)<=($C$12*2),(SUM($E$30:AM30)-SUM($E$27:AL27))*($C$16/2),0) -> 0 | AN31: =IF(COUNTA($E$24:AM24)<=($C$12*2),(SUM($E$30:AN30)-SUM($E$27:AM27))*($C$16/2),0) -> 0 | AO31: =IF(COUNTA($E$24:AN24)<=($C$12*2),(SUM($E$30:AO30)-SUM($E$27:AN27))*($C$16/2),0) -> 0 | AP31: =IF(COUNTA($E$24:AO24)<=($C$12*2),(SUM($E$30:AP30)-SUM($E$27:AO27))*($C$16/2),0) -> 0 | AQ31: =IF(COUNTA($E$24:AP24)<=($C$12*2),(SUM($E$30:AQ30)-SUM($E$27:AP27))*($C$16/2),0) -> 0 | AR31: =IF(COUNTA($E$24:AQ24)<=($C$12*2),(SUM($E$30:AR30)-SUM($E$27:AQ27))*($C$16/2),0) -> 0 | AS31: =IF(COUNTA($E$24:AR24)<=($C$12*2),(SUM($E$30:AS30)-SUM($E$27:AR27))*($C$16/2),0) -> 0 | AT31: =IF(COUNTA($E$24:AS24)<=($C$12*2),(SUM($E$30:AT30)-SUM($E$27:AS27))*($C$16/2),0) -> 0 | AU31: =IF(COUNTA($E$24:AT24)<=($C$12*2),(SUM($E$30:AU30)-SUM($E$27:AT27))*($C$16/2),0) -> 0 | AV31: =IF(COUNTA($E$24:AU24)<=($C$12*2),(SUM($E$30:AV30)-SUM($E$27:AU27))*($C$16/2),0) -> 0 | AW31: =IF(COUNTA($E$24:AV24)<=($C$12*2),(SUM($E$30:AW30)-SUM($E$27:AV27))*($C$16/2),0) -> 0 | AX31: =IF(COUNTA($E$24:AW24)<=($C$12*2),(SUM($E$30:AX30)-SUM($E$27:AW27))*($C$16/2),0) -> 0 | AY31: =IF(COUNTA($E$24:AX24)<=($C$12*2),(SUM($E$30:AY30)-SUM($E$27:AX27))*($C$16/2),0) -> 0 | AZ31: =IF(COUNTA($E$24:AY24)<=($C$12*2),(SUM($E$30:AZ30)-SUM($E$27:AY27))*($C$16/2),0) -> 0 | BA31: =IF(COUNTA($E$24:AZ24)<=($C$12*2),(SUM($E$30:BA30)-SUM($E$27:AZ27))*($C$16/2),0) -> 0 | BB31: =IF(COUNTA($E$24:BA24)<=($C$12*2),(SUM($E$30:BB30)-SUM($E$27:BA27))*($C$16/2),0) -> 0 | BC31: =IF(COUNTA($E$24:BB24)<=($C$12*2),(SUM($E$30:BC30)-SUM($E$27:BB27))*($C$16/2),0) -> 0 | BD31: =IF(COUNTA($E$24:BC24)<=($C$12*2),(SUM($E$30:BD30)-SUM($E$27:BC27))*($C$16/2),0) -> 0 | BE31: =IF(COUNTA($E$24:BD24)<=($C$12*2),(SUM($E$30:BE30)-SUM($E$27:BD27))*($C$16/2),0) -> 0 | BF31: =IF(COUNTA($E$24:BE24)<=($C$12*2),(SUM($E$30:BF30)-SUM($E$27:BE27))*($C$16/2),0) -> 0 | BG31: =IF(COUNTA($E$24:BF24)<=($C$12*2),(SUM($E$30:BG30)-SUM($E$27:BF27))*($C$16/2),0) -> 0 | BH31: =IF(COUNTA($E$24:BG24)<=($C$12*2),(SUM($E$30:BH30)-SUM($E$27:BG27))*($C$16/2),0) -> 0 | BI31: =IF(COUNTA($E$24:BH24)<=($C$12*2),(SUM($E$30:BI30)-SUM($E$27:BH27))*($C$16/2),0) -> 0 | BJ31: =IF(COUNTA($E$24:BI24)<=($C$12*2),(SUM($E$30:BJ30)-SUM($E$27:BI27))*($C$16/2),0) -> 0 | BK31: =IF(COUNTA($E$24:BJ24)<=($C$12*2),(SUM($E$30:BK30)-SUM($E$27:BJ27))*($C$16/2),0) -> 0 | BL31: =IF(COUNTA($E$24:BK24)<=($C$12*2),(SUM($E$30:BL30)-SUM($E$27:BK27))*($C$16/2),0) -> 0 | BM31: =IF(COUNTA($E$24:BL24)<=($C$12*2),(SUM($E$30:BM30)-SUM($E$27:BL27))*($C$16/2),0) -> 0 | BN31: =IF(COUNTA($E$24:BM24)<=($C$12*2),(SUM($E$30:BN30)-SUM($E$27:BM27))*($C$16/2),0) -> 0 | BO31: =IF(COUNTA($E$24:BN24)<=($C$12*2),(SUM($E$30:BO30)-SUM($E$27:BN27))*($C$16/2),0) -> 0 | BP31: =IF(COUNTA($E$24:BO24)<=($C$12*2),(SUM($E$30:BP30)-SUM($E$27:BO27))*($C$16/2),0) -> 0 | BQ31: =IF(COUNTA($E$24:BP24)<=($C$12*2),(SUM($E$30:BQ30)-SUM($E$27:BP27))*($C$16/2),0) -> 0 | BR31: =IF(COUNTA($E$24:BQ24)<=($C$12*2),(SUM($E$30:BR30)-SUM($E$27:BQ27))*($C$16/2),0) -> 0 | BS31: =IF(COUNTA($E$24:BR24)<=($C$12*2),(SUM($E$30:BS30)-SUM($E$27:BR27))*($C$16/2),0) -> 0 | BT31: =IF(COUNTA($E$24:BS24)<=($C$12*2),(SUM($E$30:BT30)-SUM($E$27:BS27))*($C$16/2),0) -> 0 | BU31: =IF(COUNTA($E$24:BT24)<=($C$12*2),(SUM($E$30:BU30)-SUM($E$27:BT27))*($C$16/2),0) -> 0 | BV31: =IF(COUNTA($E$24:BU24)<=($C$12*2),(SUM($E$30:BV30)-SUM($E$27:BU27))*($C$16/2),0) -> 0 | BW31: =IF(COUNTA($E$24:BV24)<=($C$12*2),(SUM($E$30:BW30)-SUM($E$27:BV27))*($C$16/2),0) -> 0 | BX31: =IF(COUNTA($E$24:BW24)<=($C$12*2),(SUM($E$30:BX30)-SUM($E$27:BW27))*($C$16/2),0) -> 0 | BY31: =IF(COUNTA($E$24:BX24)<=($C$12*2),(SUM($E$30:BY30)-SUM($E$27:BX27))*($C$16/2),0) -> 0 | BZ31: =IF(COUNTA($E$24:BY24)<=($C$12*2),(SUM($E$30:BZ30)-SUM($E$27:BY27))*($C$16/2),0) -> 0 | CA31: =IF(COUNTA($E$24:BZ24)<=($C$12*2),(SUM($E$30:CA30)-SUM($E$27:BZ27))*($C$16/2),0) -> 0 | CB31: =IF(COUNTA($E$24:CA24)<=($C$12*2),(SUM($E$30:CB30)-SUM($E$27:CA27))*($C$16/2),0) -> 0 | CC31: =IF(COUNTA($E$24:CB24)<=($C$12*2),(SUM($E$30:CC30)-SUM($E$27:CB27))*($C$16/2),0) -> 0 | CD31: =IF(COUNTA($E$24:CC24)<=($C$12*2),(SUM($E$30:CD30)-SUM($E$27:CC27))*($C$16/2),0) -> 0 | CE31: =IF(COUNTA($E$24:CD24)<=($C$12*2),(SUM($E$30:CE30)-SUM($E$27:CD27))*($C$16/2),0) -> 0 | CF31: =IF(COUNTA($E$24:CE24)<=($C$12*2),(SUM($E$30:CF30)-SUM($E$27:CE27))*($C$16/2),0) -> 0 | CG31: =IF(COUNTA($E$24:CF24)<=($C$12*2),(SUM($E$30:CG30)-SUM($E$27:CF27))*($C$16/2),0) -> 0 | CH31: =IF(COUNTA($E$24:CG24)<=($C$12*2),(SUM($E$30:CH30)-SUM($E$27:CG27))*($C$16/2),0) -> 0
B32: Комісія за зобов'язання / Commitment fee | E32: =IF(COUNTA(D$24:$E24)<=($C$12*2),($C$8-SUM($E$30:E30))*$C$20/2,0) -> 0 | F32: =IF(COUNTA($E$24:E24)<=($C$12*2),($C$8-SUM($E$30:F30))*$C$20/2,0) -> 0 | G32: =IF(COUNTA($E$24:F24)<=($C$12*2),($C$8-SUM($E$30:G30))*$C$20/2,0) -> 0 | H32: =IF(COUNTA($E$24:G24)<=($C$12*2),($C$8-SUM($E$30:H30))*$C$20/2,0) -> 0 | I32: =IF(COUNTA($E$24:H24)<=($C$12*2),($C$8-SUM($E$30:I30))*$C$20/2,0) -> 0 | J32: =IF(COUNTA($E$24:I24)<=($C$12*2),($C$8-SUM($E$30:J30))*$C$20/2,0) -> 0 | K32: =IF(COUNTA($E$24:J24)<=($C$12*2),($C$8-SUM($E$30:K30))*$C$20/2,0) -> 0 | L32: =IF(COUNTA($E$24:K24)<=($C$12*2),($C$8-SUM($E$30:L30))*$C$20/2,0) -> 0 | M32: =IF(COUNTA($E$24:L24)<=($C$12*2),($C$8-SUM($E$30:M30))*$C$20/2,0) -> 0 | N32: =IF(COUNTA($E$24:M24)<=($C$12*2),($C$8-SUM($E$30:N30))*$C$20/2,0) -> 0 | O32: =IF(COUNTA($E$24:N24)<=($C$12*2),($C$8-SUM($E$30:O30))*$C$20/2,0) -> 0 | P32: =IF(COUNTA($E$24:O24)<=($C$12*2),($C$8-SUM($E$30:P30))*$C$20/2,0) -> 0 | Q32: =IF(COUNTA($E$24:P24)<=($C$12*2),($C$8-SUM($E$30:Q30))*$C$20/2,0) -> 0 | R32: =IF(COUNTA($E$24:Q24)<=($C$12*2),($C$8-SUM($E$30:R30))*$C$20/2,0) -> 0 | S32: =IF(COUNTA($E$24:R24)<=($C$12*2),($C$8-SUM($E$30:S30))*$C$20/2,0) -> 0 | T32: =IF(COUNTA($E$24:S24)<=($C$12*2),($C$8-SUM($E$30:T30))*$C$20/2,0) -> 0 | U32: =IF(COUNTA($E$24:T24)<=($C$12*2),($C$8-SUM($E$30:U30))*$C$20/2,0) -> 0 | V32: =IF(COUNTA($E$24:U24)<=($C$12*2),($C$8-SUM($E$30:V30))*$C$20/2,0) -> 0 | W32: =IF(COUNTA($E$24:V24)<=($C$12*2),($C$8-SUM($E$30:W30))*$C$20/2,0) -> 0 | X32: =IF(COUNTA($E$24:W24)<=($C$12*2),($C$8-SUM($E$30:X30))*$C$20/2,0) -> 0 | Y32: =IF(COUNTA($E$24:X24)<=($C$12*2),($C$8-SUM($E$30:Y30))*$C$20/2,0) -> 0 | Z32: =IF(COUNTA($E$24:Y24)<=($C$12*2),($C$8-SUM($E$30:Z30))*$C$20/2,0) -> 0 | AA32: =IF(COUNTA($E$24:Z24)<=($C$12*2),($C$8-SUM($E$30:AA30))*$C$20/2,0) -> 0 | AB32: =IF(COUNTA($E$24:AA24)<=($C$12*2),($C$8-SUM($E$30:AB30))*$C$20/2,0) -> 0 | AC32: =IF(COUNTA($E$24:AB24)<=($C$12*2),($C$8-SUM($E$30:AC30))*$C$20/2,0) -> 0 | AD32: =IF(COUNTA($E$24:AC24)<=($C$12*2),($C$8-SUM($E$30:AD30))*$C$20/2,0) -> 0 | AE32: =IF(COUNTA($E$24:AD24)<=($C$12*2),($C$8-SUM($E$30:AE30))*$C$20/2,0) -> 0 | AF32: =IF(COUNTA($E$24:AE24)<=($C$12*2),($C$8-SUM($E$30:AF30))*$C$20/2,0) -> 0 | AG32: =IF(COUNTA($E$24:AF24)<=($C$12*2),($C$8-SUM($E$30:AG30))*$C$20/2,0) -> 0 | AH32: =IF(COUNTA($E$24:AG24)<=($C$12*2),($C$8-SUM($E$30:AH30))*$C$20/2,0) -> 0 | AI32: =IF(COUNTA($E$24:AH24)<=($C$12*2),($C$8-SUM($E$30:AI30))*$C$20/2,0) -> 0 | AJ32: =IF(COUNTA($E$24:AI24)<=($C$12*2),($C$8-SUM($E$30:AJ30))*$C$20/2,0) -> 0 | AK32: =IF(COUNTA($E$24:AJ24)<=($C$12*2),($C$8-SUM($E$30:AK30))*$C$20/2,0) -> 0 | AL32: =IF(COUNTA($E$24:AK24)<=($C$12*2),($C$8-SUM($E$30:AL30))*$C$20/2,0) -> 0 | AM32: =IF(COUNTA($E$24:AL24)<=($C$12*2),($C$8-SUM($E$30:AM30))*$C$20/2,0) -> 0 | AN32: =IF(COUNTA($E$24:AM24)<=($C$12*2),($C$8-SUM($E$30:AN30))*$C$20/2,0) -> 0 | AO32: =IF(COUNTA($E$24:AN24)<=($C$12*2),($C$8-SUM($E$30:AO30))*$C$20/2,0) -> 0 | AP32: =IF(COUNTA($E$24:AO24)<=($C$12*2),($C$8-SUM($E$30:AP30))*$C$20/2,0) -> 0 | AQ32: =IF(COUNTA($E$24:AP24)<=($C$12*2),($C$8-SUM($E$30:AQ30))*$C$20/2,0) -> 0 | AR32: =IF(COUNTA($E$24:AQ24)<=($C$12*2),($C$8-SUM($E$30:AR30))*$C$20/2,0) -> 0 | AS32: =IF(COUNTA($E$24:AR24)<=($C$12*2),($C$8-SUM($E$30:AS30))*$C$20/2,0) -> 0 | AT32: =IF(COUNTA($E$24:AS24)<=($C$12*2),($C$8-SUM($E$30:AT30))*$C$20/2,0) -> 0 | AU32: =IF(COUNTA($E$24:AT24)<=($C$12*2),($C$8-SUM($E$30:AU30))*$C$20/2,0) -> 0 | AV32: =IF(COUNTA($E$24:AU24)<=($C$12*2),($C$8-SUM($E$30:AV30))*$C$20/2,0) -> 0 | AW32: =IF(COUNTA($E$24:AV24)<=($C$12*2),($C$8-SUM($E$30:AW30))*$C$20/2,0) -> 0 | AX32: =IF(COUNTA($E$24:AW24)<=($C$12*2),($C$8-SUM($E$30:AX30))*$C$20/2,0) -> 0 | AY32: =IF(COUNTA($E$24:AX24)<=($C$12*2),($C$8-SUM($E$30:AY30))*$C$20/2,0) -> 0 | AZ32: =IF(COUNTA($E$24:AY24)<=($C$12*2),($C$8-SUM($E$30:AZ30))*$C$20/2,0) -> 0 | BA32: =IF(COUNTA($E$24:AZ24)<=($C$12*2),($C$8-SUM($E$30:BA30))*$C$20/2,0) -> 0 | BB32: =IF(COUNTA($E$24:BA24)<=($C$12*2),($C$8-SUM($E$30:BB30))*$C$20/2,0) -> 0 | BC32: =IF(COUNTA($E$24:BB24)<=($C$12*2),($C$8-SUM($E$30:BC30))*$C$20/2,0) -> 0 | BD32: =IF(COUNTA($E$24:BC24)<=($C$12*2),($C$8-SUM($E$30:BD30))*$C$20/2,0) -> 0 | BE32: =IF(COUNTA($E$24:BD24)<=($C$12*2),($C$8-SUM($E$30:BE30))*$C$20/2,0) -> 0 | BF32: =IF(COUNTA($E$24:BE24)<=($C$12*2),($C$8-SUM($E$30:BF30))*$C$20/2,0) -> 0 | BG32: =IF(COUNTA($E$24:BF24)<=($C$12*2),($C$8-SUM($E$30:BG30))*$C$20/2,0) -> 0 | BH32: =IF(COUNTA($E$24:BG24)<=($C$12*2),($C$8-SUM($E$30:BH30))*$C$20/2,0) -> 0 | BI32: =IF(COUNTA($E$24:BH24)<=($C$12*2),($C$8-SUM($E$30:BI30))*$C$20/2,0) -> 0 | BJ32: =IF(COUNTA($E$24:BI24)<=($C$12*2),($C$8-SUM($E$30:BJ30))*$C$20/2,0) -> 0 | BK32: =IF(COUNTA($E$24:BJ24)<=($C$12*2),($C$8-SUM($E$30:BK30))*$C$20/2,0) -> 0 | BL32: =IF(COUNTA($E$24:BK24)<=($C$12*2),($C$8-SUM($E$30:BL30))*$C$20/2,0) -> 0 | BM32: =IF(COUNTA($E$24:BL24)<=($C$12*2),($C$8-SUM($E$30:BM30))*$C$20/2,0) -> 0 | BN32: =IF(COUNTA($E$24:BM24)<=($C$12*2),($C$8-SUM($E$30:BN30))*$C$20/2,0) -> 0 | BO32: =IF(COUNTA($E$24:BN24)<=($C$12*2),($C$8-SUM($E$30:BO30))*$C$20/2,0) -> 0 | BP32: =IF(COUNTA($E$24:BO24)<=($C$12*2),($C$8-SUM($E$30:BP30))*$C$20/2,0) -> 0 | BQ32: =IF(COUNTA($E$24:BP24)<=($C$12*2),($C$8-SUM($E$30:BQ30))*$C$20/2,0) -> 0 | BR32: =IF(COUNTA($E$24:BQ24)<=($C$12*2),($C$8-SUM($E$30:BR30))*$C$20/2,0) -> 0 | BS32: =IF(COUNTA($E$24:BR24)<=($C$12*2),($C$8-SUM($E$30:BS30))*$C$20/2,0) -> 0 | BT32: =IF(COUNTA($E$24:BS24)<=($C$12*2),($C$8-SUM($E$30:BT30))*$C$20/2,0) -> 0 | BU32: =IF(COUNTA($E$24:BT24)<=($C$12*2),($C$8-SUM($E$30:BU30))*$C$20/2,0) -> 0 | BV32: =IF(COUNTA($E$24:BU24)<=($C$12*2),($C$8-SUM($E$30:BV30))*$C$20/2,0) -> 0 | BW32: =IF(COUNTA($E$24:BV24)<=($C$12*2),($C$8-SUM($E$30:BW30))*$C$20/2,0) -> 0 | BX32: =IF(COUNTA($E$24:BW24)<=($C$12*2),($C$8-SUM($E$30:BX30))*$C$20/2,0) -> 0 | BY32: =IF(COUNTA($E$24:BX24)<=($C$12*2),($C$8-SUM($E$30:BY30))*$C$20/2,0) -> 0 | BZ32: =IF(COUNTA($E$24:BY24)<=($C$12*2),($C$8-SUM($E$30:BZ30))*$C$20/2,0) -> 0 | CA32: =IF(COUNTA($E$24:BZ24)<=($C$12*2),($C$8-SUM($E$30:CA30))*$C$20/2,0) -> 0 | CB32: =IF(COUNTA($E$24:CA24)<=($C$12*2),($C$8-SUM($E$30:CB30))*$C$20/2,0) -> 0 | CC32: =IF(COUNTA($E$24:CB24)<=($C$12*2),($C$8-SUM($E$30:CC30))*$C$20/2,0) -> 0 | CD32: =IF(COUNTA($E$24:CC24)<=($C$12*2),($C$8-SUM($E$30:CD30))*$C$20/2,0) -> 0 | CE32: =IF(COUNTA($E$24:CD24)<=($C$12*2),($C$8-SUM($E$30:CE30))*$C$20/2,0) -> 0 | CF32: =IF(COUNTA($E$24:CE24)<=($C$12*2),($C$8-SUM($E$30:CF30))*$C$20/2,0) -> 0 | CG32: =IF(COUNTA($E$24:CF24)<=($C$12*2),($C$8-SUM($E$30:CG30))*$C$20/2,0) -> 0 | CH32: =IF(COUNTA($E$24:CG24)<=($C$12*2),($C$8-SUM($E$30:CH30))*$C$20/2,0) -> 0 | CI32: =IF(COUNTA($E$24:CH24)<=($C$12*2),($C$8-SUM($E$30:CI30))*$C$20/2,0) -> 0
B33: Плата МФУ за надання державної гарантії / State guarantee fee | E33: =(E30)*C22/2 -> 0 | F33: =IF(COUNTA($E$24:E24)<=($C$12*2),((SUM($E$30:F30)-E27))*$C$22/2,0) -> 0 | G33: =IF(COUNTA($E$24:F24)<=($C$12*2),(SUM($E$30:G30)-SUM($E$27:F27))*$C$22/2,0) -> 0 | H33: =IF(COUNTA($E$24:G24)<=($C$12*2),(SUM($E$30:H30)-SUM($E$27:G27))*$C$22/2,0) -> 0 | I33: =IF(COUNTA($E$24:H24)<=($C$12*2),(SUM($E$30:I30)-SUM($E$27:H27))*$C$22/2,0) -> 0 | J33: =IF(COUNTA($E$24:I24)<=($C$12*2),(SUM($E$30:J30)-SUM($E$27:I27))*$C$22/2,0) -> 0 | K33: =IF(COUNTA($E$24:J24)<=($C$12*2),(SUM($E$30:K30)-SUM($E$27:J27))*$C$22/2,0) -> 0 | L33: =IF(COUNTA($E$24:K24)<=($C$12*2),(SUM($E$30:L30)-SUM($E$27:K27))*$C$22/2,0) -> 0 | M33: =IF(COUNTA($E$24:L24)<=($C$12*2),(SUM($E$30:M30)-SUM($E$27:L27))*$C$22/2,0) -> 0 | N33: =IF(COUNTA($E$24:M24)<=($C$12*2),(SUM($E$30:N30)-SUM($E$27:M27))*$C$22/2,0) -> 0 | O33: =IF(COUNTA($E$24:N24)<=($C$12*2),(SUM($E$30:O30)-SUM($E$27:N27))*$C$22/2,0) -> 0 | P33: =IF(COUNTA($E$24:O24)<=($C$12*2),(SUM($E$30:P30)-SUM($E$27:O27))*$C$22/2,0) -> 0 | Q33: =IF(COUNTA($E$24:P24)<=($C$12*2),(SUM($E$30:Q30)-SUM($E$27:P27))*$C$22/2,0) -> 0 | R33: =IF(COUNTA($E$24:Q24)<=($C$12*2),(SUM($E$30:R30)-SUM($E$27:Q27))*$C$22/2,0) -> 0 | S33: =IF(COUNTA($E$24:R24)<=($C$12*2),(SUM($E$30:S30)-SUM($E$27:R27))*$C$22/2,0) -> 0 | T33: =IF(COUNTA($E$24:S24)<=($C$12*2),(SUM($E$30:T30)-SUM($E$27:S27))*$C$22/2,0) -> 0 | U33: =IF(COUNTA($E$24:T24)<=($C$12*2),(SUM($E$30:U30)-SUM($E$27:T27))*$C$22/2,0) -> 0 | V33: =IF(COUNTA($E$24:U24)<=($C$12*2),(SUM($E$30:V30)-SUM($E$27:U27))*$C$22/2,0) -> 0 | W33: =IF(COUNTA($E$24:V24)<=($C$12*2),(SUM($E$30:W30)-SUM($E$27:V27))*$C$22/2,0) -> 0 | X33: =IF(COUNTA($E$24:W24)<=($C$12*2),(SUM($E$30:X30)-SUM($E$27:W27))*$C$22/2,0) -> 0 | Y33: =IF(COUNTA($E$24:X24)<=($C$12*2),(SUM($E$30:Y30)-SUM($E$27:X27))*$C$22/2,0) -> 0 | Z33: =IF(COUNTA($E$24:Y24)<=($C$12*2),(SUM($E$30:Z30)-SUM($E$27:Y27))*$C$22/2,0) -> 0 | AA33: =IF(COUNTA($E$24:Z24)<=($C$12*2),(SUM($E$30:AA30)-SUM($E$27:Z27))*$C$22/2,0) -> 0 | AB33: =IF(COUNTA($E$24:AA24)<=($C$12*2),(SUM($E$30:AB30)-SUM($E$27:AA27))*$C$22/2,0) -> 0 | AC33: =IF(COUNTA($E$24:AB24)<=($C$12*2),(SUM($E$30:AC30)-SUM($E$27:AB27))*$C$22/2,0) -> 0 | AD33: =IF(COUNTA($E$24:AC24)<=($C$12*2),(SUM($E$30:AD30)-SUM($E$27:AC27))*$C$22/2,0) -> 0 | AE33: =IF(COUNTA($E$24:AD24)<=($C$12*2),(SUM($E$30:AE30)-SUM($E$27:AD27))*$C$22/2,0) -> 0 | AF33: =IF(COUNTA($E$24:AE24)<=($C$12*2),(SUM($E$30:AF30)-SUM($E$27:AE27))*$C$22/2,0) -> 0 | AG33: =IF(COUNTA($E$24:AF24)<=($C$12*2),(SUM($E$30:AG30)-SUM($E$27:AF27))*$C$22/2,0) -> 0 | AH33: =IF(COUNTA($E$24:AG24)<=($C$12*2),(SUM($E$30:AH30)-SUM($E$27:AG27))*$C$22/2,0) -> 0 | AI33: =IF(COUNTA($E$24:AH24)<=($C$12*2),(SUM($E$30:AI30)-SUM($E$27:AH27))*$C$22/2,0) -> 0 | AJ33: =IF(COUNTA($E$24:AI24)<=($C$12*2),(SUM($E$30:AJ30)-SUM($E$27:AI27))*$C$22/2,0) -> 0 | AK33: =IF(COUNTA($E$24:AJ24)<=($C$12*2),(SUM($E$30:AK30)-SUM($E$27:AJ27))*$C$22/2,0) -> 0 | AL33: =IF(COUNTA($E$24:AK24)<=($C$12*2),(SUM($E$30:AL30)-SUM($E$27:AK27))*$C$22/2,0) -> 0 | AM33: =IF(COUNTA($E$24:AL24)<=($C$12*2),(SUM($E$30:AM30)-SUM($E$27:AL27))*$C$22/2,0) -> 0 | AN33: =IF(COUNTA($E$24:AM24)<=($C$12*2),(SUM($E$30:AN30)-SUM($E$27:AM27))*$C$22/2,0) -> 0 | AO33: =IF(COUNTA($E$24:AN24)<=($C$12*2),(SUM($E$30:AO30)-SUM($E$27:AN27))*$C$22/2,0) -> 0 | AP33: =IF(COUNTA($E$24:AO24)<=($C$12*2),(SUM($E$30:AP30)-SUM($E$27:AO27))*$C$22/2,0) -> 0 | AQ33: =IF(COUNTA($E$24:AP24)<=($C$12*2),(SUM($E$30:AQ30)-SUM($E$27:AP27))*$C$22/2,0) -> 0 | AR33: =IF(COUNTA($E$24:AQ24)<=($C$12*2),(SUM($E$30:AR30)-SUM($E$27:AQ27))*$C$22/2,0) -> 0 | AS33: =IF(COUNTA($E$24:AR24)<=($C$12*2),(SUM($E$30:AS30)-SUM($E$27:AR27))*$C$22/2,0) -> 0 | AT33: =IF(COUNTA($E$24:AS24)<=($C$12*2),(SUM($E$30:AT30)-SUM($E$27:AS27))*$C$22/2,0) -> 0 | AU33: =IF(COUNTA($E$24:AT24)<=($C$12*2),(SUM($E$30:AU30)-SUM($E$27:AT27))*$C$22/2,0) -> 0 | AV33: =IF(COUNTA($E$24:AU24)<=($C$12*2),(SUM($E$30:AV30)-SUM($E$27:AU27))*$C$22/2,0) -> 0 | AW33: =IF(COUNTA($E$24:AV24)<=($C$12*2),(SUM($E$30:AW30)-SUM($E$27:AV27))*$C$22/2,0) -> 0 | AX33: =IF(COUNTA($E$24:AW24)<=($C$12*2),(SUM($E$30:AX30)-SUM($E$27:AW27))*$C$22/2,0) -> 0 | AY33: =IF(COUNTA($E$24:AX24)<=($C$12*2),(SUM($E$30:AY30)-SUM($E$27:AX27))*$C$22/2,0) -> 0 | AZ33: =IF(COUNTA($E$24:AY24)<=($C$12*2),(SUM($E$30:AZ30)-SUM($E$27:AY27))*$C$22/2,0) -> 0 | BA33: =IF(COUNTA($E$24:AZ24)<=($C$12*2),(SUM($E$30:BA30)-SUM($E$27:AZ27))*$C$22/2,0) -> 0 | BB33: =IF(COUNTA($E$24:BA24)<=($C$12*2),(SUM($E$30:BB30)-SUM($E$27:BA27))*$C$22/2,0) -> 0 | BC33: =IF(COUNTA($E$24:BB24)<=($C$12*2),(SUM($E$30:BC30)-SUM($E$27:BB27))*$C$22/2,0) -> 0 | BD33: =IF(COUNTA($E$24:BC24)<=($C$12*2),(SUM($E$30:BD30)-SUM($E$27:BC27))*$C$22/2,0) -> 0 | BE33: =IF(COUNTA($E$24:BD24)<=($C$12*2),(SUM($E$30:BE30)-SUM($E$27:BD27))*$C$22/2,0) -> 0 | BF33: =IF(COUNTA($E$24:BE24)<=($C$12*2),(SUM($E$30:BF30)-SUM($E$27:BE27))*$C$22/2,0) -> 0 | BG33: =IF(COUNTA($E$24:BF24)<=($C$12*2),(SUM($E$30:BG30)-SUM($E$27:BF27))*$C$22/2,0) -> 0 | BH33: =IF(COUNTA($E$24:BG24)<=($C$12*2),(SUM($E$30:BH30)-SUM($E$27:BG27))*$C$22/2,0) -> 0 | BI33: =IF(COUNTA($E$24:BH24)<=($C$12*2),(SUM($E$30:BI30)-SUM($E$27:BH27))*$C$22/2,0) -> 0 | BJ33: =IF(COUNTA($E$24:BI24)<=($C$12*2),(SUM($E$30:BJ30)-SUM($E$27:BI27))*$C$22/2,0) -> 0 | BK33: =IF(COUNTA($E$24:BJ24)<=($C$12*2),(SUM($E$30:BK30)-SUM($E$27:BJ27))*$C$22/2,0) -> 0 | BL33: =IF(COUNTA($E$24:BK24)<=($C$12*2),(SUM($E$30:BL30)-SUM($E$27:BK27))*$C$22/2,0) -> 0 | BM33: =IF(COUNTA($E$24:BL24)<=($C$12*2),(SUM($E$30:BM30)-SUM($E$27:BL27))*$C$22/2,0) -> 0 | BN33: =IF(COUNTA($E$24:BM24)<=($C$12*2),(SUM($E$30:BN30)-SUM($E$27:BM27))*$C$22/2,0) -> 0 | BO33: =IF(COUNTA($E$24:BN24)<=($C$12*2),(SUM($E$30:BO30)-SUM($E$27:BN27))*$C$22/2,0) -> 0 | BP33: =IF(COUNTA($E$24:BO24)<=($C$12*2),(SUM($E$30:BP30)-SUM($E$27:BO27))*$C$22/2,0) -> 0 | BQ33: =IF(COUNTA($E$24:BP24)<=($C$12*2),(SUM($E$30:BQ30)-SUM($E$27:BP27))*$C$22/2,0) -> 0 | BR33: =IF(COUNTA($E$24:BQ24)<=($C$12*2),(SUM($E$30:BR30)-SUM($E$27:BQ27))*$C$22/2,0) -> 0 | BS33: =IF(COUNTA($E$24:BR24)<=($C$12*2),(SUM($E$30:BS30)-SUM($E$27:BR27))*$C$22/2,0) -> 0 | BT33: =IF(COUNTA($E$24:BS24)<=($C$12*2),(SUM($E$30:BT30)-SUM($E$27:BS27))*$C$22/2,0) -> 0 | BU33: =IF(COUNTA($E$24:BT24)<=($C$12*2),(SUM($E$30:BU30)-SUM($E$27:BT27))*$C$22/2,0) -> 0 | BV33: =IF(COUNTA($E$24:BU24)<=($C$12*2),(SUM($E$30:BV30)-SUM($E$27:BU27))*$C$22/2,0) -> 0 | BW33: =IF(COUNTA($E$24:BV24)<=($C$12*2),(SUM($E$30:BW30)-SUM($E$27:BV27))*$C$22/2,0) -> 0 | BX33: =IF(COUNTA($E$24:BW24)<=($C$12*2),(SUM($E$30:BX30)-SUM($E$27:BW27))*$C$22/2,0) -> 0 | BY33: =IF(COUNTA($E$24:BX24)<=($C$12*2),(SUM($E$30:BY30)-SUM($E$27:BX27))*$C$22/2,0) -> 0 | BZ33: =IF(COUNTA($E$24:BY24)<=($C$12*2),(SUM($E$30:BZ30)-SUM($E$27:BY27))*$C$22/2,0) -> 0 | CA33: =IF(COUNTA($E$24:BZ24)<=($C$12*2),(SUM($E$30:CA30)-SUM($E$27:BZ27))*$C$22/2,0) -> 0 | CB33: =IF(COUNTA($E$24:CA24)<=($C$12*2),(SUM($E$30:CB30)-SUM($E$27:CA27))*$C$22/2,0) -> 0 | CC33: =IF(COUNTA($E$24:CB24)<=($C$12*2),(SUM($E$30:CC30)-SUM($E$27:CB27))*$C$22/2,0) -> 0 | CD33: =IF(COUNTA($E$24:CC24)<=($C$12*2),(SUM($E$30:CD30)-SUM($E$27:CC27))*$C$22/2,0) -> 0 | CE33: =IF(COUNTA($E$24:CD24)<=($C$12*2),(SUM($E$30:CE30)-SUM($E$27:CD27))*$C$22/2,0) -> 0 | CF33: =IF(COUNTA($E$24:CE24)<=($C$12*2),(SUM($E$30:CF30)-SUM($E$27:CE27))*$C$22/2,0) -> 0 | CG33: =IF(COUNTA($E$24:CF24)<=($C$12*2),(SUM($E$30:CG30)-SUM($E$27:CF27))*$C$22/2,0) -> 0 | CH33: =IF(COUNTA($E$24:CG24)<=($C$12*2),(SUM($E$30:CH30)-SUM($E$27:CG27))*$C$22/2,0) -> 0
B34: Витрати за кредитом /Costs on the loan | E34: =E31+F31+E32+F32+E33+F33 -> 150 | G34: =G31+H31+G32+H32+G33+H33 -> 583.3333333 | I34: =I29+J29+I31+J31+I32+J32+I33+J33 -> 460.4166667 | K34: =K29+L29+K31+L31+K32+L32+K33+L33 -> 318.75 | M34: =M29+N29+M31+N31+M32+N32+M33+N33 -> 177.0833333 | O34: =O29+P29+O31+P31+O32+P32+O33+P33 -> 35.41666667 | Q34: =Q29+R29+Q31+R31+Q32+R32+Q33+R33 -> 0 | S34: =S29+T29+S31+T31+S32+T32+S33+T33 -> 0 | U34: =U29+V29+U31+V31+U32+V32+U33+V33 -> 0 | W34: =W29+X29+W31+X31+W32+X32+W33+X33 -> 0 | Y34: =Y29+Z29+Y31+Z31+Y32+Z32+Y33+Z33 -> 0 | AA34: =AA29+AB29+AA31+AB31+AA32+AB32+AA33+AB33 -> 0 | AC34: =AC29+AD29+AC31+AD31+AC32+AD32+AC33+AD33 -> 0 | AE34: =AE29+AF29+AE31+AF31+AE32+AF32+AE33+AF33 -> 0 | AG34: =AG29+AH29+AG31+AH31+AG32+AH32+AG33+AH33 -> 0 | AI34: =AI29+AJ29+AI31+AJ31+AI32+AJ32+AI33+AJ33 -> 0 | AK34: =AK29+AL29+AK31+AL31+AK32+AL32+AK33+AL33 -> 0 | AM34: =AM29+AN29+AM31+AN31+AM32+AN32+AM33+AN33 -> 0 | AO34: =AO29+AP29+AO31+AP31+AO32+AP32+AO33+AP33 -> 0 | AQ34: =AQ29+AR29+AQ31+AR31+AQ32+AR32+AQ33+AR33 -> 0 | AS34: =AS29+AT29+AS31+AT31+AS32+AT32+AS33+AT33 -> 0 | AU34: =AU29+AV29+AU31+AV31+AU32+AV32+AU33+AV33 -> 0 | AW34: =AW29+AX29+AW31+AX31+AW32+AX32+AW33+AX33 -> 0 | AY34: =AY29+AZ29+AY31+AZ31+AY32+AZ32+AY33+AZ33 -> 0 | BA34: =BA29+BB29+BA31+BB31+BA32+BB32+BA33+BB33 -> 0 | BC34: =BC29+BD29+BC31+BD31+BC32+BD32+BC33+BD33 -> 0 | BE34: =BE29+BF29+BE31+BF31+BE32+BF32+BE33+BF33 -> 0 | BG34: =BG29+BH29+BG31+BH31+BG32+BH32+BG33+BH33 -> 0 | BI34: =BI29+BJ29+BI31+BJ31+BI32+BJ32+BI33+BJ33 -> 0 | BK34: =BK29+BL29+BK31+BL31+BK32+BL32+BK33+BL33 -> 0 | BM34: =BM29+BN29+BM31+BN31+BM32+BN32+BM33+BN33 -> 0 | BO34: =BO29+BP29+BO31+BP31+BO32+BP32+BO33+BP33 -> 0 | BQ34: =BQ29+BR29+BQ31+BR31+BQ32+BR32+BQ33+BR33 -> 0 | BS34: =BS29+BT29+BS31+BT31+BS32+BT32+BS33+BT33 -> 0 | BU34: =BU29+BV29+BU31+BV31+BU32+BV32+BU33+BV33 -> 0 | BW34: =BW29+BX29+BW31+BX31+BW32+BX32+BW33+BX33 -> 0 | BY34: =BY29+BZ29+BY31+BZ31+BY32+BZ32+BY33+BZ33 -> 0 | CA34: =CA29+CB29+CA31+CB31+CA32+CB32+CA33+CB33 -> 0 | CC34: =CC29+CD29+CC31+CD31+CC32+CD32+CC33+CD33 -> 0 | CE34: =CE29+CF29+CE31+CF31+CE32+CF32+CE33+CF33 -> 0 | CG34: =CG29+CH29+CG31+CH31+CG32+CH32+CG33+CH33 -> 0
B35: Погашення за рік/ Repayment per year | E35: =E27+F27 -> 0 | G35: =G27+H27 -> 1041.666667 | I35: =I27+J27 -> 1416.666667 | K35: =K27+L27 -> 1416.666667 | M35: =M27+N27 -> 1416.666667 | O35: =O27+P27 -> 708.3333333 | Q35: =Q27+R27 -> 0 | S35: =S27+T27 -> 0 | U35: =U27+V27 -> 0 | W35: =W27+X27 -> 0 | Y35: =Y27+Z27 -> 0 | AA35: =AA27+AB27 -> 0 | AC35: =AC27+AD27 -> 0 | AE35: =AE27+AF27 -> 0 | AG35: =AG27+AH27 -> 0 | AI35: =AI27+AJ27 -> 0 | AK35: =AK27+AL27 -> 0 | AM35: =AM27+AN27 -> 0 | AO35: =AO27+AP27 -> 0 | AQ35: =AQ27+AR27 -> 0 | AS35: =AS27+AT27 -> 0 | AU35: =AU27+AV27 -> 0 | AW35: =AW27+AX27 -> 0 | AY35: =AY27+AZ27 -> 0 | BA35: =BA27+BB27 -> 0 | BC35: =BC27+BD27 -> 0 | BE35: =BE27+BF27 -> 0 | BG35: =BG27+BH27 -> 0 | BI35: =BI27+BJ27 -> 0 | BK35: =BK27+BL27 -> 0 | BM35: =BM27+BN27 -> 0 | BO35: =BO27+BP27 -> 0 | BQ35: =BQ27+BR27 -> 0 | BS35: =BS27+BT27 -> 0 | BU35: =BU27+BV27 -> 0 | BW35: =BW27+BX27 -> 0 | BY35: =BY27+BZ27 -> 0 | CA35: =CA27+CB27 -> 0 | CC35: =CC27+CD27 -> 0 | CE35: =CE27+CF27 -> 0 | CG35: =CG27+CH27 -> 0
B36: Використання коштів за рік/ Use of funds per year | E36: =E30+F30 -> 3000 | G36: =G30+H30 -> 3000 | I36: =I30+J30 -> 0 | K36: =K30+L30 -> 0 | M36: =M30+N30 -> 0 | O36: =O30+P30 -> 0 | Q36: =Q30+R30 -> 0 | S36: =S30+T30 -> 0 | U36: =U30+V30 -> 0 | W36: =W30+X30 -> 0 | Y36: =Y30+Z30 -> 0 | AA36: =AA30+AB30 -> 0 | AC36: =AC30+AD30 -> 0 | AE36: =AE30+AF30 -> 0 | AG36: =AG30+AH30 -> 0 | AI36: =AI30+AJ30 -> 0 | AK36: =AK30+AL30 -> 0 | AM36: =AM30+AN30 -> 0 | AO36: =AO30+AP30 -> 0 | AQ36: =AQ30+AR30 -> 0 | AS36: =AS30+AT30 -> 0 | AU36: =AU30+AV30 -> 0 | AW36: =AW30+AX30 -> 0 | AY36: =AY30+AZ30 -> 0 | BA36: =BA30+BB30 -> 0 | BC36: =BC30+BD30 -> 0 | BE36: =BE30+BF30 -> 0 | BG36: =BG30+BH30 -> 0 | BI36: =BI30+BJ30 -> 0 | BK36: =BK30+BL30 -> 0 | BM36: =BM30+BN30 -> 0 | BO36: =BO30+BP30 -> 0 | BQ36: =BQ30+BR30 -> 0 | BS36: =BS30+BT30 -> 0 | BU36: =BU30+BV30 -> 0 | BW36: =BW30+BX30 -> 0 | BY36: =BY30+BZ30 -> 0 | CA36: =CA30+CB30 -> 0 | CC36: =CC30+CD30 -> 0 | CE36: =CE30+CF30 -> 0 | CG36: =CG30+CH30 -> 0
B37: Одноразова комісія за рік/ One-time fee per year | E37: =E29+F29 -> 0 | G37: =G29+H29 -> 0 | I37: =I29+J29 -> 0 | K37: =K29+L29 -> 0 | M37: =M29+N29 -> 0 | O37: =O29+P29 -> 0 | Q37: =Q29+R29 -> 0 | S37: =S29+T29 -> 0 | U37: =U29+V29 -> 0 | W37: =W29+X29 -> 0 | Y37: =Y29+Z29 -> 0 | AA37: =AA29+AB29 -> 0 | AC37: =AC29+AD29 -> 0 | AE37: =AE29+AF29 -> 0 | AG37: =AG29+AH29 -> 0 | AI37: =AI29+AJ29 -> 0 | AK37: =AK29+AL29 -> 0 | AM37: =AM29+AN29 -> 0 | AO37: =AO29+AP29 -> 0 | AQ37: =AQ29+AR29 -> 0 | AS37: =AS29+AT29 -> 0 | AU37: =AU29+AV29 -> 0 | AW37: =AW29+AX29 -> 0 | AY37: =AY29+AZ29 -> 0 | BA37: =BA29+BB29 -> 0 | BC37: =BC29+BD29 -> 0 | BE37: =BE29+BF29 -> 0 | BG37: =BG29+BH29 -> 0 | BI37: =BI29+BJ29 -> 0 | BK37: =BK29+BL29 -> 0 | BM37: =BM29+BN29 -> 0 | BO37: =BO29+BP29 -> 0 | BQ37: =BQ29+BR29 -> 0 | BS37: =BS29+BT29 -> 0 | BU37: =BU29+BV29 -> 0 | BW37: =BW29+BX29 -> 0 | BY37: =BY29+BZ29 -> 0 | CA37: =CA29+CB29 -> 0 | CC37: =CC29+CD29 -> 0 | CE37: =CE29+CF29 -> 0 | CG37: =CG29+CH29 -> 0
B38: Власні кошти
B39: Погашення / Repayment | E39: 0 | F39: 0 | G39: =IF(G24=0,0,(SUM($E$41:F41)-SUM($E$39:F39))/G24) -> 0 | H39: =IF(H24=0,0,(SUM($E$41:G41)-SUM($E$39:G39))/H24) -> 0 | I39: =IF(I24=0,0,(SUM($E$41:H41)-SUM($E$39:H39))/I24) -> 0 | J39: =IF(J24=0,0,(SUM($E$41:I41)-SUM($E$39:I39))/J24) -> 0 | K39: =IF(K24=0,0,(SUM($E$41:J41)-SUM($E$39:J39))/K24) -> 0 | L39: =IF(L24=0,0,(SUM($E$41:K41)-SUM($E$39:K39))/L24) -> 0 | M39: =IF(M24=0,0,(SUM($E$41:L41)-SUM($E$39:L39))/M24) -> 0 | N39: =IF(N24=0,0,(SUM($E$41:M41)-SUM($E$39:M39))/N24) -> 0 | O39: =IF(O24=0,0,(SUM($E$41:N41)-SUM($E$39:N39))/O24) -> 0 | P39: =IF(P24=0,0,(SUM($E$41:O41)-SUM($E$39:O39))/P24) -> 0 | Q39: =IF(Q24=0,0,(SUM($E$41:P41)-SUM($E$39:P39))/Q24) -> 0 | R39: =IF(R24=0,0,(SUM($E$41:Q41)-SUM($E$39:Q39))/R24) -> 0 | S39: =IF(S24=0,0,(SUM($E$41:R41)-SUM($E$39:R39))/S24) -> 0 | T39: =IF(T24=0,0,(SUM($E$41:S41)-SUM($E$39:S39))/T24) -> 0 | U39: =IF(U24=0,0,(SUM($E$41:T41)-SUM($E$39:T39))/U24) -> 0 | V39: =IF(V24=0,0,(SUM($E$41:U41)-SUM($E$39:U39))/V24) -> 0 | W39: =IF(W24=0,0,(SUM($E$41:V41)-SUM($E$39:V39))/W24) -> 0 | X39: =IF(X24=0,0,(SUM($E$41:W41)-SUM($E$39:W39))/X24) -> 0 | Y39: =IF(Y24=0,0,(SUM($E$41:X41)-SUM($E$39:X39))/Y24) -> 0 | Z39: =IF(Z24=0,0,(SUM($E$41:Y41)-SUM($E$39:Y39))/Z24) -> 0 | AA39: =IF(AA24=0,0,(SUM($E$41:Z41)-SUM($E$39:Z39))/AA24) -> 0 | AB39: =IF(AB24=0,0,(SUM($E$41:AA41)-SUM($E$39:AA39))/AB24) -> 0 | AC39: =IF(AC24=0,0,(SUM($E$41:AB41)-SUM($E$39:AB39))/AC24) -> 0 | AD39: =IF(AD24=0,0,(SUM($E$41:AC41)-SUM($E$39:AC39))/AD24) -> 0 | AE39: =IF(AE24=0,0,(SUM($E$41:AD41)-SUM($E$39:AD39))/AE24) -> 0 | AF39: =IF(AF24=0,0,(SUM($E$41:AE41)-SUM($E$39:AE39))/AF24) -> 0 | AG39: =IF(AG24=0,0,(SUM($E$41:AF41)-SUM($E$39:AF39))/AG24) -> 0 | AH39: =IF(AH24=0,0,(SUM($E$41:AG41)-SUM($E$39:AG39))/AH24) -> 0 | AI39: =IF(AI24=0,0,(SUM($E$41:AH41)-SUM($E$39:AH39))/AI24) -> 0 | AJ39: =IF(AJ24=0,0,(SUM($E$41:AI41)-SUM($E$39:AI39))/AJ24) -> 0 | AK39: =IF(AK24=0,0,(SUM($E$41:AJ41)-SUM($E$39:AJ39))/AK24) -> 0 | AL39: =IF(AL24=0,0,(SUM($E$41:AK41)-SUM($E$39:AK39))/AL24) -> 0 | AM39: =IF(AM24=0,0,(SUM($E$41:AL41)-SUM($E$39:AL39))/AM24) -> 0 | AN39: =IF(AN24=0,0,(SUM($E$41:AM41)-SUM($E$39:AM39))/AN24) -> 0 | AO39: =IF(AO24=0,0,(SUM($E$41:AN41)-SUM($E$39:AN39))/AO24) -> 0 | AP39: =IF(AP24=0,0,(SUM($E$41:AO41)-SUM($E$39:AO39))/AP24) -> 0 | AQ39: =IF(AQ24=0,0,(SUM($E$41:AP41)-SUM($E$39:AP39))/AQ24) -> 0 | AR39: =IF(AR24=0,0,(SUM($E$41:AQ41)-SUM($E$39:AQ39))/AR24) -> 0 | AS39: =IF(AS24=0,0,(SUM($E$41:AR41)-SUM($E$39:AR39))/AS24) -> 0 | AT39: =IF(AT24=0,0,(SUM($E$41:AS41)-SUM($E$39:AS39))/AT24) -> 0 | AU39: =IF(AU24=0,0,(SUM($E$41:AT41)-SUM($E$39:AT39))/AU24) -> 0 | AV39: =IF(AV24=0,0,(SUM($E$41:AU41)-SUM($E$39:AU39))/AV24) -> 0 | AW39: =IF(AW24=0,0,(SUM($E$41:AV41)-SUM($E$39:AV39))/AW24) -> 0 | AX39: =IF(AX24=0,0,(SUM($E$41:AW41)-SUM($E$39:AW39))/AX24) -> 0 | AY39: =IF(AY24=0,0,(SUM($E$41:AX41)-SUM($E$39:AX39))/AY24) -> 0 | AZ39: =IF(AZ24=0,0,(SUM($E$41:AY41)-SUM($E$39:AY39))/AZ24) -> 0 | BA39: =IF(BA24=0,0,(SUM($E$41:AZ41)-SUM($E$39:AZ39))/BA24) -> 0 | BB39: =IF(BB24=0,0,(SUM($E$41:BA41)-SUM($E$39:BA39))/BB24) -> 0 | BC39: =IF(BC24=0,0,(SUM($E$41:BB41)-SUM($E$39:BB39))/BC24) -> 0 | BD39: =IF(BD24=0,0,(SUM($E$41:BC41)-SUM($E$39:BC39))/BD24) -> 0 | BE39: =IF(BE24=0,0,(SUM($E$41:BD41)-SUM($E$39:BD39))/BE24) -> 0 | BF39: =IF(BF24=0,0,(SUM($E$41:BE41)-SUM($E$39:BE39))/BF24) -> 0 | BG39: =IF(BG24=0,0,(SUM($E$41:BF41)-SUM($E$39:BF39))/BG24) -> 0 | BH39: =IF(BH24=0,0,(SUM($E$41:BG41)-SUM($E$39:BG39))/BH24) -> 0 | BI39: =IF(BI24=0,0,(SUM($E$41:BH41)-SUM($E$39:BH39))/BI24) -> 0 | BJ39: =IF(BJ24=0,0,(SUM($E$41:BI41)-SUM($E$39:BI39))/BJ24) -> 0 | BK39: =IF(BK24=0,0,(SUM($E$41:BJ41)-SUM($E$39:BJ39))/BK24) -> 0 | BL39: =IF(BL24=0,0,(SUM($E$41:BK41)-SUM($E$39:BK39))/BL24) -> 0 | BM39: =IF(BM24=0,0,(SUM($E$41:BL41)-SUM($E$39:BL39))/BM24) -> 0 | BN39: =IF(BN24=0,0,(SUM($E$41:BM41)-SUM($E$39:BM39))/BN24) -> 0 | BO39: =IF(BO24=0,0,(SUM($E$41:BN41)-SUM($E$39:BN39))/BO24) -> 0 | BP39: =IF(BP24=0,0,(SUM($E$41:BO41)-SUM($E$39:BO39))/BP24) -> 0 | BQ39: =IF(BQ24=0,0,(SUM($E$41:BP41)-SUM($E$39:BP39))/BQ24) -> 0 | BR39: =IF(BR24=0,0,(SUM($E$41:BQ41)-SUM($E$39:BQ39))/BR24) -> 0 | BS39: =IF(BS24=0,0,(SUM($E$41:BR41)-SUM($E$39:BR39))/BS24) -> 0 | BT39: =IF(BT24=0,0,(SUM($E$41:BS41)-SUM($E$39:BS39))/BT24) -> 0 | BU39: =IF(BU24=0,0,(SUM($E$41:BT41)-SUM($E$39:BT39))/BU24) -> 0 | BV39: =IF(BV24=0,0,(SUM($E$41:BU41)-SUM($E$39:BU39))/BV24) -> 0 | BW39: =IF(BW24=0,0,(SUM($E$41:BV41)-SUM($E$39:BV39))/BW24) -> 0 | BX39: =IF(BX24=0,0,(SUM($E$41:BW41)-SUM($E$39:BW39))/BX24) -> 0 | BY39: =IF(BY24=0,0,(SUM($E$41:BX41)-SUM($E$39:BX39))/BY24) -> 0 | BZ39: =IF(BZ24=0,0,(SUM($E$41:BY41)-SUM($E$39:BY39))/BZ24) -> 0 | CA39: =IF(CA24=0,0,(SUM($E$41:BZ41)-SUM($E$39:BZ39))/CA24) -> 0 | CB39: =IF(CB24=0,0,(SUM($E$41:CA41)-SUM($E$39:CA39))/CB24) -> 0 | CC39: =IF(CC24=0,0,(SUM($E$41:CB41)-SUM($E$39:CB39))/CC24) -> 0 | CD39: =IF(CD24=0,0,(SUM($E$41:CC41)-SUM($E$39:CC39))/CD24) -> 0 | CE39: =IF(CE24=0,0,(SUM($E$41:CD41)-SUM($E$39:CD39))/CE24) -> 0 | CF39: =IF(CF24=0,0,(SUM($E$41:CE41)-SUM($E$39:CE39))/CF24) -> 0 | CG39: =IF(CG24=0,0,(SUM($E$41:CF41)-SUM($E$39:CF39))/CG24) -> 0 | CH39: =IF(CH24=0,0,(SUM($E$41:CG41)-SUM($E$39:CG39))/CH24) -> 0
B40: Основна сума заборгованості / The main amount of debt | E40: =IF(AND($C$4="I півріччя",($E$4+$C$12)>E25),$C$10,0) -> 0 | F40: =IF(($E$4+$C$12)>=E25,$C$10,0) -> 0 | G40: =IF(($E$4+$C$12)>G25,$F$40-$F$39,0) -> 0 | H40: =IF(($E$4+$C$12)>G25,G40-G39,0) -> 0 | I40: =IF(($E$4+$C$12)>I25,$H$40-$H$39,0) -> 0 | J40: =IF(($E$4+$C$12)>I25,I40-I39,0) -> 0 | K40: =IF(($E$4+$C$12)>K25,J$40-J$39,0) -> 0 | L40: =IF(($E$4+$C$12)>K25,K40-K39,0) -> 0 | M40: =IF(($E$4+$C$12)>M25,L$40-L$39,0) -> 0 | N40: =IF(($E$4+$C$12)>M25,M40-M39,0) -> 0 | O40: =IF(($E$4+$C$12)>O25,N$40-N$39,0) -> 0 | P40: =IF(($E$4+$C$12)>O25,O40-O39,0) -> 0 | Q40: =IF(($E$4+$C$12)>Q25,P$40-P$39,0) -> 0 | R40: =IF(($E$4+$C$12)>Q25,Q40-Q39,0) -> 0 | S40: =IF(($E$4+$C$12)>S25,R$40-R$39,0) -> 0 | T40: =IF(($E$4+$C$12)>S25,S40-S39,0) -> 0 | U40: =IF(($E$4+$C$12)>U25,T$40-T$39,0) -> 0 | V40: =IF(($E$4+$C$12)>U25,U40-U39,0) -> 0 | W40: =IF(($E$4+$C$12)>W25,V$40-V$39,0) -> 0 | X40: =IF(($E$4+$C$12)>W25,W40-W39,0) -> 0 | Y40: =IF(($E$4+$C$12)>Y25,X$40-X$39,0) -> 0 | Z40: =IF(($E$4+$C$12)>Y25,Y40-Y39,0) -> 0 | AA40: =IF(($E$4+$C$12)>AA25,Z$40-Z$39,0) -> 0 | AB40: =IF(($E$4+$C$12)>AA25,AA40-AA39,0) -> 0 | AC40: =IF(($E$4+$C$12)>AC25,AB$40-AB$39,0) -> 0 | AD40: =IF(($E$4+$C$12)>AC25,AC40-AC39,0) -> 0 | AE40: =IF(($E$4+$C$12)>AE25,AD$40-AD$39,0) -> 0 | AF40: =IF(($E$4+$C$12)>AE25,AE40-AE39,0) -> 0 | AG40: =IF(($E$4+$C$12)>AG25,AF$40-AF$39,0) -> 0 | AH40: =IF(($E$4+$C$12)>AG25,AG40-AG39,0) -> 0 | AI40: =IF(($E$4+$C$12)>AI25,AH$40-AH$39,0) -> 0 | AJ40: =IF(($E$4+$C$12)>AI25,AI40-AI39,0) -> 0 | AK40: =IF(($E$4+$C$12)>AK25,AJ$40-AJ$39,0) -> 0 | AL40: =IF(($E$4+$C$12)>AK25,AK40-AK39,0) -> 0 | AM40: =IF(($E$4+$C$12)>AM25,AL$40-AL$39,0) -> 0 | AN40: =IF(($E$4+$C$12)>AM25,AM40-AM39,0) -> 0 | AO40: =IF(($E$4+$C$12)>AO25,AN$40-AN$39,0) -> 0 | AP40: =IF(($E$4+$C$12)>AO25,AO40-AO39,0) -> 0 | AQ40: =IF(($E$4+$C$12)>AQ25,AP$40-AP$39,0) -> 0 | AR40: =IF(($E$4+$C$12)>AQ25,AQ40-AQ39,0) -> 0 | AS40: =IF(($E$4+$C$12)>AS25,AR$40-AR$39,0) -> 0 | AT40: =IF(($E$4+$C$12)>AS25,AS40-AS39,0) -> 0 | AU40: =IF(($E$4+$C$12)>AU25,AT$40-AT$39,0) -> 0 | AV40: =IF(($E$4+$C$12)>AU25,AU40-AU39,0) -> 0 | AW40: =IF(($E$4+$C$12)>AW25,AV$40-AV$39,0) -> 0 | AX40: =IF(($E$4+$C$12)>AW25,AW40-AW39,0) -> 0 | AY40: =IF(($E$4+$C$12)>AY25,AX$40-AX$39,0) -> 0 | AZ40: =IF(($E$4+$C$12)>AY25,AY40-AY39,0) -> 0 | BA40: =IF(($E$4+$C$12)>BA25,AZ$40-AZ$39,0) -> 0 | BB40: =IF(($E$4+$C$12)>BA25,BA40-BA39,0) -> 0 | BC40: =IF(($E$4+$C$12)>BC25,BB$40-BB$39,0) -> 0 | BD40: =IF(($E$4+$C$12)>BC25,BC40-BC39,0) -> 0 | BE40: =IF(($E$4+$C$12)>BE25,BD$40-BD$39,0) -> 0 | BF40: =IF(($E$4+$C$12)>BE25,BE40-BE39,0) -> 0 | BG40: =IF(($E$4+$C$12)>BG25,BF$40-BF$39,0) -> 0 | BH40: =IF(($E$4+$C$12)>BG25,BG40-BG39,0) -> 0 | BI40: =IF(($E$4+$C$12)>BI25,BH$40-BH$39,0) -> 0 | BJ40: =IF(($E$4+$C$12)>BI25,BI40-BI39,0) -> 0 | BK40: =IF(($E$4+$C$12)>BK25,BJ$40-BJ$39,0) -> 0 | BL40: =IF(($E$4+$C$12)>BK25,BK40-BK39,0) -> 0 | BM40: =IF(($E$4+$C$12)>BM25,BL$40-BL$39,0) -> 0 | BN40: =IF(($E$4+$C$12)>BM25,BM40-BM39,0) -> 0 | BO40: =IF(($E$4+$C$12)>BO25,BN$40-BN$39,0) -> 0 | BP40: =IF(($E$4+$C$12)>BO25,BO40-BO39,0) -> 0 | BQ40: =IF(($E$4+$C$12)>BQ25,BP$40-BP$39,0) -> 0 | BR40: =IF(($E$4+$C$12)>BQ25,BQ40-BQ39,0) -> 0 | BS40: =IF(($E$4+$C$12)>BS25,BR$40-BR$39,0) -> 0 | BT40: =IF(($E$4+$C$12)>BS25,BS40-BS39,0) -> 0 | BU40: =IF(($E$4+$C$12)>BU25,BT$40-BT$39,0) -> 0 | BV40: =IF(($E$4+$C$12)>BU25,BU40-BU39,0) -> 0 | BW40: =IF(($E$4+$C$12)>BW25,BV$40-BV$39,0) -> 0 | BX40: =IF(($E$4+$C$12)>BW25,BW40-BW39,0) -> 0 | BY40: =IF(($E$4+$C$12)>BY25,BX$40-BX$39,0) -> 0 | BZ40: =IF(($E$4+$C$12)>BY25,BY40-BY39,0) -> 0 | CA40: =IF(($E$4+$C$12)>CA25,BZ$40-BZ$39,0) -> 0 | CB40: =IF(($E$4+$C$12)>CA25,CA40-CA39,0) -> 0 | CC40: =IF(($E$4+$C$12)>CC25,CB$40-CB$39,0) -> 0 | CD40: =IF(($E$4+$C$12)>CC25,CC40-CC39,0) -> 0 | CE40: =IF(($E$4+$C$12)>CE25,CD$40-CD$39,0) -> 0 | CF40: =IF(($E$4+$C$12)>CE25,CE40-CE39,0) -> 0 | CG40: =IF(($E$4+$C$12)>CG25,CF$40-CF$39,0) -> 0 | CH40: =IF(($E$4+$C$12)>CG25,CG40-CG39,0) -> 0
B41: Використання коштів / Use of funds | E41: 0 | F41: 0 | G41: 0
B42: Відсотки банку / Bank interest | E42: =(E41-E39)*J4/2 -> 0 | F42: 0 | G42: =IF(COUNTA($E$24:F24)<=($C$12*2),(SUM($E$41:G41)-SUM($E$39:F39))*($J$4/2),0) -> 0 | H42: =IF(COUNTA($E$24:G24)<=($C$12*2),(SUM($E$41:H41)-SUM($E$39:G39))*($J$4/2),0) -> 0 | I42: =IF(COUNTA($E$24:H24)<=($C$12*2),(SUM($E$41:I41)-SUM($E$39:H39))*($J$4/2),0) -> 0 | J42: =IF(COUNTA($E$24:I24)<=($C$12*2),(SUM($E$41:J41)-SUM($E$39:I39))*($J$4/2),0) -> 0 | K42: =IF(COUNTA($E$24:J24)<=($C$12*2),(SUM($E$41:K41)-SUM($E$39:J39))*($J$4/2),0) -> 0 | L42: =IF(COUNTA($E$24:K24)<=($C$12*2),(SUM($E$41:L41)-SUM($E$39:K39))*($J$4/2),0) -> 0 | M42: =IF(COUNTA($E$24:L24)<=($C$12*2),(SUM($E$41:M41)-SUM($E$39:L39))*($J$4/2),0) -> 0 | N42: =IF(COUNTA($E$24:M24)<=($C$12*2),(SUM($E$41:N41)-SUM($E$39:M39))*($J$4/2),0) -> 0 | O42: =IF(COUNTA($E$24:N24)<=($C$12*2),(SUM($E$41:O41)-SUM($E$39:N39))*($J$4/2),0) -> 0 | P42: =IF(COUNTA($E$24:O24)<=($C$12*2),(SUM($E$41:P41)-SUM($E$39:O39))*($J$4/2),0) -> 0 | Q42: =IF(COUNTA($E$24:P24)<=($C$12*2),(SUM($E$41:Q41)-SUM($E$39:P39))*($J$4/2),0) -> 0 | R42: =IF(COUNTA($E$24:Q24)<=($C$12*2),(SUM($E$41:R41)-SUM($E$39:Q39))*($J$4/2),0) -> 0 | S42: =IF(COUNTA($E$24:R24)<=($C$12*2),(SUM($E$41:S41)-SUM($E$39:R39))*($J$4/2),0) -> 0 | T42: =IF(COUNTA($E$24:S24)<=($C$12*2),(SUM($E$41:T41)-SUM($E$39:S39))*($J$4/2),0) -> 0 | U42: =IF(COUNTA($E$24:T24)<=($C$12*2),(SUM($E$41:U41)-SUM($E$39:T39))*($J$4/2),0) -> 0 | V42: =IF(COUNTA($E$24:U24)<=($C$12*2),(SUM($E$41:V41)-SUM($E$39:U39))*($J$4/2),0) -> 0 | W42: =IF(COUNTA($E$24:V24)<=($C$12*2),(SUM($E$41:W41)-SUM($E$39:V39))*($J$4/2),0) -> 0 | X42: =IF(COUNTA($E$24:W24)<=($C$12*2),(SUM($E$41:X41)-SUM($E$39:W39))*($J$4/2),0) -> 0 | Y42: =IF(COUNTA($E$24:X24)<=($C$12*2),(SUM($E$41:Y41)-SUM($E$39:X39))*($J$4/2),0) -> 0 | Z42: =IF(COUNTA($E$24:Y24)<=($C$12*2),(SUM($E$41:Z41)-SUM($E$39:Y39))*($J$4/2),0) -> 0 | AA42: =IF(COUNTA($E$24:Z24)<=($C$12*2),(SUM($E$41:AA41)-SUM($E$39:Z39))*($J$4/2),0) -> 0 | AB42: =IF(COUNTA($E$24:AA24)<=($C$12*2),(SUM($E$41:AB41)-SUM($E$39:AA39))*($J$4/2),0) -> 0 | AC42: =IF(COUNTA($E$24:AB24)<=($C$12*2),(SUM($E$41:AC41)-SUM($E$39:AB39))*($J$4/2),0) -> 0 | AD42: =IF(COUNTA($E$24:AC24)<=($C$12*2),(SUM($E$41:AD41)-SUM($E$39:AC39))*($J$4/2),0) -> 0 | AE42: =IF(COUNTA($E$24:AD24)<=($C$12*2),(SUM($E$41:AE41)-SUM($E$39:AD39))*($J$4/2),0) -> 0 | AF42: =IF(COUNTA($E$24:AE24)<=($C$12*2),(SUM($E$41:AF41)-SUM($E$39:AE39))*($J$4/2),0) -> 0 | AG42: =IF(COUNTA($E$24:AF24)<=($C$12*2),(SUM($E$41:AG41)-SUM($E$39:AF39))*($J$4/2),0) -> 0 | AH42: =IF(COUNTA($E$24:AG24)<=($C$12*2),(SUM($E$41:AH41)-SUM($E$39:AG39))*($J$4/2),0) -> 0 | AI42: =IF(COUNTA($E$24:AH24)<=($C$12*2),(SUM($E$41:AI41)-SUM($E$39:AH39))*($J$4/2),0) -> 0 | AJ42: =IF(COUNTA($E$24:AI24)<=($C$12*2),(SUM($E$41:AJ41)-SUM($E$39:AI39))*($J$4/2),0) -> 0 | AK42: =IF(COUNTA($E$24:AJ24)<=($C$12*2),(SUM($E$41:AK41)-SUM($E$39:AJ39))*($J$4/2),0) -> 0 | AL42: =IF(COUNTA($E$24:AK24)<=($C$12*2),(SUM($E$41:AL41)-SUM($E$39:AK39))*($J$4/2),0) -> 0 | AM42: =IF(COUNTA($E$24:AL24)<=($C$12*2),(SUM($E$41:AM41)-SUM($E$39:AL39))*($J$4/2),0) -> 0 | AN42: =IF(COUNTA($E$24:AM24)<=($C$12*2),(SUM($E$41:AN41)-SUM($E$39:AM39))*($J$4/2),0) -> 0 | AO42: =IF(COUNTA($E$24:AN24)<=($C$12*2),(SUM($E$41:AO41)-SUM($E$39:AN39))*($J$4/2),0) -> 0 | AP42: =IF(COUNTA($E$24:AO24)<=($C$12*2),(SUM($E$41:AP41)-SUM($E$39:AO39))*($J$4/2),0) -> 0 | AQ42: =IF(COUNTA($E$24:AP24)<=($C$12*2),(SUM($E$41:AQ41)-SUM($E$39:AP39))*($J$4/2),0) -> 0 | AR42: =IF(COUNTA($E$24:AQ24)<=($C$12*2),(SUM($E$41:AR41)-SUM($E$39:AQ39))*($J$4/2),0) -> 0 | AS42: =IF(COUNTA($E$24:AR24)<=($C$12*2),(SUM($E$41:AS41)-SUM($E$39:AR39))*($J$4/2),0) -> 0 | AT42: =IF(COUNTA($E$24:AS24)<=($C$12*2),(SUM($E$41:AT41)-SUM($E$39:AS39))*($J$4/2),0) -> 0 | AU42: =IF(COUNTA($E$24:AT24)<=($C$12*2),(SUM($E$41:AU41)-SUM($E$39:AT39))*($J$4/2),0) -> 0 | AV42: =IF(COUNTA($E$24:AU24)<=($C$12*2),(SUM($E$41:AV41)-SUM($E$39:AU39))*($J$4/2),0) -> 0 | AW42: =IF(COUNTA($E$24:AV24)<=($C$12*2),(SUM($E$41:AW41)-SUM($E$39:AV39))*($J$4/2),0) -> 0 | AX42: =IF(COUNTA($E$24:AW24)<=($C$12*2),(SUM($E$41:AX41)-SUM($E$39:AW39))*($J$4/2),0) -> 0 | AY42: =IF(COUNTA($E$24:AX24)<=($C$12*2),(SUM($E$41:AY41)-SUM($E$39:AX39))*($J$4/2),0) -> 0 | AZ42: =IF(COUNTA($E$24:AY24)<=($C$12*2),(SUM($E$41:AZ41)-SUM($E$39:AY39))*($J$4/2),0) -> 0 | BA42: =IF(COUNTA($E$24:AZ24)<=($C$12*2),(SUM($E$41:BA41)-SUM($E$39:AZ39))*($J$4/2),0) -> 0 | BB42: =IF(COUNTA($E$24:BA24)<=($C$12*2),(SUM($E$41:BB41)-SUM($E$39:BA39))*($J$4/2),0) -> 0 | BC42: =IF(COUNTA($E$24:BB24)<=($C$12*2),(SUM($E$41:BC41)-SUM($E$39:BB39))*($J$4/2),0) -> 0 | BD42: =IF(COUNTA($E$24:BC24)<=($C$12*2),(SUM($E$41:BD41)-SUM($E$39:BC39))*($J$4/2),0) -> 0 | BE42: =IF(COUNTA($E$24:BD24)<=($C$12*2),(SUM($E$41:BE41)-SUM($E$39:BD39))*($J$4/2),0) -> 0 | BF42: =IF(COUNTA($E$24:BE24)<=($C$12*2),(SUM($E$41:BF41)-SUM($E$39:BE39))*($J$4/2),0) -> 0 | BG42: =IF(COUNTA($E$24:BF24)<=($C$12*2),(SUM($E$41:BG41)-SUM($E$39:BF39))*($J$4/2),0) -> 0 | BH42: =IF(COUNTA($E$24:BG24)<=($C$12*2),(SUM($E$41:BH41)-SUM($E$39:BG39))*($J$4/2),0) -> 0 | BI42: =IF(COUNTA($E$24:BH24)<=($C$12*2),(SUM($E$41:BI41)-SUM($E$39:BH39))*($J$4/2),0) -> 0 | BJ42: =IF(COUNTA($E$24:BI24)<=($C$12*2),(SUM($E$41:BJ41)-SUM($E$39:BI39))*($J$4/2),0) -> 0 | BK42: =IF(COUNTA($E$24:BJ24)<=($C$12*2),(SUM($E$41:BK41)-SUM($E$39:BJ39))*($J$4/2),0) -> 0 | BL42: =IF(COUNTA($E$24:BK24)<=($C$12*2),(SUM($E$41:BL41)-SUM($E$39:BK39))*($J$4/2),0) -> 0 | BM42: =IF(COUNTA($E$24:BL24)<=($C$12*2),(SUM($E$41:BM41)-SUM($E$39:BL39))*($J$4/2),0) -> 0 | BN42: =IF(COUNTA($E$24:BM24)<=($C$12*2),(SUM($E$41:BN41)-SUM($E$39:BM39))*($J$4/2),0) -> 0 | BO42: =IF(COUNTA($E$24:BN24)<=($C$12*2),(SUM($E$41:BO41)-SUM($E$39:BN39))*($J$4/2),0) -> 0 | BP42: =IF(COUNTA($E$24:BO24)<=($C$12*2),(SUM($E$41:BP41)-SUM($E$39:BO39))*($J$4/2),0) -> 0 | BQ42: =IF(COUNTA($E$24:BP24)<=($C$12*2),(SUM($E$41:BQ41)-SUM($E$39:BP39))*($J$4/2),0) -> 0 | BR42: =IF(COUNTA($E$24:BQ24)<=($C$12*2),(SUM($E$41:BR41)-SUM($E$39:BQ39))*($J$4/2),0) -> 0 | BS42: =IF(COUNTA($E$24:BR24)<=($C$12*2),(SUM($E$41:BS41)-SUM($E$39:BR39))*($J$4/2),0) -> 0 | BT42: =IF(COUNTA($E$24:BS24)<=($C$12*2),(SUM($E$41:BT41)-SUM($E$39:BS39))*($J$4/2),0) -> 0 | BU42: =IF(COUNTA($E$24:BT24)<=($C$12*2),(SUM($E$41:BU41)-SUM($E$39:BT39))*($J$4/2),0) -> 0 | BV42: =IF(COUNTA($E$24:BU24)<=($C$12*2),(SUM($E$41:BV41)-SUM($E$39:BU39))*($J$4/2),0) -> 0 | BW42: =IF(COUNTA($E$24:BV24)<=($C$12*2),(SUM($E$41:BW41)-SUM($E$39:BV39))*($J$4/2),0) -> 0 | BX42: =IF(COUNTA($E$24:BW24)<=($C$12*2),(SUM($E$41:BX41)-SUM($E$39:BW39))*($J$4/2),0) -> 0 | BY42: =IF(COUNTA($E$24:BX24)<=($C$12*2),(SUM($E$41:BY41)-SUM($E$39:BX39))*($J$4/2),0) -> 0 | BZ42: =IF(COUNTA($E$24:BY24)<=($C$12*2),(SUM($E$41:BZ41)-SUM($E$39:BY39))*($J$4/2),0) -> 0 | CA42: =IF(COUNTA($E$24:BZ24)<=($C$12*2),(SUM($E$41:CA41)-SUM($E$39:BZ39))*($J$4/2),0) -> 0 | CB42: =IF(COUNTA($E$24:CA24)<=($C$12*2),(SUM($E$41:CB41)-SUM($E$39:CA39))*($J$4/2),0) -> 0 | CC42: =IF(COUNTA($E$24:CB24)<=($C$12*2),(SUM($E$41:CC41)-SUM($E$39:CB39))*($J$4/2),0) -> 0 | CD42: =IF(COUNTA($E$24:CC24)<=($C$12*2),(SUM($E$41:CD41)-SUM($E$39:CC39))*($J$4/2),0) -> 0 | CE42: =IF(COUNTA($E$24:CD24)<=($C$12*2),(SUM($E$41:CE41)-SUM($E$39:CD39))*($J$4/2),0) -> 0 | CF42: =IF(COUNTA($E$24:CE24)<=($C$12*2),(SUM($E$41:CF41)-SUM($E$39:CE39))*($J$4/2),0) -> 0 | CG42: =IF(COUNTA($E$24:CF24)<=($C$12*2),(SUM($E$41:CG41)-SUM($E$39:CF39))*($J$4/2),0) -> 0 | CH42: =IF(COUNTA($E$24:CG24)<=($C$12*2),(SUM($E$41:CH41)-SUM($E$39:CG39))*($J$4/2),0) -> 0
B43: Ставка дисконтування/Discount rate | E43: =1/((1+$J$6)^(1/12))^0 -> 1 | G43: =E43/(1+$J$6) -> 0.8658008658 | I43: =G43/(1+$J$6) -> 0.7496111392 | K43: =I43/(1+$J$6) -> 0.6490139734 | M43: =K43/(1+$J$6) -> 0.56191686 | O43: =M43/(1+$J$6) -> 0.4865081039 | Q43: =O43/(1+$J$6) -> 0.4212191376 | S43: =Q43/(1+$J$6) -> 0.364691894 | U43: =S43/(1+$J$6) -> 0.3157505576 | W43: =U43/(1+$J$6) -> 0.2733771061 | Y43: =W43/(1+$J$6) -> 0.2366901352 | AA43: =Y43/(1+$J$6) -> 0.204926524 | AC43: =AA43/(1+$J$6) -> 0.1774255619 | AE43: =AC43/(1+$J$6) -> 0.1536152051 | AG43: =AE43/(1+$J$6) -> 0.1330001776 | AI43: =AG43/(1+$J$6) -> 0.1151516689 | AK43: =AI43/(1+$J$6) -> 0.09969841463 | AM43: =AK43/(1+$J$6) -> 0.0863189737 | AO43: =AM43/(1+$J$6) -> 0.07473504217 | AQ43: =AO43/(1+$J$6) -> 0.06470566421 | AS43: =AQ43/(1+$J$6) -> 0.0560222201 | AU43: =AS43/(1+$J$6) -> 0.04850408667 | AW43: =AU43/(1+$J$6) -> 0.04199488023 | AY43: =AW43/(1+$J$6) -> 0.03635920366 | BA43: =AY43/(1+$J$6) -> 0.03147983001 | BC43: =BA43/(1+$J$6) -> 0.02725526408 | BE43: =BC43/(1+$J$6) -> 0.02359763124 | BG43: =BE43/(1+$J$6) -> 0.02043084956 | BI43: =BG43/(1+$J$6) -> 0.01768904723 | BK43: =BI43/(1+$J$6) -> 0.01531519241 | BM43: =BK43/(1+$J$6) -> 0.01325990685 | BO43: =BM43/(1+$J$6) -> 0.01148043883 | BQ43: =BO43/(1+$J$6) -> 0.009939773879 | BS43: =BQ43/(1+$J$6) -> 0.00860586483 | BU43: =BS43/(1+$J$6) -> 0.007450965221 | BW43: =BU43/(1+$J$6) -> 0.006451052139 | BY43: =BW43/(1+$J$6) -> 0.005585326528 | CA43: =BY43/(1+$J$6) -> 0.004835780543 | CC43: =CA43/(1+$J$6) -> 0.004186822981 | CE43: =CC43/(1+$J$6) -> 0.003624954962 | CG43: =CE43/(1+$J$6) -> 0.003138489145
B44: Дискантоване погашення/Discounted repayment | E44: =(E39+E42)/E43 -> 0 | F44: =(F39+F42)/E43 -> 0 | G44: =(G39+G42)/G43 -> 0 | H44: =(H39+H42)/G43 -> 0 | I44: =(I39+I42)/I43 -> 0 | J44: =(J39+J42)/I43 -> 0 | K44: =(K39+K42)/K43 -> 0 | L44: =(L39+L42)/K43 -> 0 | M44: =(M39+M42)/M43 -> 0 | N44: =(N39+N42)/M43 -> 0 | O44: =(O39+O42)/O43 -> 0 | P44: =(P39+P42)/O43 -> 0 | Q44: =(Q39+Q42)/Q43 -> 0 | R44: =(R39+R42)/Q43 -> 0 | S44: =(S39+S42)/S43 -> 0 | T44: =(T39+T42)/S43 -> 0 | U44: =(U39+U42)/U43 -> 0 | V44: =(V39+V42)/U43 -> 0 | W44: =(W39+W42)/W43 -> 0 | X44: =(X39+X42)/W43 -> 0 | Y44: =(Y39+Y42)/Y43 -> 0 | Z44: =(Z39+Z42)/Y43 -> 0 | AA44: =(AA39+AA42)/AA43 -> 0 | AB44: =(AB39+AB42)/AA43 -> 0 | AC44: =(AC39+AC42)/AC43 -> 0 | AD44: =(AD39+AD42)/AC43 -> 0 | AE44: =(AE39+AE42)/AE43 -> 0 | AF44: =(AF39+AF42)/AE43 -> 0 | AG44: =(AG39+AG42)/AG43 -> 0 | AH44: =(AH39+AH42)/AG43 -> 0 | AI44: =(AI39+AI42)/AI43 -> 0 | AJ44: =(AJ39+AJ42)/AI43 -> 0 | AK44: =(AK39+AK42)/AK43 -> 0 | AL44: =(AL39+AL42)/AK43 -> 0 | AM44: =(AM39+AM42)/AM43 -> 0 | AN44: =(AN39+AN42)/AM43 -> 0 | AO44: =(AO39+AO42)/AO43 -> 0 | AP44: =(AP39+AP42)/AO43 -> 0 | AQ44: =(AQ39+AQ42)/AQ43 -> 0 | AR44: =(AR39+AR42)/AQ43 -> 0 | AS44: =(AS39+AS42)/AS43 -> 0 | AT44: =(AT39+AT42)/AS43 -> 0 | AU44: =(AU39+AU42)/AU43 -> 0 | AV44: =(AV39+AV42)/AU43 -> 0 | AW44: =(AW39+AW42)/AW43 -> 0 | AX44: =(AX39+AX42)/AW43 -> 0 | AY44: =(AY39+AY42)/AY43 -> 0 | AZ44: =(AZ39+AZ42)/AY43 -> 0 | BA44: =(BA39+BA42)/BA43 -> 0 | BB44: =(BB39+BB42)/BA43 -> 0 | BC44: =(BC39+BC42)/BC43 -> 0 | BD44: =(BD39+BD42)/BC43 -> 0 | BE44: =(BE39+BE42)/BE43 -> 0 | BF44: =(BF39+BF42)/BE43 -> 0 | BG44: =(BG39+BG42)/BG43 -> 0 | BH44: =(BH39+BH42)/BG43 -> 0 | BI44: =(BI39+BI42)/BI43 -> 0 | BJ44: =(BJ39+BJ42)/BI43 -> 0 | BK44: =(BK39+BK42)/BK43 -> 0 | BL44: =(BL39+BL42)/BK43 -> 0 | BM44: =(BM39+BM42)/BM43 -> 0 | BN44: =(BN39+BN42)/BM43 -> 0 | BO44: =(BO39+BO42)/BO43 -> 0 | BP44: =(BP39+BP42)/BO43 -> 0 | BQ44: =(BQ39+BQ42)/BQ43 -> 0 | BR44: =(BR39+BR42)/BQ43 -> 0 | BS44: =(BS39+BS42)/BS43 -> 0 | BT44: =(BT39+BT42)/BS43 -> 0 | BU44: =(BU39+BU42)/BU43 -> 0 | BV44: =(BV39+BV42)/BU43 -> 0 | BW44: =(BW39+BW42)/BW43 -> 0 | BX44: =(BX39+BX42)/BW43 -> 0 | BY44: =(BY39+BY42)/BY43 -> 0 | BZ44: =(BZ39+BZ42)/BY43 -> 0 | CA44: =(CA39+CA42)/CA43 -> 0 | CB44: =(CB39+CB42)/CA43 -> 0 | CC44: =(CC39+CC42)/CC43 -> 0 | CD44: =(CD39+CD42)/CC43 -> 0 | CE44: =(CE39+CE42)/CE43 -> 0 | CF44: =(CF39+CF42)/CE43 -> 0 | CG44: =(CG39+CG42)/CG43 -> 0 | CH44: =(CH39+CH42)/CG43 -> 0
B45: Погашення / Repayment | E45: =E41+F41 -> 0 | G45: =G41+H41 -> 0 | I45: =I41+J41 -> 0 | K45: =K41+L41 -> 0 | M45: =M41+N41 -> 0 | O45: =O41+P41 -> 0 | Q45: =Q41+R41 -> 0 | S45: =S41+T41 -> 0 | U45: =U41+V41 -> 0 | W45: =W41+X41 -> 0 | Y45: =Y41+Z41 -> 0 | AA45: =AA41+AB41 -> 0 | AC45: =AC41+AD41 -> 0 | AE45: =AE41+AF41 -> 0 | AG45: =AG41+AH41 -> 0 | AI45: =AI41+AJ41 -> 0 | AK45: =AK41+AL41 -> 0 | AM45: =AM41+AN41 -> 0 | AO45: =AO41+AP41 -> 0 | AQ45: =AQ41+AR41 -> 0 | AS45: =AS41+AT41 -> 0 | AU45: =AU41+AV41 -> 0 | AW45: =AW41+AX41 -> 0 | AY45: =AY41+AZ41 -> 0 | BA45: =BA41+BB41 -> 0 | BC45: =BC41+BD41 -> 0 | BE45: =BE41+BF41 -> 0 | BG45: =BG41+BH41 -> 0 | BI45: =BI41+BJ41 -> 0 | BK45: =BK41+BL41 -> 0 | BM45: =BM41+BN41 -> 0 | BO45: =BO41+BP41 -> 0 | BQ45: =BQ41+BR41 -> 0 | BS45: =BS41+BT41 -> 0 | BU45: =BU41+BV41 -> 0 | BW45: =BW41+BX41 -> 0 | BY45: =BY41+BZ41 -> 0 | CA45: =CA41+CB41 -> 0 | CC45: =CC41+CD41 -> 0 | CE45: =CE41+CF41 -> 0 | CG45: =CG41+CH41 -> 0
B47: Період | E47: =IF(E48=0,"",0) ->  | F47: =COUNT(E47) -> 0 | G47: =COUNT($E47:F$47) -> 1 | H47: =COUNT($E47:G$47) -> 2 | I47: =COUNT($E47:H$47) -> 3 | J47: =COUNT($E47:I$47) -> 4 | K47: =COUNT($E47:J$47) -> 5 | L47: =COUNT($E47:K$47) -> 6 | M47: =COUNT($E47:L$47) -> 7 | N47: =COUNT($E47:M$47) -> 8 | O47: =COUNT($E47:N$47) -> 9 | P47: =COUNT($E47:O$47) -> 10 | Q47: =COUNT($E47:P$47) -> 11 | R47: =COUNT($E47:Q$47) -> 12 | S47: =COUNT($E47:R$47) -> 13 | T47: =COUNT($E47:S$47) -> 14 | U47: =COUNT($E47:T$47) -> 15 | V47: =COUNT($E47:U$47) -> 16 | W47: =COUNT($E47:V$47) -> 17 | X47: =COUNT($E47:W$47) -> 18 | Y47: =COUNT($E47:X$47) -> 19 | Z47: =COUNT($E47:Y$47) -> 20 | AA47: =COUNT($E47:Z$47) -> 21 | AB47: =COUNT($E47:AA$47) -> 22 | AC47: =COUNT($E47:AB$47) -> 23 | AD47: =COUNT($E47:AC$47) -> 24 | AE47: =COUNT($E47:AD$47) -> 25 | AF47: =COUNT($E47:AE$47) -> 26 | AG47: =COUNT($E47:AF$47) -> 27 | AH47: =COUNT($E47:AG$47) -> 28 | AI47: =COUNT($E47:AH$47) -> 29 | AJ47: =COUNT($E47:AI$47) -> 30 | AK47: =COUNT($E47:AJ$47) -> 31 | AL47: =COUNT($E47:AK$47) -> 32 | AM47: =COUNT($E47:AL$47) -> 33 | AN47: =COUNT($E47:AM$47) -> 34 | AO47: =COUNT($E47:AN$47) -> 35 | AP47: =COUNT($E47:AO$47) -> 36 | AQ47: =COUNT($E47:AP$47) -> 37 | AR47: =COUNT($E47:AQ$47) -> 38 | AS47: =COUNT($E47:AR$47) -> 39 | AT47: =COUNT($E47:AS$47) -> 40 | AU47: =COUNT($E47:AT$47) -> 41 | AV47: =COUNT($E47:AU$47) -> 42 | AW47: =COUNT($E47:AV$47) -> 43 | AX47: =COUNT($E47:AW$47) -> 44 | AY47: =COUNT($E47:AX$47) -> 45 | AZ47: =COUNT($E47:AY$47) -> 46 | BA47: =COUNT($E47:AZ$47) -> 47 | BB47: =COUNT($E47:BA$47) -> 48 | BC47: =COUNT($E47:BB$47) -> 49 | BD47: =COUNT($E47:BC$47) -> 50 | BE47: =COUNT($E47:BD$47) -> 51 | BF47: =COUNT($E47:BE$47) -> 52 | BG47: =COUNT($E47:BF$47) -> 53 | BH47: =COUNT($E47:BG$47) -> 54 | BI47: =COUNT($E47:BH$47) -> 55 | BJ47: =COUNT($E47:BI$47) -> 56 | BK47: =COUNT($E47:BJ$47) -> 57 | BL47: =COUNT($E47:BK$47) -> 58 | BM47: =COUNT($E47:BL$47) -> 59 | BN47: =COUNT($E47:BM$47) -> 60 | BO47: =COUNT($E47:BN$47) -> 61 | BP47: =COUNT($E47:BO$47) -> 62 | BQ47: =COUNT($E47:BP$47) -> 63 | BR47: =COUNT($E47:BQ$47) -> 64 | BS47: =COUNT($E47:BR$47) -> 65 | BT47: =COUNT($E47:BS$47) -> 66 | BU47: =COUNT($E47:BT$47) -> 67 | BV47: =COUNT($E47:BU$47) -> 68 | BW47: =COUNT($E47:BV$47) -> 69 | BX47: =COUNT($E47:BW$47) -> 70 | BY47: =COUNT($E47:BX$47) -> 71 | BZ47: =COUNT($E47:BY$47) -> 72 | CA47: =COUNT($E47:BZ$47) -> 73 | CB47: =COUNT($E47:CA$47) -> 74 | CC47: =COUNT($E47:CB$47) -> 75 | CD47: =COUNT($E47:CC$47) -> 76 | CE47: =COUNT($E47:CD$47) -> 77 | CF47: =COUNT($E47:CE$47) -> 78 | CG47: =COUNT($E47:CF$47) -> 79 | CH47: =COUNT($E47:CG$47) -> 80
B48: F(x) | E48: =IF(E28=0,0,-$C$8+$J$18) -> 0 | F48: =IF(E28>0,F27+F31+F32+F33,-C8+J18) -> -9000 | G48: =G27+G31+G32+G33 -> 633.3333333 | H48: 991.6666667 | I48: 956.25 | J48: 920.8333333 | K48: 885.4166667 | L48: 850 | M48: 814.5833333 | N48: 779.1666667 | O48: 743.75 | P48: 0 | Q48: 0 | R48: 0 | S48: 0 | T48: 0 | U48: 0 | V48: 0 | W48: 0 | X48: 0 | Y48: 0 | Z48: 0 | AA48: 0 | AB48: 0 | AC48: 0 | AD48: 0 | AE48: 0 | AF48: 0 | AG48: 0 | AH48: 0 | AI48: 0 | AJ48: 0 | AK48: 0 | AL48: 0 | AM48: =AM27+AM31+AM32+AM33 -> 0 | AN48: 0 | AO48: 0 | AP48: 0 | AQ48: 0 | AR48: 0 | AS48: 0 | AT48: 0 | AU48: 0 | AV48: 0 | AW48: 0 | AX48: 0 | AY48: 0 | AZ48: 0 | BA48: 0 | BB48: 0 | BC48: 0 | BD48: 0 | BE48: 0 | BF48: 0 | BG48: 0 | BH48: 0 | BI48: 0 | BJ48: 0 | BK48: 0 | BL48: 0 | BM48: 0 | BN48: 0 | BO48: 0 | BP48: 0 | BQ48: 0 | BR48: 0 | BS48: =BS27+BS31+BS32+BS33 -> 0 | BT48: 0 | BU48: 0 | BV48: 0 | BW48: 0 | BX48: 0 | BY48: 0 | BZ48: 0 | CA48: 0 | CB48: 0 | CC48: 0 | CD48: 0 | CE48: 0 | CF48: 0 | CG48: 0 | CH48: 0
B49: F(x') | E49: =F47*F48 -> 0 | F49: =G47*G48 -> 633.3333333 | G49: =H47*H48 -> 1983.333333 | H49: 2868.75 | I49: 3683.333333 | J49: 4427.083333 | K49: 5100 | L49: 5702.083333 | M49: 6233.333333 | N49: 6693.75 | O49: 0 | P49: 0 | Q49: 0 | R49: 0 | S49: 0 | T49: 0 | U49: 0 | V49: 0 | W49: 0 | X49: 0 | Y49: 0 | Z49: 0 | AA49: 0 | AB49: 0 | AC49: 0 | AD49: 0 | AE49: 0 | AF49: 0 | AG49: 0 | AH49: 0 | AI49: 0 | AJ49: 0 | AK49: 0 | AL49: 0 | AM49: 0 | AN49: 0 | AO49: 0 | AP49: 0 | AQ49: 0 | AR49: 0 | AS49: 0 | AT49: 0 | AU49: 0 | AV49: 0 | AW49: 0 | AX49: 0 | AY49: 0 | AZ49: 0 | BA49: 0 | BB49: 0 | BC49: 0 | BD49: 0 | BE49: 0 | BF49: 0 | BG49: 0 | BH49: 0 | BI49: 0 | BJ49: 0 | BK49: 0 | BL49: 0 | BM49: 0 | BN49: 0 | BO49: 0 | BP49: 0 | BQ49: 0 | BR49: 0 | BS49: =BT47*BT48 -> 0 | BT49: 0 | BU49: 0 | BV49: 0 | BW49: 0 | BX49: 0 | BY49: 0 | BZ49: 0 | CA49: 0 | CB49: 0 | CC49: 0 | CD49: 0 | CE49: 0 | CF49: 0 | CG49: 0
B50: X(k) | E50: =IF(E48<0,1,0) -> 0 | F50: =IF(E50=0,1,E50-SERIESSUM(E50,0,1,E48:CH48)/SERIESSUM(E50,0,1,E49:CG49)) -> 1 | G50: =IF(F50=0,1,F50-SERIESSUM(F50,0,1,$E$48:$CI$48)/SERIESSUM(F50,0,1,$E$49:$CH$49)) -> 1.038178165 | H50: =IF(G50=0,1,G50-SERIESSUM(G50,0,1,$E$48:$CI$48)/SERIESSUM(G50,0,1,$E$49:$CH$49)) -> 1.034867664 | I50: 1.034839044 | J50: 1.034839042 | K50: 1.034839042 | L50: 1.034839042 | M50: 1.034839042 | N50: 1.034839042 | O50: 1.034839042 | P50: 1.034839042 | Q50: 1.034839042 | R50: 1.034839042 | S50: 1.034839042 | T50: 1.034839042 | U50: 1.034839042 | V50: 1.034839042 | W50: 1.034839042 | X50: 1.034839042 | Y50: 1.034839042 | Z50: 1.034839042 | AA50: 1.034839042 | AB50: 1.034839042 | AC50: 1.034839042 | AD50: 1.034839042 | AE50: 1.034839042 | AF50: 1.034839042 | AG50: 1.034839042 | AH50: 1.034839042 | AI50: 1.034839042 | AJ50: 1.034839042 | AK50: 1.034839042 | AL50: 1.034839042 | AM50: 1.034839042 | AN50: 1.034839042 | AO50: 1.034839042 | AP50: 1.034839042 | AQ50: 1.034839042 | AR50: 1.034839042 | AS50: 1.034839042 | AT50: 1.034839042 | AU50: 1.034839042 | AV50: 1.034839042 | AW50: 1.034839042 | AX50: 1.034839042 | AY50: 1.034839042 | AZ50: 1.034839042 | BA50: 1.034839042 | BB50: 1.034839042 | BC50: 1.034839042 | BD50: 1.034839042 | BE50: 1.034839042 | BF50: 1.034839042 | BG50: 1.034839042 | BH50: 1.034839042 | BI50: 1.034839042 | BJ50: 1.034839042 | BK50: 1.034839042 | BL50: 1.034839042 | BM50: 1.034839042 | BN50: 1.034839042 | BO50: 1.034839042 | BP50: 1.034839042 | BQ50: 1.034839042 | BR50: 1.034839042 | BS50: 1.034839042 | BT50: =IF(BS50=0,1,BS50-SERIESSUM(BS50,0,1,$E$48:$CI$48)/SERIESSUM(BS50,0,1,$E$49:$CH$49)) -> 1.034839042 | BU50: 1.034839042 | BV50: 1.034839042 | BW50: 1.034839042 | BX50: 1.034839042 | BY50: 1.034839042 | BZ50: 1.034839042 | CA50: 1.034839042 | CB50: 1.034839042 | CC50: 1.034839042 | CD50: 1.034839042 | CE50: 1.034839042 | CF50: 1.034839042 | CG50: 1.034839042
B51: i | E51: 0 | F51: =IF(E50=0,0,POWER(F50,-2)-1) -> 0 | G51: =POWER(G50,-2)-1 -> -0.07219604579 | H51: -0.06625053574 | I51: -0.06619888579 | J51: -0.06619888197 | K51: -0.06619888197 | L51: -0.06619888197 | M51: -0.06619888197 | N51: -0.06619888197 | O51: -0.06619888197 | P51: -0.06619888197 | Q51: -0.06619888197 | R51: -0.06619888197 | S51: -0.06619888197 | T51: -0.06619888197 | U51: -0.06619888197 | V51: -0.06619888197 | W51: -0.06619888197 | X51: -0.06619888197 | Y51: -0.06619888197 | Z51: -0.06619888197 | AA51: -0.06619888197 | AB51: -0.06619888197 | AC51: -0.06619888197 | AD51: -0.06619888197 | AE51: -0.06619888197 | AF51: -0.06619888197 | AG51: -0.06619888197 | AH51: -0.06619888197 | AI51: -0.06619888197 | AJ51: -0.06619888197 | AK51: -0.06619888197 | AL51: -0.06619888197 | AM51: -0.06619888197 | AN51: -0.06619888197 | AO51: -0.06619888197 | AP51: -0.06619888197 | AQ51: -0.06619888197 | AR51: -0.06619888197 | AS51: -0.06619888197 | AT51: -0.06619888197 | AU51: -0.06619888197 | AV51: -0.06619888197 | AW51: -0.06619888197 | AX51: -0.06619888197 | AY51: -0.06619888197 | AZ51: -0.06619888197 | BA51: -0.06619888197 | BB51: -0.06619888197 | BC51: -0.06619888197 | BD51: -0.06619888197 | BE51: -0.06619888197 | BF51: -0.06619888197 | BG51: -0.06619888197 | BH51: -0.06619888197 | BI51: -0.06619888197 | BJ51: -0.06619888197 | BK51: -0.06619888197 | BL51: -0.06619888197 | BM51: -0.06619888197 | BN51: -0.06619888197 | BO51: -0.06619888197 | BP51: -0.06619888197 | BQ51: -0.06619888197 | BR51: -0.06619888197 | BS51: =POWER(BS50,-2)-1 -> -0.06619888197 | BT51: -0.06619888197 | BU51: -0.06619888197 | BV51: -0.06619888197 | BW51: -0.06619888197 | BX51: -0.06619888197 | BY51: -0.06619888197 | BZ51: -0.06619888197 | CA51: -0.06619888197 | CB51: -0.06619888197 | CC51: -0.06619888197 | CD51: -0.06619888197 | CE51: -0.06619888197 | CF51: -0.06619888197 | CG51: -0.06619888197
B53: I півріччя | C53: I half a year
B54: ІІ півріччя | C54: II half a year

Sheet Амортизація_Depreciation
A2: РОЗРАХУНОК АМОРТИЗАЦІЇ ОСНОВНИХ ЗАСОБІВ / CALCULATION OF DEPRECIATION OF FIXED ASSETS | D2: =CONCATENATE(Головна_Summary!A2,"/ ",Головна_Summary!K2) -> Energy storage system 10МВт/ Energy storage system 10 MW | AJ2: =Головна_Summary!AD5 -> тис.US$/ ths.US$
B4: Група основних засобів / Group of fixed assets | C4: Мін. термін користування | D4: Термін корисного використання / Useful life | E4: Доля в проекті / Project share | F4: =CFO!H4 -> 2024 | G4: =CFO!I4 -> 2025 | H4: =CFO!J4 -> 2026 | I4: =CFO!K4 -> 2027 | J4: =CFO!L4 -> 2028 | K4: =CFO!M4 -> 2029 | L4: =CFO!N4 -> 2030 | M4: =CFO!O4 -> 2031 | N4: =CFO!P4 -> 2032 | O4: =CFO!Q4 -> 2033 | P4: =CFO!R4 -> 2034 | Q4: =CFO!S4 -> 2035 | R4: =CFO!T4 -> 2036 | S4: =CFO!U4 -> 2037 | T4: =CFO!V4 -> 2038 | U4: =CFO!W4 -> 2039 | V4: =CFO!X4 -> 0 | W4: =CFO!Y4 -> 0 | X4: =CFO!Z4 -> 0 | Y4: =CFO!AA4 -> 0 | Z4: =CFO!AB4 -> 0 | AA4: =CFO!AC4 -> 0 | AB4: =CFO!AD4 -> 0 | AC4: =CFO!AE4 -> 0 | AD4: =CFO!AF4 -> 0 | AE4: =CFO!AG4 -> 0 | AF4: =CFO!AH4 -> 0 | AG4: =CFO!AI4 -> 0 | AH4: =CFO!AJ4 -> 0 | AI4: =CFO!AK4 -> 0 | AJ4: ='Грошові потоки _ Cash flows'!AM22 -> Разом / Total
B5: Первісна вартість (введення об'єкта в експлуатацію) / Initial cost | E5: =E6+E19 -> 1 | F5: =F6+F19 -> 0 | G5: 9000 | H5: 0 | I5: 0 | J5: 0 | K5: 0 | L5: 0 | M5: 0 | N5: 0 | O5: 0 | P5: 0 | Q5: 0 | R5: 0 | S5: 0 | T5: 0 | U5: 0 | V5: 0 | W5: 0 | X5: 0 | Y5: 0 | Z5: 0 | AA5: 0 | AB5: 0 | AC5: 0 | AD5: 0 | AE5: 0 | AF5: 0 | AG5: 0 | AH5: 0 | AI5: 0 | AJ5: =SUM(F5:AI5) -> 9000
B6: Основні засоби: / fixed assets : | E6: =SUM(E7:E18) -> 1 | F6: =SUM(F7:F18) -> 0 | G6: 9000 | H6: 0 | I6: 0 | J6: 0 | K6: 0 | L6: 0 | M6: 0 | N6: 0 | O6: 0 | P6: 0 | Q6: 0 | R6: 0 | S6: 0 | T6: 0 | U6: 0 | V6: 0 | W6: 0 | X6: 0 | Y6: 0 | Z6: 0 | AA6: 0 | AB6: 0 | AC6: 0 | AD6: 0 | AE6: 0 | AF6: 0 | AG6: 0 | AH6: 0 | AI6: 0 | AJ6: 9000
B7: Група 1 – земельні ділянки / Group 1 -ground sections | C7: — | D7: =IF('Грошові потоки _ Cash flows'!E15>Амортизація_Depreciation!C7,'Грошові потоки _ Cash flows'!E15,Амортизація_Depreciation!C7) -> — | F7: ='Фінансування_Financing (CFI)'!AD$32*Амортизація_Depreciation!$E7 -> 0 | G7: ='Фінансування_Financing (CFI)'!AE$32*Амортизація_Depreciation!$E7 -> 0 | H7: ='Фінансування_Financing (CFI)'!AF$32*Амортизація_Depreciation!$E7 -> 0 | I7: ='Фінансування_Financing (CFI)'!AG$32*Амортизація_Depreciation!$E7 -> 0 | J7: ='Фінансування_Financing (CFI)'!AH$32*Амортизація_Depreciation!$E7 -> 0 | K7: ='Фінансування_Financing (CFI)'!AI$32*Амортизація_Depreciation!$E7 -> 0 | L7: ='Фінансування_Financing (CFI)'!AJ$32*Амортизація_Depreciation!$E7 -> 0 | M7: ='Фінансування_Financing (CFI)'!AK$32*Амортизація_Depreciation!$E7 -> 0 | N7: ='Фінансування_Financing (CFI)'!AL$32*Амортизація_Depreciation!$E7 -> 0 | O7: ='Фінансування_Financing (CFI)'!AM$32*Амортизація_Depreciation!$E7 -> 0 | P7: ='Фінансування_Financing (CFI)'!AN$32*Амортизація_Depreciation!$E7 -> 0 | Q7: ='Фінансування_Financing (CFI)'!AO$32*Амортизація_Depreciation!$E7 -> 0 | R7: ='Фінансування_Financing (CFI)'!AP$32*Амортизація_Depreciation!$E7 -> 0 | S7: ='Фінансування_Financing (CFI)'!AQ$32*Амортизація_Depreciation!$E7 -> 0 | T7: ='Фінансування_Financing (CFI)'!AR$32*Амортизація_Depreciation!$E7 -> 0 | U7: ='Фінансування_Financing (CFI)'!AS$32*Амортизація_Depreciation!$E7 -> 0 | V7: ='Фінансування_Financing (CFI)'!AT$32*Амортизація_Depreciation!$E7 -> 0 | W7: ='Фінансування_Financing (CFI)'!AU$32*Амортизація_Depreciation!$E7 -> 0 | X7: ='Фінансування_Financing (CFI)'!AV$32*Амортизація_Depreciation!$E7 -> 0 | Y7: ='Фінансування_Financing (CFI)'!AW$32*Амортизація_Depreciation!$E7 -> 0 | Z7: ='Фінансування_Financing (CFI)'!AX$32*Амортизація_Depreciation!$E7 -> 0 | AA7: ='Фінансування_Financing (CFI)'!AY$32*Амортизація_Depreciation!$E7 -> 0 | AB7: ='Фінансування_Financing (CFI)'!AZ$32*Амортизація_Depreciation!$E7 -> 0 | AC7: ='Фінансування_Financing (CFI)'!BA$32*Амортизація_Depreciation!$E7 -> 0 | AD7: ='Фінансування_Financing (CFI)'!BB$32*Амортизація_Depreciation!$E7 -> 0 | AE7: ='Фінансування_Financing (CFI)'!BC$32*Амортизація_Depreciation!$E7 -> 0 | AF7: ='Фінансування_Financing (CFI)'!BD$32*Амортизація_Depreciation!$E7 -> 0 | AG7: ='Фінансування_Financing (CFI)'!BE$32*Амортизація_Depreciation!$E7 -> 0 | AH7: ='Фінансування_Financing (CFI)'!BF$32*Амортизація_Depreciation!$E7 -> 0 | AI7: ='Фінансування_Financing (CFI)'!BG$32*Амортизація_Depreciation!$E7 -> 0 | AJ7: 0
B8: Група 2 – капітальні витрати на поліпшення землі, не пов'язані з будівництвом / CAPEX on ground improvement not related to construction | C8: 15 | D8: =IF('Грошові потоки _ Cash flows'!$E$15>Амортизація_Depreciation!C8, 'Грошові потоки _ Cash flows'!$E$15,Амортизація_Depreciation!C8) -> 16 | F8: ='Фінансування_Financing (CFI)'!AD$32*Амортизація_Depreciation!$E8 -> 0 | G8: ='Фінансування_Financing (CFI)'!AE$32*Амортизація_Depreciation!$E8 -> 0 | H8: ='Фінансування_Financing (CFI)'!AF$32*Амортизація_Depreciation!$E8 -> 0 | I8: ='Фінансування_Financing (CFI)'!AG$32*Амортизація_Depreciation!$E8 -> 0 | J8: ='Фінансування_Financing (CFI)'!AH$32*Амортизація_Depreciation!$E8 -> 0 | K8: ='Фінансування_Financing (CFI)'!AI$32*Амортизація_Depreciation!$E8 -> 0 | L8: ='Фінансування_Financing (CFI)'!AJ$32*Амортизація_Depreciation!$E8 -> 0 | M8: ='Фінансування_Financing (CFI)'!AK$32*Амортизація_Depreciation!$E8 -> 0 | N8: ='Фінансування_Financing (CFI)'!AL$32*Амортизація_Depreciation!$E8 -> 0 | O8: ='Фінансування_Financing (CFI)'!AM$32*Амортизація_Depreciation!$E8 -> 0 | P8: ='Фінансування_Financing (CFI)'!AN$32*Амортизація_Depreciation!$E8 -> 0 | Q8: ='Фінансування_Financing (CFI)'!AO$32*Амортизація_Depreciation!$E8 -> 0 | R8: ='Фінансування_Financing (CFI)'!AP$32*Амортизація_Depreciation!$E8 -> 0 | S8: ='Фінансування_Financing (CFI)'!AQ$32*Амортизація_Depreciation!$E8 -> 0 | T8: ='Фінансування_Financing (CFI)'!AR$32*Амортизація_Depreciation!$E8 -> 0 | U8: ='Фінансування_Financing (CFI)'!AS$32*Амортизація_Depreciation!$E8 -> 0 | V8: ='Фінансування_Financing (CFI)'!AT$32*Амортизація_Depreciation!$E8 -> 0 | W8: ='Фінансування_Financing (CFI)'!AU$32*Амортизація_Depreciation!$E8 -> 0 | X8: ='Фінансування_Financing (CFI)'!AV$32*Амортизація_Depreciation!$E8 -> 0 | Y8: ='Фінансування_Financing (CFI)'!AW$32*Амортизація_Depreciation!$E8 -> 0 | Z8: ='Фінансування_Financing (CFI)'!AX$32*Амортизація_Depreciation!$E8 -> 0 | AA8: ='Фінансування_Financing (CFI)'!AY$32*Амортизація_Depreciation!$E8 -> 0 | AB8: ='Фінансування_Financing (CFI)'!AZ$32*Амортизація_Depreciation!$E8 -> 0 | AC8: ='Фінансування_Financing (CFI)'!BA$32*Амортизація_Depreciation!$E8 -> 0 | AD8: ='Фінансування_Financing (CFI)'!BB$32*Амортизація_Depreciation!$E8 -> 0 | AE8: ='Фінансування_Financing (CFI)'!BC$32*Амортизація_Depreciation!$E8 -> 0 | AF8: ='Фінансування_Financing (CFI)'!BD$32*Амортизація_Depreciation!$E8 -> 0 | AG8: ='Фінансування_Financing (CFI)'!BE$32*Амортизація_Depreciation!$E8 -> 0 | AH8: ='Фінансування_Financing (CFI)'!BF$32*Амортизація_Depreciation!$E8 -> 0 | AI8: ='Фінансування_Financing (CFI)'!BG$32*Амортизація_Depreciation!$E8 -> 0 | AJ8: 0
B9: Група 3 – будівлі / buildings | C9: 20 | D9: =IF('Грошові потоки _ Cash flows'!$E$15>Амортизація_Depreciation!C9, 'Грошові потоки _ Cash flows'!$E$15,Амортизація_Depreciation!C9) -> 20 | F9: ='Фінансування_Financing (CFI)'!AD$32*Амортизація_Depreciation!$E9 -> 0 | G9: ='Фінансування_Financing (CFI)'!AE$32*Амортизація_Depreciation!$E9 -> 0 | H9: ='Фінансування_Financing (CFI)'!AF$32*Амортизація_Depreciation!$E9 -> 0 | I9: ='Фінансування_Financing (CFI)'!AG$32*Амортизація_Depreciation!$E9 -> 0 | J9: ='Фінансування_Financing (CFI)'!AH$32*Амортизація_Depreciation!$E9 -> 0 | K9: ='Фінансування_Financing (CFI)'!AI$32*Амортизація_Depreciation!$E9 -> 0 | L9: ='Фінансування_Financing (CFI)'!AJ$32*Амортизація_Depreciation!$E9 -> 0 | M9: ='Фінансування_Financing (CFI)'!AK$32*Амортизація_Depreciation!$E9 -> 0 | N9: ='Фінансування_Financing (CFI)'!AL$32*Амортизація_Depreciation!$E9 -> 0 | O9: ='Фінансування_Financing (CFI)'!AM$32*Амортизація_Depreciation!$E9 -> 0 | P9: ='Фінансування_Financing (CFI)'!AN$32*Амортизація_Depreciation!$E9 -> 0 | Q9: ='Фінансування_Financing (CFI)'!AO$32*Амортизація_Depreciation!$E9 -> 0 | R9: ='Фінансування_Financing (CFI)'!AP$32*Амортизація_Depreciation!$E9 -> 0 | S9: ='Фінансування_Financing (CFI)'!AQ$32*Амортизація_Depreciation!$E9 -> 0 | T9: ='Фінансування_Financing (CFI)'!AR$32*Амортизація_Depreciation!$E9 -> 0 | U9: ='Фінансування_Financing (CFI)'!AS$32*Амортизація_Depreciation!$E9 -> 0 | V9: ='Фінансування_Financing (CFI)'!AT$32*Амортизація_Depreciation!$E9 -> 0 | W9: ='Фінансування_Financing (CFI)'!AU$32*Амортизація_Depreciation!$E9 -> 0 | X9: ='Фінансування_Financing (CFI)'!AV$32*Амортизація_Depreciation!$E9 -> 0 | Y9: ='Фінансування_Financing (CFI)'!AW$32*Амортизація_Depreciation!$E9 -> 0 | Z9: ='Фінансування_Financing (CFI)'!AX$32*Амортизація_Depreciation!$E9 -> 0 | AA9: ='Фінансування_Financing (CFI)'!AY$32*Амортизація_Depreciation!$E9 -> 0 | AB9: ='Фінансування_Financing (CFI)'!AZ$32*Амортизація_Depreciation!$E9 -> 0 | AC9: ='Фінансування_Financing (CFI)'!BA$32*Амортизація_Depreciation!$E9 -> 0 | AD9: ='Фінансування_Financing (CFI)'!BB$32*Амортизація_Depreciation!$E9 -> 0 | AE9: ='Фінансування_Financing (CFI)'!BC$32*Амортизація_Depreciation!$E9 -> 0 | AF9: ='Фінансування_Financing (CFI)'!BD$32*Амортизація_Depreciation!$E9 -> 0 | AG9: ='Фінансування_Financing (CFI)'!BE$32*Амортизація_Depreciation!$E9 -> 0 | AH9: ='Фінансування_Financing (CFI)'!BF$32*Амортизація_Depreciation!$E9 -> 0 | AI9: ='Фінансування_Financing (CFI)'!BG$32*Амортизація_Depreciation!$E9 -> 0 | AJ9: 0
B10: споруди / constructions | C10: 15 | D10: =IF('Грошові потоки _ Cash flows'!$E$15>Амортизація_Depreciation!C10, 'Грошові потоки _ Cash flows'!$E$15,Амортизація_Depreciation!C10) -> 16 | F10: ='Фінансування_Financing (CFI)'!AD$32*Амортизація_Depreciation!$E10 -> 0 | G10: ='Фінансування_Financing (CFI)'!AE$32*Амортизація_Depreciation!$E10 -> 0 | H10: ='Фінансування_Financing (CFI)'!AF$32*Амортизація_Depreciation!$E10 -> 0 | I10: ='Фінансування_Financing (CFI)'!AG$32*Амортизація_Depreciation!$E10 -> 0 | J10: ='Фінансування_Financing (CFI)'!AH$32*Амортизація_Depreciation!$E10 -> 0 | K10: ='Фінансування_Financing (CFI)'!AI$32*Амортизація_Depreciation!$E10 -> 0 | L10: ='Фінансування_Financing (CFI)'!AJ$32*Амортизація_Depreciation!$E10 -> 0 | M10: ='Фінансування_Financing (CFI)'!AK$32*Амортизація_Depreciation!$E10 -> 0 | N10: ='Фінансування_Financing (CFI)'!AL$32*Амортизація_Depreciation!$E10 -> 0 | O10: ='Фінансування_Financing (CFI)'!AM$32*Амортизація_Depreciation!$E10 -> 0 | P10: ='Фінансування_Financing (CFI)'!AN$32*Амортизація_Depreciation!$E10 -> 0 | Q10: ='Фінансування_Financing (CFI)'!AO$32*Амортизація_Depreciation!$E10 -> 0 | R10: ='Фінансування_Financing (CFI)'!AP$32*Амортизація_Depreciation!$E10 -> 0 | S10: ='Фінансування_Financing (CFI)'!AQ$32*Амортизація_Depreciation!$E10 -> 0 | T10: ='Фінансування_Financing (CFI)'!AR$32*Амортизація_Depreciation!$E10 -> 0 | U10: ='Фінансування_Financing (CFI)'!AS$32*Амортизація_Depreciation!$E10 -> 0 | V10: ='Фінансування_Financing (CFI)'!AT$32*Амортизація_Depreciation!$E10 -> 0 | W10: ='Фінансування_Financing (CFI)'!AU$32*Амортизація_Depreciation!$E10 -> 0 | X10: ='Фінансування_Financing (CFI)'!AV$32*Амортизація_Depreciation!$E10 -> 0 | Y10: ='Фінансування_Financing (CFI)'!AW$32*Амортизація_Depreciation!$E10 -> 0 | Z10: ='Фінансування_Financing (CFI)'!AX$32*Амортизація_Depreciation!$E10 -> 0 | AA10: ='Фінансування_Financing (CFI)'!AY$32*Амортизація_Depreciation!$E10 -> 0 | AB10: ='Фінансування_Financing (CFI)'!AZ$32*Амортизація_Depreciation!$E10 -> 0 | AC10: ='Фінансування_Financing (CFI)'!BA$32*Амортизація_Depreciation!$E10 -> 0 | AD10: ='Фінансування_Financing (CFI)'!BB$32*Амортизація_Depreciation!$E10 -> 0 | AE10: ='Фінансування_Financing (CFI)'!BC$32*Амортизація_Depreciation!$E10 -> 0 | AF10: ='Фінансування_Financing (CFI)'!BD$32*Амортизація_Depreciation!$E10 -> 0 | AG10: ='Фінансування_Financing (CFI)'!BE$32*Амортизація_Depreciation!$E10 -> 0 | AH10: ='Фінансування_Financing (CFI)'!BF$32*Амортизація_Depreciation!$E10 -> 0 | AI10: ='Фінансування_Financing (CFI)'!BG$32*Амортизація_Depreciation!$E10 -> 0 | AJ10: 0
B11: передавальні пристрої / transmitting devices | C11: 10 | D11: =IF('Грошові потоки _ Cash flows'!$E$15>Амортизація_Depreciation!C11, 'Грошові потоки _ Cash flows'!$E$15,Амортизація_Depreciation!C11) -> 16 | F11: ='Фінансування_Financing (CFI)'!AD$32*Амортизація_Depreciation!$E11 -> 0 | G11: ='Фінансування_Financing (CFI)'!AE$32*Амортизація_Depreciation!$E11 -> 0 | H11: ='Фінансування_Financing (CFI)'!AF$32*Амортизація_Depreciation!$E11 -> 0 | I11: ='Фінансування_Financing (CFI)'!AG$32*Амортизація_Depreciation!$E11 -> 0 | J11: ='Фінансування_Financing (CFI)'!AH$32*Амортизація_Depreciation!$E11 -> 0 | K11: ='Фінансування_Financing (CFI)'!AI$32*Амортизація_Depreciation!$E11 -> 0 | L11: ='Фінансування_Financing (CFI)'!AJ$32*Амортизація_Depreciation!$E11 -> 0 | M11: ='Фінансування_Financing (CFI)'!AK$32*Амортизація_Depreciation!$E11 -> 0 | N11: ='Фінансування_Financing (CFI)'!AL$32*Амортизація_Depreciation!$E11 -> 0 | O11: ='Фінансування_Financing (CFI)'!AM$32*Амортизація_Depreciation!$E11 -> 0 | P11: ='Фінансування_Financing (CFI)'!AN$32*Амортизація_Depreciation!$E11 -> 0 | Q11: ='Фінансування_Financing (CFI)'!AO$32*Амортизація_Depreciation!$E11 -> 0 | R11: ='Фінансування_Financing (CFI)'!AP$32*Амортизація_Depreciation!$E11 -> 0 | S11: ='Фінансування_Financing (CFI)'!AQ$32*Амортизація_Depreciation!$E11 -> 0 | T11: ='Фінансування_Financing (CFI)'!AR$32*Амортизація_Depreciation!$E11 -> 0 | U11: ='Фінансування_Financing (CFI)'!AS$32*Амортизація_Depreciation!$E11 -> 0 | V11: ='Фінансування_Financing (CFI)'!AT$32*Амортизація_Depreciation!$E11 -> 0 | W11: ='Фінансування_Financing (CFI)'!AU$32*Амортизація_Depreciation!$E11 -> 0 | X11: ='Фінансування_Financing (CFI)'!AV$32*Амортизація_Depreciation!$E11 -> 0 | Y11: ='Фінансування_Financing (CFI)'!AW$32*Амортизація_Depreciation!$E11 -> 0 | Z11: ='Фінансування_Financing (CFI)'!AX$32*Амортизація_Depreciation!$E11 -> 0 | AA11: ='Фінансування_Financing (CFI)'!AY$32*Амортизація_Depreciation!$E11 -> 0 | AB11: ='Фінансування_Financing (CFI)'!AZ$32*Амортизація_Depreciation!$E11 -> 0 | AC11: ='Фінансування_Financing (CFI)'!BA$32*Амортизація_Depreciation!$E11 -> 0 | AD11: ='Фінансування_Financing (CFI)'!BB$32*Амортизація_Depreciation!$E11 -> 0 | AE11: ='Фінансування_Financing (CFI)'!BC$32*Амортизація_Depreciation!$E11 -> 0 | AF11: ='Фінансування_Financing (CFI)'!BD$32*Амортизація_Depreciation!$E11 -> 0 | AG11: ='Фінансування_Financing (CFI)'!BE$32*Амортизація_Depreciation!$E11 -> 0 | AH11: ='Фінансування_Financing (CFI)'!BF$32*Амортизація_Depreciation!$E11 -> 0 | AI11: ='Фінансування_Financing (CFI)'!BG$32*Амортизація_Depreciation!$E11 -> 0 | AJ11: 0
B12: Група 4 – машини та обладнання / Machines and equipment | C12: 5 | D12: =IF('Грошові потоки _ Cash flows'!$E$15>Амортизація_Depreciation!C12, 'Грошові потоки _ Cash flows'!$E$15,Амортизація_Depreciation!C12) -> 16 | E12: 1 | F12: ='Фінансування_Financing (CFI)'!AD$32*Амортизація_Depreciation!$E12 -> 0 | G12: ='Фінансування_Financing (CFI)'!AE$32*Амортизація_Depreciation!$E12 -> 9000 | H12: ='Фінансування_Financing (CFI)'!AF$32*Амортизація_Depreciation!$E12 -> 0 | I12: ='Фінансування_Financing (CFI)'!AG$32*Амортизація_Depreciation!$E12 -> 0 | J12: ='Фінансування_Financing (CFI)'!AH$32*Амортизація_Depreciation!$E12 -> 0 | K12: ='Фінансування_Financing (CFI)'!AI$32*Амортизація_Depreciation!$E12 -> 0 | L12: ='Фінансування_Financing (CFI)'!AJ$32*Амортизація_Depreciation!$E12 -> 0 | M12: ='Фінансування_Financing (CFI)'!AK$32*Амортизація_Depreciation!$E12 -> 0 | N12: ='Фінансування_Financing (CFI)'!AL$32*Амортизація_Depreciation!$E12 -> 0 | O12: ='Фінансування_Financing (CFI)'!AM$32*Амортизація_Depreciation!$E12 -> 0 | P12: ='Фінансування_Financing (CFI)'!AN$32*Амортизація_Depreciation!$E12 -> 0 | Q12: ='Фінансування_Financing (CFI)'!AO$32*Амортизація_Depreciation!$E12 -> 0 | R12: ='Фінансування_Financing (CFI)'!AP$32*Амортизація_Depreciation!$E12 -> 0 | S12: ='Фінансування_Financing (CFI)'!AQ$32*Амортизація_Depreciation!$E12 -> 0 | T12: ='Фінансування_Financing (CFI)'!AR$32*Амортизація_Depreciation!$E12 -> 0 | U12: ='Фінансування_Financing (CFI)'!AS$32*Амортизація_Depreciation!$E12 -> 0 | V12: ='Фінансування_Financing (CFI)'!AT$32*Амортизація_Depreciation!$E12 -> 0 | W12: ='Фінансування_Financing (CFI)'!AU$32*Амортизація_Depreciation!$E12 -> 0 | X12: ='Фінансування_Financing (CFI)'!AV$32*Амортизація_Depreciation!$E12 -> 0 | Y12: ='Фінансування_Financing (CFI)'!AW$32*Амортизація_Depreciation!$E12 -> 0 | Z12: ='Фінансування_Financing (CFI)'!AX$32*Амортизація_Depreciation!$E12 -> 0 | AA12: ='Фінансування_Financing (CFI)'!AY$32*Амортизація_Depreciation!$E12 -> 0 | AB12: ='Фінансування_Financing (CFI)'!AZ$32*Амортизація_Depreciation!$E12 -> 0 | AC12: ='Фінансування_Financing (CFI)'!BA$32*Амортизація_Depreciation!$E12 -> 0 | AD12: ='Фінансування_Financing (CFI)'!BB$32*Амортизація_Depreciation!$E12 -> 0 | AE12: ='Фінансування_Financing (CFI)'!BC$32*Амортизація_Depreciation!$E12 -> 0 | AF12: ='Фінансування_Financing (CFI)'!BD$32*Амортизація_Depreciation!$E12 -> 0 | AG12: ='Фінансування_Financing (CFI)'!BE$32*Амортизація_Depreciation!$E12 -> 0 | AH12: ='Фінансування_Financing (CFI)'!BF$32*Амортизація_Depreciation!$E12 -> 0 | AI12: ='Фінансування_Financing (CFI)'!BG$32*Амортизація_Depreciation!$E12 -> 0 | AJ12: 9000
B13: Електронно-обчислювальні машини, інші машини для автоматичного оброблення інформації, пов'язані з ними засоби зчитування або друку інформації, пов'язані з ними комп'ютерні програми (крім програм, витрати на придбання яких визнаються роялті, та / або програм, які визнаються нематеріальним активів) , інші інформаційні системи, комутатори, маршрутизатори, модулі, модеми, джерела безперебійного живлення та засоби їх підключення до телекомунікаційних мереж, телефони (в тому числі мобільні), мікрофони і рації, вартість яких перевищує 2500 гривень. | C13: 2 | D13: =IF('Грошові потоки _ Cash flows'!$E$15>Амортизація_Depreciation!C13, 'Грошові потоки _ Cash flows'!$E$15,Амортизація_Depreciation!C13) -> 16 | F13: ='Фінансування_Financing (CFI)'!AD$32*Амортизація_Depreciation!$E13 -> 0 | G13: ='Фінансування_Financing (CFI)'!AE$32*Амортизація_Depreciation!$E13 -> 0 | H13: ='Фінансування_Financing (CFI)'!AF$32*Амортизація_Depreciation!$E13 -> 0 | I13: ='Фінансування_Financing (CFI)'!AG$32*Амортизація_Depreciation!$E13 -> 0 | J13: ='Фінансування_Financing (CFI)'!AH$32*Амортизація_Depreciation!$E13 -> 0 | K13: ='Фінансування_Financing (CFI)'!AI$32*Амортизація_Depreciation!$E13 -> 0 | L13: ='Фінансування_Financing (CFI)'!AJ$32*Амортизація_Depreciation!$E13 -> 0 | M13: ='Фінансування_Financing (CFI)'!AK$32*Амортизація_Depreciation!$E13 -> 0 | N13: ='Фінансування_Financing (CFI)'!AL$32*Амортизація_Depreciation!$E13 -> 0 | O13: ='Фінансування_Financing (CFI)'!AM$32*Амортизація_Depreciation!$E13 -> 0 | P13: ='Фінансування_Financing (CFI)'!AN$32*Амортизація_Depreciation!$E13 -> 0 | Q13: ='Фінансування_Financing (CFI)'!AO$32*Амортизація_Depreciation!$E13 -> 0 | R13: ='Фінансування_Financing (CFI)'!AP$32*Амортизація_Depreciation!$E13 -> 0 | S13: ='Фінансування_Financing (CFI)'!AQ$32*Амортизація_Depreciation!$E13 -> 0 | T13: ='Фінансування_Financing (CFI)'!AR$32*Амортизація_Depreciation!$E13 -> 0 | U13: ='Фінансування_Financing (CFI)'!AS$32*Амортизація_Depreciation!$E13 -> 0 | V13: ='Фінансування_Financing (CFI)'!AT$32*Амортизація_Depreciation!$E13 -> 0 | W13: ='Фінансування_Financing (CFI)'!AU$32*Амортизація_Depreciation!$E13 -> 0 | X13: ='Фінансування_Financing (CFI)'!AV$32*Амортизація_Depreciation!$E13 -> 0 | Y13: ='Фінансування_Financing (CFI)'!AW$32*Амортизація_Depreciation!$E13 -> 0 | Z13: ='Фінансування_Financing (CFI)'!AX$32*Амортизація_Depreciation!$E13 -> 0 | AA13: ='Фінансування_Financing (CFI)'!AY$32*Амортизація_Depreciation!$E13 -> 0 | AB13: ='Фінансування_Financing (CFI)'!AZ$32*Амортизація_Depreciation!$E13 -> 0 | AC13: ='Фінансування_Financing (CFI)'!BA$32*Амортизація_Depreciation!$E13 -> 0 | AD13: ='Фінансування_Financing (CFI)'!BB$32*Амортизація_Depreciation!$E13 -> 0 | AE13: ='Фінансування_Financing (CFI)'!BC$32*Амортизація_Depreciation!$E13 -> 0 | AF13: ='Фінансування_Financing (CFI)'!BD$32*Амортизація_Depreciation!$E13 -> 0 | AG13: ='Фінансування_Financing (CFI)'!BE$32*Амортизація_Depreciation!$E13 -> 0 | AH13: ='Фінансування_Financing (CFI)'!BF$32*Амортизація_Depreciation!$E13 -> 0 | AI13: ='Фінансування_Financing (CFI)'!BG$32*Амортизація_Depreciation!$E13 -> 0 | AJ13: 0
B14: Група 5 – транспортні засоби / vehicles | C14: 5 | D14: =IF('Грошові потоки _ Cash flows'!$E$15>Амортизація_Depreciation!C14, 'Грошові потоки _ Cash flows'!$E$15,Амортизація_Depreciation!C14) -> 16 | F14: ='Фінансування_Financing (CFI)'!AD$32*Амортизація_Depreciation!$E14 -> 0 | G14: ='Фінансування_Financing (CFI)'!AE$32*Амортизація_Depreciation!$E14 -> 0 | H14: ='Фінансування_Financing (CFI)'!AF$32*Амортизація_Depreciation!$E14 -> 0 | I14: ='Фінансування_Financing (CFI)'!AG$32*Амортизація_Depreciation!$E14 -> 0 | J14: ='Фінансування_Financing (CFI)'!AH$32*Амортизація_Depreciation!$E14 -> 0 | K14: ='Фінансування_Financing (CFI)'!AI$32*Амортизація_Depreciation!$E14 -> 0 | L14: ='Фінансування_Financing (CFI)'!AJ$32*Амортизація_Depreciation!$E14 -> 0 | M14: ='Фінансування_Financing (CFI)'!AK$32*Амортизація_Depreciation!$E14 -> 0 | N14: ='Фінансування_Financing (CFI)'!AL$32*Амортизація_Depreciation!$E14 -> 0 | O14: ='Фінансування_Financing (CFI)'!AM$32*Амортизація_Depreciation!$E14 -> 0 | P14: ='Фінансування_Financing (CFI)'!AN$32*Амортизація_Depreciation!$E14 -> 0 | Q14: ='Фінансування_Financing (CFI)'!AO$32*Амортизація_Depreciation!$E14 -> 0 | R14: ='Фінансування_Financing (CFI)'!AP$32*Амортизація_Depreciation!$E14 -> 0 | S14: ='Фінансування_Financing (CFI)'!AQ$32*Амортизація_Depreciation!$E14 -> 0 | T14: ='Фінансування_Financing (CFI)'!AR$32*Амортизація_Depreciation!$E14 -> 0 | U14: ='Фінансування_Financing (CFI)'!AS$32*Амортизація_Depreciation!$E14 -> 0 | V14: ='Фінансування_Financing (CFI)'!AT$32*Амортизація_Depreciation!$E14 -> 0 | W14: ='Фінансування_Financing (CFI)'!AU$32*Амортизація_Depreciation!$E14 -> 0 | X14: ='Фінансування_Financing (CFI)'!AV$32*Амортизація_Depreciation!$E14 -> 0 | Y14: ='Фінансування_Financing (CFI)'!AW$32*Амортизація_Depreciation!$E14 -> 0 | Z14: ='Фінансування_Financing (CFI)'!AX$32*Амортизація_Depreciation!$E14 -> 0 | AA14: ='Фінансування_Financing (CFI)'!AY$32*Амортизація_Depreciation!$E14 -> 0 | AB14: ='Фінансування_Financing (CFI)'!AZ$32*Амортизація_Depreciation!$E14 -> 0 | AC14: ='Фінансування_Financing (CFI)'!BA$32*Амортизація_Depreciation!$E14 -> 0 | AD14: ='Фінансування_Financing (CFI)'!BB$32*Амортизація_Depreciation!$E14 -> 0 | AE14: ='Фінансування_Financing (CFI)'!BC$32*Амортизація_Depreciation!$E14 -> 0 | AF14: ='Фінансування_Financing (CFI)'!BD$32*Амортизація_Depreciation!$E14 -> 0 | AG14: ='Фінансування_Financing (CFI)'!BE$32*Амортизація_Depreciation!$E14 -> 0 | AH14: ='Фінансування_Financing (CFI)'!BF$32*Амортизація_Depreciation!$E14 -> 0 | AI14: ='Фінансування_Financing (CFI)'!BG$32*Амортизація_Depreciation!$E14 -> 0 | AJ14: 0
